{"text_format":"1","workbook":"xlsx","n_sheets":33,"sheets":["ورقة1","الخلاصة","مقارنة بين وليد والموقع","تقرير قيمة الجاز شهرى","اجمالى كمية وقيمة على المقاولين","اجمالى التوريد والصرف والفرق","تقرير قيمة الجاز يومى","تقرير المقاولين جاز","توزيع يومى على المقاولين","الشيخ رجب","رجب","السيد","جمال","أشرف","علوان","حلمى","أنور","جابر","رمضان عربية ش","محمد عيسى","عمر","حلمى25","ضيف","خالد 54","محسن مياه","خالد 31","عربية الجيش","السيد156","عنتر","رجب طرق","جابر 59","الشركة","الشركة 23"],"not_rendered":{"charts":0,"images":0,"macros":1,"external_links":0,"defined_names":13,"comments":0,"pivot_tables":0},"unopened":[],"bounds":{"document_bytes":16777216,"sheet_cells":100000,"rows_first":2000,"rows_last":500,"rows_between":2000,"halvings":0,"cell_chars":16384,"cell_head_chars":4096},"cells_cut":0,"cells_raw":0,"read":"whole","date_system":"1900"}

{"sheet":"ورقة1","index":0,"n_rows":53,"n_cols":7,"rows_kept":53,"cut":false,"hidden":false,"merged":[]}
[null,"المقاول","عدد اللترات","السعر","القيمة","عدد اللترات","القيمة"]
[null,"الشيخ رجب",{"$f":"SUMIF('توزيع يومى على المقاولين'!$H$7:$I$22000,B2,'توزيع يومى على المقاولين'!$I$7:$I$22000)","v":800},{"$f":"IFERROR(IF(E2<>\"\",E2/C2,\"\"),\"\")","v":7.05},{"$f":"SUMIF('توزيع يومى على المقاولين'!$H$7:$K$22000,$B2,'توزيع يومى على المقاولين'!$K$7:$K$22000)","v":5640},{"$f":"SUM(C2:C53)","v":342959},{"$f":"SUM(E2:E53)","v":2417860.9500000002}]
[null,"رجب",{"$f":"SUMIF('توزيع يومى على المقاولين'!$H$7:$I$22000,B3,'توزيع يومى على المقاولين'!$I$7:$I$22000)","v":12881},{"$f":"IFERROR(IF(E3<>\"\",E3/C3,\"\"),\"\")","v":7.05},{"$f":"SUMIF('توزيع يومى على المقاولين'!$H$7:$K$22000,$B3,'توزيع يومى على المقاولين'!$K$7:$K$22000)","v":90811.05}]
[null,"السيد",{"$f":"SUMIF('توزيع يومى على المقاولين'!$H$7:$I$22000,B4,'توزيع يومى على المقاولين'!$I$7:$I$22000)","v":11826},7.05,{"$f":"SUMIF('توزيع يومى على المقاولين'!$H$7:$K$22000,$B4,'توزيع يومى على المقاولين'!$K$7:$K$22000)","v":83373.3}]
[null,"جمال",{"$f":"SUMIF('توزيع يومى على المقاولين'!$H$7:$I$22000,B5,'توزيع يومى على المقاولين'!$I$7:$I$22000)","v":5095},7.05,{"$f":"SUMIF('توزيع يومى على المقاولين'!$H$7:$K$22000,$B5,'توزيع يومى على المقاولين'!$K$7:$K$22000)","v":35919.75}]
[null,"أشرف",{"$f":"SUMIF('توزيع يومى على المقاولين'!$H$7:$I$22000,B6,'توزيع يومى على المقاولين'!$I$7:$I$22000)","v":15183},7.05,{"$f":"SUMIF('توزيع يومى على المقاولين'!$H$7:$K$22000,$B6,'توزيع يومى على المقاولين'!$K$7:$K$22000)","v":107040.15}]
[null,"علوان",{"$f":"SUMIF('توزيع يومى على المقاولين'!$H$7:$I$22000,B7,'توزيع يومى على المقاولين'!$I$7:$I$22000)","v":24989},7.0500000000000007,{"$f":"SUMIF('توزيع يومى على المقاولين'!$H$7:$K$22000,$B7,'توزيع يومى على المقاولين'!$K$7:$K$22000)","v":176172.45}]
[null,"حلمى",{"$f":"SUMIF('توزيع يومى على المقاولين'!$H$7:$I$22000,B8,'توزيع يومى على المقاولين'!$I$7:$I$22000)","v":14291},7.0499999999999989,{"$f":"SUMIF('توزيع يومى على المقاولين'!$H$7:$K$22000,$B8,'توزيع يومى على المقاولين'!$K$7:$K$22000)","v":100751.54999999999}]
[null,"أنور",{"$f":"SUMIF('توزيع يومى على المقاولين'!$H$7:$I$22000,B9,'توزيع يومى على المقاولين'!$I$7:$I$22000)","v":16433},7.05,{"$f":"SUMIF('توزيع يومى على المقاولين'!$H$7:$K$22000,$B9,'توزيع يومى على المقاولين'!$K$7:$K$22000)","v":115852.65}]
[null,"جابر",{"$f":"SUMIF('توزيع يومى على المقاولين'!$H$7:$I$22000,B10,'توزيع يومى على المقاولين'!$I$7:$I$22000)","v":56455},7.0500000000000007,{"$f":"SUMIF('توزيع يومى على المقاولين'!$H$7:$K$22000,$B10,'توزيع يومى على المقاولين'!$K$7:$K$22000)","v":398007.75000000006}]
[null,"رمضان عربية ش",{"$f":"SUMIF('توزيع يومى على المقاولين'!$H$7:$I$22000,B11,'توزيع يومى على المقاولين'!$I$7:$I$22000)","v":2277},7.0499999999999989,{"$f":"SUMIF('توزيع يومى على المقاولين'!$H$7:$K$22000,$B11,'توزيع يومى على المقاولين'!$K$7:$K$22000)","v":16052.849999999999}]
[null,"محمد عيسى",{"$f":"SUMIF('توزيع يومى على المقاولين'!$H$7:$I$22000,B12,'توزيع يومى على المقاولين'!$I$7:$I$22000)","v":5895},7.05,{"$f":"SUMIF('توزيع يومى على المقاولين'!$H$7:$K$22000,$B12,'توزيع يومى على المقاولين'!$K$7:$K$22000)","v":41559.75}]
[null,"عمر",{"$f":"SUMIF('توزيع يومى على المقاولين'!$H$7:$I$22000,B13,'توزيع يومى على المقاولين'!$I$7:$I$22000)","v":6557},7.05,{"$f":"SUMIF('توزيع يومى على المقاولين'!$H$7:$K$22000,$B13,'توزيع يومى على المقاولين'!$K$7:$K$22000)","v":46226.85}]
[null,"حلمى25",{"$f":"SUMIF('توزيع يومى على المقاولين'!$H$7:$I$22000,B14,'توزيع يومى على المقاولين'!$I$7:$I$22000)","v":8528},7.0499999999999989,{"$f":"SUMIF('توزيع يومى على المقاولين'!$H$7:$K$22000,$B14,'توزيع يومى على المقاولين'!$K$7:$K$22000)","v":60122.399999999994}]
[null,"ضيف",{"$f":"SUMIF('توزيع يومى على المقاولين'!$H$7:$I$22000,B15,'توزيع يومى على المقاولين'!$I$7:$I$22000)","v":19751},7.05,{"$f":"SUMIF('توزيع يومى على المقاولين'!$H$7:$K$22000,$B15,'توزيع يومى على المقاولين'!$K$7:$K$22000)","v":139244.54999999999}]
[null,"خالد 54",{"$f":"SUMIF('توزيع يومى على المقاولين'!$H$7:$I$22000,B16,'توزيع يومى على المقاولين'!$I$7:$I$22000)","v":12554},7.05,{"$f":"SUMIF('توزيع يومى على المقاولين'!$H$7:$K$22000,$B16,'توزيع يومى على المقاولين'!$K$7:$K$22000)","v":88505.7}]
[null,"محسن مياه",{"$f":"SUMIF('توزيع يومى على المقاولين'!$H$7:$I$22000,B17,'توزيع يومى على المقاولين'!$I$7:$I$22000)","v":5100},7.05,{"$f":"SUMIF('توزيع يومى على المقاولين'!$H$7:$K$22000,$B17,'توزيع يومى على المقاولين'!$K$7:$K$22000)","v":35955}]
[null,"خالد 31",{"$f":"SUMIF('توزيع يومى على المقاولين'!$H$7:$I$22000,B18,'توزيع يومى على المقاولين'!$I$7:$I$22000)","v":24836},7.05,{"$f":"SUMIF('توزيع يومى على المقاولين'!$H$7:$K$22000,$B18,'توزيع يومى على المقاولين'!$K$7:$K$22000)","v":175093.8}]
[null,"عربية الجيش",{"$f":"SUMIF('توزيع يومى على المقاولين'!$H$7:$I$22000,B19,'توزيع يومى على المقاولين'!$I$7:$I$22000)","v":136},7.05,{"$f":"SUMIF('توزيع يومى على المقاولين'!$H$7:$K$22000,$B19,'توزيع يومى على المقاولين'!$K$7:$K$22000)","v":958.8}]
[null,"عنتر",{"$f":"SUMIF('توزيع يومى على المقاولين'!$H$7:$I$22000,B20,'توزيع يومى على المقاولين'!$I$7:$I$22000)","v":28608},7.0499999999999989,{"$f":"SUMIF('توزيع يومى على المقاولين'!$H$7:$K$22000,$B20,'توزيع يومى على المقاولين'!$K$7:$K$22000)","v":201686.39999999997}]
[null,"السيد156",{"$f":"SUMIF('توزيع يومى على المقاولين'!$H$7:$I$22000,B21,'توزيع يومى على المقاولين'!$I$7:$I$22000)","v":20731},7.05,{"$f":"SUMIF('توزيع يومى على المقاولين'!$H$7:$K$22000,$B21,'توزيع يومى على المقاولين'!$K$7:$K$22000)","v":146153.54999999999}]
[null,"رجب طرق",{"$f":"SUMIF('توزيع يومى على المقاولين'!$H$7:$I$22000,B22,'توزيع يومى على المقاولين'!$I$7:$I$22000)","v":23637},7.05,{"$f":"SUMIF('توزيع يومى على المقاولين'!$H$7:$K$22000,$B22,'توزيع يومى على المقاولين'!$K$7:$K$22000)","v":166640.85}]
[null,"جابر 59",{"$f":"SUMIF('توزيع يومى على المقاولين'!$H$7:$I$22000,B23,'توزيع يومى على المقاولين'!$I$7:$I$22000)","v":25602},7.05,{"$f":"SUMIF('توزيع يومى على المقاولين'!$H$7:$K$22000,$B23,'توزيع يومى على المقاولين'!$K$7:$K$22000)","v":180494.1}]
[null,"الشركة",{"$f":"SUMIF('توزيع يومى على المقاولين'!$H$7:$I$22000,B24,'توزيع يومى على المقاولين'!$I$7:$I$22000)","v":398},7.0499999999999989,{"$f":"SUMIF('توزيع يومى على المقاولين'!$H$7:$K$22000,$B24,'توزيع يومى على المقاولين'!$K$7:$K$22000)","v":2805.8999999999996}]
[null,"الشركة 23",{"$f":"SUMIF('توزيع يومى على المقاولين'!$H$7:$I$22000,B25,'توزيع يومى على المقاولين'!$I$7:$I$22000)","v":396},7.0500000000000007,{"$f":"SUMIF('توزيع يومى على المقاولين'!$H$7:$K$22000,$B25,'توزيع يومى على المقاولين'!$K$7:$K$22000)","v":2791.8}]
[null,null,{"$f":"SUMIF('توزيع يومى على المقاولين'!$H$7:$I$22000,B26,'توزيع يومى على المقاولين'!$I$7:$I$22000)","v":0},"",{"$f":"SUMIF('توزيع يومى على المقاولين'!$H$7:$K$22000,$B26,'توزيع يومى على المقاولين'!$K$7:$K$22000)","v":0}]
[null,null,{"$f":"SUMIF('توزيع يومى على المقاولين'!$H$7:$I$22000,B27,'توزيع يومى على المقاولين'!$I$7:$I$22000)","v":0},"",{"$f":"SUMIF('توزيع يومى على المقاولين'!$H$7:$K$22000,$B27,'توزيع يومى على المقاولين'!$K$7:$K$22000)","v":0}]
[null,null,{"$f":"SUMIF('توزيع يومى على المقاولين'!$H$7:$I$22000,B28,'توزيع يومى على المقاولين'!$I$7:$I$22000)","v":0},"",{"$f":"SUMIF('توزيع يومى على المقاولين'!$H$7:$K$22000,$B28,'توزيع يومى على المقاولين'!$K$7:$K$22000)","v":0}]
[null,null,{"$f":"SUMIF('توزيع يومى على المقاولين'!$H$7:$I$22000,B29,'توزيع يومى على المقاولين'!$I$7:$I$22000)","v":0},"",{"$f":"SUMIF('توزيع يومى على المقاولين'!$H$7:$K$22000,$B29,'توزيع يومى على المقاولين'!$K$7:$K$22000)","v":0}]
[null,null,{"$f":"SUMIF('توزيع يومى على المقاولين'!$H$7:$I$22000,B30,'توزيع يومى على المقاولين'!$I$7:$I$22000)","v":0},"",{"$f":"SUMIF('توزيع يومى على المقاولين'!$H$7:$K$22000,$B30,'توزيع يومى على المقاولين'!$K$7:$K$22000)","v":0}]
[null,null,{"$f":"SUMIF('توزيع يومى على المقاولين'!$H$7:$I$22000,B31,'توزيع يومى على المقاولين'!$I$7:$I$22000)","v":0},"",{"$f":"SUMIF('توزيع يومى على المقاولين'!$H$7:$K$22000,$B31,'توزيع يومى على المقاولين'!$K$7:$K$22000)","v":0}]
[null,null,{"$f":"SUMIF('توزيع يومى على المقاولين'!$H$7:$I$22000,B32,'توزيع يومى على المقاولين'!$I$7:$I$22000)","v":0},"",{"$f":"SUMIF('توزيع يومى على المقاولين'!$H$7:$K$22000,$B32,'توزيع يومى على المقاولين'!$K$7:$K$22000)","v":0}]
[null,null,{"$f":"SUMIF('توزيع يومى على المقاولين'!$H$7:$I$22000,B33,'توزيع يومى على المقاولين'!$I$7:$I$22000)","v":0},"",{"$f":"SUMIF('توزيع يومى على المقاولين'!$H$7:$K$22000,$B33,'توزيع يومى على المقاولين'!$K$7:$K$22000)","v":0}]
[null,null,{"$f":"SUMIF('توزيع يومى على المقاولين'!$H$7:$I$22000,B34,'توزيع يومى على المقاولين'!$I$7:$I$22000)","v":0},"",{"$f":"SUMIF('توزيع يومى على المقاولين'!$H$7:$K$22000,$B34,'توزيع يومى على المقاولين'!$K$7:$K$22000)","v":0}]
[null,null,{"$f":"SUMIF('توزيع يومى على المقاولين'!$H$7:$I$22000,B35,'توزيع يومى على المقاولين'!$I$7:$I$22000)","v":0},"",{"$f":"SUMIF('توزيع يومى على المقاولين'!$H$7:$K$22000,$B35,'توزيع يومى على المقاولين'!$K$7:$K$22000)","v":0}]
[null,null,{"$f":"SUMIF('توزيع يومى على المقاولين'!$H$7:$I$22000,B36,'توزيع يومى على المقاولين'!$I$7:$I$22000)","v":0},"",{"$f":"SUMIF('توزيع يومى على المقاولين'!$H$7:$K$22000,$B36,'توزيع يومى على المقاولين'!$K$7:$K$22000)","v":0}]
[null,null,{"$f":"SUMIF('توزيع يومى على المقاولين'!$H$7:$I$22000,B37,'توزيع يومى على المقاولين'!$I$7:$I$22000)","v":0},"",{"$f":"SUMIF('توزيع يومى على المقاولين'!$H$7:$K$22000,$B37,'توزيع يومى على المقاولين'!$K$7:$K$22000)","v":0}]
[null,null,{"$f":"SUMIF('توزيع يومى على المقاولين'!$H$7:$I$22000,B38,'توزيع يومى على المقاولين'!$I$7:$I$22000)","v":0},"",{"$f":"SUMIF('توزيع يومى على المقاولين'!$H$7:$K$22000,$B38,'توزيع يومى على المقاولين'!$K$7:$K$22000)","v":0}]
[null,null,{"$f":"SUMIF('توزيع يومى على المقاولين'!$H$7:$I$22000,B39,'توزيع يومى على المقاولين'!$I$7:$I$22000)","v":0},"",{"$f":"SUMIF('توزيع يومى على المقاولين'!$H$7:$K$22000,$B39,'توزيع يومى على المقاولين'!$K$7:$K$22000)","v":0}]
[null,null,{"$f":"SUMIF('توزيع يومى على المقاولين'!$H$7:$I$22000,B40,'توزيع يومى على المقاولين'!$I$7:$I$22000)","v":0},"",{"$f":"SUMIF('توزيع يومى على المقاولين'!$H$7:$K$22000,$B40,'توزيع يومى على المقاولين'!$K$7:$K$22000)","v":0}]
[null,null,{"$f":"SUMIF('توزيع يومى على المقاولين'!$H$7:$I$22000,B41,'توزيع يومى على المقاولين'!$I$7:$I$22000)","v":0},"",{"$f":"SUMIF('توزيع يومى على المقاولين'!$H$7:$K$22000,$B41,'توزيع يومى على المقاولين'!$K$7:$K$22000)","v":0}]
[null,null,{"$f":"SUMIF('توزيع يومى على المقاولين'!$H$7:$I$22000,B42,'توزيع يومى على المقاولين'!$I$7:$I$22000)","v":0},"",{"$f":"SUMIF('توزيع يومى على المقاولين'!$H$7:$K$22000,$B42,'توزيع يومى على المقاولين'!$K$7:$K$22000)","v":0}]
[null,null,{"$f":"SUMIF('توزيع يومى على المقاولين'!$H$7:$I$22000,B43,'توزيع يومى على المقاولين'!$I$7:$I$22000)","v":0},"",{"$f":"SUMIF('توزيع يومى على المقاولين'!$H$7:$K$22000,$B43,'توزيع يومى على المقاولين'!$K$7:$K$22000)","v":0}]
[null,null,{"$f":"SUMIF('توزيع يومى على المقاولين'!$H$7:$I$22000,B44,'توزيع يومى على المقاولين'!$I$7:$I$22000)","v":0},"",{"$f":"SUMIF('توزيع يومى على المقاولين'!$H$7:$K$22000,$B44,'توزيع يومى على المقاولين'!$K$7:$K$22000)","v":0}]
[null,null,{"$f":"SUMIF('توزيع يومى على المقاولين'!$H$7:$I$22000,B45,'توزيع يومى على المقاولين'!$I$7:$I$22000)","v":0},"",{"$f":"SUMIF('توزيع يومى على المقاولين'!$H$7:$K$22000,$B45,'توزيع يومى على المقاولين'!$K$7:$K$22000)","v":0}]
[null,null,{"$f":"SUMIF('توزيع يومى على المقاولين'!$H$7:$I$22000,B46,'توزيع يومى على المقاولين'!$I$7:$I$22000)","v":0},"",{"$f":"SUMIF('توزيع يومى على المقاولين'!$H$7:$K$22000,$B46,'توزيع يومى على المقاولين'!$K$7:$K$22000)","v":0}]
[null,null,{"$f":"SUMIF('توزيع يومى على المقاولين'!$H$7:$I$22000,B47,'توزيع يومى على المقاولين'!$I$7:$I$22000)","v":0},"",{"$f":"SUMIF('توزيع يومى على المقاولين'!$H$7:$K$22000,$B47,'توزيع يومى على المقاولين'!$K$7:$K$22000)","v":0}]
[null,null,{"$f":"SUMIF('توزيع يومى على المقاولين'!$H$7:$I$22000,B48,'توزيع يومى على المقاولين'!$I$7:$I$22000)","v":0},"",{"$f":"SUMIF('توزيع يومى على المقاولين'!$H$7:$K$22000,$B48,'توزيع يومى على المقاولين'!$K$7:$K$22000)","v":0}]
[null,null,{"$f":"SUMIF('توزيع يومى على المقاولين'!$H$7:$I$22000,B49,'توزيع يومى على المقاولين'!$I$7:$I$22000)","v":0},"",{"$f":"SUMIF('توزيع يومى على المقاولين'!$H$7:$K$22000,$B49,'توزيع يومى على المقاولين'!$K$7:$K$22000)","v":0}]
[null,null,{"$f":"SUMIF('توزيع يومى على المقاولين'!$H$7:$I$22000,B50,'توزيع يومى على المقاولين'!$I$7:$I$22000)","v":0},"",{"$f":"SUMIF('توزيع يومى على المقاولين'!$H$7:$K$22000,$B50,'توزيع يومى على المقاولين'!$K$7:$K$22000)","v":0}]
[null,null,{"$f":"SUMIF('توزيع يومى على المقاولين'!$H$7:$I$22000,B51,'توزيع يومى على المقاولين'!$I$7:$I$22000)","v":0},"",{"$f":"SUMIF('توزيع يومى على المقاولين'!$H$7:$K$22000,$B51,'توزيع يومى على المقاولين'!$K$7:$K$22000)","v":0}]
[null,null,{"$f":"SUMIF('توزيع يومى على المقاولين'!$H$7:$I$22000,B52,'توزيع يومى على المقاولين'!$I$7:$I$22000)","v":0},"",{"$f":"SUMIF('توزيع يومى على المقاولين'!$H$7:$K$22000,$B52,'توزيع يومى على المقاولين'!$K$7:$K$22000)","v":0}]
[null,null,{"$f":"SUMIF('توزيع يومى على المقاولين'!$H$7:$I$22000,B53,'توزيع يومى على المقاولين'!$I$7:$I$22000)","v":0},"",{"$f":"SUMIF('توزيع يومى على المقاولين'!$H$7:$K$22000,$B53,'توزيع يومى على المقاولين'!$K$7:$K$22000)","v":0}]

{"sheet":"الخلاصة","index":1,"n_rows":13,"n_cols":10,"rows_kept":13,"cut":false,"hidden":true,"merged":[[3,3,3,6],[4,5,4,6]]}
[]
[null,null,null,"شركة ال حماد للمقاولات",null,null,null,null,"مشروع تسويات اللاهون"]
[]
[null,null,null,"خلاصة باجمالى توريد وتوزيع  السولار  حتى تاريخه"]
[null,null,null,null,"بداية من ","2020-10-05"]
[null,null,null,"البيان","الكمية","السعر","القيمة",null,"المدفوعات","الخلاصة"]
[null,null,null,"وليد سولار  السعر 7.35",{"$f":"+'اجمالى التوريد والصرف والفرق'!C62","v":168104},7.35,{"$f":"+E7*F7","v":1235564.3999999999},{"$f":"+G7-'اجمالى التوريد والصرف والفرق'!E62","v":0},{"$f":"200000+400000+24000+400000","v":1024000},{"$f":"+G7-I7","v":211564.39999999991}]
[null,null,null,"تصريح 200ج دخول بوابة واكراميات100ج سائق جاز",{"$f":"+E7","v":168104},{"$f":"+G8/E8","v":3.7476800076143339E-2},{"$f":"+'اجمالى التوريد والصرف والفرق'!M7+'اجمالى التوريد والصرف والفرق'!N7","v":6300}]
[null,null,null,"اجمالى تكلفة توريد الجاز",{"$f":"+E7","v":168104},{"$f":"+G9/E9","v":7.3874768000761426},{"$f":"+G7+G8","v":1241864.3999999999}]
[]
[null,null,null,"كمية السولار على المقاولين",{"$f":"+'اجمالى التوريد والصرف والفرق'!G62","v":168104},7.05,{"$f":"+E11*F11","v":1185133.2},{"$f":"+G11-'توزيع يومى على المقاولين'!K4","v":-1232727.7500000002}]
[]
[null,null,null,"الفرق في تكلفه الفعلية وتكلفة المقاول(خسارة على الشركة)",{"$f":"+E7-E11","v":0},0,{"$f":"+G9-G11","v":56731.199999999953}]

{"sheet":"مقارنة بين وليد والموقع","index":2,"n_rows":27,"n_cols":12,"rows_kept":27,"cut":false,"hidden":true,"merged":[[3,1,3,8],[5,1,5,4],[5,6,5,8],[5,10,5,11],[26,10,26,11]]}
[]
[null,"شركة ال حماد للمقاولات",null,null,null,null,null,null,null,null,"مشروع التسويات بالفيوم"]
[]
[null,"بيان بتوريد السولار وتوزيعه على المقاولين وفرق الكميات والقيمة  "]
[null,null,null,null,null,null,null,null,null,null,null,7.35]
[null,"كمية المورد من السولار السعر 7.35",null,null,null,null,"وليد سولار  الواصل للموقع السعر 7.35",null,null,null,"الفرق"]
[null,"التاريخ","الكمية","السعر","القيمة",null,"الكمية","السعر","القيمة",null,"الكمية","المبلغ"]
[null,"2020-10-10",6500,7.35,{"$f":"+C8*D8","v":47775},null,6497,7.05,{"$f":"+G8*H8","v":45803.85},null,{"$f":"+C8-G8","v":3},{"$f":"+K8*$L$5","v":22.049999999999997}]
[null,"2020-10-11",6500,7.35,{"$f":"+C9*D9","v":47775},null,6500,7.05,{"$f":"+G9*H9","v":45825},null,0,{"$f":"+K9*$L$5","v":0}]
[null,"2020-10-12",6500,7.35,{"$f":"+C10*D10","v":47775},null,6500,7.05,45825,null,0,0]
[null,"2020-10-13",6500,7.35,47775,null,6451,7.05,45479.549999999996,null,49,360.15]
[null,"2020-10-14",6500,7.35,47775,null,6452,7.05,45486.6,null,48,352.79999999999995]
[null,"2020-10-17",6500,7.35,47775,null,6500,7.05,45825,null,0,0]
[null,"2020-10-18",6500,7.35,47775,null,6495,7.05,45789.75,null,5,36.75]
[null,"2020-10-19",6500,7.35,47775,null,6279,7.05,44266.95,null,221,1624.35]
[null,"2020-10-20",6500,7.35,47775,null,6611,7.05,46607.549999999996,null,-111,-815.84999999999991]
[null,"2020-10-21",6500,7.35,47775,null,6500,7.05,45825,null,0,0]
[null,"2020-10-24",6500,7.35,47775,null,6466,7.05,45585.299999999996,null,34,249.89999999999998]
[null,"2020-10-25",6500,7.35,47775,null,6500,7.05,45825,null,0,0]
[null,"2020-10-26",6500,7.35,47775,null,6500,7.05,45825,null,0,0]
[null,"2020-10-28",6500,7.35,47775,null,6500,7.05,45825,null,0,0]
[null,null,null,7.35,0,null,null,7.05,0,null,0,0]
[null,null,null,7.35,0,null,null,7.05,0,null,0,0]
[null,null,null,7.35,0,null,null,7.05,0,null,0,0]
[null,null,null,7.35,0,null,null,7.05,0,null,0,0]
[null,"الاجمالى الكميات والقيمة",{"$f":"SUM(C8:C25)","v":91000},7.35,668850,null,{"$f":"SUM(G8:G25)","v":90751},7.05,639794.54999999993,null,249,{"$f":"SUM(L8:L25)","v":1830.15}]
[null,null,null,null,null,null,null,null,null,null," هذا الفرق على وليد لصالح الشركة"]

{"sheet":"تقرير قيمة الجاز شهرى","index":3,"n_rows":8,"n_cols":9,"rows_kept":8,"cut":false,"hidden":true,"merged":[]}
[null,"شركة ال حماد للمقاولات",null,"مشروع تسويات اللاهون"]
[null,null,"تقرير شهر للجاز على المقاولين "]
[null,"الشهر","كمية الجاز مقاولين","قيمة جاز المقاولين"]
[null,"أكتوبر",{"$f":"SUMIF('توزيع يومى على المقاولين'!C7:$D$1959,'تقرير قيمة الجاز شهرى'!B4,'توزيع يومى على المقاولين'!$D$7:$D$1959)","v":0},{"$f":"+C4*7.05","v":0}]
[null,"نوفمبر",{"$f":"SUMIF('توزيع يومى على المقاولين'!$C$7:$D$1959,'تقرير قيمة الجاز شهرى'!B5,'توزيع يومى على المقاولين'!$D$7:$D$1959)","v":0},0]
[null,"ديسمبر",{"$f":"SUMIF('توزيع يومى على المقاولين'!C9:$D$1959,'تقرير قيمة الجاز شهرى'!B6,'توزيع يومى على المقاولين'!$D$7:$D$1959)","v":0},0]
[null,null,null,null,null,null,null,null,{"$f":"200000+400000+24000+400000","v":1024000}]
[null,"الاجمالى الكلى",{"$f":"SUM(C4:C6)","v":0},{"$f":"+D4+D5","v":0}]

{"sheet":"اجمالى كمية وقيمة على المقاولين","index":4,"n_rows":29,"n_cols":7,"rows_kept":29,"cut":false,"hidden":true,"merged":[[1,1,1,4]]}
[null,null,{"$f":"+C4-'توزيع يومى على المقاولين'!I4","v":0}]
[null,"بيان باجمالى الكميات  والقيمة لكل مقاول حتى تاريخه",null,null,null,{"$f":"+C4-'تقرير المقاولين جاز'!F6","v":330078},{"$f":"+E4-'تقرير المقاولين جاز'!H6","v":2327049.9}]
[]
[null,"الاجمالى الكلى ",{"$f":"SUM(C6:C3099)","v":342959},"اجمالى القيمة",{"$f":"+C4*7.05","v":2417860.9499999997}]
[null,"المقاول","كمية السولار","السعر اللتر","قيمة السولار"]
[null,"الشيخ رجب",{"$f":"SUMIF('توزيع يومى على المقاولين'!$H$7:$I$30002,B6,'توزيع يومى على المقاولين'!$I$7:$I$28002)","v":800},7.05,{"$f":"+C6*D6","v":5640}]
[null,"رجب",{"$f":"SUMIF('توزيع يومى على المقاولين'!$H$7:$I$30002,B7,'توزيع يومى على المقاولين'!$I$7:$I$28002)","v":12881},7.05,90811.05]
[null,"السيد",{"$f":"SUMIF('توزيع يومى على المقاولين'!$H$7:$I$30002,B8,'توزيع يومى على المقاولين'!$I$7:$I$28002)","v":11826},7.05,83373.3]
[null,"جمال",{"$f":"SUMIF('توزيع يومى على المقاولين'!$H$7:$I$30002,B9,'توزيع يومى على المقاولين'!$I$7:$I$28002)","v":5095},7.05,35919.75]
[null,"أشرف",{"$f":"SUMIF('توزيع يومى على المقاولين'!$H$7:$I$30002,B10,'توزيع يومى على المقاولين'!$I$7:$I$28002)","v":15183},7.05,107040.15]
[null,"علوان",{"$f":"SUMIF('توزيع يومى على المقاولين'!$H$7:$I$30002,B11,'توزيع يومى على المقاولين'!$I$7:$I$28002)","v":24989},7.05,176172.44999999998]
[null,"حلمى",{"$f":"SUMIF('توزيع يومى على المقاولين'!$H$7:$I$30002,B12,'توزيع يومى على المقاولين'!$I$7:$I$28002)","v":14291},7.05,100751.55]
[null,"أنور",{"$f":"SUMIF('توزيع يومى على المقاولين'!$H$7:$I$30002,B13,'توزيع يومى على المقاولين'!$I$7:$I$28002)","v":16433},7.05,115852.65]
[null,"جابر",{"$f":"SUMIF('توزيع يومى على المقاولين'!$H$7:$I$30002,B14,'توزيع يومى على المقاولين'!$I$7:$I$28002)","v":56455},7.05,398007.75]
[null,"رمضان عربية ش",{"$f":"SUMIF('توزيع يومى على المقاولين'!$H$7:$I$30002,B15,'توزيع يومى على المقاولين'!$I$7:$I$28002)","v":2277},7.05,16052.85]
[null,"محمد عيسى",{"$f":"SUMIF('توزيع يومى على المقاولين'!$H$7:$I$30002,B16,'توزيع يومى على المقاولين'!$I$7:$I$28002)","v":5895},7.05,41559.75]
[null,"عمر",{"$f":"SUMIF('توزيع يومى على المقاولين'!$H$7:$I$30002,B17,'توزيع يومى على المقاولين'!$I$7:$I$28002)","v":6557},7.05,{"$f":"+C17*D17","v":46226.85}]
[null,"حلمى25",{"$f":"SUMIF('توزيع يومى على المقاولين'!$H$7:$I$30002,B18,'توزيع يومى على المقاولين'!$I$7:$I$28002)","v":8528},7.05,60122.400000000001]
[null,"ضيف",{"$f":"SUMIF('توزيع يومى على المقاولين'!$H$7:$I$30002,B19,'توزيع يومى على المقاولين'!$I$7:$I$28002)","v":19751},7.05,139244.54999999999]
[null,"محسن مياه",{"$f":"SUMIF('توزيع يومى على المقاولين'!$H$7:$I$30002,B20,'توزيع يومى على المقاولين'!$I$7:$I$28002)","v":5100},7.05,{"$f":"+C20*D20","v":35955}]
[null,"خالد 54",{"$f":"SUMIF('توزيع يومى على المقاولين'!$H$7:$I$30002,B21,'توزيع يومى على المقاولين'!$I$7:$I$28002)","v":12554},7.05,88505.7]
[null,"خالد 31",{"$f":"SUMIF('توزيع يومى على المقاولين'!$H$7:$I$30002,B22,'توزيع يومى على المقاولين'!$I$7:$I$28002)","v":24836},7.05,{"$f":"+C22*D22","v":175093.8}]
[null,"عربية الجيش",{"$f":"SUMIF('توزيع يومى على المقاولين'!$H$7:$I$30002,B23,'توزيع يومى على المقاولين'!$I$7:$I$28002)","v":136},7.05,958.8]
[null,"عنتر",{"$f":"SUMIF('توزيع يومى على المقاولين'!$H$7:$I$30002,B24,'توزيع يومى على المقاولين'!$I$7:$I$28002)","v":28608},7.05,{"$f":"+C24*D24","v":201686.39999999999}]
[null,"السيد156",{"$f":"SUMIF('توزيع يومى على المقاولين'!$H$7:$I$30002,B25,'توزيع يومى على المقاولين'!$I$7:$I$28002)","v":20731},7.05,146153.54999999999]
[null,"رجب طرق",{"$f":"SUMIF('توزيع يومى على المقاولين'!$H$7:$I$30002,B26,'توزيع يومى على المقاولين'!$I$7:$I$28002)","v":23637},7.05,166640.85]
[null,"جابر 59",{"$f":"SUMIF('توزيع يومى على المقاولين'!$H$7:$I$30002,B27,'توزيع يومى على المقاولين'!$I$7:$I$28002)","v":25602},7.05,180494.1]
[null,"الشركة",{"$f":"SUMIF('توزيع يومى على المقاولين'!$H$7:$I$30002,B28,'توزيع يومى على المقاولين'!$I$7:$I$28002)","v":398},7.05,{"$f":"+C28*D28","v":2805.9}]
[null,"الشركة 23",{"$f":"SUMIF('توزيع يومى على المقاولين'!$H$7:$I$30002,B29,'توزيع يومى على المقاولين'!$I$7:$I$28002)","v":396},7.05,2791.7999999999997]

{"sheet":"اجمالى التوريد والصرف والفرق","index":5,"n_rows":62,"n_cols":14,"rows_kept":62,"cut":false,"hidden":true,"merged":[[5,10,5,11],[5,6,5,8],[5,1,5,4],[1,10,1,13],[3,1,3,11],[4,12,4,13]]}
[]
[null,"شركة ال حماد للمقاولات",null,null,null,null,null,null,null,null,"مشروع التسويات بالفيوم"]
[]
[null,"بيان بتوريد السولار وتوزيعه على المقاولين وفرق الكميات والقيمة  "]
[null,null,null,null,null,null,null,null,null,null,null,null,{"$f":"+N7+M7","v":6300}]
[null,"وليد سولار  السعر 7.35",null,null,null,null,"كمية السولار على المقاولين",null,null,null,"الفرق",null,"الاكراميات","تصريح"]
[null,"التاريخ","الكمية","السعر","القيمة",null,"الكمية","السعر","القيمة",null,"الكمية","المبلغ",{"$f":"SUM(M8:M61)","v":3100},{"$f":"SUM(N8:N61)","v":3200}]
[null,"2020-10-10",6497,7.35,{"$f":"+C8*D8","v":47752.95},null,6497,7.05,{"$f":"+G8*H8","v":45803.85},null,{"$f":"+C8-G8","v":0},{"$f":"+E8-I8","v":1949.0999999999985},100]
[null,"2020-10-11",6500,7.35,{"$f":"+C9*D9","v":47775},null,6500,7.05,{"$f":"+G9*H9","v":45825},null,0,1950,50]
[null,"2020-10-12",6500,7.35,{"$f":"+C10*D10","v":47775},null,6500,7.05,45825,null,0,1950,100]
[null,"2020-10-13",6451,7.35,47414.85,null,6451,7.05,45479.549999999996,null,0,1935.3000000000029,50]
[null,"2020-10-14",6452,7.35,47422.2,null,6452,7.05,45486.6,null,0,1935.5999999999985,0]
[null,"2020-10-17",6500,7.35,47775,null,6500,7.05,45825,null,0,1950,200]
[null,"2020-10-18",6495,7.35,47738.25,null,6495,7.05,45789.75,null,0,1948.5,0]
[null,"2020-10-19",6279,7.35,{"$f":"+C15*D15","v":46150.649999999994},null,6279,7.05,{"$f":"+G15*H15","v":44266.95},null,0,1883.6999999999971,100,0]
[null,"2020-10-20",6611,7.35,48590.85,null,6611,7.05,46607.549999999996,null,0,1983.3000000000029,100,400]
[null,"2020-10-21",6500,7.35,47775,null,6500,7.05,45825,null,0,1950,100,200]
[null,"2020-10-24",6466,7.35,47525.1,null,6466,7.05,45585.299999999996,null,0,1939.8000000000029,100,200]
[null,"2020-10-25",6500,7.35,47775,null,6500,7.05,45825,null,0,1950,100,200]
[null,"2020-10-26",6500,7.35,47775,null,6500,7.05,45825,null,0,1950,100,200]
[null,"2020-10-28",6500,7.35,47775,null,6500,7.05,45825,null,0,1950,0,0]
[null,"2020-10-31",6500,7.35,47775,null,6500,7.05,45825,null,0,1950,200,400]
[null,"2020-11-01",6475,7.35,47591.25,null,6475,7.05,45648.75,null,{"$f":"+C23-G23","v":0},{"$f":"+E23-I23","v":1942.5},100,200]
[null,"2020-11-03",6452,7.35,47422.2,null,{"$f":"+C24","v":6452},7.05,45486.6,null,{"$f":"+C24-G24","v":0},{"$f":"+E24-I24","v":1935.5999999999985},100,200]
[null,"2020-11-04",6450,7.35,{"$f":"+C25*D25","v":47407.5},null,{"$f":"+C25","v":6450},7.05,{"$f":"+G25*H25","v":45472.5},null,0,1935,0,200]
[null,"2020-11-07",6395,7.35,47003.25,null,6395,7.05,45084.75,null,0,1918.5,200,400]
[null,"2020-11-08",6418,7.35,47172.299999999996,null,6418,7.05,45246.9,null,0,1925.3999999999942,200,400]
[null,"2020-11-08",6569,7.35,48282.149999999994,null,6569,7.05,46311.45,null,0,1970.6999999999971,0,0]
[null,"2020-11-10",6500,7.35,47775,null,6500,7.05,45825,null,0,1950,100,200]
[null,"2020-11-11",6404,7.35,47069.399999999994,null,6404,7.05,45148.2,null,0,1921.1999999999971]
[null,"2020-11-14",6190,7.35,45496.5,null,6190,7.05,43639.5,null,0,1857]
[null,"2020-11-15",6500,7.35,47775,null,6500,7.05,45825,null,0,1950,100]
[null,"2020-11-16",6500,7.35,47775,null,6500,7.05,45825,null,0,1950,100]
[null,"2020-11-18",null,7.35,0,null,0,7.05,0,null,0,0,100]
[null,"2020-11-21",null,7.35,0,null,0,7.05,0,null,0,0,100]
[null,"2020-11-22",null,7.35,0,null,0,7.05,0,null,0,0,100]
[null,"2020-11-23",null,7.35,0,null,0,7.05,0,null,0,0,100]
[null,"2020-11-24",null,7.35,0,null,0,7.05,0,null,0,0,100]
[null,"2020-11-25",null,7.35,0,null,0,7.05,0,null,0,0,100]
[null,"2020-11-28",null,7.35,0,null,0,7.05,0,null,0,0,100]
[null,"2020-11-29",null,7.35,0,null,0,7.05,0,null,0,0,100]
[null,"2020-11-30",null,7.35,0,null,0,7.05,0,null,0,0,100]
[null,null,null,7.35,0,null,0,7.05,0,null,0,0]
[null,null,null,7.35,0,null,0,7.05,0,null,0,0]
[null,null,null,7.35,0,null,0,7.05,0,null,0,0]
[null,null,null,7.35,0,null,0,7.05,0,null,0,0]
[null,null,null,7.35,0,null,0,7.05,0,null,0,0]
[null,null,null,7.35,0,null,0,7.05,0,null,0,0]
[null,null,null,7.35,0,null,0,7.05,0,null,0,0]
[null,null,null,7.35,0,null,0,7.05,0,null,0,0]
[null,null,null,7.35,0,null,0,7.05,0,null,0,0]
[null,null,null,7.35,0,null,0,7.05,0,null,0,0]
[null,null,null,7.35,0,null,0,7.05,0,null,0,0]
[null,null,null,7.35,0,null,0,7.05,0,null,0,0]
[null,null,null,7.35,{"$f":"+C55*D55","v":0},null,0,7.05,{"$f":"+G55*H55","v":0},null,0,0]
[null,null,null,7.35,0,null,0,7.05,0,null,0,0]
[null,null,null,7.35,0,null,0,7.05,0,null,0,0]
[null,null,null,7.35,0,null,0,7.05,0,null,0,0]
[null,null,null,7.35,0,null,0,7.05,0,null,0,0]
[null,null,null,7.35,0,null,0,7.05,0,null,0,0]
[null,null,null,7.35,0,null,0,7.05,0,null,0,0]
[null,"الاجمالى الكميات والقيمة",{"$f":"SUM(C8:C61)","v":168104},7.35,1235564.3999999999,null,{"$f":"SUM(G8:G61)","v":168104},7.05,1185133.2,null,0,50431.199999999953]

{"sheet":"تقرير قيمة الجاز يومى","index":6,"n_rows":38,"n_cols":7,"rows_kept":38,"cut":false,"hidden":true,"merged":[[5,3,5,4],[3,2,3,3],[4,2,4,3]]}
[]
[]
[]
[null,null,"شركة آل حماد للمقاولات",null,null,"مشروع اللهون تسويات"]
[null,null,{"$f":"NOW()","v":"2021-01-04T19:02:47.020"}]
[null,null,null,"     بيان باجمالى الكمية اليومية",null,{"$f":"SUM(E9:E2199)","v":200242},{"$f":"SUM(F9:F3699)","v":1411706.0999999999}]
[]
[null,null,"اليوم","التاريخ","كمية الجاز مقاولين","قيمة جاز المقاولين"]
[null,null,{"$f":"TEXT(D9,\"dddd\")","v":"السبت"},{"$f":"+'اجمالى التوريد والصرف والفرق'!B8","v":"2020-10-10"},{"$f":"SUMIF('توزيع يومى على المقاولين'!F7:I9300,D9,'توزيع يومى على المقاولين'!I7:I1100)","v":6497},{"$f":"+E9*7.05","v":45803.85}]
[null,null,{"$f":"TEXT(D10,\"dddd\")","v":"الأحد"},{"$f":"+'اجمالى التوريد والصرف والفرق'!B9","v":"2020-10-11"},{"$f":"SUMIF('توزيع يومى على المقاولين'!F8:I9301,D10,'توزيع يومى على المقاولين'!I8:I1101)","v":6500},{"$f":"+E10*7.05","v":45825}]
[null,null,"الإثنين",{"$f":"+'اجمالى التوريد والصرف والفرق'!B10","v":"2020-10-12"},{"$f":"SUMIF('توزيع يومى على المقاولين'!F9:I9302,D11,'توزيع يومى على المقاولين'!I9:I1102)","v":6500},45825]
[null,null,"الثلاثاء",{"$f":"+'اجمالى التوريد والصرف والفرق'!B11","v":"2020-10-13"},{"$f":"SUMIF('توزيع يومى على المقاولين'!F10:I9303,D12,'توزيع يومى على المقاولين'!I10:I1103)","v":6451},45479.549999999996]
[null,null,"الأربعاء",{"$f":"+'اجمالى التوريد والصرف والفرق'!B12","v":"2020-10-14"},{"$f":"SUMIF('توزيع يومى على المقاولين'!F11:I9304,D13,'توزيع يومى على المقاولين'!I11:I1104)","v":6452},45486.6]
[null,null,"السبت",{"$f":"+'اجمالى التوريد والصرف والفرق'!B13","v":"2020-10-17"},{"$f":"SUMIF('توزيع يومى على المقاولين'!F12:I9305,D14,'توزيع يومى على المقاولين'!I12:I1105)","v":6500},45825]
[null,null,"الأحد",{"$f":"+'اجمالى التوريد والصرف والفرق'!B14","v":"2020-10-18"},{"$f":"SUMIF('توزيع يومى على المقاولين'!F13:I9306,D15,'توزيع يومى على المقاولين'!I13:I1106)","v":6495},45789.75]
[null,null,"الإثنين",{"$f":"+'اجمالى التوريد والصرف والفرق'!B15","v":"2020-10-19"},{"$f":"SUMIF('توزيع يومى على المقاولين'!F14:I9307,D16,'توزيع يومى على المقاولين'!I14:I1107)","v":6279},44266.95]
[null,null,"الثلاثاء",{"$f":"+'اجمالى التوريد والصرف والفرق'!B16","v":"2020-10-20"},{"$f":"SUMIF('توزيع يومى على المقاولين'!F15:I9308,D17,'توزيع يومى على المقاولين'!I15:I1108)","v":6611},46607.549999999996]
[null,null,"الأربعاء",{"$f":"+'اجمالى التوريد والصرف والفرق'!B17","v":"2020-10-21"},{"$f":"SUMIF('توزيع يومى على المقاولين'!F16:I9309,D18,'توزيع يومى على المقاولين'!I16:I1109)","v":6500},45825]
[null,null,"السبت",{"$f":"+'اجمالى التوريد والصرف والفرق'!B18","v":"2020-10-24"},{"$f":"SUMIF('توزيع يومى على المقاولين'!F17:I9310,D19,'توزيع يومى على المقاولين'!I17:I1110)","v":6466},45585.299999999996]
[null,null,"الأحد",{"$f":"+'اجمالى التوريد والصرف والفرق'!B19","v":"2020-10-25"},{"$f":"SUMIF('توزيع يومى على المقاولين'!F18:I9311,D20,'توزيع يومى على المقاولين'!I18:I1111)","v":6500},45825]
[null,null,"الإثنين",{"$f":"+'اجمالى التوريد والصرف والفرق'!B20","v":"2020-10-26"},{"$f":"SUMIF('توزيع يومى على المقاولين'!F19:I9312,D21,'توزيع يومى على المقاولين'!I19:I1112)","v":6500},45825]
[null,null,"الأربعاء","2020-10-28",{"$f":"SUMIF('توزيع يومى على المقاولين'!F20:I9313,D22,'توزيع يومى على المقاولين'!I20:I1113)","v":6500},45825]
[null,null,"السبت",{"$f":"+'اجمالى التوريد والصرف والفرق'!B22","v":"2020-10-31"},{"$f":"SUMIF('توزيع يومى على المقاولين'!F21:I9314,D23,'توزيع يومى على المقاولين'!I21:I1114)","v":6500},45825]
[null,null,"الأحد",{"$f":"+'اجمالى التوريد والصرف والفرق'!B23","v":"2020-11-01"},{"$f":"SUMIF('توزيع يومى على المقاولين'!F22:I9315,D24,'توزيع يومى على المقاولين'!I22:I1115)","v":6475},45648.75]
[null,null,"الثلاثاء",{"$f":"+'اجمالى التوريد والصرف والفرق'!B24","v":"2020-11-03"},{"$f":"SUMIF('توزيع يومى على المقاولين'!F23:I9316,D25,'توزيع يومى على المقاولين'!I23:I1116)","v":6452},45486.6]
[null,null,"الأربعاء",{"$f":"+'اجمالى التوريد والصرف والفرق'!B25","v":"2020-11-04"},{"$f":"SUMIF('توزيع يومى على المقاولين'!F24:I9317,D26,'توزيع يومى على المقاولين'!I24:I1117)","v":6450},45472.5]
[null,null,"السبت",{"$f":"+'اجمالى التوريد والصرف والفرق'!B26","v":"2020-11-07"},{"$f":"SUMIF('توزيع يومى على المقاولين'!F25:I9318,D27,'توزيع يومى على المقاولين'!I25:I1118)","v":6394},{"$f":"+E27*7.05","v":45077.7}]
[null,null,"الأحد",{"$f":"+'اجمالى التوريد والصرف والفرق'!B27","v":"2020-11-08"},{"$f":"SUMIF('توزيع يومى على المقاولين'!F26:I9319,D28,'توزيع يومى على المقاولين'!I26:I1119)","v":12987},91558.349999999991]
[null,null,{"$f":"TEXT(D29,\"dddd\")","v":"الثلاثاء"},{"$f":"+'اجمالى التوريد والصرف والفرق'!B29","v":"2020-11-10"},{"$f":"SUMIF('توزيع يومى على المقاولين'!F28:I9321,D29,'توزيع يومى على المقاولين'!I28:I1121)","v":6500},{"$f":"+E29*7.05","v":45825}]
[null,null,"الأربعاء",{"$f":"+'اجمالى التوريد والصرف والفرق'!B30","v":"2020-11-11"},{"$f":"SUMIF('توزيع يومى على المقاولين'!F29:I9322,D30,'توزيع يومى على المقاولين'!I29:I1122)","v":6404},45148.2]
[null,null,"السبت",{"$f":"+'اجمالى التوريد والصرف والفرق'!B31","v":"2020-11-14"},{"$f":"SUMIF('توزيع يومى على المقاولين'!F30:I9323,D31,'توزيع يومى على المقاولين'!I30:I1123)","v":6190},43639.5]
[null,null,"الأحد",{"$f":"+'اجمالى التوريد والصرف والفرق'!B32","v":"2020-11-15"},{"$f":"SUMIF('توزيع يومى على المقاولين'!F31:I9324,D32,'توزيع يومى على المقاولين'!I31:I1124)","v":6500},45825]
[null,null,"الإثنين",{"$f":"+'اجمالى التوريد والصرف والفرق'!B33","v":"2020-11-16"},{"$f":"SUMIF('توزيع يومى على المقاولين'!F32:I9325,D33,'توزيع يومى على المقاولين'!I32:I1125)","v":6500},45825]
[null,null,"الأربعاء",{"$f":"+'اجمالى التوريد والصرف والفرق'!B34","v":"2020-11-18"},{"$f":"SUMIF('توزيع يومى على المقاولين'!F33:I9326,D34,'توزيع يومى على المقاولين'!I33:I1126)","v":6478},45669.9]
[null,null,"السبت",{"$f":"+'اجمالى التوريد والصرف والفرق'!B35","v":"2020-11-21"},{"$f":"SUMIF('توزيع يومى على المقاولين'!F34:I9327,D35,'توزيع يومى على المقاولين'!I34:I1127)","v":6429},45324.45]
[null,null,"الأحد",{"$f":"+'اجمالى التوريد والصرف والفرق'!B36","v":"2020-11-22"},{"$f":"SUMIF('توزيع يومى على المقاولين'!F35:I9328,D36,'توزيع يومى على المقاولين'!I35:I1128)","v":6360},44838]
[null,null,"الإثنين",{"$f":"+'اجمالى التوريد والصرف والفرق'!B37","v":"2020-11-23"},{"$f":"SUMIF('توزيع يومى على المقاولين'!F36:I9329,D37,'توزيع يومى على المقاولين'!I36:I1129)","v":6426},45303.299999999996]
[null,null,"الثلاثاء",{"$f":"+'اجمالى التوريد والصرف والفرق'!B38","v":"2020-11-24"},{"$f":"SUMIF('توزيع يومى على المقاولين'!F37:I9330,D38,'توزيع يومى على المقاولين'!I37:I1130)","v":6446},45444.299999999996]

{"sheet":"تقرير المقاولين جاز","index":7,"n_rows":38,"n_cols":8,"rows_kept":38,"cut":false,"hidden":true,"merged":[[6,1,7,6]]}
[]
[null,"رقم الاذن","اسم المقاول","التاريخ","التاريخ"]
[null,null,"علوان",{"$f":"\">=\"&B6","v":">=44114"},{"$f":"\"<=\"&C6","v":"<=44199"}]
[]
[null,"من تاريخ","الى تاريخ",null,null,"اجمالى الكمية","السعر","القيمة"]
[null,"2020-10-10","2021-01-03",null,null,{"$f":"SUBTOTAL(9,F10:F52002)","v":12881},7.05,{"$f":"+F6*G6","v":90811.05}]
[null,"تقرير تفصيلى لتوزيع اليومى للسولار الخاص بمحطة وليد"]
[]
[null,"اليوم","التاريخ","رقم الاذن","اسم المقاول","الكمية","السعر","القيمة"]
[null,"السبت","2020-10-10",578,"رجب",700,7.05,4935]
[null,"الأحد","2020-10-11",599,"رجب",600,7.05,4230]
[null,"الاثنين","2020-10-12",615,"رجب",800,7.05,5640]
[null,"الثلاثاء","2020-10-13",628,"رجب",400,7.05,2820]
[null,"الاربعاء","2020-10-14",641,"رجب",600,7.05,4230]
[null,"السبت","2020-10-17",658,"رجب",750,7.05,5287.5]
[null,"الأحد","2020-10-18",679,"رجب",650,7.05,4582.5]
[null,"الإثنين","2020-10-19",703,"رجب",650,7.05,4582.5]
[null,"الثلاثاء","2020-10-20",716,"رجب",841,7.05,5929.05]
[null,"الأربعاء","2020-10-21",738,"رجب",500,7.05,3525]
[null,"السبت","2020-10-24",752,"رجب",800,7.05,5640]
[null,"الأحد","2020-10-25",774,"رجب",525,7.05,3701.25]
[null,"الإثنين","2020-10-26",792,"رجب",1400,7.05,9870]
[null,"الاربعاء","2020-10-28",811,"رجب",460,7.05,3243]
[null,"السبت","2020-10-31",831,"رجب",400,7.05,2820]
[null,"الأحد","2020-11-01",846,"رجب",500,7.05,3525]
[null,"الثلاثاء","2020-11-03",879,"رجب",452,7.05,3186.6]
[null,"الأربعاء","2020-11-04",894,"رجب",250,7.05,1762.5]
[null,"السبت","2020-11-07",918,"رجب",150,7.05,1057.5]
[null,"السبت","2020-11-07",929,"رجب",150,7.05,1057.5]
[null,"الأحد","2020-11-08",949,"رجب",50,7.05,352.5]
[null,"الأحد","2020-11-08",960,"رجب",200,7.05,1410]
[null,"الأحد","2020-11-08",975,"رجب",143,7.05,1008.15]
[null,"الأربعاء","2020-11-11",1013,"رجب",260,7.05,1833]
[null,"السبت","2020-11-14",1026,"رجب",100,7.05,705]
[null,"السبت","2020-11-14",1032,"رجب",100,7.05,705]
[null,"الأحد","2020-11-15",1048,"رجب",50,7.05,352.5]
[null,"السبت","2020-11-21",1112,"رجب",200,7.05,1410]
[null,"الأربعاء","2020-11-25",1175,"رجب",200,7.05,1410]

{"sheet":"توزيع يومى على المقاولين","index":8,"n_rows":5086,"n_cols":11,"rows_kept":5086,"cut":false,"hidden":false,"merged":[]}
[null,null,null,null,"شركة ال حماد للمقاولات",null,null,null,null,"مشروع التسويات باللاهون"]
[]
[null,null,null,null,"بيان يومى تفصيلى بتوزيع السولار على المقاولين"]
[null,null,null,null,null,null,null,"الاجمالى الكلى",{"$f":"SUM(I7:I17001)","v":342959},{"$f":"+K4/I4","v":7.0500000000000007},{"$f":"SUM(K7:K17001)","v":2417860.9500000002}]
[]
[null,null,null,null,"اليوم","التاريخ","رقم الاذن","اسم المقاول","الكمية","السعر","القيمة"]
[null,{"$f":"TEXT('تقرير قيمة الجاز يومى'!D9,\"dddd\")","v":"السبت"},{"$f":"TEXT(F7,\"mmmm\")","v":"October"},null,"السبت","2020-10-10",577,"الشيخ رجب",400,7.05,{"$f":"+I7*J7","v":2820}]
[null,{"$f":"TEXT(E8,\"dddd\")","v":"السبت"},{"$f":"TEXT(F8,\"mmmm\")","v":"October"},null,"السبت","2020-10-10",578,"رجب",700,7.05,{"$f":"+I8*J8","v":4935}]
[null,"السبت","October",null,"السبت","2020-10-10",579,"السيد",650,7.05,4582.5]
[null,"السبت","October",null,"السبت","2020-10-10",580,"جمال",400,7.05,2820]
[null,"السبت","October",null,"السبت","2020-10-10",581,"أشرف",250,7.05,1762.5]
[null,"السبت","October",null,"السبت","2020-10-10",582,"علوان",600,7.05,4230]
[null,"السبت","October",null,"السبت","2020-10-10",583,"حلمى",800,7.05,5640]
[null,"السبت","October",null,"السبت","2020-10-10",584,"أنور",400,7.05,2820]
[null,"السبت","October",null,"السبت","2020-10-10",585,"جابر",1975,7.05,13923.75]
[null,"السبت","October",null,"السبت","2020-10-10",586,"رمضان عربية ش",67,7.05,472.34999999999997]
[null,"السبت","October",null,"السبت","2020-10-10",587,"محمد عيسى",255,7.05,1797.75]
[null,"الأحد","October",null,"الأحد","2020-10-11",596,"علوان",900,7.05,6345]
[null,"الأحد","October",null,"الأحد","2020-10-11",597,"أنور",400,7.05,2820]
[null,"الأحد","October",null,"الأحد","2020-10-11",598,"عمر",40,7.05,282]
[null,"الأحد","October",null,"الأحد","2020-10-11",599,"رجب",600,7.05,4230]
[null,"الأحد","October",null,"الأحد","2020-10-11",600,"حلمى",700,7.05,4935]
[null,"الأحد","October",null,"الأحد","2020-10-11",601,"حلمى25",200,7.05,1410]
[null,"الأحد","October",null,"الأحد","2020-10-11",602,"الشيخ رجب",400,7.05,2820]
[null,"الأحد","October",null,"الأحد","2020-10-11",603,"جمال",350,7.05,2467.5]
[null,"الأحد","October",null,"الأحد","2020-10-11",604,"أشرف",300,7.05,2115]
[null,"الأحد","October",null,"الأحد","2020-10-11",605,"محمد عيسى",400,7.05,2820]
[null,"الأحد","October",null,"الأحد","2020-10-11",606,"جابر",1300,7.05,9165]
[null,"الأحد","October",null,"الأحد","2020-10-11",607,"السيد",910,7.05,6415.5]
[null,"الاثنين","October",null,"الاثنين","2020-10-12",614,"أنور",400,7.05,2820]
[null,"الاثنين","October",null,"الاثنين","2020-10-12",615,"رجب",800,7.05,5640]
[null,"الاثنين","October",null,"الاثنين","2020-10-12",616,"علوان",700,7.05,4935]
[null,"الاثنين","October",null,"الاثنين","2020-10-12",617,"جابر",1300,7.05,9165]
[null,"الاثنين","October",null,"الاثنين","2020-10-12",618,"أشرف",300,7.05,2115]
[null,"الاثنين","October",null,"الاثنين","2020-10-12",619,"جمال",400,7.05,2820]
[null,"الاثنين","October",null,"الاثنين","2020-10-12",620,"السيد",650,7.05,4582.5]
[null,"الاثنين","October",null,"الاثنين","2020-10-12",621,"محمد عيسى",400,7.05,2820]
[null,"الاثنين","October",null,"الاثنين","2020-10-12",622,"ضيف",400,7.05,2820]
[null,"الاثنين","October",null,"الاثنين","2020-10-12",623,"حلمى",1150,7.05,8107.5]
[null,"الثلاثاء","October",null,"الثلاثاء","2020-10-13",625,"أنور",350,7.05,2467.5]
[null,"الثلاثاء","October",null,"الثلاثاء","2020-10-13",627,"علوان",700,7.05,4935]
[null,"الثلاثاء","October",null,"الثلاثاء","2020-10-13",628,"رجب",400,7.05,2820]
[null,"الثلاثاء","October",null,"الثلاثاء","2020-10-13",629,"جابر",1600,7.05,11280]
[null,"الثلاثاء","October",null,"الثلاثاء","2020-10-13",630,"السيد",900,7.05,6345]
[null,"الثلاثاء","October",null,"الثلاثاء","2020-10-13",631,"السيد",12,7.05,84.6]
[null,"الثلاثاء","October",null,"الثلاثاء","2020-10-13",632,"ضيف",315,7.05,2220.75]
[null,"الثلاثاء","October",null,"الثلاثاء","2020-10-13",633,"حلمى",1230,7.05,8671.5]
[null,"الثلاثاء","October",null,"الثلاثاء","2020-10-13",634,"جمال",560,7.05,3948]
[null,"الثلاثاء","October",null,"الثلاثاء","2020-10-13",635,"جابر",384,7.05,2707.2]
[null,"الاربعاء","October",null,"الاربعاء","2020-10-14",639,"أنور",350,7.05,2467.5]
[null,"الاربعاء","October",null,"الاربعاء","2020-10-14",640,"علوان",800,7.05,5640]
[null,"الاربعاء","October",null,"الاربعاء","2020-10-14",641,"رجب",600,7.05,4230]
[null,"الاربعاء","October",null,"الاربعاء","2020-10-14",642,"محمد عيسى",400,7.05,2820]
[null,"الاربعاء","October",null,"الاربعاء","2020-10-14",643,"السيد",750,7.05,5287.5]
[null,"الاربعاء","October",null,"الاربعاء","2020-10-14",644,"خالد 54",400,7.05,2820]
[null,"الاربعاء","October",null,"الاربعاء","2020-10-14",645,"جابر",1300,7.05,9165]
[null,"الاربعاء","October",null,"الاربعاء","2020-10-14",646,"حلمى",902,7.05,6359.0999999999995]
[null,"الاربعاء","October",null,"الاربعاء","2020-10-14",647,"جمال",260,7.05,1833]
[null,"الاربعاء","October",null,"الاربعاء","2020-10-14",648,"أشرف",240,7.05,1692]
[null,"الاربعاء","October",null,"الاربعاء","2020-10-14",649,"رمضان عربية ش",50,7.05,352.5]
[null,"الاربعاء","October",null,"الاربعاء","2020-10-14",650,"ضيف",400,7.05,2820]
[null,"السبت","October",null,"السبت","2020-10-17",657,"أنور",400,7.05,2820]
[null,"السبت","October",null,"السبت","2020-10-17",658,"رجب",750,7.05,5287.5]
[null,"السبت","October",null,"السبت","2020-10-17",659,"محسن مياه",100,7.05,705]
[null,"السبت","October",null,"السبت","2020-10-17",660,"عمر",120,7.05,846]
[null,"السبت","October",null,"السبت","2020-10-17",661,"علوان",400,7.05,2820]
[null,"السبت","October",null,"السبت","2020-10-17",662,"أشرف",300,7.05,2115]
[null,"السبت","October",null,"السبت","2020-10-17",663,"ضيف",300,7.05,2115]
[null,"السبت","October",null,"السبت","2020-10-17",664,"السيد",1200,7.05,8460]
[null,"السبت","October",null,"السبت","2020-10-17",665,"خالد 54",400,7.05,2820]
[null,{"$f":"TEXT(E71,\"dddd\")","v":"السبت"},"October",null,"السبت","2020-10-17",666,"جمال",350,7.05,2467.5]
[null,"السبت",{"$f":"TEXT(F72,\"mmmm\")","v":"October"},null,"السبت","2020-10-17",667,"رمضان عربية ش",70,7.05,{"$f":"+I72*J72","v":493.5}]
[null,"السبت","October",null,"السبت","2020-10-17",668,"جابر",1560,7.05,10998]
[null,"السبت","October",null,"السبت","2020-10-17",669,"محمد عيسى",400,7.05,2820]
[null,"السبت","October",null,"السبت","2020-10-17",669,"علوان",150,7.05,1057.5]
[null,"الأحد","October",null,"الأحد","2020-10-18",679,"رجب",650,7.05,4582.5]
[null,"الأحد","October",null,"الأحد","2020-10-18",680,"محسن مياه",50,7.05,352.5]
[null,"الأحد","October",null,"الأحد","2020-10-18",681,"عمر",175,7.05,1233.75]
[null,"الأحد","October",null,"الأحد","2020-10-18",682,"محمد عيسى",400,7.05,2820]
[null,"الأحد","October",null,"الأحد","2020-10-18",683,"أنور",400,7.05,2820]
[null,"الأحد","October",null,"الأحد","2020-10-18",684,"علوان",400,7.05,2820]
[null,"الأحد","October",null,"الأحد","2020-10-18",685,"ضيف",300,7.05,2115]
[null,"الأحد","October",null,"الأحد","2020-10-18",686,"حلمى",50,7.05,352.5]
[null,"الأحد","October",null,"الأحد","2020-10-18",687,"حلمى25",350,7.05,2467.5]
[null,"الأحد","October",null,"الأحد","2020-10-18",688,"محسن مياه",50,7.05,352.5]
[null,"الأحد","October",null,"الأحد","2020-10-18",689,"خالد 54",500,7.05,3525]
[null,"الأحد","October",null,"الأحد","2020-10-18",690,"السيد",1100,7.05,7755]
[null,"الأحد","October",null,"الأحد","2020-10-18",691,"جمال",300,7.05,2115]
[null,"الأحد","October",null,"الأحد","2020-10-18",692,"أشرف",350,7.05,2467.5]
[null,"الأحد","October",null,"الأحد","2020-10-18",693,"جابر",1420,7.05,10011]
[null,"الإثنين","October",null,"الإثنين","2020-10-19",698,"السيد",900,{"$f":"IFERROR(IF(H91<>\"\",7.05,\"\"),\"\")","v":7.05},6345]
[null,"الإثنين","October",null,"الإثنين","2020-10-19",699,"خالد 54",750,{"$f":"IFERROR(IF(H92<>\"\",7.05,\"\"),\"\")","v":7.05},5287.5]
[null,"الإثنين","October",null,"الإثنين","2020-10-19",700,"علوان",500,7.05,3525]
[null,"الإثنين","October",null,"الإثنين","2020-10-19",701,"حلمى25",990,7.05,6979.5]
[null,"الإثنين","October",null,"الإثنين","2020-10-19",702,"ضيف",300,7.05,2115]
[null,"الإثنين","October",null,"الإثنين","2020-10-19",703,"رجب",650,7.05,4582.5]
[null,"الإثنين","October",null,"الإثنين","2020-10-19",704,"أنور",300,7.05,2115]
[null,"الإثنين","October",null,"الإثنين","2020-10-19",705,"محسن مياه",20,7.05,141]
[null,"الإثنين","October",null,"الإثنين","2020-10-19",706,"محسن مياه",20,7.05,141]
[null,"الإثنين","October",null,"الإثنين","2020-10-19",707,"جمال",300,7.05,2115]
[null,"الإثنين","October",null,"الإثنين","2020-10-19",708,"عمر",125,7.05,881.25]
[null,"الإثنين","October",null,"الإثنين","2020-10-19",709,"حلمى",20,7.05,141]
[null,"الإثنين","October",null,"الإثنين","2020-10-19",711,"أشرف",230,7.05,1621.5]
[null,"الإثنين","October",null,"الإثنين","2020-10-19",712,"جابر",1174,7.05,8276.6999999999989]
[null,"الثلاثاء","October",null,"الثلاثاء","2020-10-20",715,"علوان",600,7.05,4230]
[null,"الثلاثاء","October",null,"الثلاثاء","2020-10-20",716,"رجب",841,7.05,5929.05]
[null,"الثلاثاء","October",null,"الثلاثاء","2020-10-20",717,"أنور",300,7.05,2115]
[null,"الثلاثاء","October",null,"الثلاثاء","2020-10-20",718,"عمر",345,7.05,2432.25]
[null,"الثلاثاء","October",null,"الثلاثاء","2020-10-20",719,"السيد",700,7.05,4935]
[null,"الثلاثاء","October",null,"الثلاثاء","2020-10-20",720,"خالد 54",700,7.05,4935]
[null,"الثلاثاء","October",null,"الثلاثاء","2020-10-20",721,"حلمى",450,7.05,3172.5]
[null,"الثلاثاء","October",null,"الثلاثاء","2020-10-20",722,"حلمى25",200,7.05,1410]
[null,"الثلاثاء","October",null,"الثلاثاء","2020-10-20",723,"محمد عيسى",300,7.05,2115]
[null,"الثلاثاء","October",null,"الثلاثاء","2020-10-20",724,"أشرف",300,7.05,2115]
[null,"الثلاثاء","October",null,"الثلاثاء","2020-10-20",725,"جابر",1225,7.05,8636.25]
[null,"الثلاثاء","October",null,"الثلاثاء","2020-10-20",726,"ضيف",300,7.05,2115]
[null,"الثلاثاء","October",null,"الثلاثاء","2020-10-20",727,"جمال",350,7.05,2467.5]
[null,"الأربعاء",{"$f":"TEXT(F118,\"mmmm\")","v":"October"},null,"الأربعاء","2020-10-21",729,"محسن مياه",50,7.05,352.5]
[null,"الأربعاء","October",null,"الأربعاء","2020-10-21",730,"السيد",800,7.05,5640]
[null,"الأربعاء","October",null,"الأربعاء","2020-10-21",731,"خالد 54",1000,7.05,7050]
[null,"الأربعاء","October",null,"الأربعاء","2020-10-21",732,"أنور",300,7.05,2115]
[null,"الأربعاء","October",null,"الأربعاء","2020-10-21",733,"ضيف",200,7.05,1410]
[null,"الأربعاء","October",null,"الأربعاء","2020-10-21",734,"محمد عيسى",300,7.05,2115]
[null,"الأربعاء","October",null,"الأربعاء","2020-10-21",735,"محسن مياه",50,7.05,352.5]
[null,"الأربعاء","October",null,"الأربعاء","2020-10-21",736,"حلمى25",300,7.05,2115]
[null,"الأربعاء","October",null,"الأربعاء","2020-10-21",737,"حلمى",300,7.05,2115]
[null,"الأربعاء","October",null,"الأربعاء","2020-10-21",738,"رجب",500,7.05,3525]
[null,"الأربعاء","October",null,"الأربعاء","2020-10-21",739,"رمضان عربية ش",78,7.05,549.9]
[null,"الأربعاء","October",null,"الأربعاء","2020-10-21",740,"عمر",200,7.05,1410]
[null,"الأربعاء","October",null,"الأربعاء","2020-10-21",741,"علوان",400,7.05,2820]
[null,"الأربعاء","October",null,"الأربعاء","2020-10-21",742,"جمال",230,7.05,1621.5]
[null,"الأربعاء","October",null,"الأربعاء","2020-10-21",743,"محسن مياه",40,7.05,282]
[null,"الأربعاء","October",null,"الأربعاء","2020-10-21",744,"أشرف",462,7.05,3257.1]
[null,"الأربعاء","October",null,"الأربعاء","2020-10-21",745,"جابر",1290,7.05,9094.5]
[null,{"$f":"TEXT(E135,\"dddd\")","v":"السبت"},"October",null,"السبت","2020-10-24",751,"أشرف",480,7.05,3384]
[null,"السبت","October",null,"السبت","2020-10-24",752,"رجب",800,7.05,{"$f":"+I136*J136","v":5640}]
[null,"السبت",{"$f":"TEXT(F137,\"mmmm\")","v":"October"},null,"السبت","2020-10-24",753,"جابر",1500,7.05,10575]
[null,"السبت","October",null,"السبت","2020-10-24",754,"السيد",1000,7.05,7050]
[null,"السبت","October",null,"السبت","2020-10-24",755,"خالد 54",1000,7.05,7050]
[null,"السبت","October",null,"السبت","2020-10-24",756,"جمال",350,7.05,2467.5]
[null,"السبت","October",null,"السبت","2020-10-24",757,"أنور",350,7.05,2467.5]
[null,"السبت","October",null,"السبت","2020-10-24",758,"محمد عيسى",400,7.05,2820]
[null,"السبت","October",null,"السبت","2020-10-24",759,"ضيف",400,7.05,2820]
[null,"السبت","October",null,"السبت","2020-10-24",760,"رمضان عربية ش",75,7.05,528.75]
[null,"السبت","October",null,"السبت","2020-10-24",766,"محسن مياه",111,7.05,782.55]
[null,"الأحد","October",null,"الأحد","2020-10-25",772,"أنور",300,7.05,2115]
[null,"الأحد","October",null,"الأحد","2020-10-25",773,"جابر",1906,7.05,13437.3]
[null,"الأحد","October",null,"الأحد","2020-10-25",774,"رجب",525,7.05,3701.25]
[null,"الأحد","October",null,"الأحد","2020-10-25",775,"السيد",700,7.05,4935]
[null,"الأحد","October",null,"الأحد","2020-10-25",776,"خالد 54",600,7.05,4230]
[null,"الأحد","October",null,"الأحد","2020-10-25",777,"جمال",350,7.05,2467.5]
[null,"الأحد","October",null,"الأحد","2020-10-25",778,"محمد عيسى",400,7.05,2820]
[null,"الأحد","October",null,"الأحد","2020-10-25",779,"أشرف",530,7.05,3736.5]
[null,"الأحد","October",null,"الأحد","2020-10-25",780,"حلمى25",900,7.05,6345]
[null,"الأحد","October",null,"الأحد","2020-10-25",781,"ضيف",125,7.05,881.25]
[null,"الأحد","October",null,"الأحد","2020-10-25",782,"محسن مياه",164,7.05,1156.2]
[null,"الإثنين","October",null,"الإثنين","2020-10-26",787,"ضيف",393,{"$f":"IFERROR(IF(H157<>\"\",7.05,\"\"),\"\")","v":7.05},2770.65]
[null,"الإثنين","October",null,"الإثنين","2020-10-26",788,"أنور",350,7.05,2467.5]
[null,"الإثنين","October",null,"الإثنين","2020-10-26",789,"علوان",400,7.05,2820]
[null,"الإثنين","October",null,"الإثنين","2020-10-26",790,"جابر",1857,7.05,13091.85]
[null,"الإثنين","October",null,"الإثنين","2020-10-26",791,"علوان",106,7.05,747.3]
[null,"الإثنين","October",null,"الإثنين","2020-10-26",792,"رجب",1400,7.05,9870]
[null,"الإثنين","October",null,"الإثنين","2020-10-26",793,"عمر",102,7.05,719.1]
[null,{"$f":"TEXT(E164,\"dddd\")","v":"الإثنين"},"October",null,"الإثنين","2020-10-26",794,"أشرف",470,7.05,3313.5]
[null,{"$f":"TEXT(E165,\"dddd\")","v":"الإثنين"},"October",null,"الإثنين","2020-10-26",795,"جمال",266,7.05,1875.3]
[null,"الإثنين","October",null,"الإثنين","2020-10-26",796,"السيد",460,7.05,3243]
[null,"الإثنين","October",null,"الإثنين","2020-10-26",797,"محمد عيسى",466,7.05,3285.2999999999997]
[null,"الإثنين","October",null,"الإثنين","2020-10-26",798,"محسن مياه",102,7.05,719.1]
[null,"الإثنين","October",null,"الإثنين","2020-10-26",799,"محسن مياه",128,7.05,902.4]
[null,{"$f":"TEXT(E170,\"dddd\")","v":"الاربعاء"},"October",null,"الاربعاء","2020-10-28",808,"محسن مياه",40,7.05,282]
[null,"الاربعاء","October",null,"الاربعاء","2020-10-28",809,"جابر",1400,7.05,9870]
[null,"الاربعاء","October",null,"الاربعاء","2020-10-28",810,"حلمى",1110,7.05,7825.5]
[null,"الاربعاء","October",null,"الاربعاء","2020-10-28",811,"رجب",460,7.05,3243]
[null,"الاربعاء","October",null,"الاربعاء","2020-10-28",812,"أنور",350,7.05,2467.5]
[null,"الاربعاء","October",null,"الاربعاء","2020-10-28",813,"أشرف",403,7.05,2841.15]
[null,"الاربعاء","October",null,"الاربعاء","2020-10-28",814,"السيد",550,7.05,3877.5]
[null,"الاربعاء","October",null,"الاربعاء","2020-10-28",815,"خالد 54",600,7.05,4230]
[null,"الاربعاء","October",null,"الاربعاء","2020-10-28",816,"خالد 31",400,7.05,2820]
[null,"الاربعاء","October",null,"الاربعاء","2020-10-28",817,"محمد عيسى",250,7.05,1762.5]
[null,"الاربعاء","October",null,"الاربعاء","2020-10-28",818,"ضيف",450,7.05,3172.5]
[null,"الاربعاء","October",null,"الاربعاء","2020-10-28",819,"علوان",254,7.05,1790.7]
[null,"الاربعاء","October",null,"الاربعاء","2020-10-28",820,"ضيف",50,7.05,352.5]
[null,"الاربعاء","October",null,"الاربعاء","2020-10-28",821,"محسن مياه",100,7.05,705]
[null,"الاربعاء","October",null,"الاربعاء","2020-10-28",822,"رمضان عربية ش",83,7.05,585.15]
[null,"السبت","October",null,"السبت","2020-10-31",824,"أنور",350,7.05,{"$f":"IFERROR(IF(H18<>\"\",I185*J185,\"\"),\"\")","v":2467.5}]
[null,"السبت","October",null,"السبت","2020-10-31",825,"أشرف",250,7.05,{"$f":"IFERROR(IF(H19<>\"\",I186*J186,\"\"),\"\")","v":1762.5}]
[null,"السبت","October",null,"السبت","2020-10-31",826,"عمر",130,7.05,916.5]
[null,"السبت","October",null,"السبت","2020-10-31",827,"حلمى",650,7.05,4582.5]
[null,"السبت","October",null,"السبت","2020-10-31",828,"خالد 31",500,7.05,3525]
[null,"السبت","October",null,"السبت","2020-10-31",829,"خالد 54",900,7.05,6345]
[null,"السبت","October",null,"السبت","2020-10-31",830,"ضيف",490,7.05,3454.5]
[null,"السبت","October",null,"السبت","2020-10-31",831,"رجب",400,7.05,2820]
[null,"السبت","October",null,"السبت","2020-10-31",832,"علوان",500,7.05,3525]
[null,"السبت","October",null,"السبت","2020-10-31",833,"جابر",2000,7.05,14100]
[null,"السبت","October",null,"السبت","2020-10-31",835,"خالد 54",200,7.05,1410]
[null,"السبت","October",null,"السبت","2020-10-31",837,"محسن مياه",130,7.05,916.5]
[null,"الاحد","November",null,"الاحد","2020-11-01",841,"محمد عيسى",400,7.05,2820]
[null,"الاحد","November",null,"الاحد","2020-11-01",842,"أشرف",230,7.05,1621.5]
[null,"الأحد","November",null,"الأحد","2020-11-01",843,"أنور",350,7.05,2467.5]
[null,"الأحد","November",null,"الأحد","2020-11-01",844,"جمال",329,7.05,2319.4499999999998]
[null,"الأحد",{"$f":"TEXT(F201,\"mmmm\")","v":"November"},null,"الأحد","2020-11-01",845,"رمضان عربية ش",70,7.05,493.5]
[null,"الأحد","November",null,"الأحد","2020-11-01",846,"رجب",500,7.05,3525]
[null,"الأحد","November",null,"الأحد","2020-11-01",847,"ضيف",600,7.05,4230]
[null,"الأحد","November",null,"الأحد","2020-11-01",848,"خالد 31",675,7.05,4758.75]
[null,"الأحد","November",null,"الأحد","2020-11-01",849,"خالد 54",380,7.05,2679]
[null,"الأحد","November",null,"الأحد","2020-11-01",850,"السيد",120,7.05,846]
[null,"الأحد","November",null,"الأحد","2020-11-01",851,"أشرف",293,7.05,2065.65]
[null,"الأحد","November",null,"الأحد","2020-11-01",852,"أنور",300,7.05,2115]
[null,"الأحد","November",null,"الأحد","2020-11-01",853,"حلمى",400,7.05,2820]
[null,"الأحد","November",null,"الأحد","2020-11-01",854,"جابر",1792,7.05,12633.6]
[null,"الأحد","November",null,"الأحد","2020-11-01",856,"عربية الجيش",36,7.05,253.79999999999998]
[null,"الثلاثاء","November",null,"الثلاثاء","2020-11-03",867,"جمال",100,7.05,705]
[null,"الثلاثاء","November",null,"الثلاثاء","2020-11-03",868,"أشرف",500,7.05,3525]
[null,"الثلاثاء","November",null,"الثلاثاء","2020-11-03",869,"علوان",500,7.05,3525]
[null,"الثلاثاء","November",null,"الثلاثاء","2020-11-03",870,"أنور",300,7.05,2115]
[null,"الثلاثاء","November",null,"الثلاثاء","2020-11-03",871,"جابر",1300,7.05,9165]
[null,"الثلاثاء","November",null,"الثلاثاء","2020-11-03",872,"محمد عيسى",300,7.05,2115]
[null,"الثلاثاء","November",null,"الثلاثاء","2020-11-03",873,"خالد 54",700,7.05,4935]
[null,"الثلاثاء","November",null,"الثلاثاء","2020-11-03",874,"حلمى",600,7.05,4230]
[null,"الثلاثاء","November",null,"الثلاثاء","2020-11-03",875,"السيد156",700,7.05,4935]
[null,"الثلاثاء","November",null,"الثلاثاء","2020-11-03",876,"ضيف",400,{"$f":"IFERROR(IF(H221<>\"\",7.05,\"\"),\"\")","v":7.05},2820]
[null,"الثلاثاء","November",null,"الثلاثاء","2020-11-03",878,"محسن مياه",25,7.05,176.25]
[null,"الثلاثاء","November",null,"الثلاثاء","2020-11-03",879,"رجب",452,7.05,3186.6]
[null,"الثلاثاء","November",null,"الثلاثاء","2020-11-03",880,"عمر",100,7.05,705]
[null,"الثلاثاء","November",null,"الثلاثاء","2020-11-03",881,"أشرف",100,7.05,705]
[null,"الثلاثاء","November",null,"الثلاثاء","2020-11-03",883,"محسن مياه",25,7.05,176.25]
[null,"الثلاثاء","November",null,"الثلاثاء","2020-11-03",884,"خالد 31",350,7.05,2467.5]
[null,"الاربعاء","November",null,"الاربعاء","2020-11-04",889,"السيد156",700,7.05,4935]
[null,{"$f":"TEXT(E229,\"dddd\")","v":"الاربعاء"},"November",null,"الاربعاء","2020-11-04",890,"خالد 54",700,7.05,4935]
[null,"الأربعاء","November",null,"الأربعاء","2020-11-04",891,"جابر",1400,7.05,9870]
[null,"الأربعاء","November",null,"الأربعاء","2020-11-04",892,"محمد عيسى",300,7.05,2115]
[null,"الأربعاء","November",null,"الأربعاء","2020-11-04",893,"أشرف",490,7.05,3454.5]
[null,"الأربعاء","November",null,"الأربعاء","2020-11-04",894,"رجب",250,7.05,1762.5]
[null,"الأربعاء","November",null,"الأربعاء","2020-11-04",895,"خالد 31",350,7.05,2467.5]
[null,"الأربعاء","November",null,"الأربعاء","2020-11-04",896,"علوان",400,7.05,2820]
[null,"الأربعاء","November",null,"الأربعاء","2020-11-04",897,"محسن مياه",140,7.05,987]
[null,"الأربعاء","November",null,"الأربعاء","2020-11-04",898,"محسن مياه",50,7.05,352.5]
[null,"الأربعاء","November",null,"الأربعاء","2020-11-04",899,"عمر",600,7.05,4230]
[null,"الأربعاء","November",null,"الأربعاء","2020-11-04",900,"ضيف",400,7.05,2820]
[null,"الأربعاء","November",null,"الأربعاء","2020-11-04",901,"جمال",100,7.05,705]
[null,"الأربعاء","November",null,"الأربعاء","2020-11-04",902,"حلمى",504,7.05,3553.2]
[null,"الأربعاء","November",null,"الأربعاء","2020-11-04",903,"رمضان عربية ش",66,7.05,465.3]
[null,"السبت","November",null,"السبت","2020-11-07",917,"عمر",400,7.05,2820]
[null,"السبت","November",null,"السبت","2020-11-07",918,"رجب",150,7.05,1057.5]
[null,"السبت","November",null,"السبت","2020-11-07",919,"أنور",350,7.05,2467.5]
[null,"السبت","November",null,"السبت","2020-11-07",920,"حلمى",650,7.05,4582.5]
[null,"السبت","November",null,"السبت","2020-11-07",921,"علوان",400,7.05,2820]
[null,"السبت","November",null,"السبت","2020-11-07",922,"ضيف",400,7.05,2820]
[null,"السبت","November",null,"السبت","2020-11-07",923,"السيد156",800,7.05,5640]
[null,"السبت","November",null,"السبت","2020-11-07",924,"محسن مياه",50,7.05,{"$f":"IFERROR(IF(H83<>\"\",I250*J250,\"\"),\"\")","v":352.5}]
[null,"السبت","November",null,"السبت","2020-11-07",925,"جابر",1270,7.05,8953.5]
[null,"السبت","November",null,"السبت","2020-11-07",926,"عنتر",100,7.05,705]
[null,"السبت","November",null,"السبت","2020-11-07",927,"أشرف",450,7.05,3172.5]
[null,"السبت","November",null,"السبت","2020-11-07",928,"جمال",100,7.05,705]
[null,"السبت","November",null,"السبت","2020-11-07",929,"رجب",150,7.05,1057.5]
[null,"السبت","November",null,"السبت","2020-11-07",930,"محمد عيسى",250,7.05,1762.5]
[null,"السبت","November",null,"السبت","2020-11-07",931,"خالد 54",500,7.05,3525]
[null,"السبت","November",null,"السبت","2020-11-07",932,"خالد 31",200,7.05,1410]
[null,"السبت","November",null,"السبت","2020-11-07",933,"السيد",174,7.05,1226.7]
[null,"الاحد","November",null,"الاحد","2020-11-08",940,"حلمى",650,7.05,4582.5]
[null,"الاحد","November",null,"الاحد","2020-11-08",941,"أنور",350,7.05,2467.5]
[null,"الأحد","November",null,"الأحد","2020-11-08",942,"عنتر",353,7.05,2488.65]
[null,"الأحد","November",null,"الأحد","2020-11-08",943,"ضيف",300,7.05,2115]
[null,"الأحد","November",null,"الأحد","2020-11-08",944,"علوان",450,7.05,3172.5]
[null,"الأحد",{"$f":"TEXT(F265,\"mmmm\")","v":"November"},null,"الأحد","2020-11-08",945,"خالد 31",200,7.05,1410]
[null,"الأحد","November",null,"الأحد","2020-11-08",946,"السيد156",800,7.05,5640]
[null,"الأحد","November",null,"الأحد","2020-11-08",947,"جابر",1630,7.05,11491.5]
[null,"الأحد","November",null,"الأحد","2020-11-08",948,"عمر",350,7.05,2467.5]
[null,"الأحد","November",null,"الأحد","2020-11-08",949,"رجب",50,7.05,352.5]
[null,"الأحد","November",null,"الأحد","2020-11-08",950,"أشرف",600,7.05,4230]
[null,"الأحد","November",null,"الأحد","2020-11-08",951,"خالد 54",380,7.05,2679]
[null,"الأحد","November",null,"الأحد","2020-11-08",952,"محمد عيسى",205,7.05,1445.25]
[null,"الأحد","November",null,"الأحد","2020-11-08",953,"عمر",100,7.05,705]
[null,"الأحد","November",null,"الأحد","2020-11-08",955,"محسن مياه",150,7.05,1057.5]
[null,"الأحد","November",null,"الأحد","2020-11-08",956,"محسن مياه",50,7.05,352.5]
[null,"الأحد","November",null,"الأحد","2020-11-08",957,"علوان",450,7.05,3172.5]
[null,"الاحد","November",null,"الاحد","2020-11-08",958,"عنتر",200,7.05,1410]
[null,"الاحد","November",null,"الاحد","2020-11-08",959,"عنتر",350,7.05,2467.5]
[null,"الأحد","November",null,"الأحد","2020-11-08",960,"رجب",200,7.05,1410]
[null,"الأحد","November",null,"الأحد","2020-11-08",961,"حلمى",350,7.05,2467.5]
[null,"الأحد","November",null,"الأحد","2020-11-08",962,"حلمى25",350,7.05,2467.5]
[null,"الأحد","November",null,"الأحد","2020-11-08",963,"عربية الجيش",80,7.05,564]
[null,"الأحد","November",null,"الأحد","2020-11-08",964,"ضيف",300,7.05,2115]
[null,"الأحد","November",null,"الأحد","2020-11-08",965,"جابر",1100,7.05,7755]
[null,"الأحد","November",null,"الأحد","2020-11-08",967,"السيد",250,{"$f":"IFERROR(IF(H285<>\"\",7.05,\"\"),\"\")","v":7.05},1762.5]
[null,"الأحد","November",null,"الأحد","2020-11-08",968,"خالد 54",350,7.05,2467.5]
[null,"الأحد","November",null,"الأحد","2020-11-08",969,"السيد156",900,7.05,6345]
[null,"الأحد","November",null,"الأحد","2020-11-08",970,"عمر",300,7.05,2115]
[null,"الأحد","November",null,"الأحد","2020-11-08",972,"أشرف",600,7.05,4230]
[null,"الأحد","November",null,"الأحد","2020-11-08",974,"جابر",100,7.05,705]
[null,"الأحد","November",null,"الأحد","2020-11-08",975,"رجب",143,7.05,1008.15]
[null,"الأحد","November",null,"الأحد","2020-11-08",978,"أنور",323,7.05,2277.15]
[null,{"$f":"TEXT(E293,\"dddd\")","v":"الأحد"},"November",null,"الأحد","2020-11-08",979,"حلمى",23,7.05,162.15]
[null,"الثلاثاء ","November",null,"الثلاثاء ","2020-11-10",986,"ضيف",400,7.05,2820]
[null,"الثلاثاء ","November",null,"الثلاثاء ","2020-11-10",987,"علوان",200,7.05,1410]
[null,"الثلاثاء","November",null,"الثلاثاء","2020-11-10",988,"عنتر",600,7.05,4230]
[null,"الثلاثاء","November",null,"الثلاثاء","2020-11-10",989,"حلمى",350,7.05,2467.5]
[null,"الثلاثاء","November",null,"الثلاثاء","2020-11-10",990,"السيد156",700,7.05,4935]
[null,"الثلاثاء","November",null,"الثلاثاء","2020-11-10",991,"السيد156",50,7.05,352.5]
[null,"الثلاثاء","November",null,"الثلاثاء","2020-11-10",992,"عمر",300,7.05,2115]
[null,"الثلاثاء","November",null,"الثلاثاء","2020-11-10",993,"أشرف",600,7.05,4230]
[null,"الثلاثاء","November",null,"الثلاثاء","2020-11-10",994,"جابر",2050,7.05,14452.5]
[null,"الثلاثاء","November",null,"الثلاثاء","2020-11-10",995,"محسن مياه",220,7.05,1551]
[null,"الثلاثاء","November",null,"الثلاثاء","2020-11-10",996,"محسن مياه",50,7.05,352.5]
[null,"الثلاثاء","November",null,"الثلاثاء","2020-11-10",997,"خالد 54",900,7.05,6345]
[null,"الثلاثاء","November",null,"الثلاثاء","2020-11-10",998,"محسن مياه",80,7.05,564]
[null,"الاربعاء","November",null,"الاربعاء","2020-11-11",1003,"عنتر",600,7.05,4230]
[null,"الاربعاء","November",null,"الاربعاء","2020-11-11",1004,"عمر",200,7.05,1410]
[null,"الأربعاء","November",null,"الأربعاء","2020-11-11",1005,"السيد156",900,7.05,6345]
[null,"الأربعاء","November",null,"الأربعاء","2020-11-11",1006,"علوان",450,7.05,3172.5]
[null,"الأربعاء","November",null,"الأربعاء","2020-11-11",1007,"أنور",350,7.05,2467.5]
[null,"الأربعاء","November",null,"الأربعاء","2020-11-11",1008,"جابر",1650,7.05,11632.5]
[null,"الأربعاء","November",null,"الأربعاء","2020-11-11",1009,"أشرف",550,7.05,3877.5]
[null,"الأربعاء","November",null,"الأربعاء","2020-11-11",1010,"خالد 54",584,7.05,{"$f":"IFERROR(IF(H147<>\"\",I314*J314,\"\"),\"\")","v":4117.2}]
[null,"الأربعاء","November",null,"الأربعاء","2020-11-11",1011,"ضيف",510,7.05,3595.5]
[null,"الأربعاء","November",null,"الأربعاء","2020-11-11",1012,"محسن مياه",200,7.05,1410]
[null,"الأربعاء","November",null,"الأربعاء","2020-11-11",1013,"رجب",260,7.05,1833]
[null,"الأربعاء","November",null,"الأربعاء","2020-11-11",1014,"حلمى",150,7.05,1057.5]
[null,"السبت","November",null,"السبت","2020-11-14",1020,"علوان",200,7.05,1410]
[null,"السبت","November",null,"السبت","2020-11-14",1021,"عنتر",400,7.05,2820]
[null,"السبت","November",null,"السبت","2020-11-14",1022,"خالد 31",750,7.05,5287.5]
[null,"السبت","November",null,"السبت","2020-11-14",1023,"خالد 54",400,7.05,2820]
[null,"السبت","November",null,"السبت","2020-11-14",1024,"ضيف",200,7.05,1410]
[null,"السبت","November",null,"السبت","2020-11-14",1025,"جابر",1716,7.05,12097.8]
[null,"السبت","November",null,"السبت","2020-11-14",1026,"رجب",100,7.05,705]
[null,"السبت","November",null,"السبت","2020-11-14",1027,"أنور",350,7.05,2467.5]
[null,"السبت","November",null,"السبت","2020-11-14",1028,"عنتر",300,7.05,2115]
[null,"السبت","November",null,"السبت","2020-11-14",1029,"السيد156",850,7.05,5992.5]
[null,"السبت",{"$f":"TEXT(F329,\"mmmm\")","v":"November"},null,"السبت","2020-11-14",1030,"أشرف",350,7.05,2467.5]
[null,"السبت","November",null,"السبت","2020-11-14",1031,"حلمى",200,7.05,1410]
[null,"السبت","November",null,"السبت","2020-11-14",1032,"رجب",100,7.05,705]
[null,"السبت","November",null,"السبت","2020-11-14",1033,"عمر",200,7.05,1410]
[null,"السبت","November",null,"السبت","2020-11-14",1034,"رمضان عربية ش",74,7.05,521.69999999999993]
[null,"الاحد","November",null,"الاحد","2020-11-15",1038,"ضيف",400,7.05,2820]
[null,"الاحد","November",null,"الاحد","2020-11-15",1039,"عنتر",900,7.05,6345]
[null,"الأحد","November",null,"الأحد","2020-11-15",1040,"علوان",250,7.05,1762.5]
[null,"الأحد","November",null,"الأحد","2020-11-15",1041,"أنور",350,7.05,2467.5]
[null,"الأحد","November",null,"الأحد","2020-11-15",1042,"أنور",50,7.05,352.5]
[null,"الأحد","November",null,"الأحد","2020-11-15",1043,"السيد156",700,7.05,4935]
[null,"الأحد","November",null,"الأحد","2020-11-15",1044,"خالد 31",1300,7.05,9165]
[null,"الأحد","November",null,"الأحد","2020-11-15",1045,"أشرف",250,7.05,1762.5]
[null,"الأحد","November",null,"الأحد","2020-11-15",1046,"حلمى",150,7.05,1057.5]
[null,"الأحد","November",null,"الأحد","2020-11-15",1047,"جابر",1375,7.05,9693.75]
[null,"الأحد","November",null,"الأحد","2020-11-15",1048,"رجب",50,7.05,352.5]
[null,"الأحد","November",null,"الأحد","2020-11-15",1049,"ضيف",40,7.05,282]
[null,"الأحد","November",null,"الأحد","2020-11-15",1050,"عمر",320,7.05,2256]
[null,"الأحد","November",null,"الأحد","2020-11-15",1051,"محسن مياه",300,7.05,2115]
[null,"الأحد","November",null,"الأحد","2020-11-15",1052,"خالد 54",65,7.05,458.25]
[null,"الاثنين","November",null,"الاثنين","2020-11-16",1059,"السيد156",550,{"$f":"IFERROR(IF(H349<>\"\",7.05,\"\"),\"\")","v":7.05},3877.5]
[null,"الاثنين","November",null,"الاثنين","2020-11-16",1060,"خالد 31",1100,7.05,7755]
[null,"الإثنين","November",null,"الإثنين","2020-11-16",1061,"عنتر",1200,7.05,8460]
[null,"الإثنين","November",null,"الإثنين","2020-11-16",1062,"علوان",450,7.05,3172.5]
[null,"الإثنين","November",null,"الإثنين","2020-11-16",1063,"أنور",400,7.05,2820]
[null,"الإثنين","November",null,"الإثنين","2020-11-16",1064,"جابر",1300,7.05,9165]
[null,"الإثنين","November",null,"الإثنين","2020-11-16",1065,"عمر",500,7.05,3525]
[null,"الإثنين","November",null,"الإثنين","2020-11-16",1066,"ضيف",500,7.05,3525]
[null,{"$f":"TEXT(E357,\"dddd\")","v":"الإثنين"},"November",null,"الإثنين","2020-11-16",1067,"أشرف",250,7.05,1762.5]
[null,"الإثنين","November",null,"الإثنين","2020-11-16",1068,"خالد 54",100,7.05,705]
[null,"الإثنين","November",null,"الإثنين","2020-11-16",1069,"حلمى",150,7.05,1057.5]
[null,"الاربعاء","November",null,"الاربعاء","2020-11-18",1072,"عنتر",1300,7.05,9165]
[null,"الاربعاء","November",null,"الاربعاء","2020-11-18",1073,"ضيف",340,7.05,2397]
[null,"الأربعاء","November",null,"الأربعاء","2020-11-18",1074,"جابر",1300,7.05,9165]
[null,"الأربعاء","November",null,"الأربعاء","2020-11-18",1075,"رمضان عربية ش",84,7.05,592.19999999999993]
[null,"الأربعاء","November",null,"الأربعاء","2020-11-18",1076,"خالد 31",1359,7.05,9580.9499999999989]
[null,"الأربعاء","November",null,"الأربعاء","2020-11-18",1077,"خالد 54",145,7.05,1022.25]
[null,"الأربعاء","November",null,"الأربعاء","2020-11-18",1078,"علوان",400,7.05,2820]
[null,"الأربعاء","November",null,"الأربعاء","2020-11-18",1079,"أنور",250,7.05,1762.5]
[null,"الأربعاء","November",null,"الأربعاء","2020-11-18",1080,"السيد156",550,7.05,3877.5]
[null,"الأربعاء","November",null,"الأربعاء","2020-11-18",1081,"محسن مياه",50,7.05,352.5]
[null,"الأربعاء","November",null,"الأربعاء","2020-11-18",1082,"عمر",350,7.05,2467.5]
[null,"الأربعاء","November",null,"الأربعاء","2020-11-18",1083,"محسن مياه",100,7.05,705]
[null,"الأربعاء","November",null,"الأربعاء","2020-11-18",1084,"عنتر",180,7.05,1269]
[null,"الأربعاء","November",null,"الأربعاء","2020-11-18",1085,"محسن مياه",50,7.05,352.5]
[null,"الأربعاء","November",null,"الأربعاء","2020-11-18",1086,"عربية الجيش",20,7.05,141]
[null,"السبت","November",null,"السبت","2020-11-21",1103,"حلمى",300,7.05,2115]
[null,"السبت","November",null,"السبت","2020-11-21",1104,"علوان",450,7.05,3172.5]
[null,"السبت","November",null,"السبت","2020-11-21",1105,"أنور",400,7.05,2820]
[null,"السبت","November",null,"السبت","2020-11-21",1106,"السيد156",750,7.05,{"$f":"IFERROR(IF(H211<>\"\",I378*J378,\"\"),\"\")","v":5287.5}]
[null,"السبت","November",null,"السبت","2020-11-21",1107,"خالد 54",150,7.05,1057.5]
[null,"السبت","November",null,"السبت","2020-11-21",1108,"خالد 31",1429,7.05,10074.449999999999]
[null,"السبت","November",null,"السبت","2020-11-21",1109,"عنتر",750,7.05,5287.5]
[null,"السبت","November",null,"السبت","2020-11-21",1110,"جابر",1150,7.05,8107.5]
[null,"السبت","November",null,"السبت","2020-11-21",1111,"عنتر",750,7.05,5287.5]
[null,"السبت","November",null,"السبت","2020-11-21",1112,"رجب",200,7.05,1410]
[null,"السبت","November",null,"السبت","2020-11-21",1113,"عمر",50,7.05,352.5]
[null,"السبت","November",null,"السبت","2020-11-21",1114,"رمضان عربية ش",50,7.05,352.5]
[null,"الاحد","November",null,"الاحد","2020-11-22",1117,"حلمى",100,7.05,705]
[null,"الاحد","November",null,"الاحد","2020-11-22",1118,"خالد 54",150,7.05,1057.5]
[null,"الأحد","November",null,"الأحد","2020-11-22",1119,"خالد 31",1300,7.05,9165]
[null,"الأحد","November",null,"الأحد","2020-11-22",1120,"ضيف",440,7.05,3102]
[null,"الأحد","November",null,"الأحد","2020-11-22",1121,"عنتر",1320,7.05,9306]
[null,"الأحد","November",null,"الأحد","2020-11-22",1122,"علوان",200,7.05,1410]
[null,"الأحد",{"$f":"TEXT(F393,\"mmmm\")","v":"November"},null,"الأحد","2020-11-22",1123,"عمر",500,7.05,3525]
[null,"الأحد","November",null,"الأحد","2020-11-22",1124,"أشرف",250,7.05,1762.5]
[null,"الأحد","November",null,"الأحد","2020-11-22",1125,"السيد156",700,7.05,4935]
[null,"الأحد","November",null,"الأحد","2020-11-22",1126,"أنور",400,7.05,2820]
[null,"الأحد","November",null,"الأحد","2020-11-22",1127,"جابر",1000,7.05,7050]
[null,"الاثنين","November",null,"الاثنين","2020-11-23",1134,"أنور",350,7.05,2467.5]
[null,"الاثنين","November",null,"الاثنين","2020-11-23",1135,"خالد 31",1200,7.05,8460]
[null,"الإثنين","November",null,"الإثنين","2020-11-23",1136,"حلمى",152,7.05,1071.5999999999999]
[null,"الإثنين","November",null,"الإثنين","2020-11-23",1137,"عنتر",900,7.05,6345]
[null,"الإثنين","November",null,"الإثنين","2020-11-23",1138,"رجب طرق",400,7.05,2820]
[null,"الإثنين","November",null,"الإثنين","2020-11-23",1139,"السيد156",700,7.05,4935]
[null,"الإثنين","November",null,"الإثنين","2020-11-23",1140,"رمضان عربية ش",38,7.05,267.89999999999998]
[null,"الإثنين","November",null,"الإثنين","2020-11-23",1141,"أشرف",450,7.05,3172.5]
[null,"الإثنين","November",null,"الإثنين","2020-11-23",1142,"علوان",600,7.05,4230]
[null,"الإثنين","November",null,"الإثنين","2020-11-23",1143,"عمر",200,7.05,1410]
[null,"الإثنين","November",null,"الإثنين","2020-11-23",1144,"محسن مياه",60,7.05,423]
[null,"الإثنين","November",null,"الإثنين","2020-11-23",1145,"محسن مياه",100,7.05,705]
[null,"الإثنين","November",null,"الإثنين","2020-11-23",1146,"ضيف",300,7.05,2115]
[null,"الإثنين","November",null,"الإثنين","2020-11-23",1147,"جابر",976,7.05,6880.8]
[null,"الثلاثاء","November",null,"الثلاثاء","2020-11-24",1156,"عنتر",700,7.05,4935]
[null,"الثلاثاء","November",null,"الثلاثاء","2020-11-24",1157,"رجب طرق",331,{"$f":"IFERROR(IF(H413<>\"\",7.05,\"\"),\"\")","v":7.05},2333.5499999999997]
[null,"الثلاثاء","November",null,"الثلاثاء","2020-11-24",1158,"خالد 31",900,7.05,6345]
[null,"الثلاثاء","November",null,"الثلاثاء","2020-11-24",1159,"حلمى",500,7.05,3525]
[null,"الثلاثاء","November",null,"الثلاثاء","2020-11-24",1160,"أنور",350,7.05,2467.5]
[null,"الثلاثاء","November",null,"الثلاثاء","2020-11-24",1161,"السيد156",700,7.05,4935]
[null,"الثلاثاء","November",null,"الثلاثاء","2020-11-24",1162,"جابر",1500,7.05,10575]
[null,"الثلاثاء","November",null,"الثلاثاء","2020-11-24",1163,"علوان",600,7.05,4230]
[null,"الثلاثاء","November",null,"الثلاثاء","2020-11-24",1164,"ضيف",515,7.05,3630.75]
[null,{"$f":"TEXT(E421,\"dddd\")","v":"الثلاثاء"},"November",null,"الثلاثاء","2020-11-24",1165,"أشرف",350,7.05,2467.5]
[null,"الاربعاء","November",null,"الاربعاء","2020-11-25",1171,"أنور",450,7.05,3172.5]
[null,"الاربعاء","November",null,"الاربعاء","2020-11-25",1172,"علوان",300,7.05,2115]
[null,"الأربعاء","November",null,"الأربعاء","2020-11-25",1173,"جابر",1250,7.05,8812.5]
[null,"الأربعاء","November",null,"الأربعاء","2020-11-25",1174,"محسن مياه",70,7.05,493.5]
[null,"الأربعاء","November",null,"الأربعاء","2020-11-25",1175,"رجب",200,7.05,1410]
[null,"الأربعاء","November",null,"الأربعاء","2020-11-25",1176,"رجب طرق",200,7.05,1410]
[null,"الأربعاء","November",null,"الأربعاء","2020-11-25",1177,"خالد 31",1250,7.05,8812.5]
[null,"الأربعاء","November",null,"الأربعاء","2020-11-25",1178,"عنتر",840,7.05,5922]
[null,"الأربعاء","November",null,"الأربعاء","2020-11-25",1179,"حلمى",40,7.05,282]
[null,"الأربعاء","November",null,"الأربعاء","2020-11-25",1180,"السيد156",700,7.05,4935]
[null,"الأربعاء","November",null,"الأربعاء","2020-11-25",1181,"أشرف",400,7.05,2820]
[null,"الأربعاء","November",null,"الأربعاء","2020-11-25",1182,"رمضان عربية ش",50,7.05,352.5]
[null,"الأربعاء","November",null,"الأربعاء","2020-11-25",1183,"محسن مياه",50,7.05,352.5]
[null,"الأربعاء","November",null,"الأربعاء","2020-11-25",1184,"محسن مياه",50,7.05,352.5]
[null,"الأربعاء","November",null,"الأربعاء","2020-11-25",1185,"ضيف",350,7.05,2467.5]
[null,"الأربعاء","November",null,"الأربعاء","2020-11-25",1186,"علوان",200,7.05,1410]
[null,"السبت","November",null,"السبت","2020-11-28",1201,"علوان",400,7.05,2820]
[null,"السبت","November",null,"السبت","2020-11-28",1202,"أنور",350,7.05,2467.5]
[null,"السبت","November",null,"السبت","2020-11-28",1203,"رجب طرق",400,7.05,2820]
[null,"السبت","November",null,"السبت","2020-11-28",1204,"عنتر",818,7.05,5766.9]
[null,"السبت","November",null,"السبت","2020-11-28",1205,"رمضان عربية ش",75,7.05,{"$f":"IFERROR(IF(H275<>\"\",I442*J442,\"\"),\"\")","v":528.75}]
[null,"السبت","November",null,"السبت","2020-11-28",1206,"جابر",1505,7.05,10610.25]
[null,"السبت","November",null,"السبت","2020-11-28",1207,"جابر 59",402,7.05,2834.1]
[null,"السبت","November",null,"السبت","2020-11-28",1208,"السيد156",750,7.05,5287.5]
[null,"السبت","November",null,"السبت","2020-11-28",1209,"خالد 31",1000,7.05,7050]
[null,"السبت","November",null,"السبت","2020-11-28",1210,"محسن مياه",100,7.05,705]
[null,"السبت","November",null,"السبت","2020-11-28",1211,"أشرف",300,7.05,2115]
[null,"السبت","November",null,"السبت","2020-11-28",1212,"ضيف",400,7.05,2820]
[null,"الاحد","November",null,"الاحد","2020-11-29",1214,"السيد156",850,7.05,5992.5]
[null,"الاحد","November",null,"الاحد","2020-11-29",1215,"خالد 31",700,7.05,4935]
[null,"الأحد","November",null,"الأحد","2020-11-29",1216,"أشرف",350,7.05,2467.5]
[null,"الأحد","November",null,"الأحد","2020-11-29",1217,"عنتر",1096,7.05,7726.8]
[null,"الأحد","November",null,"الأحد","2020-11-29",1218,"حلمى",350,7.05,2467.5]
[null,"الأحد","November",null,"الأحد","2020-11-29",1219,"أنور",350,7.05,2467.5]
[null,"الأحد","November",null,"الأحد","2020-11-29",1220,"عمر",200,7.05,1410]
[null,"الأحد",{"$f":"TEXT(F457,\"mmmm\")","v":"November"},null,"الأحد","2020-11-29",1221,"محسن مياه",60,7.05,423]
[null,"الأحد","November",null,"الأحد","2020-11-29",1222,"رجب طرق",200,7.05,1410]
[null,"الأحد","November",null,"الأحد","2020-11-29",1223,"علوان",450,7.05,3172.5]
[null,"الأحد","November",null,"الأحد","2020-11-29",1224,"جابر 59",400,7.05,2820]
[null,"الأحد","November",null,"الأحد","2020-11-29",1225,"جابر",1063,7.05,7494.15]
[null,"الأحد","November",null,"الأحد","2020-11-29",1226,"السيد156",431,7.05,3038.5499999999997]
[null,"الاثنين","November",null,"الاثنين","2020-11-30",1234,"علوان",400,7.05,2820]
[null,"الاثنين","November",null,"الاثنين","2020-11-30",1235,"أنور",400,7.05,2820]
[null,"الإثنين","November",null,"الإثنين","2020-11-30",1236,"رجب طرق",400,7.05,2820]
[null,"الإثنين","November",null,"الإثنين","2020-11-30",1237,"خالد 31",1300,7.05,9165]
[null,"الإثنين","November",null,"الإثنين","2020-11-30",1238,"حلمى",300,7.05,2115]
[null,"الإثنين","November",null,"الإثنين","2020-11-30",1239,"السيد156",700,7.05,4935]
[null,"الإثنين","November",null,"الإثنين","2020-11-30",1240,"عنتر",800,7.05,5640]
[null,"الإثنين","November",null,"الإثنين","2020-11-30",1241,"ضيف",500,7.05,3525]
[null,"الإثنين","November",null,"الإثنين","2020-11-30",1242,"عمر",150,7.05,1057.5]
[null,"الإثنين","November",null,"الإثنين","2020-11-30",1243,"أشرف",200,7.05,1410]
[null,"الإثنين","November",null,"الإثنين","2020-11-30",1244,"جابر",950,7.05,6697.5]
[null,"الإثنين","November",null,"الإثنين","2020-11-30",1245,"جابر 59",387,7.05,2728.35]
[null,"الاربعاء","December",null,"الاربعاء","2020-12-02",1,"علوان",400,7.05,2820]
[null,"الاربعاء","December",null,"الاربعاء","2020-12-02",2,"أنور",350,7.05,2467.5]
[null,"الأربعاء","December",null,"الأربعاء","2020-12-02",3,"عمر",100,{"$f":"IFERROR(IF(H477<>\"\",7.05,\"\"),\"\")","v":7.05},705]
[null,"الأربعاء","December",null,"الأربعاء","2020-12-02",4,"رجب طرق",200,7.05,1410]
[null,"الأربعاء","December",null,"الأربعاء","2020-12-02",5,"خالد 31",1150,7.05,8107.5]
[null,"الأربعاء","December",null,"الأربعاء","2020-12-02",6,"عنتر",900,7.05,6345]
[null,"الأربعاء","December",null,"الأربعاء","2020-12-02",7,"جابر 59",600,7.05,4230]
[null,"الأربعاء","December",null,"الأربعاء","2020-12-02",8,"جابر",680,7.05,4794]
[null,"الأربعاء","December",null,"الأربعاء","2020-12-02",9,"محسن مياه",80,7.05,564]
[null,"الأربعاء","December",null,"الأربعاء","2020-12-02",10,"ضيف",400,7.05,2820]
[null,{"$f":"TEXT(E485,\"dddd\")","v":"الأربعاء"},"December",null,"الأربعاء","2020-12-02",11,"السيد156",650,7.05,4582.5]
[null,"الأربعاء","December",null,"الأربعاء","2020-12-02",12,"محسن مياه",50,7.05,352.5]
[null,"الأربعاء","December",null,"الأربعاء","2020-12-02",13,"أشرف",250,7.05,1762.5]
[null,"الأربعاء","December",null,"الأربعاء","2020-12-02",14,"حلمى",400,7.05,2820]
[null,"الأربعاء","December",null,"الأربعاء","2020-12-02",15,"رجب طرق",200,7.05,1410]
[null,"الأربعاء","December",null,"الأربعاء","2020-12-02",16,"محسن مياه",40,7.05,282]
[null,"الأربعاء","December",null,"الأربعاء","2020-12-02",17,"رمضان عربية ش",50,7.05,352.5]
[null,"الخميس","December",null,"الخميس","2020-12-03",18,"علوان",400,7.05,2820]
[null,"الخميس","December",null,"الخميس","2020-12-03",19,"رجب طرق",450,7.05,3172.5]
[null,"الخميس","December",null,"الخميس","2020-12-03",20,"رجب طرق",200,7.05,1410]
[null,"الخميس","December",null,"الخميس","2020-12-03",21,"أنور",500,7.05,3525]
[null,"الخميس","December",null,"الخميس","2020-12-03",22,"جابر",800,7.05,5640]
[null,"الخميس","December",null,"الخميس","2020-12-03",23,"جابر 59",700,7.05,4935]
[null,"الخميس","December",null,"الخميس","2020-12-03",24,"ضيف",400,7.05,2820]
[null,"الخميس","December",null,"الخميس","2020-12-03",25,"خالد 31",1200,7.05,8460]
[null,"الخميس","December",null,"الخميس","2020-12-03",26,"السيد156",800,7.05,5640]
[null,"الخميس","December",null,"الخميس","2020-12-03",27,"ضيف",42,7.05,296.09999999999997]
[null,"الخميس","December",null,"الخميس","2020-12-03",28,"عنتر",450,7.05,3172.5]
[null,"الخميس","December",null,"الخميس","2020-12-03",29,"أشرف",200,7.05,1410]
[null,"الخميس","December",null,"الخميس","2020-12-03",30,"رمضان عربية ش",35,7.05,246.75]
[null,"الخميس","December",null,"الخميس","2020-12-03",31,"جابر 59",323,7.05,2277.15]
[null,"السبت","December",null,"السبت","2020-12-05",32,"علوان",450,7.05,{"$f":"IFERROR(IF(H339<>\"\",I506*J506,\"\"),\"\")","v":3172.5}]
[null,"السبت","December",null,"السبت","2020-12-05",33,"رجب طرق",750,7.05,5287.5]
[null,"السبت","December",null,"السبت","2020-12-05",34,"أنور",350,7.05,2467.5]
[null,"السبت","December",null,"السبت","2020-12-05",35,"جابر 59",700,7.05,4935]
[null,"السبت","December",null,"السبت","2020-12-05",36,"جابر",700,7.05,4935]
[null,"السبت","December",null,"السبت","2020-12-05",37,"السيد156",800,7.05,5640]
[null,"السبت","December",null,"السبت","2020-12-05",38,"عنتر",450,7.05,3172.5]
[null,"السبت","December",null,"السبت","2020-12-05",39,"خالد 31",485,7.05,3419.25]
[null,"السبت","December",null,"السبت","2020-12-05",40,"أشرف",170,7.05,1198.5]
[null,"السبت","December",null,"السبت","2020-12-05",41,"محسن مياه",100,7.05,705]
[null,"السبت","December",null,"السبت","2020-12-05",42,"حلمى",170,7.05,1198.5]
[null,"السبت","December",null,"السبت","2020-12-05",43,"محسن مياه",100,7.05,705]
[null,"السبت","December",null,"السبت","2020-12-05",44,"ضيف",400,7.05,2820]
[null,"السبت","December",null,"السبت","2020-12-05",45,"الشركة",161,7.05,1135.05]
[null,"السبت","December",null,"السبت","2020-12-05",46,"رمضان عربية ش",65,7.05,458.25]
[null,"السبت",{"$f":"TEXT(F521,\"mmmm\")","v":"December"},null,"السبت","2020-12-05",47,"جابر",649,7.05,4575.45]
[null,"الاحد","December",null,"الاحد","2020-12-06",1389,"جابر 59",1200,7.05,8460]
[null,"الاحد","December",null,"الاحد","2020-12-06",1390,"علوان",400,7.05,2820]
[null,"الأحد","December",null,"الأحد","2020-12-06",1391,"رجب طرق",600,7.05,4230]
[null,"الأحد","December",null,"الأحد","2020-12-06",1392,"عمر",200,7.05,1410]
[null,"الأحد","December",null,"الأحد","2020-12-06",1393,"السيد156",800,7.05,5640]
[null,"الأحد","December",null,"الأحد","2020-12-06",1394,"خالد 31",1150,7.05,8107.5]
[null,"الأحد","December",null,"الأحد","2020-12-06",1395,"حلمى",200,7.05,1410]
[null,"الأحد","December",null,"الأحد","2020-12-06",1396,"عنتر",750,7.05,5287.5]
[null,"الأحد","December",null,"الأحد","2020-12-06",1397,"أنور",400,7.05,2820]
[null,"الأحد","December",null,"الأحد","2020-12-06",1398,"محسن مياه",100,7.05,705]
[null,"الأحد","December",null,"الأحد","2020-12-06",1399,"ضيف",400,7.05,2820]
[null,"الأحد","December",null,"الأحد","2020-12-06",1400,"أشرف",200,7.05,1410]
[null,"الأحد","December",null,"الأحد","2020-12-06",1401,"رجب طرق",100,7.05,705]
[null,"الاثنين","December",null,"الاثنين","2020-12-07",1301,"علوان",400,7.05,2820]
[null,"الاثنين","December",null,"الاثنين","2020-12-07",1302,"محسن مياه",100,7.05,705]
[null,"الإثنين","December",null,"الإثنين","2020-12-07",1303,"أنور",500,7.05,3525]
[null,"الإثنين","December",null,"الإثنين","2020-12-07",1304,"رجب طرق",600,7.05,4230]
[null,"الإثنين","December",null,"الإثنين","2020-12-07",1305,"السيد156",800,7.05,5640]
[null,"الإثنين","December",null,"الإثنين","2020-12-07",1306,"محسن مياه",50,7.05,352.5]
[null,"الإثنين","December",null,"الإثنين","2020-12-07",1307,"جابر 59",700,{"$f":"IFERROR(IF(H541<>\"\",7.05,\"\"),\"\")","v":7.05},4935]
[null,"الإثنين","December",null,"الإثنين","2020-12-07",1308,"جابر",500,7.05,3525]
[null,"الإثنين","December",null,"الإثنين","2020-12-07",1309,"الشركة",147,7.05,1036.3499999999999]
[null,"الإثنين","December",null,"الإثنين","2020-12-07",1310,"عمر",100,7.05,705]
[null,"الإثنين","December",null,"الإثنين","2020-12-07",1311,"خالد 31",1200,7.05,8460]
[null,"الإثنين","December",null,"الإثنين","2020-12-07",1312,"عنتر",440,7.05,3102]
[null,"الإثنين","December",null,"الإثنين","2020-12-07",1313,"ضيف",340,7.05,2397]
[null,"الإثنين","December",null,"الإثنين","2020-12-07",1314,"أشرف",200,7.05,1410]
[null,{"$f":"TEXT(E549,\"dddd\")","v":"الإثنين"},"December",null,"الإثنين","2020-12-07",1315,"رجب طرق",200,7.05,1410]
[null,"الإثنين","December",null,"الإثنين","2020-12-07",1316,"عمر",100,7.05,705]
[null,"الإثنين","December",null,"الإثنين","2020-12-07",1317,"أنور",100,7.05,705]
[null,"الإثنين","December",null,"الإثنين","2020-12-07",1321,"رمضان عربية ش",23,7.05,162.15]
[null,"الاربعاء","December",null,"الاربعاء","2020-12-09",1333,"أنور",500,7.05,3525]
[null,"الاربعاء","December",null,"الاربعاء","2020-12-09",1334,"علوان",600,7.05,4230]
[null,"الأربعاء","December",null,"الأربعاء","2020-12-09",1335,"رجب طرق",700,7.05,4935]
[null,"الأربعاء","December",null,"الأربعاء","2020-12-09",1336,"محسن مياه",50,7.05,352.5]
[null,"الأربعاء","December",null,"الأربعاء","2020-12-09",1337,"عنتر",850,7.05,5992.5]
[null,"الأربعاء","December",null,"الأربعاء","2020-12-09",1338,"خالد 31",750,7.05,5287.5]
[null,"الأربعاء","December",null,"الأربعاء","2020-12-09",1339,"السيد156",600,7.05,4230]
[null,"الأربعاء","December",null,"الأربعاء","2020-12-09",1340,"أشرف",400,7.05,2820]
[null,"الأربعاء","December",null,"الأربعاء","2020-12-09",1341,"محسن مياه",50,7.05,352.5]
[null,"الأربعاء","December",null,"الأربعاء","2020-12-09",1342,"جابر 59",750,7.05,5287.5]
[null,"الأربعاء","December",null,"الأربعاء","2020-12-09",1343,"جابر",750,7.05,5287.5]
[null,"الأربعاء","December",null,"الأربعاء","2020-12-09",1344,"ضيف",430,7.05,3031.5]
[null,"الأربعاء","December",null,"الأربعاء","2020-12-09",1345,"محسن مياه",70,7.05,493.5]
[null,"الخميس","December",null,"الخميس","2020-12-10",1358,"علوان",600,7.05,4230]
[null,"الخميس","December",null,"الخميس","2020-12-10",1359,"رجب طرق",700,7.05,4935]
[null,"الخميس","December",null,"الخميس","2020-12-10",1360,"أنور",500,7.05,3525]
[null,"الخميس","December",null,"الخميس","2020-12-10",1361,"جابر",230,7.05,1621.5]
[null,"الخميس","December",null,"الخميس","2020-12-10",1362,"جابر 59",1270,7.05,{"$f":"IFERROR(IF(H403<>\"\",I570*J570,\"\"),\"\")","v":8953.5}]
[null,"الخميس","December",null,"الخميس","2020-12-10",1364,"رمضان عربية ش",60,7.05,423]
[null,"الخميس","December",null,"الخميس","2020-12-10",1365,"عنتر",850,7.05,5992.5]
[null,"الخميس","December",null,"الخميس","2020-12-10",1366,"خالد 31",850,7.05,5992.5]
[null,"الخميس","December",null,"الخميس","2020-12-10",1367,"ضيف",251,7.05,1769.55]
[null,"الخميس","December",null,"الخميس","2020-12-10",1368,"السيد156",600,7.05,4230]
[null,"الخميس","December",null,"الخميس","2020-12-10",1369,"أشرف",555,7.05,3912.75]
[null,"الخميس","December",null,"الخميس","2020-12-10",1373,"جابر 59",34,7.05,239.7]
[null,"السبت","December",null,"السبت","2020-12-12",1374,"أنور",500,7.05,3525]
[null,"السبت","December",null,"السبت","2020-12-12",1375,"أنور",200,7.05,1410]
[null,"السبت","December",null,"السبت","2020-12-12",1377,"محسن مياه",152,7.05,1071.5999999999999]
[null,"السبت","December",null,"السبت","2020-12-12",1378,"محسن مياه",48,7.05,338.4]
[null,"السبت","December",null,"السبت","2020-12-12",1379,"السيد156",600,7.05,4230]
[null,"السبت","December",null,"السبت","2020-12-12",1380,"عنتر",900,7.05,6345]
[null,"السبت","December",null,"السبت","2020-12-12",1381,"خالد 31",850,7.05,5992.5]
[null,"السبت",{"$f":"TEXT(F585,\"mmmm\")","v":"December"},null,"السبت","2020-12-12",1382,"علوان",500,7.05,3525]
[null,"السبت","December",null,"السبت","2020-12-12",1383,"رجب طرق",820,7.05,5781]
[null,"السبت","December",null,"السبت","2020-12-12",1384,"جابر 59",1500,7.05,10575]
[null,"السبت","December",null,"السبت","2020-12-12",1385,"أشرف",230,7.05,1621.5]
[null,"السبت","December",null,"السبت","2020-12-12",1386,"ضيف",200,7.05,1410]
[null,"الاثنين","December",null,"الاثنين","2020-12-14",1415,"السيد156",50,7.05,352.5]
[null,"الاثنين","December",null,"الاثنين","2020-12-14",1416,"رجب طرق",1000,7.05,7050]
[null,"الإثنين","December",null,"الإثنين","2020-12-14",1417,"علوان",150,7.05,1057.5]
[null,"الإثنين","December",null,"الإثنين","2020-12-14",1418,"عنتر",950,7.05,6697.5]
[null,"الإثنين","December",null,"الإثنين","2020-12-14",1419,"خالد 31",470,7.05,3313.5]
[null,"الإثنين","December",null,"الإثنين","2020-12-14",1420,"محسن مياه",75,7.05,528.75]
[null,"الإثنين","December",null,"الإثنين","2020-12-14",1421,"محسن مياه",50,7.05,352.5]
[null,"الإثنين","December",null,"الإثنين","2020-12-14",1422,"أشرف",300,7.05,2115]
[null,"الإثنين","December",null,"الإثنين","2020-12-14",1423,"رجب طرق",200,7.05,1410]
[null,"الإثنين","December",null,"الإثنين","2020-12-14",1424,"أنور",200,7.05,1410]
[null,"الإثنين","December",null,"الإثنين","2020-12-14",1425,"جابر 59",2261,7.05,15940.05]
[null,"الإثنين","December",null,"الإثنين","2020-12-14",1426,"محسن مياه",30,7.05,211.5]
[null,"الإثنين","December",null,"الإثنين","2020-12-14",1427,"ضيف",630,7.05,4441.5]
[null,"الإثنين","December",null,"الإثنين","2020-12-14",1428,"رمضان عربية ش",45,7.05,317.25]
[null,"الإثنين","December",null,"الإثنين","2020-12-14",1429,"الشركة",50,7.05,352.5]
[null,"الثلاثاء","December",null,"الثلاثاء","2020-12-15",1433,"رجب طرق",1200,{"$f":"IFERROR(IF(H605<>\"\",7.05,\"\"),\"\")","v":7.05},8460]
[null,"الثلاثاء","December",null,"الثلاثاء","2020-12-15",1434,"السيد156",300,7.05,2115]
[null,"الثلاثاء","December",null,"الثلاثاء","2020-12-15",1435,"عنتر",1170,7.05,8248.5]
[null,"الثلاثاء","December",null,"الثلاثاء","2020-12-15",1436,"جابر",200,7.05,1410]
[null,"الثلاثاء","December",null,"الثلاثاء","2020-12-15",1437,"جابر 59",2200,7.05,15510]
[null,"الثلاثاء","December",null,"الثلاثاء","2020-12-15",1438,"علوان",450,7.05,3172.5]
[null,"الثلاثاء","December",null,"الثلاثاء","2020-12-15",1439,"خالد 31",150,7.05,1057.5]
[null,"الثلاثاء","December",null,"الثلاثاء","2020-12-15",1440,"ضيف",500,7.05,3525]
[null,{"$f":"TEXT(E613,\"dddd\")","v":"الثلاثاء"},"December",null,"الثلاثاء","2020-12-15",1441,"أشرف",250,7.05,1762.5]
[null,"الثلاثاء","December",null,"الثلاثاء","2020-12-15",1442,"محسن مياه",50,7.05,352.5]
[null,"الثلاثاء","December",null,"الثلاثاء","2020-12-15",1443,"محسن مياه",30,7.05,211.5]
[null,"الاربعاء","December",null,"الاربعاء","2020-12-16",1451,"علوان",600,7.05,4230]
[null,"الاربعاء","December",null,"الاربعاء","2020-12-16",1452,"أنور",260,7.05,1833]
[null,"الأربعاء","December",null,"الأربعاء","2020-12-16",1453,"ضيف",800,7.05,5640]
[null,"الأربعاء","December",null,"الأربعاء","2020-12-16",1454,"رجب طرق",1550,7.05,10927.5]
[null,"الأربعاء","December",null,"الأربعاء","2020-12-16",1455,"محسن مياه",100,7.05,705]
[null,"الأربعاء","December",null,"الأربعاء","2020-12-16",1456,"خالد 31",318,7.05,2241.9]
[null,"الأربعاء","December",null,"الأربعاء","2020-12-16",1457,"جابر",408,7.05,2876.4]
[null,"الأربعاء","December",null,"الأربعاء","2020-12-16",1458,"جابر 59",1000,7.05,7050]
[null,"الأربعاء","December",null,"الأربعاء","2020-12-16",1459,"محسن مياه",100,7.05,705]
[null,"الأربعاء","December",null,"الأربعاء","2020-12-16",1460,"علوان",300,7.05,2115]
[null,"الأربعاء","December",null,"الأربعاء","2020-12-16",1461,"عنتر",443,7.05,3123.15]
[null,"الأربعاء","December",null,"الأربعاء","2020-12-16",1462,"السيد156",250,7.05,1762.5]
[null,"الأربعاء","December",null,"الأربعاء","2020-12-16",1463,"الشركة",40,7.05,282]
[null,"الأربعاء","December",null,"الأربعاء","2020-12-16",1464,"رجب طرق",200,7.05,1410]
[null,"الاحد","December",null,"الاحد","2020-12-20",1483,"حلمى",40,7.05,282]
[null,"الاحد","December",null,"الاحد","2020-12-20",1484,"علوان",400,7.05,2820]
[null,"الأحد","December",null,"الأحد","2020-12-20",1485,"حلمى25",800,7.05,5640]
[null,"الأحد","December",null,"الأحد","2020-12-20",1486,"حلمى",150,7.05,1057.5]
[null,"الأحد","December",null,"الأحد","2020-12-20",1487,"رجب طرق",1300,7.05,{"$f":"IFERROR(IF(H467<>\"\",I634*J634,\"\"),\"\")","v":9165}]
[null,"الأحد","December",null,"الأحد","2020-12-20",1488,"جابر",200,7.05,1410]
[null,"الأحد","December",null,"الأحد","2020-12-20",1489,"جابر 59",1720,7.05,12126]
[null,"الأحد","December",null,"الأحد","2020-12-20",1490,"محسن مياه",50,7.05,352.5]
[null,"الأحد","December",null,"الأحد","2020-12-20",1491,"محسن مياه",25,7.05,176.25]
[null,"الأحد","December",null,"الأحد","2020-12-20",1492,"محسن مياه",50,7.05,352.5]
[null,"الأحد","December",null,"الأحد","2020-12-20",1493,"محسن مياه",75,7.05,528.75]
[null,"الأحد","December",null,"الأحد","2020-12-20",1494,"ضيف",430,7.05,3031.5]
[null,"الأحد","December",null,"الأحد","2020-12-20",1495,"رمضان عربية ش",68,7.05,479.4]
[null,"الأحد","December",null,"الأحد","2020-12-20",1496,"عنتر",567,7.05,3997.35]
[null,"الأحد","December",null,"الأحد","2020-12-20",1497,"حلمى25",375,7.05,2643.75]
[null,"الأحد","December",null,"الأحد","2020-12-20",1499,"الشركة 23",171,7.05,1205.55]
[null,"الأحد","December",null,"الأحد","2020-12-20",1500,"علوان",79,7.05,556.94999999999993]
[null,"الاثنين","December",null,"الاثنين","2020-12-21",1507,"محسن مياه",75,7.05,528.75]
[null,"الاثنين","December",null,"الاثنين","2020-12-21",1508,"حلمى",50,7.05,352.5]
[null,"الإثنين",{"$f":"TEXT(F649,\"mmmm\")","v":"December"},null,"الإثنين","2020-12-21",1509,"ضيف",480,7.05,3384]
[null,"الإثنين","December",null,"الإثنين","2020-12-21",1510,"علوان",400,7.05,2820]
[null,"الإثنين","December",null,"الإثنين","2020-12-21",1511,"حلمى25",800,7.05,5640]
[null,"الإثنين","December",null,"الإثنين","2020-12-21",1512,"رجب طرق",1394,7.05,9827.6999999999989]
[null,"الإثنين","December",null,"الإثنين","2020-12-21",1513,"محسن مياه",50,7.05,352.5]
[null,"الإثنين","December",null,"الإثنين","2020-12-21",1514,"عنتر",931,7.05,6563.55]
[null,"الإثنين","December",null,"الإثنين","2020-12-21",1515,"جابر",620,7.05,4371]
[null,"الإثنين","December",null,"الإثنين","2020-12-21",1516,"جابر 59",1600,7.05,11280]
[null,"الإثنين","December",null,"الإثنين","2020-12-21",1517,"الشركة 23",100,7.05,705]
[null,"الاربعاء","December",null,"الاربعاء","2020-12-23",1527,"علوان",800,7.05,5640]
[null,"الاربعاء","December",null,"الاربعاء","2020-12-23",1528,"محسن مياه",30,7.05,211.5]
[null,"الأربعاء","December",null,"الأربعاء","2020-12-23",1529,"رمضان عربية ش",45,7.05,317.25]
[null,"الأربعاء","December",null,"الأربعاء","2020-12-23",1530,"رجب طرق",1750,7.05,12337.5]
[null,"الأربعاء","December",null,"الأربعاء","2020-12-23",1531,"حلمى25",980,7.05,6909]
[null,"الأربعاء","December",null,"الأربعاء","2020-12-23",1532,"محسن مياه",30,7.05,211.5]
[null,"الأربعاء","December",null,"الأربعاء","2020-12-23",1533,"عنتر",400,7.05,2820]
[null,"الأربعاء","December",null,"الأربعاء","2020-12-23",1534,"الشركة 23",35,7.05,246.75]
[null,"الأربعاء","December",null,"الأربعاء","2020-12-23",1535,"محسن مياه",30,7.05,211.5]
[null,"الأربعاء","December",null,"الأربعاء","2020-12-23",1536,"جابر",150,7.05,1057.5]
[null,"الأربعاء","December",null,"الأربعاء","2020-12-23",1537,"جابر 59",2250,7.05,15862.5]
[null,"السبت","December",null,"السبت","2020-12-26",1543,"علوان",600,{"$f":"IFERROR(IF(H669<>\"\",7.05,\"\"),\"\")","v":7.05},4230]
[null,"السبت","December",null,"السبت","2020-12-26",1544,"محسن مياه",75,7.05,528.75]
[null,"السبت","December",null,"السبت","2020-12-26",1545,"الشركة 23",65,7.05,458.25]
[null,"السبت","December",null,"السبت","2020-12-26",1546,"رمضان عربية ش",71,7.05,500.55]
[null,"السبت","December",null,"السبت","2020-12-26",1547,"رجب طرق",1650,7.05,11632.5]
[null,"السبت","December",null,"السبت","2020-12-26",1548,"حلمى25",829,7.05,5844.45]
[null,"السبت","December",null,"السبت","2020-12-26",1549,"عنتر",600,7.05,4230]
[null,"السبت","December",null,"السبت","2020-12-26",1550,"ضيف",500,7.05,3525]
[null,{"$f":"TEXT(E677,\"dddd\")","v":"السبت"},"December",null,"السبت","2020-12-26",1551,"جابر 59",2110,7.05,14875.5]
[null,"الاحد","December",null,"الاحد","2020-12-27",1562,"علوان",700,7.05,4935]
[null,"الاحد","December",null,"الاحد","2020-12-27",1563,"رجب طرق",1850,7.05,13042.5]
[null,"الأحد","December",null,"الأحد","2020-12-27",1564,"ضيف",430,7.05,3031.5]
[null,"الأحد","December",null,"الأحد","2020-12-27",1565,"عنتر",300,7.05,2115]
[null,"الأحد","December",null,"الأحد","2020-12-27",1566,"حلمى25",700,7.05,4935]
[null,"الأحد","December",null,"الأحد","2020-12-27",1567,"الشركة 23",25,7.05,176.25]
[null,"الأحد","December",null,"الأحد","2020-12-27",1568,"جابر 59",2495,7.05,17589.75]
[null,"الثلاثاء","December",null,"الثلاثاء","2020-12-29",1574,"ضيف",600,7.05,4230]
[null,"الثلاثاء","December",null,"الثلاثاء","2020-12-29",1575,"حلمى25",700,7.05,4935]
[null,"الثلاثاء","December",null,"الثلاثاء","2020-12-29",1576,"رمضان عربية ش",54,7.05,380.7]
[null,"الثلاثاء","December",null,"الثلاثاء","2020-12-29",1577,"رجب طرق",1792,7.05,12633.6]
[null,"الثلاثاء","December",null,"الثلاثاء","2020-12-29",1578,"علوان",800,7.05,5640]
[null,"الثلاثاء","December",null,"الثلاثاء","2020-12-29",1579,"عنتر",500,7.05,3525]
[null,"الثلاثاء","December",null,"الثلاثاء","2020-12-29",1580,"عنتر",2000,7.05,14100]
[null,"الثلاثاء","December",null,"الثلاثاء","2020-12-29",1581,"حلمى25",54,7.05,380.7]
[null,"الاحد","January",null,"الاحد","2021-01-03",1590,"ضيف",800,7.05,5640]
[null,"الاحد","January",null,"الاحد","2021-01-03",1591,"رجب طرق",2300,7.05,16215]
[null,"الأحد","January",null,"الأحد","2021-01-03",1592,"محمد عيسى",69,7.05,486.45]
[null,"الأحد","January",null,"الأحد","2021-01-03",1593,"علوان",800,7.05,5640]
[null,"الأحد","January",null,"الأحد","2021-01-03",1594,"عنتر",700,7.05,4935]
[null,"الأحد","January",null,"الأحد","2021-01-03",1595,"جابر 59",1000,7.05,{"$f":"IFERROR(IF(H531<>\"\",I698*J698,\"\"),\"\")","v":7050}]
[null,"الأحد","January",null,"الأحد","2021-01-03",1596,"رمضان عربية ش",831,7.05,5858.55]
[null,"Saturday","January",null,null,null,null,null,null,"",""]
[null,"Saturday","January",null,null,null,null,null,null,"",""]
[null,"Saturday","January",null,null,null,null,null,null,"",""]
[null,"Saturday","January",null,null,null,null,null,null,"",""]
[null,"Saturday","January",null,null,null,null,null,null,"",""]
[null,"Saturday","January",null,null,null,null,null,null,"",""]
[null,"Saturday","January",null,null,null,null,null,null,"",""]
[null,"Saturday","January",null,null,null,null,null,null,"",""]
[null,"Saturday","January",null,null,null,null,null,null,"",""]
[null,"Saturday","January",null,null,null,null,null,null,"",""]
[null,"Saturday","January",null,null,null,null,null,null,"",""]
[null,"Saturday","January",null,null,null,null,null,null,"",""]
[null,"Saturday","January",null,null,null,null,null,null,"",""]
[null,"Saturday",{"$f":"TEXT(F713,\"mmmm\")","v":"January"},null,null,null,null,null,null,"",""]
[null,"Saturday","January",null,null,null,null,null,null,"",""]
[null,"Saturday","January",null,null,null,null,null,null,"",""]
[null,"Saturday","January",null,null,null,null,null,null,"",""]
[null,"Saturday","January",null,null,null,null,null,null,"",""]
[null,"Saturday","January",null,null,null,null,null,null,"",""]
[null,"Saturday","January",null,null,null,null,null,null,"",""]
[null,"Saturday","January",null,null,null,null,null,null,"",""]
[null,"Saturday","January",null,null,null,null,null,null,"",""]
[null,"Saturday","January",null,null,null,null,null,null,"",""]
[null,"Saturday","January",null,null,null,null,null,null,"",""]
[null,"Saturday","January",null,null,null,null,null,null,"",""]
[null,"Saturday","January",null,null,null,null,null,null,"",""]
[null,"Saturday","January",null,null,null,null,null,null,"",""]
[null,"Saturday","January",null,null,null,null,null,null,"",""]
[null,"Saturday","January",null,null,null,null,null,null,"",""]
[null,"Saturday","January",null,null,null,null,null,null,"",""]
[null,"Saturday","January",null,null,null,null,null,null,"",""]
[null,"Saturday","January",null,null,null,null,null,null,"",""]
[null,"Saturday","January",null,null,null,null,null,null,"",""]
[null,"Saturday","January",null,null,null,null,null,null,{"$f":"IFERROR(IF(H733<>\"\",7.05,\"\"),\"\")","v":""},""]
[null,"Saturday","January",null,null,null,null,null,null,"",""]
[null,"Saturday","January",null,null,null,null,null,null,"",""]
[null,"Saturday","January",null,null,null,null,null,null,"",""]
[null,"Saturday","January",null,null,null,null,null,null,"",""]
[null,"Saturday","January",null,null,null,null,null,null,"",""]
[null,"Saturday","January",null,null,null,null,null,null,"",""]
[null,"Saturday","January",null,null,null,null,null,null,"",""]
[null,{"$f":"TEXT(E741,\"dddd\")","v":"Saturday"},"January",null,null,null,null,null,null,"",""]
[null,"Saturday","January",null,null,null,null,null,null,"",""]
[null,"Saturday","January",null,null,null,null,null,null,"",""]
[null,"Saturday","January",null,null,null,null,null,null,"",""]
[null,"Saturday","January",null,null,null,null,null,null,"",""]
[null,"Saturday","January",null,null,null,null,null,null,"",""]
[null,"Saturday","January",null,null,null,null,null,null,"",""]
[null,"Saturday","January",null,null,null,null,null,null,"",""]
[null,"Saturday","January",null,null,null,null,null,null,"",""]
[null,"Saturday","January",null,null,null,null,null,null,"",""]
[null,"Saturday","January",null,null,null,null,null,null,"",""]
[null,"Saturday","January",null,null,null,null,null,null,"",""]
[null,"Saturday","January",null,null,null,null,null,null,"",""]
[null,"Saturday","January",null,null,null,null,null,null,"",""]
[null,"Saturday","January",null,null,null,null,null,null,"",""]
[null,"Saturday","January",null,null,null,null,null,null,"",""]
[null,"Saturday","January",null,null,null,null,null,null,"",""]
[null,"Saturday","January",null,null,null,null,null,null,"",""]
[null,"Saturday","January",null,null,null,null,null,null,"",""]
[null,"Saturday","January",null,null,null,null,null,null,"",""]
[null,"Saturday","January",null,null,null,null,null,null,"",""]
[null,"Saturday","January",null,null,null,null,null,null,"",{"$f":"IFERROR(IF(H595<>\"\",I762*J762,\"\"),\"\")","v":""}]
[null,"Saturday","January",null,null,null,null,null,null,"",""]
[null,"Saturday","January",null,null,null,null,null,null,"",""]
[null,"Saturday","January",null,null,null,null,null,null,"",""]
[null,"Saturday","January",null,null,null,null,null,null,"",""]
[null,"Saturday","January",null,null,null,null,null,null,"",""]
[null,"Saturday","January",null,null,null,null,null,null,"",""]
[null,"Saturday","January",null,null,null,null,null,null,"",""]
[null,"Saturday","January",null,null,null,null,null,null,"",""]
[null,"Saturday","January",null,null,null,null,null,null,"",""]
[null,"Saturday","January",null,null,null,null,null,null,"",""]
[null,"Saturday","January",null,null,null,null,null,null,"",""]
[null,"Saturday","January",null,null,null,null,null,null,"",""]
[null,"Saturday","January",null,null,null,null,null,null,"",""]
[null,"Saturday","January",null,null,null,null,null,null,"",""]
[null,"Saturday",{"$f":"TEXT(F777,\"mmmm\")","v":"January"},null,null,null,null,null,null,"",""]
[null,"Saturday","January",null,null,null,null,null,null,"",""]
[null,"Saturday","January",null,null,null,null,null,null,"",""]
[null,"Saturday","January",null,null,null,null,null,null,"",""]
[null,"Saturday","January",null,null,null,null,null,null,"",""]
[null,"Saturday","January",null,null,null,null,null,null,"",""]
[null,"Saturday","January",null,null,null,null,null,null,"",""]
[null,"Saturday","January",null,null,null,null,null,null,"",""]
[null,"Saturday","January",null,null,null,null,null,null,"",""]
[null,"Saturday","January",null,null,null,null,null,null,"",""]
[null,"Saturday","January",null,null,null,null,null,null,"",""]
[null,"Saturday","January",null,null,null,null,null,null,"",""]
[null,"Saturday","January",null,null,null,null,null,null,"",""]
[null,"Saturday","January",null,null,null,null,null,null,"",""]
[null,"Saturday","January",null,null,null,null,null,null,"",""]
[null,"Saturday","January",null,null,null,null,null,null,"",""]
[null,"Saturday","January",null,null,null,null,null,null,"",""]
[null,"Saturday","January",null,null,null,null,null,null,"",""]
[null,"Saturday","January",null,null,null,null,null,null,"",""]
[null,"Saturday","January",null,null,null,null,null,null,"",""]
[null,"Saturday","January",null,null,null,null,null,null,{"$f":"IFERROR(IF(H797<>\"\",7.05,\"\"),\"\")","v":""},""]
[null,"Saturday","January",null,null,null,null,null,null,"",""]
[null,"Saturday","January",null,null,null,null,null,null,"",""]
[null,"Saturday","January",null,null,null,null,null,null,"",""]
[null,"Saturday","January",null,null,null,null,null,null,"",""]
[null,"Saturday","January",null,null,null,null,null,null,"",""]
[null,"Saturday","January",null,null,null,null,null,null,"",""]
[null,"Saturday","January",null,null,null,null,null,null,"",""]
[null,{"$f":"TEXT(E805,\"dddd\")","v":"Saturday"},"January",null,null,null,null,null,null,"",""]
[null,"Saturday","January",null,null,null,null,null,null,"",""]
[null,"Saturday","January",null,null,null,null,null,null,"",""]
[null,"Saturday","January",null,null,null,null,null,null,"",""]
[null,"Saturday","January",null,null,null,null,null,null,"",""]
[null,"Saturday","January",null,null,null,null,null,null,"",""]
[null,"Saturday","January",null,null,null,null,null,null,"",""]
[null,"Saturday","January",null,null,null,null,null,null,"",""]
[null,"Saturday","January",null,null,null,null,null,null,"",""]
[null,"Saturday","January",null,null,null,null,null,null,"",""]
[null,"Saturday","January",null,null,null,null,null,null,"",""]
[null,"Saturday","January",null,null,null,null,null,null,"",""]
[null,"Saturday","January",null,null,null,null,null,null,"",""]
[null,"Saturday","January",null,null,null,null,null,null,"",""]
[null,"Saturday","January",null,null,null,null,null,null,"",""]
[null,"Saturday","January",null,null,null,null,null,null,"",""]
[null,"Saturday","January",null,null,null,null,null,null,"",""]
[null,"Saturday","January",null,null,null,null,null,null,"",""]
[null,"Saturday","January",null,null,null,null,null,null,"",""]
[null,"Saturday","January",null,null,null,null,null,null,"",""]
[null,"Saturday","January",null,null,null,null,null,null,"",""]
[null,"Saturday","January",null,null,null,null,null,null,"",{"$f":"IFERROR(IF(H659<>\"\",I826*J826,\"\"),\"\")","v":""}]
[null,"Saturday","January",null,null,null,null,null,null,"",""]
[null,"Saturday","January",null,null,null,null,null,null,"",""]
[null,"Saturday","January",null,null,null,null,null,null,"",""]
[null,"Saturday","January",null,null,null,null,null,null,"",""]
[null,"Saturday","January",null,null,null,null,null,null,"",""]
[null,"Saturday","January",null,null,null,null,null,null,"",""]
[null,"Saturday","January",null,null,null,null,null,null,"",""]
[null,"Saturday","January",null,null,null,null,null,null,"",""]
[null,"Saturday","January",null,null,null,null,null,null,"",""]
[null,"Saturday","January",null,null,null,null,null,null,"",""]
[null,"Saturday","January",null,null,null,null,null,null,"",""]
[null,"Saturday","January",null,null,null,null,null,null,"",""]
[null,"Saturday","January",null,null,null,null,null,null,"",""]
[null,"Saturday","January",null,null,null,null,null,null,"",""]
[null,"Saturday",{"$f":"TEXT(F841,\"mmmm\")","v":"January"},null,null,null,null,null,null,"",""]
[null,"Saturday","January",null,null,null,null,null,null,"",""]
[null,"Saturday","January",null,null,null,null,null,null,"",""]
[null,"Saturday","January",null,null,null,null,null,null,"",""]
[null,"Saturday","January",null,null,null,null,null,null,"",""]
[null,"Saturday","January",null,null,null,null,null,null,"",""]
[null,"Saturday","January",null,null,null,null,null,null,"",""]
[null,"Saturday","January",null,null,null,null,null,null,"",""]
[null,"Saturday","January",null,null,null,null,null,null,"",""]
[null,"Saturday","January",null,null,null,null,null,null,"",""]
[null,"Saturday","January",null,null,null,null,null,null,"",""]
[null,"Saturday","January",null,null,null,null,null,null,"",""]
[null,"Saturday","January",null,null,null,null,null,null,"",""]
[null,"Saturday","January",null,null,null,null,null,null,"",""]
[null,"Saturday","January",null,null,null,null,null,null,"",""]
[null,"Saturday","January",null,null,null,null,null,null,"",""]
[null,"Saturday","January",null,null,null,null,null,null,"",""]
[null,"Saturday","January",null,null,null,null,null,null,"",""]
[null,"Saturday","January",null,null,null,null,null,null,"",""]
[null,"Saturday","January",null,null,null,null,null,null,"",""]
[null,"Saturday","January",null,null,null,null,null,null,{"$f":"IFERROR(IF(H861<>\"\",7.05,\"\"),\"\")","v":""},""]
[null,"Saturday","January",null,null,null,null,null,null,"",""]
[null,"Saturday","January",null,null,null,null,null,null,"",""]
[null,"Saturday","January",null,null,null,null,null,null,"",""]
[null,"Saturday","January",null,null,null,null,null,null,"",""]
[null,"Saturday","January",null,null,null,null,null,null,"",""]
[null,"Saturday","January",null,null,null,null,null,null,"",""]
[null,"Saturday","January",null,null,null,null,null,null,"",""]
[null,{"$f":"TEXT(E869,\"dddd\")","v":"Saturday"},"January",null,null,null,null,null,null,"",""]
[null,"Saturday","January",null,null,null,null,null,null,"",""]
[null,"Saturday","January",null,null,null,null,null,null,"",""]
[null,"Saturday","January",null,null,null,null,null,null,"",""]
[null,"Saturday","January",null,null,null,null,null,null,"",""]
[null,"Saturday","January",null,null,null,null,null,null,"",""]
[null,"Saturday","January",null,null,null,null,null,null,"",""]
[null,"Saturday","January",null,null,null,null,null,null,"",""]
[null,"Saturday","January",null,null,null,null,null,null,"",""]
[null,"Saturday","January",null,null,null,null,null,null,"",""]
[null,"Saturday","January",null,null,null,null,null,null,"",""]
[null,"Saturday","January",null,null,null,null,null,null,"",""]
[null,"Saturday","January",null,null,null,null,null,null,"",""]
[null,"Saturday","January",null,null,null,null,null,null,"",""]
[null,"Saturday","January",null,null,null,null,null,null,"",""]
[null,"Saturday","January",null,null,null,null,null,null,"",""]
[null,"Saturday","January",null,null,null,null,null,null,"",""]
[null,"Saturday","January",null,null,null,null,null,null,"",""]
[null,"Saturday","January",null,null,null,null,null,null,"",""]
[null,"Saturday","January",null,null,null,null,null,null,"",""]
[null,"Saturday","January",null,null,null,null,null,null,"",""]
[null,"Saturday","January",null,null,null,null,null,null,"",{"$f":"IFERROR(IF(H723<>\"\",I890*J890,\"\"),\"\")","v":""}]
[null,"Saturday","January",null,null,null,null,null,null,"",""]
[null,"Saturday","January",null,null,null,null,null,null,"",""]
[null,"Saturday","January",null,null,null,null,null,null,"",""]
[null,"Saturday","January",null,null,null,null,null,null,"",""]
[null,"Saturday","January",null,null,null,null,null,null,"",""]
[null,"Saturday","January",null,null,null,null,null,null,"",""]
[null,"Saturday","January",null,null,null,null,null,null,"",""]
[null,"Saturday","January",null,null,null,null,null,null,"",""]
[null,"Saturday","January",null,null,null,null,null,null,"",""]
[null,"Saturday","January",null,null,null,null,null,null,"",""]
[null,"Saturday","January",null,null,null,null,null,null,"",""]
[null,"Saturday","January",null,null,null,null,null,null,"",""]
[null,"Saturday","January",null,null,null,null,null,null,"",""]
[null,"Saturday","January",null,null,null,null,null,null,"",""]
[null,"Saturday",{"$f":"TEXT(F905,\"mmmm\")","v":"January"},null,null,null,null,null,null,"",""]
[null,"Saturday","January",null,null,null,null,null,null,"",""]
[null,"Saturday","January",null,null,null,null,null,null,"",""]
[null,"Saturday","January",null,null,null,null,null,null,"",""]
[null,"Saturday","January",null,null,null,null,null,null,"",""]
[null,"Saturday","January",null,null,null,null,null,null,"",""]
[null,"Saturday","January",null,null,null,null,null,null,"",""]
[null,"Saturday","January",null,null,null,null,null,null,"",""]
[null,"Saturday","January",null,null,null,null,null,null,"",""]
[null,"Saturday","January",null,null,null,null,null,null,"",""]
[null,"Saturday","January",null,null,null,null,null,null,"",""]
[null,"Saturday","January",null,null,null,null,null,null,"",""]
[null,"Saturday","January",null,null,null,null,null,null,"",""]
[null,"Saturday","January",null,null,null,null,null,null,"",""]
[null,"Saturday","January",null,null,null,null,null,null,"",""]
[null,"Saturday","January",null,null,null,null,null,null,"",""]
[null,"Saturday","January",null,null,null,null,null,null,"",""]
[null,"Saturday","January",null,null,null,null,null,null,"",""]
[null,"Saturday","January",null,null,null,null,null,null,"",""]
[null,"Saturday","January",null,null,null,null,null,null,"",""]
[null,"Saturday","January",null,null,null,null,null,null,{"$f":"IFERROR(IF(H925<>\"\",7.05,\"\"),\"\")","v":""},""]
[null,"Saturday","January",null,null,null,null,null,null,"",""]
[null,"Saturday","January",null,null,null,null,null,null,"",""]
[null,"Saturday","January",null,null,null,null,null,null,"",""]
[null,"Saturday","January",null,null,null,null,null,null,"",""]
[null,"Saturday","January",null,null,null,null,null,null,"",""]
[null,"Saturday","January",null,null,null,null,null,null,"",""]
[null,"Saturday","January",null,null,null,null,null,null,"",""]
[null,{"$f":"TEXT(E933,\"dddd\")","v":"Saturday"},"January",null,null,null,null,null,null,"",""]
[null,"Saturday","January",null,null,null,null,null,null,"",""]
[null,"Saturday","January",null,null,null,null,null,null,"",""]
[null,"Saturday","January",null,null,null,null,null,null,"",""]
[null,"Saturday","January",null,null,null,null,null,null,"",""]
[null,"Saturday","January",null,null,null,null,null,null,"",""]
[null,"Saturday","January",null,null,null,null,null,null,"",""]
[null,"Saturday","January",null,null,null,null,null,null,"",""]
[null,"Saturday","January",null,null,null,null,null,null,"",""]
[null,"Saturday","January",null,null,null,null,null,null,"",""]
[null,"Saturday","January",null,null,null,null,null,null,"",""]
[null,"Saturday","January",null,null,null,null,null,null,"",""]
[null,"Saturday","January",null,null,null,null,null,null,"",""]
[null,"Saturday","January",null,null,null,null,null,null,"",""]
[null,"Saturday","January",null,null,null,null,null,null,"",""]
[null,"Saturday","January",null,null,null,null,null,null,"",""]
[null,"Saturday","January",null,null,null,null,null,null,"",""]
[null,"Saturday","January",null,null,null,null,null,null,"",""]
[null,"Saturday","January",null,null,null,null,null,null,"",""]
[null,"Saturday","January",null,null,null,null,null,null,"",""]
[null,"Saturday","January",null,null,null,null,null,null,"",""]
[null,"Saturday","January",null,null,null,null,null,null,"",{"$f":"IFERROR(IF(H787<>\"\",I954*J954,\"\"),\"\")","v":""}]
[null,"Saturday","January",null,null,null,null,null,null,"",""]
[null,"Saturday","January",null,null,null,null,null,null,"",""]
[null,"Saturday","January",null,null,null,null,null,null,"",""]
[null,"Saturday","January",null,null,null,null,null,null,"",""]
[null,"Saturday","January",null,null,null,null,null,null,"",""]
[null,"Saturday","January",null,null,null,null,null,null,"",""]
[null,"Saturday","January",null,null,null,null,null,null,"",""]
[null,"Saturday","January",null,null,null,null,null,null,"",""]
[null,"Saturday","January",null,null,null,null,null,null,"",""]
[null,"Saturday","January",null,null,null,null,null,null,"",""]
[null,"Saturday","January",null,null,null,null,null,null,"",""]
[null,"Saturday","January",null,null,null,null,null,null,"",""]
[null,"Saturday","January",null,null,null,null,null,null,"",""]
[null,"Saturday","January",null,null,null,null,null,null,"",""]
[null,"Saturday",{"$f":"TEXT(F969,\"mmmm\")","v":"January"},null,null,null,null,null,null,"",""]
[null,"Saturday","January",null,null,null,null,null,null,"",""]
[null,"Saturday","January",null,null,null,null,null,null,"",""]
[null,"Saturday","January",null,null,null,null,null,null,"",""]
[null,"Saturday","January",null,null,null,null,null,null,"",""]
[null,"Saturday","January",null,null,null,null,null,null,"",""]
[null,"Saturday","January",null,null,null,null,null,null,"",""]
[null,"Saturday","January",null,null,null,null,null,null,"",""]
[null,"Saturday","January",null,null,null,null,null,null,"",""]
[null,"Saturday","January",null,null,null,null,null,null,"",""]
[null,"Saturday","January",null,null,null,null,null,null,"",""]
[null,"Saturday","January",null,null,null,null,null,null,"",""]
[null,"Saturday","January",null,null,null,null,null,null,"",""]
[null,"Saturday","January",null,null,null,null,null,null,"",""]
[null,"Saturday","January",null,null,null,null,null,null,"",""]
[null,"Saturday","January",null,null,null,null,null,null,"",""]
[null,"Saturday","January",null,null,null,null,null,null,"",""]
[null,"Saturday","January",null,null,null,null,null,null,"",""]
[null,"Saturday","January",null,null,null,null,null,null,"",""]
[null,"Saturday","January",null,null,null,null,null,null,"",""]
[null,"Saturday","January",null,null,null,null,null,null,{"$f":"IFERROR(IF(H989<>\"\",7.05,\"\"),\"\")","v":""},""]
[null,"Saturday","January",null,null,null,null,null,null,"",""]
[null,"Saturday","January",null,null,null,null,null,null,"",""]
[null,"Saturday","January",null,null,null,null,null,null,"",""]
[null,"Saturday","January",null,null,null,null,null,null,"",""]
[null,"Saturday","January",null,null,null,null,null,null,"",""]
[null,"Saturday","January",null,null,null,null,null,null,"",""]
[null,"Saturday","January",null,null,null,null,null,null,"",""]
[null,{"$f":"TEXT(E997,\"dddd\")","v":"Saturday"},"January",null,null,null,null,null,null,"",""]
[null,"Saturday","January",null,null,null,null,null,null,"",""]
[null,"Saturday","January",null,null,null,null,null,null,"",""]
[null,"Saturday","January",null,null,null,null,null,null,"",""]
[null,"Saturday","January",null,null,null,null,null,null,"",""]
[null,"Saturday","January",null,null,null,null,null,null,"",""]
[null,"Saturday","January",null,null,null,null,null,null,"",""]
[null,"Saturday","January",null,null,null,null,null,null,"",""]
[null,"Saturday","January",null,null,null,null,null,null,"",""]
[null,"Saturday","January",null,null,null,null,null,null,"",""]
[null,"Saturday","January",null,null,null,null,null,null,"",""]
[null,"Saturday","January",null,null,null,null,null,null,"",""]
[null,"Saturday","January",null,null,null,null,null,null,"",""]
[null,"Saturday","January",null,null,null,null,null,null,"",""]
[null,"Saturday","January",null,null,null,null,null,null,"",""]
[null,"Saturday","January",null,null,null,null,null,null,"",""]
[null,"Saturday","January",null,null,null,null,null,null,"",""]
[null,"Saturday","January",null,null,null,null,null,null,"",""]
[null,"Saturday","January",null,null,null,null,null,null,"",""]
[null,"Saturday","January",null,null,null,null,null,null,"",""]
[null,"Saturday","January",null,null,null,null,null,null,"",""]
[null,"Saturday","January",null,null,null,null,null,null,"",{"$f":"IFERROR(IF(H851<>\"\",I1018*J1018,\"\"),\"\")","v":""}]
[null,"Saturday","January",null,null,null,null,null,null,"",""]
[null,"Saturday","January",null,null,null,null,null,null,"",""]
[null,"Saturday","January",null,null,null,null,null,null,"",""]
[null,"Saturday","January",null,null,null,null,null,null,"",""]
[null,"Saturday","January",null,null,null,null,null,null,"",""]
[null,"Saturday","January",null,null,null,null,null,null,"",""]
[null,"Saturday","January",null,null,null,null,null,null,"",""]
[null,"Saturday","January",null,null,null,null,null,null,"",""]
[null,"Saturday","January",null,null,null,null,null,null,"",""]
[null,"Saturday","January",null,null,null,null,null,null,"",""]
[null,"Saturday","January",null,null,null,null,null,null,"",""]
[null,"Saturday","January",null,null,null,null,null,null,"",""]
[null,"Saturday","January",null,null,null,null,null,null,"",""]
[null,"Saturday","January",null,null,null,null,null,null,"",""]
[null,"Saturday",{"$f":"TEXT(F1033,\"mmmm\")","v":"January"},null,null,null,null,null,null,"",""]
[null,"Saturday","January",null,null,null,null,null,null,"",""]
[null,"Saturday","January",null,null,null,null,null,null,"",""]
[null,"Saturday","January",null,null,null,null,null,null,"",""]
[null,"Saturday","January",null,null,null,null,null,null,"",""]
[null,"Saturday","January",null,null,null,null,null,null,"",""]
[null,"Saturday","January",null,null,null,null,null,null,"",""]
[null,"Saturday","January",null,null,null,null,null,null,"",""]
[null,"Saturday","January",null,null,null,null,null,null,"",""]
[null,"Saturday","January",null,null,null,null,null,null,"",""]
[null,"Saturday","January",null,null,null,null,null,null,"",""]
[null,"Saturday","January",null,null,null,null,null,null,"",""]
[null,"Saturday","January",null,null,null,null,null,null,"",""]
[null,"Saturday","January",null,null,null,null,null,null,"",""]
[null,"Saturday","January",null,null,null,null,null,null,"",""]
[null,"Saturday","January",null,null,null,null,null,null,"",""]
[null,"Saturday","January",null,null,null,null,null,null,"",""]
[null,"Saturday","January",null,null,null,null,null,null,"",""]
[null,"Saturday","January",null,null,null,null,null,null,"",""]
[null,"Saturday","January",null,null,null,null,null,null,"",""]
[null,"Saturday","January",null,null,null,null,null,null,{"$f":"IFERROR(IF(H1053<>\"\",7.05,\"\"),\"\")","v":""},""]
[null,"Saturday","January",null,null,null,null,null,null,"",""]
[null,"Saturday","January",null,null,null,null,null,null,"",""]
[null,"Saturday","January",null,null,null,null,null,null,"",""]
[null,"Saturday","January",null,null,null,null,null,null,"",""]
[null,"Saturday","January",null,null,null,null,null,null,"",""]
[null,"Saturday","January",null,null,null,null,null,null,"",""]
[null,"Saturday","January",null,null,null,null,null,null,"",""]
[null,{"$f":"TEXT(E1061,\"dddd\")","v":"Saturday"},"January",null,null,null,null,null,null,"",""]
[null,"Saturday","January",null,null,null,null,null,null,"",""]
[null,"Saturday","January",null,null,null,null,null,null,"",""]
[null,"Saturday","January",null,null,null,null,null,null,"",""]
[null,"Saturday","January",null,null,null,null,null,null,"",""]
[null,"Saturday","January",null,null,null,null,null,null,"",""]
[null,"Saturday","January",null,null,null,null,null,null,"",""]
[null,"Saturday","January",null,null,null,null,null,null,"",""]
[null,"Saturday","January",null,null,null,null,null,null,"",""]
[null,"Saturday","January",null,null,null,null,null,null,"",""]
[null,"Saturday","January",null,null,null,null,null,null,"",""]
[null,"Saturday","January",null,null,null,null,null,null,"",""]
[null,"Saturday","January",null,null,null,null,null,null,"",""]
[null,"Saturday","January",null,null,null,null,null,null,"",""]
[null,"Saturday","January",null,null,null,null,null,null,"",""]
[null,"Saturday","January",null,null,null,null,null,null,"",""]
[null,"Saturday","January",null,null,null,null,null,null,"",""]
[null,"Saturday","January",null,null,null,null,null,null,"",""]
[null,"Saturday","January",null,null,null,null,null,null,"",""]
[null,"Saturday","January",null,null,null,null,null,null,"",""]
[null,"Saturday","January",null,null,null,null,null,null,"",""]
[null,"Saturday","January",null,null,null,null,null,null,"",{"$f":"IFERROR(IF(H915<>\"\",I1082*J1082,\"\"),\"\")","v":""}]
[null,"Saturday","January",null,null,null,null,null,null,"",""]
[null,"Saturday","January",null,null,null,null,null,null,"",""]
[null,"Saturday","January",null,null,null,null,null,null,"",""]
[null,"Saturday","January",null,null,null,null,null,null,"",""]
[null,"Saturday","January",null,null,null,null,null,null,"",""]
[null,"Saturday","January",null,null,null,null,null,null,"",""]
[null,"Saturday","January",null,null,null,null,null,null,"",""]
[null,"Saturday","January",null,null,null,null,null,null,"",""]
[null,"Saturday","January",null,null,null,null,null,null,"",""]
[null,"Saturday","January",null,null,null,null,null,null,"",""]
[null,"Saturday","January",null,null,null,null,null,null,"",""]
[null,"Saturday","January",null,null,null,null,null,null,"",""]
[null,"Saturday","January",null,null,null,null,null,null,"",""]
[null,"Saturday","January",null,null,null,null,null,null,"",""]
[null,"Saturday",{"$f":"TEXT(F1097,\"mmmm\")","v":"January"},null,null,null,null,null,null,"",""]
[null,"Saturday","January",null,null,null,null,null,null,"",""]
[null,"Saturday","January",null,null,null,null,null,null,"",""]
[null,"Saturday","January",null,null,null,null,null,null,"",""]
[null,"Saturday","January",null,null,null,null,null,null,"",""]
[null,"Saturday","January",null,null,null,null,null,null,"",""]
[null,"Saturday","January",null,null,null,null,null,null,"",""]
[null,"Saturday","January",null,null,null,null,null,null,"",""]
[null,"Saturday","January",null,null,null,null,null,null,"",""]
[null,"Saturday","January",null,null,null,null,null,null,"",""]
[null,"Saturday","January",null,null,null,null,null,null,"",""]
[null,"Saturday","January",null,null,null,null,null,null,"",""]
[null,"Saturday","January",null,null,null,null,null,null,"",""]
[null,"Saturday","January",null,null,null,null,null,null,"",""]
[null,"Saturday","January",null,null,null,null,null,null,"",""]
[null,"Saturday","January",null,null,null,null,null,null,"",""]
[null,"Saturday","January",null,null,null,null,null,null,"",""]
[null,"Saturday","January",null,null,null,null,null,null,"",""]
[null,"Saturday","January",null,null,null,null,null,null,"",""]
[null,"Saturday","January",null,null,null,null,null,null,"",""]
[null,"Saturday","January",null,null,null,null,null,null,{"$f":"IFERROR(IF(H1117<>\"\",7.05,\"\"),\"\")","v":""},""]
[null,"Saturday","January",null,null,null,null,null,null,"",""]
[null,"Saturday","January",null,null,null,null,null,null,"",""]
[null,"Saturday","January",null,null,null,null,null,null,"",""]
[null,"Saturday","January",null,null,null,null,null,null,"",""]
[null,"Saturday","January",null,null,null,null,null,null,"",""]
[null,"Saturday","January",null,null,null,null,null,null,"",""]
[null,"Saturday","January",null,null,null,null,null,null,"",""]
[null,{"$f":"TEXT(E1125,\"dddd\")","v":"Saturday"},"January",null,null,null,null,null,null,"",""]
[null,"Saturday","January",null,null,null,null,null,null,"",""]
[null,"Saturday","January",null,null,null,null,null,null,"",""]
[null,"Saturday","January",null,null,null,null,null,null,"",""]
[null,"Saturday","January",null,null,null,null,null,null,"",""]
[null,"Saturday","January",null,null,null,null,null,null,"",""]
[null,"Saturday","January",null,null,null,null,null,null,"",""]
[null,"Saturday","January",null,null,null,null,null,null,"",""]
[null,"Saturday","January",null,null,null,null,null,null,"",""]
[null,"Saturday","January",null,null,null,null,null,null,"",""]
[null,"Saturday","January",null,null,null,null,null,null,"",""]
[null,"Saturday","January",null,null,null,null,null,null,"",""]
[null,"Saturday","January",null,null,null,null,null,null,"",""]
[null,"Saturday","January",null,null,null,null,null,null,"",""]
[null,"Saturday","January",null,null,null,null,null,null,"",""]
[null,"Saturday","January",null,null,null,null,null,null,"",""]
[null,"Saturday","January",null,null,null,null,null,null,"",""]
[null,"Saturday","January",null,null,null,null,null,null,"",""]
[null,"Saturday","January",null,null,null,null,null,null,"",""]
[null,"Saturday","January",null,null,null,null,null,null,"",""]
[null,"Saturday","January",null,null,null,null,null,null,"",""]
[null,"Saturday","January",null,null,null,null,null,null,"",{"$f":"IFERROR(IF(H979<>\"\",I1146*J1146,\"\"),\"\")","v":""}]
[null,"Saturday","January",null,null,null,null,null,null,"",""]
[null,"Saturday","January",null,null,null,null,null,null,"",""]
[null,"Saturday","January",null,null,null,null,null,null,"",""]
[null,"Saturday","January",null,null,null,null,null,null,"",""]
[null,"Saturday","January",null,null,null,null,null,null,"",""]
[null,"Saturday","January",null,null,null,null,null,null,"",""]
[null,"Saturday","January",null,null,null,null,null,null,"",""]
[null,"Saturday","January",null,null,null,null,null,null,"",""]
[null,"Saturday","January",null,null,null,null,null,null,"",""]
[null,"Saturday","January",null,null,null,null,null,null,"",""]
[null,"Saturday","January",null,null,null,null,null,null,"",""]
[null,"Saturday","January",null,null,null,null,null,null,"",""]
[null,"Saturday","January",null,null,null,null,null,null,"",""]
[null,"Saturday","January",null,null,null,null,null,null,"",""]
[null,"Saturday",{"$f":"TEXT(F1161,\"mmmm\")","v":"January"},null,null,null,null,null,null,"",""]
[null,"Saturday","January",null,null,null,null,null,null,"",""]
[null,"Saturday","January",null,null,null,null,null,null,"",""]
[null,"Saturday","January",null,null,null,null,null,null,"",""]
[null,"Saturday","January",null,null,null,null,null,null,"",""]
[null,"Saturday","January",null,null,null,null,null,null,"",""]
[null,"Saturday","January",null,null,null,null,null,null,"",""]
[null,"Saturday","January",null,null,null,null,null,null,"",""]
[null,"Saturday","January",null,null,null,null,null,null,"",""]
[null,"Saturday","January",null,null,null,null,null,null,"",""]
[null,"Saturday","January",null,null,null,null,null,null,"",""]
[null,"Saturday","January",null,null,null,null,null,null,"",""]
[null,"Saturday","January",null,null,null,null,null,null,"",""]
[null,"Saturday","January",null,null,null,null,null,null,"",""]
[null,"Saturday","January",null,null,null,null,null,null,"",""]
[null,"Saturday","January",null,null,null,null,null,null,"",""]
[null,"Saturday","January",null,null,null,null,null,null,"",""]
[null,"Saturday","January",null,null,null,null,null,null,"",""]
[null,"Saturday","January",null,null,null,null,null,null,"",""]
[null,"Saturday","January",null,null,null,null,null,null,"",""]
[null,"Saturday","January",null,null,null,null,null,null,{"$f":"IFERROR(IF(H1181<>\"\",7.05,\"\"),\"\")","v":""},""]
[null,"Saturday","January",null,null,null,null,null,null,"",""]
[null,"Saturday","January",null,null,null,null,null,null,"",""]
[null,"Saturday","January",null,null,null,null,null,null,"",""]
[null,"Saturday","January",null,null,null,null,null,null,"",""]
[null,"Saturday","January",null,null,null,null,null,null,"",""]
[null,"Saturday","January",null,null,null,null,null,null,"",""]
[null,"Saturday","January",null,null,null,null,null,null,"",""]
[null,{"$f":"TEXT(E1189,\"dddd\")","v":"Saturday"},"January",null,null,null,null,null,null,"",""]
[null,"Saturday","January",null,null,null,null,null,null,"",""]
[null,"Saturday","January",null,null,null,null,null,null,"",""]
[null,"Saturday","January",null,null,null,null,null,null,"",""]
[null,"Saturday","January",null,null,null,null,null,null,"",""]
[null,"Saturday","January",null,null,null,null,null,null,"",""]
[null,"Saturday","January",null,null,null,null,null,null,"",""]
[null,"Saturday","January",null,null,null,null,null,null,"",""]
[null,"Saturday","January",null,null,null,null,null,null,"",""]
[null,"Saturday","January",null,null,null,null,null,null,"",""]
[null,"Saturday","January",null,null,null,null,null,null,"",""]
[null,"Saturday","January",null,null,null,null,null,null,"",""]
[null,"Saturday","January",null,null,null,null,null,null,"",""]
[null,"Saturday","January",null,null,null,null,null,null,"",""]
[null,"Saturday","January",null,null,null,null,null,null,"",""]
[null,"Saturday","January",null,null,null,null,null,null,"",""]
[null,"Saturday","January",null,null,null,null,null,null,"",""]
[null,"Saturday","January",null,null,null,null,null,null,"",""]
[null,"Saturday","January",null,null,null,null,null,null,"",""]
[null,"Saturday","January",null,null,null,null,null,null,"",""]
[null,"Saturday","January",null,null,null,null,null,null,"",""]
[null,"Saturday","January",null,null,null,null,null,null,"",{"$f":"IFERROR(IF(H1043<>\"\",I1210*J1210,\"\"),\"\")","v":""}]
[null,"Saturday","January",null,null,null,null,null,null,"",""]
[null,"Saturday","January",null,null,null,null,null,null,"",""]
[null,"Saturday","January",null,null,null,null,null,null,"",""]
[null,"Saturday","January",null,null,null,null,null,null,"",""]
[null,null,"January",null,null,null,null,null,null,"",""]
[null,null,"January",null,null,null,null,null,null,"",""]
[null,null,"January",null,null,null,null,null,null,"",""]
[null,null,"January",null,null,null,null,null,null,"",""]
[null,null,"January",null,null,null,null,null,null,"",""]
[null,null,"January",null,null,null,null,null,null,"",""]
[null,null,"January",null,null,null,null,null,null,"",""]
[null,null,"January",null,null,null,null,null,null,"",""]
[null,null,"January",null,null,null,null,null,null,"",""]
[null,null,"January",null,null,null,null,null,null,"",""]
[null,null,{"$f":"TEXT(F1225,\"mmmm\")","v":"January"},null,null,null,null,null,null,"",""]
[null,null,"January",null,null,null,null,null,null,"",""]
[null,null,"January",null,null,null,null,null,null,"",""]
[null,null,"January",null,null,null,null,null,null,"",""]
[null,null,"January",null,null,null,null,null,null,"",""]
[null,null,"January",null,null,null,null,null,null,"",""]
[null,null,"January",null,null,null,null,null,null,"",""]
[null,null,"January",null,null,null,null,null,null,"",""]
[null,null,"January",null,null,null,null,null,null,"",""]
[null,null,"January",null,null,null,null,null,null,"",""]
[null,null,"January",null,null,null,null,null,null,"",""]
[null,null,"January",null,null,null,null,null,null,"",""]
[null,null,"January",null,null,null,null,null,null,"",""]
[null,null,"January",null,null,null,null,null,null,"",""]
[null,null,"January",null,null,null,null,null,null,"",""]
[null,null,"January",null,null,null,null,null,null,"",""]
[null,null,"January",null,null,null,null,null,null,"",""]
[null,null,"January",null,null,null,null,null,null,"",""]
[null,null,"January",null,null,null,null,null,null,"",""]
[null,null,"January",null,null,null,null,null,null,"",""]
[null,null,"January",null,null,null,null,null,null,{"$f":"IFERROR(IF(H1245<>\"\",7.05,\"\"),\"\")","v":""},""]
[null,null,"January",null,null,null,null,null,null,"",""]
[null,null,"January",null,null,null,null,null,null,"",""]
[null,null,"January",null,null,null,null,null,null,"",""]
[null,null,"January",null,null,null,null,null,null,"",""]
[null,null,"January",null,null,null,null,null,null,"",""]
[null,null,"January",null,null,null,null,null,null,"",""]
[null,null,"January",null,null,null,null,null,null,"",""]
[null,null,"January",null,null,null,null,null,null,"",""]
[null,null,"January",null,null,null,null,null,null,"",""]
[null,null,"January",null,null,null,null,null,null,"",""]
[null,null,"January",null,null,null,null,null,null,"",""]
[null,null,"January",null,null,null,null,null,null,"",""]
[null,null,"January",null,null,null,null,null,null,"",""]
[null,null,"January",null,null,null,null,null,null,"",""]
[null,null,"January",null,null,null,null,null,null,"",""]
[null,null,"January",null,null,null,null,null,null,"",""]
[null,null,"January",null,null,null,null,null,null,"",""]
[null,null,"January",null,null,null,null,null,null,"",""]
[null,null,"January",null,null,null,null,null,null,"",""]
[null,null,"January",null,null,null,null,null,null,"",""]
[null,null,"January",null,null,null,null,null,null,"",""]
[null,null,"January",null,null,null,null,null,null,"",""]
[null,null,"January",null,null,null,null,null,null,"",""]
[null,null,"January",null,null,null,null,null,null,"",""]
[null,null,"January",null,null,null,null,null,null,"",""]
[null,null,"January",null,null,null,null,null,null,"",""]
[null,null,"January",null,null,null,null,null,null,"",""]
[null,null,"January",null,null,null,null,null,null,"",""]
[null,null,"January",null,null,null,null,null,null,"",{"$f":"IFERROR(IF(H1107<>\"\",I1274*J1274,\"\"),\"\")","v":""}]
[null,null,"January",null,null,null,null,null,null,"",""]
[null,null,"January",null,null,null,null,null,null,"",""]
[null,null,"January",null,null,null,null,null,null,"",""]
[null,null,"January",null,null,null,null,null,null,"",""]
[null,null,"January",null,null,null,null,null,null,"",""]
[null,null,"January",null,null,null,null,null,null,"",""]
[null,null,"January",null,null,null,null,null,null,"",""]
[null,null,"January",null,null,null,null,null,null,"",""]
[null,null,"January",null,null,null,null,null,null,"",""]
[null,null,"January",null,null,null,null,null,null,"",""]
[null,null,"January",null,null,null,null,null,null,"",""]
[null,null,"January",null,null,null,null,null,null,"",""]
[null,null,"January",null,null,null,null,null,null,"",""]
[null,null,"January",null,null,null,null,null,null,"",""]
[null,null,{"$f":"TEXT(F1289,\"mmmm\")","v":"January"},null,null,null,null,null,null,"",""]
[null,null,"January",null,null,null,null,null,null,"",""]
[null,null,"January",null,null,null,null,null,null,"",""]
[null,null,"January",null,null,null,null,null,null,"",""]
[null,null,"January",null,null,null,null,null,null,"",""]
[null,null,"January",null,null,null,null,null,null,"",""]
[null,null,"January",null,null,null,null,null,null,"",""]
[null,null,"January",null,null,null,null,null,null,"",""]
[null,null,"January",null,null,null,null,null,null,"",""]
[null,null,"January",null,null,null,null,null,null,"",""]
[null,null,"January",null,null,null,null,null,null,"",""]
[null,null,"January",null,null,null,null,null,null,"",""]
[null,null,"January",null,null,null,null,null,null,"",""]
[null,null,"January",null,null,null,null,null,null,"",""]
[null,null,"January",null,null,null,null,null,null,"",""]
[null,null,"January",null,null,null,null,null,null,"",""]
[null,null,"January",null,null,null,null,null,null,"",""]
[null,null,"January",null,null,null,null,null,null,"",""]
[null,null,"January",null,null,null,null,null,null,"",""]
[null,null,"January",null,null,null,null,null,null,"",""]
[null,null,"January",null,null,null,null,null,null,{"$f":"IFERROR(IF(H1309<>\"\",7.05,\"\"),\"\")","v":""},""]
[null,null,"January",null,null,null,null,null,null,"",""]
[null,null,"January",null,null,null,null,null,null,"",""]
[null,null,"January",null,null,null,null,null,null,"",""]
[null,null,"January",null,null,null,null,null,null,"",""]
[null,null,"January",null,null,null,null,null,null,"",""]
[null,null,"January",null,null,null,null,null,null,"",""]
[null,null,"January",null,null,null,null,null,null,"",""]
[null,null,"January",null,null,null,null,null,null,"",""]
[null,null,"January",null,null,null,null,null,null,"",""]
[null,null,"January",null,null,null,null,null,null,"",""]
[null,null,"January",null,null,null,null,null,null,"",""]
[null,null,"January",null,null,null,null,null,null,"",""]
[null,null,"January",null,null,null,null,null,null,"",""]
[null,null,"January",null,null,null,null,null,null,"",""]
[null,null,"January",null,null,null,null,null,null,"",""]
[null,null,"January",null,null,null,null,null,null,"",""]
[null,null,"January",null,null,null,null,null,null,"",""]
[null,null,"January",null,null,null,null,null,null,"",""]
[null,null,"January",null,null,null,null,null,null,"",""]
[null,null,"January",null,null,null,null,null,null,"",""]
[null,null,"January",null,null,null,null,null,null,"",""]
[null,null,"January",null,null,null,null,null,null,"",""]
[null,null,"January",null,null,null,null,null,null,"",""]
[null,null,"January",null,null,null,null,null,null,"",""]
[null,null,"January",null,null,null,null,null,null,"",""]
[null,null,"January",null,null,null,null,null,null,"",""]
[null,null,"January",null,null,null,null,null,null,"",""]
[null,null,"January",null,null,null,null,null,null,"",""]
[null,null,"January",null,null,null,null,null,null,"",{"$f":"IFERROR(IF(H1171<>\"\",I1338*J1338,\"\"),\"\")","v":""}]
[null,null,"January",null,null,null,null,null,null,"",""]
[null,null,"January",null,null,null,null,null,null,"",""]
[null,null,"January",null,null,null,null,null,null,"",""]
[null,null,"January",null,null,null,null,null,null,"",""]
[null,null,"January",null,null,null,null,null,null,"",""]
[null,null,"January",null,null,null,null,null,null,"",""]
[null,null,"January",null,null,null,null,null,null,"",""]
[null,null,"January",null,null,null,null,null,null,"",""]
[null,null,"January",null,null,null,null,null,null,"",""]
[null,null,"January",null,null,null,null,null,null,"",""]
[null,null,"January",null,null,null,null,null,null,"",""]
[null,null,"January",null,null,null,null,null,null,"",""]
[null,null,"January",null,null,null,null,null,null,"",""]
[null,null,"January",null,null,null,null,null,null,"",""]
[null,null,{"$f":"TEXT(F1353,\"mmmm\")","v":"January"},null,null,null,null,null,null,"",""]
[null,null,"January",null,null,null,null,null,null,"",""]
[null,null,"January",null,null,null,null,null,null,"",""]
[null,null,"January",null,null,null,null,null,null,"",""]
[null,null,"January",null,null,null,null,null,null,"",""]
[null,null,"January",null,null,null,null,null,null,"",""]
[null,null,"January",null,null,null,null,null,null,"",""]
[null,null,"January",null,null,null,null,null,null,"",""]
[null,null,"January",null,null,null,null,null,null,"",""]
[null,null,"January",null,null,null,null,null,null,"",""]
[null,null,"January",null,null,null,null,null,null,"",""]
[null,null,"January",null,null,null,null,null,null,"",""]
[null,null,"January",null,null,null,null,null,null,"",""]
[null,null,"January",null,null,null,null,null,null,"",""]
[null,null,"January",null,null,null,null,null,null,"",""]
[null,null,"January",null,null,null,null,null,null,"",""]
[null,null,"January",null,null,null,null,null,null,"",""]
[null,null,"January",null,null,null,null,null,null,"",""]
[null,null,"January",null,null,null,null,null,null,"",""]
[null,null,"January",null,null,null,null,null,null,"",""]
[null,null,"January",null,null,null,null,null,null,{"$f":"IFERROR(IF(H1373<>\"\",7.05,\"\"),\"\")","v":""},""]
[null,null,"January",null,null,null,null,null,null,"",""]
[null,null,"January",null,null,null,null,null,null,"",""]
[null,null,"January",null,null,null,null,null,null,"",""]
[null,null,"January",null,null,null,null,null,null,"",""]
[null,null,"January",null,null,null,null,null,null,"",""]
[null,null,"January",null,null,null,null,null,null,"",""]
[null,null,"January",null,null,null,null,null,null,"",""]
[null,null,"January",null,null,null,null,null,null,"",""]
[null,null,"January",null,null,null,null,null,null,"",""]
[null,null,"January",null,null,null,null,null,null,"",""]
[null,null,"January",null,null,null,null,null,null,"",""]
[null,null,"January",null,null,null,null,null,null,"",""]
[null,null,"January",null,null,null,null,null,null,"",""]
[null,null,"January",null,null,null,null,null,null,"",""]
[null,null,"January",null,null,null,null,null,null,"",""]
[null,null,"January",null,null,null,null,null,null,"",""]
[null,null,"January",null,null,null,null,null,null,"",""]
[null,null,"January",null,null,null,null,null,null,"",""]
[null,null,"January",null,null,null,null,null,null,"",""]
[null,null,"January",null,null,null,null,null,null,"",""]
[null,null,"January",null,null,null,null,null,null,"",""]
[null,null,"January",null,null,null,null,null,null,"",""]
[null,null,"January",null,null,null,null,null,null,"",""]
[null,null,"January",null,null,null,null,null,null,"",""]
[null,null,"January",null,null,null,null,null,null,"",""]
[null,null,"January",null,null,null,null,null,null,"",""]
[null,null,"January",null,null,null,null,null,null,"",""]
[null,null,"January",null,null,null,null,null,null,"",""]
[null,null,"January",null,null,null,null,null,null,"",{"$f":"IFERROR(IF(H1235<>\"\",I1402*J1402,\"\"),\"\")","v":""}]
[null,null,"January",null,null,null,null,null,null,"",""]
[null,null,"January",null,null,null,null,null,null,"",""]
[null,null,"January",null,null,null,null,null,null,"",""]
[null,null,"January",null,null,null,null,null,null,"",""]
[null,null,"January",null,null,null,null,null,null,"",""]
[null,null,"January",null,null,null,null,null,null,"",""]
[null,null,"January",null,null,null,null,null,null,"",""]
[null,null,"January",null,null,null,null,null,null,"",""]
[null,null,"January",null,null,null,null,null,null,"",""]
[null,null,"January",null,null,null,null,null,null,"",""]
[null,null,"January",null,null,null,null,null,null,"",""]
[null,null,"January",null,null,null,null,null,null,"",""]
[null,null,"January",null,null,null,null,null,null,"",""]
[null,null,"January",null,null,null,null,null,null,"",""]
[null,null,{"$f":"TEXT(F1417,\"mmmm\")","v":"January"},null,null,null,null,null,null,"",""]
[null,null,"January",null,null,null,null,null,null,"",""]
[null,null,"January",null,null,null,null,null,null,"",""]
[null,null,"January",null,null,null,null,null,null,"",""]
[null,null,"January",null,null,null,null,null,null,"",""]
[null,null,"January",null,null,null,null,null,null,"",""]
[null,null,"January",null,null,null,null,null,null,"",""]
[null,null,"January",null,null,null,null,null,null,"",""]
[null,null,"January",null,null,null,null,null,null,"",""]
[null,null,"January",null,null,null,null,null,null,"",""]
[null,null,"January",null,null,null,null,null,null,"",""]
[null,null,"January",null,null,null,null,null,null,"",""]
[null,null,"January",null,null,null,null,null,null,"",""]
[null,null,"January",null,null,null,null,null,null,"",""]
[null,null,"January",null,null,null,null,null,null,"",""]
[null,null,"January",null,null,null,null,null,null,"",""]
[null,null,"January",null,null,null,null,null,null,"",""]
[null,null,"January",null,null,null,null,null,null,"",""]
[null,null,"January",null,null,null,null,null,null,"",""]
[null,null,"January",null,null,null,null,null,null,"",""]
[null,null,"January",null,null,null,null,null,null,{"$f":"IFERROR(IF(H1437<>\"\",7.05,\"\"),\"\")","v":""},""]
[null,null,"January",null,null,null,null,null,null,"",""]
[null,null,"January",null,null,null,null,null,null,"",""]
[null,null,"January",null,null,null,null,null,null,"",""]
[null,null,"January",null,null,null,null,null,null,"",""]
[null,null,"January",null,null,null,null,null,null,"",""]
[null,null,"January",null,null,null,null,null,null,"",""]
[null,null,"January",null,null,null,null,null,null,"",""]
[null,null,"January",null,null,null,null,null,null,"",""]
[null,null,"January",null,null,null,null,null,null,"",""]
[null,null,"January",null,null,null,null,null,null,"",""]
[null,null,"January",null,null,null,null,null,null,"",""]
[null,null,"January",null,null,null,null,null,null,"",""]
[null,null,"January",null,null,null,null,null,null,"",""]
[null,null,"January",null,null,null,null,null,null,"",""]
[null,null,"January",null,null,null,null,null,null,"",""]
[null,null,"January",null,null,null,null,null,null,"",""]
[null,null,"January",null,null,null,null,null,null,"",""]
[null,null,"January",null,null,null,null,null,null,"",""]
[null,null,"January",null,null,null,null,null,null,"",""]
[null,null,"January",null,null,null,null,null,null,"",""]
[null,null,"January",null,null,null,null,null,null,"",""]
[null,null,"January",null,null,null,null,null,null,"",""]
[null,null,"January",null,null,null,null,null,null,"",""]
[null,null,"January",null,null,null,null,null,null,"",""]
[null,null,"January",null,null,null,null,null,null,"",""]
[null,null,"January",null,null,null,null,null,null,"",""]
[null,null,"January",null,null,null,null,null,null,"",""]
[null,null,"January",null,null,null,null,null,null,"",""]
[null,null,"January",null,null,null,null,null,null,"",{"$f":"IFERROR(IF(H1299<>\"\",I1466*J1466,\"\"),\"\")","v":""}]
[null,null,"January",null,null,null,null,null,null,"",""]
[null,null,"January",null,null,null,null,null,null,"",""]
[null,null,"January",null,null,null,null,null,null,"",""]
[null,null,"January",null,null,null,null,null,null,"",""]
[null,null,"January",null,null,null,null,null,null,"",""]
[null,null,"January",null,null,null,null,null,null,"",""]
[null,null,"January",null,null,null,null,null,null,"",""]
[null,null,"January",null,null,null,null,null,null,"",""]
[null,null,"January",null,null,null,null,null,null,"",""]
[null,null,"January",null,null,null,null,null,null,"",""]
[null,null,"January",null,null,null,null,null,null,"",""]
[null,null,"January",null,null,null,null,null,null,"",""]
[null,null,"January",null,null,null,null,null,null,"",""]
[null,null,"January",null,null,null,null,null,null,"",""]
[null,null,{"$f":"TEXT(F1481,\"mmmm\")","v":"January"},null,null,null,null,null,null,"",""]
[null,null,"January",null,null,null,null,null,null,"",""]
[null,null,"January",null,null,null,null,null,null,"",""]
[null,null,"January",null,null,null,null,null,null,"",""]
[null,null,"January",null,null,null,null,null,null,"",""]
[null,null,"January",null,null,null,null,null,null,"",""]
[null,null,"January",null,null,null,null,null,null,"",""]
[null,null,"January",null,null,null,null,null,null,"",""]
[null,null,"January",null,null,null,null,null,null,"",""]
[null,null,"January",null,null,null,null,null,null,"",""]
[null,null,"January",null,null,null,null,null,null,"",""]
[null,null,"January",null,null,null,null,null,null,"",""]
[null,null,"January",null,null,null,null,null,null,"",""]
[null,null,"January",null,null,null,null,null,null,"",""]
[null,null,"January",null,null,null,null,null,null,"",""]
[null,null,"January",null,null,null,null,null,null,"",""]
[null,null,"January",null,null,null,null,null,null,"",""]
[null,null,"January",null,null,null,null,null,null,"",""]
[null,null,"January",null,null,null,null,null,null,"",""]
[null,null,"January",null,null,null,null,null,null,"",""]
[null,null,"January",null,null,null,null,null,null,{"$f":"IFERROR(IF(H1501<>\"\",7.05,\"\"),\"\")","v":""},""]
[null,null,"January",null,null,null,null,null,null,"",""]
[null,null,"January",null,null,null,null,null,null,"",""]
[null,null,"January",null,null,null,null,null,null,"",""]
[null,null,"January",null,null,null,null,null,null,"",""]
[null,null,"January",null,null,null,null,null,null,"",""]
[null,null,"January",null,null,null,null,null,null,"",""]
[null,null,"January",null,null,null,null,null,null,"",""]
[null,null,"January",null,null,null,null,null,null,"",""]
[null,null,"January",null,null,null,null,null,null,"",""]
[null,null,"January",null,null,null,null,null,null,"",""]
[null,null,"January",null,null,null,null,null,null,"",""]
[null,null,"January",null,null,null,null,null,null,"",""]
[null,null,"January",null,null,null,null,null,null,"",""]
[null,null,"January",null,null,null,null,null,null,"",""]
[null,null,"January",null,null,null,null,null,null,"",""]
[null,null,"January",null,null,null,null,null,null,"",""]
[null,null,"January",null,null,null,null,null,null,"",""]
[null,null,"January",null,null,null,null,null,null,"",""]
[null,null,"January",null,null,null,null,null,null,"",""]
[null,null,"January",null,null,null,null,null,null,"",""]
[null,null,"January",null,null,null,null,null,null,"",""]
[null,null,"January",null,null,null,null,null,null,"",""]
[null,null,"January",null,null,null,null,null,null,"",""]
[null,null,"January",null,null,null,null,null,null,"",""]
[null,null,"January",null,null,null,null,null,null,"",""]
[null,null,"January",null,null,null,null,null,null,"",""]
[null,null,"January",null,null,null,null,null,null,"",""]
[null,null,"January",null,null,null,null,null,null,"",""]
[null,null,"January",null,null,null,null,null,null,"",{"$f":"IFERROR(IF(H1363<>\"\",I1530*J1530,\"\"),\"\")","v":""}]
[null,null,"January",null,null,null,null,null,null,"",""]
[null,null,"January",null,null,null,null,null,null,"",""]
[null,null,"January",null,null,null,null,null,null,"",""]
[null,null,"January",null,null,null,null,null,null,"",""]
[null,null,"January",null,null,null,null,null,null,"",""]
[null,null,"January",null,null,null,null,null,null,"",""]
[null,null,"January",null,null,null,null,null,null,"",""]
[null,null,"January",null,null,null,null,null,null,"",""]
[null,null,"January",null,null,null,null,null,null,"",""]
[null,null,"January",null,null,null,null,null,null,"",""]
[null,null,"January",null,null,null,null,null,null,"",""]
[null,null,"January",null,null,null,null,null,null,"",""]
[null,null,"January",null,null,null,null,null,null,"",""]
[null,null,"January",null,null,null,null,null,null,"",""]
[null,null,{"$f":"TEXT(F1545,\"mmmm\")","v":"January"},null,null,null,null,null,null,"",""]
[null,null,"January",null,null,null,null,null,null,"",""]
[null,null,"January",null,null,null,null,null,null,"",""]
[null,null,"January",null,null,null,null,null,null,"",""]
[null,null,"January",null,null,null,null,null,null,"",""]
[null,null,"January",null,null,null,null,null,null,"",""]
[null,null,"January",null,null,null,null,null,null,"",""]
[null,null,"January",null,null,null,null,null,null,"",""]
[null,null,"January",null,null,null,null,null,null,"",""]
[null,null,"January",null,null,null,null,null,null,"",""]
[null,null,"January",null,null,null,null,null,null,"",""]
[null,null,"January",null,null,null,null,null,null,"",""]
[null,null,"January",null,null,null,null,null,null,"",""]
[null,null,"January",null,null,null,null,null,null,"",""]
[null,null,"January",null,null,null,null,null,null,"",""]
[null,null,"January",null,null,null,null,null,null,"",""]
[null,null,"January",null,null,null,null,null,null,"",""]
[null,null,"January",null,null,null,null,null,null,"",""]
[null,null,"January",null,null,null,null,null,null,"",""]
[null,null,"January",null,null,null,null,null,null,"",""]
[null,null,"January",null,null,null,null,null,null,{"$f":"IFERROR(IF(H1565<>\"\",7.05,\"\"),\"\")","v":""},""]
[null,null,"January",null,null,null,null,null,null,"",""]
[null,null,"January",null,null,null,null,null,null,"",""]
[null,null,"January",null,null,null,null,null,null,"",""]
[null,null,"January",null,null,null,null,null,null,"",""]
[null,null,"January",null,null,null,null,null,null,"",""]
[null,null,"January",null,null,null,null,null,null,"",""]
[null,null,"January",null,null,null,null,null,null,"",""]
[null,null,"January",null,null,null,null,null,null,"",""]
[null,null,"January",null,null,null,null,null,null,"",""]
[null,null,"January",null,null,null,null,null,null,"",""]
[null,null,"January",null,null,null,null,null,null,"",""]
[null,null,"January",null,null,null,null,null,null,"",""]
[null,null,"January",null,null,null,null,null,null,"",""]
[null,null,"January",null,null,null,null,null,null,"",""]
[null,null,"January",null,null,null,null,null,null,"",""]
[null,null,"January",null,null,null,null,null,null,"",""]
[null,null,"January",null,null,null,null,null,null,"",""]
[null,null,"January",null,null,null,null,null,null,"",""]
[null,null,"January",null,null,null,null,null,null,"",""]
[null,null,"January",null,null,null,null,null,null,"",""]
[null,null,"January",null,null,null,null,null,null,"",""]
[null,null,"January",null,null,null,null,null,null,"",""]
[null,null,"January",null,null,null,null,null,null,"",""]
[null,null,"January",null,null,null,null,null,null,"",""]
[null,null,"January",null,null,null,null,null,null,"",""]
[null,null,"January",null,null,null,null,null,null,"",""]
[null,null,"January",null,null,null,null,null,null,"",""]
[null,null,"January",null,null,null,null,null,null,"",""]
[null,null,"January",null,null,null,null,null,null,"",{"$f":"IFERROR(IF(H1427<>\"\",I1594*J1594,\"\"),\"\")","v":""}]
[null,null,"January",null,null,null,null,null,null,"",""]
[null,null,"January",null,null,null,null,null,null,"",""]
[null,null,"January",null,null,null,null,null,null,"",""]
[null,null,"January",null,null,null,null,null,null,"",""]
[null,null,"January",null,null,null,null,null,null,"",""]
[null,null,"January",null,null,null,null,null,null,"",""]
[null,null,"January",null,null,null,null,null,null,"",""]
[null,null,"January",null,null,null,null,null,null,"",""]
[null,null,"January",null,null,null,null,null,null,"",""]
[null,null,"January",null,null,null,null,null,null,"",""]
[null,null,"January",null,null,null,null,null,null,"",""]
[null,null,"January",null,null,null,null,null,null,"",""]
[null,null,"January",null,null,null,null,null,null,"",""]
[null,null,"January",null,null,null,null,null,null,"",""]
[null,null,{"$f":"TEXT(F1609,\"mmmm\")","v":"January"},null,null,null,null,null,null,"",""]
[null,null,"January",null,null,null,null,null,null,"",""]
[null,null,"January",null,null,null,null,null,null,"",""]
[null,null,"January",null,null,null,null,null,null,"",""]
[null,null,"January",null,null,null,null,null,null,"",""]
[null,null,"January",null,null,null,null,null,null,"",""]
[null,null,"January",null,null,null,null,null,null,"",""]
[null,null,"January",null,null,null,null,null,null,"",""]
[null,null,"January",null,null,null,null,null,null,"",""]
[null,null,"January",null,null,null,null,null,null,"",""]
[null,null,"January",null,null,null,null,null,null,"",""]
[null,null,"January",null,null,null,null,null,null,"",""]
[null,null,"January",null,null,null,null,null,null,"",""]
[null,null,"January",null,null,null,null,null,null,"",""]
[null,null,"January",null,null,null,null,null,null,"",""]
[null,null,"January",null,null,null,null,null,null,"",""]
[null,null,"January",null,null,null,null,null,null,"",""]
[null,null,"January",null,null,null,null,null,null,"",""]
[null,null,"January",null,null,null,null,null,null,"",""]
[null,null,"January",null,null,null,null,null,null,"",""]
[null,null,"January",null,null,null,null,null,null,{"$f":"IFERROR(IF(H1629<>\"\",7.05,\"\"),\"\")","v":""},""]
[null,null,"January",null,null,null,null,null,null,"",""]
[null,null,"January",null,null,null,null,null,null,"",""]
[null,null,"January",null,null,null,null,null,null,"",""]
[null,null,"January",null,null,null,null,null,null,"",""]
[null,null,"January",null,null,null,null,null,null,"",""]
[null,null,"January",null,null,null,null,null,null,"",""]
[null,null,"January",null,null,null,null,null,null,"",""]
[null,null,"January",null,null,null,null,null,null,"",""]
[null,null,"January",null,null,null,null,null,null,"",""]
[null,null,"January",null,null,null,null,null,null,"",""]
[null,null,"January",null,null,null,null,null,null,"",""]
[null,null,"January",null,null,null,null,null,null,"",""]
[null,null,"January",null,null,null,null,null,null,"",""]
[null,null,"January",null,null,null,null,null,null,"",""]
[null,null,"January",null,null,null,null,null,null,"",""]
[null,null,"January",null,null,null,null,null,null,"",""]
[null,null,"January",null,null,null,null,null,null,"",""]
[null,null,"January",null,null,null,null,null,null,"",""]
[null,null,"January",null,null,null,null,null,null,"",""]
[null,null,"January",null,null,null,null,null,null,"",""]
[null,null,"January",null,null,null,null,null,null,"",""]
[null,null,"January",null,null,null,null,null,null,"",""]
[null,null,"January",null,null,null,null,null,null,"",""]
[null,null,"January",null,null,null,null,null,null,"",""]
[null,null,"January",null,null,null,null,null,null,"",""]
[null,null,"January",null,null,null,null,null,null,"",""]
[null,null,"January",null,null,null,null,null,null,"",""]
[null,null,"January",null,null,null,null,null,null,"",""]
[null,null,"January",null,null,null,null,null,null,"",{"$f":"IFERROR(IF(H1491<>\"\",I1658*J1658,\"\"),\"\")","v":""}]
[null,null,"January",null,null,null,null,null,null,"",""]
[null,null,"January",null,null,null,null,null,null,"",""]
[null,null,"January",null,null,null,null,null,null,"",""]
[null,null,"January",null,null,null,null,null,null,"",""]
[null,null,"January",null,null,null,null,null,null,"",""]
[null,null,"January",null,null,null,null,null,null,"",""]
[null,null,"January",null,null,null,null,null,null,"",""]
[null,null,"January",null,null,null,null,null,null,"",""]
[null,null,"January",null,null,null,null,null,null,"",""]
[null,null,"January",null,null,null,null,null,null,"",""]
[null,null,"January",null,null,null,null,null,null,"",""]
[null,null,"January",null,null,null,null,null,null,"",""]
[null,null,"January",null,null,null,null,null,null,"",""]
[null,null,"January",null,null,null,null,null,null,"",""]
[null,null,{"$f":"TEXT(F1673,\"mmmm\")","v":"January"},null,null,null,null,null,null,"",""]
[null,null,"January",null,null,null,null,null,null,"",""]
[null,null,"January",null,null,null,null,null,null,"",""]
[null,null,"January",null,null,null,null,null,null,"",""]
[null,null,"January",null,null,null,null,null,null,"",""]
[null,null,"January",null,null,null,null,null,null,"",""]
[null,null,"January",null,null,null,null,null,null,"",""]
[null,null,"January",null,null,null,null,null,null,"",""]
[null,null,"January",null,null,null,null,null,null,"",""]
[null,null,"January",null,null,null,null,null,null,"",""]
[null,null,"January",null,null,null,null,null,null,"",""]
[null,null,"January",null,null,null,null,null,null,"",""]
[null,null,"January",null,null,null,null,null,null,"",""]
[null,null,"January",null,null,null,null,null,null,"",""]
[null,null,"January",null,null,null,null,null,null,"",""]
[null,null,"January",null,null,null,null,null,null,"",""]
[null,null,"January",null,null,null,null,null,null,"",""]
[null,null,"January",null,null,null,null,null,null,"",""]
[null,null,"January",null,null,null,null,null,null,"",""]
[null,null,"January",null,null,null,null,null,null,"",""]
[null,null,"January",null,null,null,null,null,null,{"$f":"IFERROR(IF(H1693<>\"\",7.05,\"\"),\"\")","v":""},""]
[null,null,"January",null,null,null,null,null,null,"",""]
[null,null,"January",null,null,null,null,null,null,"",""]
[null,null,"January",null,null,null,null,null,null,"",""]
[null,null,"January",null,null,null,null,null,null,"",""]
[null,null,"January",null,null,null,null,null,null,"",""]
[null,null,"January",null,null,null,null,null,null,"",""]
[null,null,"January",null,null,null,null,null,null,"",""]
[null,null,"January",null,null,null,null,null,null,"",""]
[null,null,"January",null,null,null,null,null,null,"",""]
[null,null,"January",null,null,null,null,null,null,"",""]
[null,null,"January",null,null,null,null,null,null,"",""]
[null,null,"January",null,null,null,null,null,null,"",""]
[null,null,"January",null,null,null,null,null,null,"",""]
[null,null,"January",null,null,null,null,null,null,"",""]
[null,null,"January",null,null,null,null,null,null,"",""]
[null,null,"January",null,null,null,null,null,null,"",""]
[null,null,"January",null,null,null,null,null,null,"",""]
[null,null,"January",null,null,null,null,null,null,"",""]
[null,null,"January",null,null,null,null,null,null,"",""]
[null,null,"January",null,null,null,null,null,null,"",""]
[null,null,"January",null,null,null,null,null,null,"",""]
[null,null,"January",null,null,null,null,null,null,"",""]
[null,null,"January",null,null,null,null,null,null,"",""]
[null,null,"January",null,null,null,null,null,null,"",""]
[null,null,"January",null,null,null,null,null,null,"",""]
[null,null,"January",null,null,null,null,null,null,"",""]
[null,null,"January",null,null,null,null,null,null,"",""]
[null,null,"January",null,null,null,null,null,null,"",""]
[null,null,"January",null,null,null,null,null,null,"",{"$f":"IFERROR(IF(H1555<>\"\",I1722*J1722,\"\"),\"\")","v":""}]
[null,null,"January",null,null,null,null,null,null,"",""]
[null,null,"January",null,null,null,null,null,null,"",""]
[null,null,"January",null,null,null,null,null,null,"",""]
[null,null,"January",null,null,null,null,null,null,"",""]
[null,null,"January",null,null,null,null,null,null,"",""]
[null,null,"January",null,null,null,null,null,null,"",""]
[null,null,"January",null,null,null,null,null,null,"",""]
[null,null,"January",null,null,null,null,null,null,"",""]
[null,null,"January",null,null,null,null,null,null,"",""]
[null,null,"January",null,null,null,null,null,null,"",""]
[null,null,"January",null,null,null,null,null,null,"",""]
[null,null,"January",null,null,null,null,null,null,"",""]
[null,null,"January",null,null,null,null,null,null,"",""]
[null,null,"January",null,null,null,null,null,null,"",""]
[null,null,{"$f":"TEXT(F1737,\"mmmm\")","v":"January"},null,null,null,null,null,null,"",""]
[null,null,"January",null,null,null,null,null,null,"",""]
[null,null,"January",null,null,null,null,null,null,"",""]
[null,null,"January",null,null,null,null,null,null,"",""]
[null,null,"January",null,null,null,null,null,null,"",""]
[null,null,"January",null,null,null,null,null,null,"",""]
[null,null,"January",null,null,null,null,null,null,"",""]
[null,null,"January",null,null,null,null,null,null,"",""]
[null,null,"January",null,null,null,null,null,null,"",""]
[null,null,"January",null,null,null,null,null,null,"",""]
[null,null,"January",null,null,null,null,null,null,"",""]
[null,null,"January",null,null,null,null,null,null,"",""]
[null,null,"January",null,null,null,null,null,null,"",""]
[null,null,"January",null,null,null,null,null,null,"",""]
[null,null,"January",null,null,null,null,null,null,"",""]
[null,null,"January",null,null,null,null,null,null,"",""]
[null,null,"January",null,null,null,null,null,null,"",""]
[null,null,"January",null,null,null,null,null,null,"",""]
[null,null,"January",null,null,null,null,null,null,"",""]
[null,null,"January",null,null,null,null,null,null,"",""]
[null,null,"January",null,null,null,null,null,null,{"$f":"IFERROR(IF(H1757<>\"\",7.05,\"\"),\"\")","v":""},""]
[null,null,"January",null,null,null,null,null,null,"",""]
[null,null,"January",null,null,null,null,null,null,"",""]
[null,null,"January",null,null,null,null,null,null,"",""]
[null,null,"January",null,null,null,null,null,null,"",""]
[null,null,"January",null,null,null,null,null,null,"",""]
[null,null,"January",null,null,null,null,null,null,"",""]
[null,null,"January",null,null,null,null,null,null,"",""]
[null,null,"January",null,null,null,null,null,null,"",""]
[null,null,"January",null,null,null,null,null,null,"",""]
[null,null,"January",null,null,null,null,null,null,"",""]
[null,null,"January",null,null,null,null,null,null,"",""]
[null,null,"January",null,null,null,null,null,null,"",""]
[null,null,"January",null,null,null,null,null,null,"",""]
[null,null,"January",null,null,null,null,null,null,"",""]
[null,null,"January",null,null,null,null,null,null,"",""]
[null,null,"January",null,null,null,null,null,null,"",""]
[null,null,"January",null,null,null,null,null,null,"",""]
[null,null,"January",null,null,null,null,null,null,"",""]
[null,null,"January",null,null,null,null,null,null,"",""]
[null,null,"January",null,null,null,null,null,null,"",""]
[null,null,"January",null,null,null,null,null,null,"",""]
[null,null,"January",null,null,null,null,null,null,"",""]
[null,null,"January",null,null,null,null,null,null,"",""]
[null,null,"January",null,null,null,null,null,null,"",""]
[null,null,"January",null,null,null,null,null,null,"",""]
[null,null,"January",null,null,null,null,null,null,"",""]
[null,null,"January",null,null,null,null,null,null,"",""]
[null,null,"January",null,null,null,null,null,null,"",""]
[null,null,"January",null,null,null,null,null,null,"",{"$f":"IFERROR(IF(H1619<>\"\",I1786*J1786,\"\"),\"\")","v":""}]
[null,null,"January",null,null,null,null,null,null,"",""]
[null,null,"January",null,null,null,null,null,null,"",""]
[null,null,"January",null,null,null,null,null,null,"",""]
[null,null,"January",null,null,null,null,null,null,"",""]
[null,null,"January",null,null,null,null,null,null,"",""]
[null,null,"January",null,null,null,null,null,null,"",""]
[null,null,"January",null,null,null,null,null,null,"",""]
[null,null,"January",null,null,null,null,null,null,"",""]
[null,null,"January",null,null,null,null,null,null,"",""]
[null,null,"January",null,null,null,null,null,null,"",""]
[null,null,"January",null,null,null,null,null,null,"",""]
[null,null,"January",null,null,null,null,null,null,"",""]
[null,null,"January",null,null,null,null,null,null,"",""]
[null,null,"January",null,null,null,null,null,null,"",""]
[null,null,{"$f":"TEXT(F1801,\"mmmm\")","v":"January"},null,null,null,null,null,null,"",""]
[null,null,"January",null,null,null,null,null,null,"",""]
[null,null,"January",null,null,null,null,null,null,"",""]
[null,null,"January",null,null,null,null,null,null,"",""]
[null,null,"January",null,null,null,null,null,null,"",""]
[null,null,"January",null,null,null,null,null,null,"",""]
[null,null,"January",null,null,null,null,null,null,"",""]
[null,null,"January",null,null,null,null,null,null,"",""]
[null,null,"January",null,null,null,null,null,null,"",""]
[null,null,"January",null,null,null,null,null,null,"",""]
[null,null,"January",null,null,null,null,null,null,"",""]
[null,null,"January",null,null,null,null,null,null,"",""]
[null,null,"January",null,null,null,null,null,null,"",""]
[null,null,"January",null,null,null,null,null,null,"",""]
[null,null,"January",null,null,null,null,null,null,"",""]
[null,null,"January",null,null,null,null,null,null,"",""]
[null,null,"January",null,null,null,null,null,null,"",""]
[null,null,"January",null,null,null,null,null,null,"",""]
[null,null,"January",null,null,null,null,null,null,"",""]
[null,null,"January",null,null,null,null,null,null,"",""]
[null,null,"January",null,null,null,null,null,null,{"$f":"IFERROR(IF(H1821<>\"\",7.05,\"\"),\"\")","v":""},""]
[null,null,"January",null,null,null,null,null,null,"",""]
[null,null,"January",null,null,null,null,null,null,"",""]
[null,null,"January",null,null,null,null,null,null,"",""]
[null,null,"January",null,null,null,null,null,null,"",""]
[null,null,"January",null,null,null,null,null,null,"",""]
[null,null,"January",null,null,null,null,null,null,"",""]
[null,null,"January",null,null,null,null,null,null,"",""]
[null,null,"January",null,null,null,null,null,null,"",""]
[null,null,"January",null,null,null,null,null,null,"",""]
[null,null,"January",null,null,null,null,null,null,"",""]
[null,null,"January",null,null,null,null,null,null,"",""]
[null,null,"January",null,null,null,null,null,null,"",""]
[null,null,"January",null,null,null,null,null,null,"",""]
[null,null,"January",null,null,null,null,null,null,"",""]
[null,null,"January",null,null,null,null,null,null,"",""]
[null,null,"January",null,null,null,null,null,null,"",""]
[null,null,"January",null,null,null,null,null,null,"",""]
[null,null,"January",null,null,null,null,null,null,"",""]
[null,null,"January",null,null,null,null,null,null,"",""]
[null,null,"January",null,null,null,null,null,null,"",""]
[null,null,"January",null,null,null,null,null,null,"",""]
[null,null,"January",null,null,null,null,null,null,"",""]
[null,null,"January",null,null,null,null,null,null,"",""]
[null,null,"January",null,null,null,null,null,null,"",""]
[null,null,"January",null,null,null,null,null,null,"",""]
[null,null,"January",null,null,null,null,null,null,"",""]
[null,null,"January",null,null,null,null,null,null,"",""]
[null,null,"January",null,null,null,null,null,null,"",""]
[null,null,"January",null,null,null,null,null,null,"",{"$f":"IFERROR(IF(H1683<>\"\",I1850*J1850,\"\"),\"\")","v":""}]
[null,null,"January",null,null,null,null,null,null,"",""]
[null,null,"January",null,null,null,null,null,null,"",""]
[null,null,"January",null,null,null,null,null,null,"",""]
[null,null,"January",null,null,null,null,null,null,"",""]
[null,null,"January",null,null,null,null,null,null,"",""]
[null,null,"January",null,null,null,null,null,null,"",""]
[null,null,"January",null,null,null,null,null,null,"",""]
[null,null,"January",null,null,null,null,null,null,"",""]
[null,null,"January",null,null,null,null,null,null,"",""]
[null,null,"January",null,null,null,null,null,null,"",""]
[null,null,"January",null,null,null,null,null,null,"",""]
[null,null,"January",null,null,null,null,null,null,"",""]
[null,null,"January",null,null,null,null,null,null,"",""]
[null,null,"January",null,null,null,null,null,null,"",""]
[null,null,{"$f":"TEXT(F1865,\"mmmm\")","v":"January"},null,null,null,null,null,null,"",""]
[null,null,"January",null,null,null,null,null,null,"",""]
[null,null,"January",null,null,null,null,null,null,"",""]
[null,null,"January",null,null,null,null,null,null,"",""]
[null,null,"January",null,null,null,null,null,null,"",""]
[null,null,"January",null,null,null,null,null,null,"",""]
[null,null,"January",null,null,null,null,null,null,"",""]
[null,null,"January",null,null,null,null,null,null,"",""]
[null,null,"January",null,null,null,null,null,null,"",""]
[null,null,"January",null,null,null,null,null,null,"",""]
[null,null,"January",null,null,null,null,null,null,"",""]
[null,null,"January",null,null,null,null,null,null,"",""]
[null,null,"January",null,null,null,null,null,null,"",""]
[null,null,"January",null,null,null,null,null,null,"",""]
[null,null,"January",null,null,null,null,null,null,"",""]
[null,null,"January",null,null,null,null,null,null,"",""]
[null,null,"January",null,null,null,null,null,null,"",""]
[null,null,"January",null,null,null,null,null,null,"",""]
[null,null,"January",null,null,null,null,null,null,"",""]
[null,null,"January",null,null,null,null,null,null,"",""]
[null,null,"January",null,null,null,null,null,null,{"$f":"IFERROR(IF(H1885<>\"\",7.05,\"\"),\"\")","v":""},""]
[null,null,"January",null,null,null,null,null,null,"",""]
[null,null,"January",null,null,null,null,null,null,"",""]
[null,null,"January",null,null,null,null,null,null,"",""]
[null,null,"January",null,null,null,null,null,null,"",""]
[null,null,"January",null,null,null,null,null,null,"",""]
[null,null,"January",null,null,null,null,null,null,"",""]
[null,null,"January",null,null,null,null,null,null,"",""]
[null,null,"January",null,null,null,null,null,null,"",""]
[null,null,"January",null,null,null,null,null,null,"",""]
[null,null,"January",null,null,null,null,null,null,"",""]
[null,null,"January",null,null,null,null,null,null,"",""]
[null,null,"January",null,null,null,null,null,null,"",""]
[null,null,"January",null,null,null,null,null,null,"",""]
[null,null,"January",null,null,null,null,null,null,"",""]
[null,null,"January",null,null,null,null,null,null,"",""]
[null,null,"January",null,null,null,null,null,null,"",""]
[null,null,"January",null,null,null,null,null,null,"",""]
[null,null,"January",null,null,null,null,null,null,"",""]
[null,null,"January",null,null,null,null,null,null,"",""]
[null,null,"January",null,null,null,null,null,null,"",""]
[null,null,"January",null,null,null,null,null,null,"",""]
[null,null,"January",null,null,null,null,null,null,"",""]
[null,null,"January",null,null,null,null,null,null,"",""]
[null,null,"January",null,null,null,null,null,null,"",""]
[null,null,"January",null,null,null,null,null,null,"",""]
[null,null,"January",null,null,null,null,null,null,"",""]
[null,null,"January",null,null,null,null,null,null,"",""]
[null,null,"January",null,null,null,null,null,null,"",""]
[null,null,"January",null,null,null,null,null,null,"",{"$f":"IFERROR(IF(H1747<>\"\",I1914*J1914,\"\"),\"\")","v":""}]
[null,null,"January",null,null,null,null,null,null,"",""]
[null,null,"January",null,null,null,null,null,null,"",""]
[null,null,"January",null,null,null,null,null,null,"",""]
[null,null,"January",null,null,null,null,null,null,"",""]
[null,null,"January",null,null,null,null,null,null,"",""]
[null,null,"January",null,null,null,null,null,null,"",""]
[null,null,"January",null,null,null,null,null,null,"",""]
[null,null,"January",null,null,null,null,null,null,"",""]
[null,null,"January",null,null,null,null,null,null,"",""]
[null,null,"January",null,null,null,null,null,null,"",""]
[null,null,"January",null,null,null,null,null,null,"",""]
[null,null,"January",null,null,null,null,null,null,"",""]
[null,null,"January",null,null,null,null,null,null,"",""]
[null,null,"January",null,null,null,null,null,null,"",""]
[null,null,{"$f":"TEXT(F1929,\"mmmm\")","v":"January"},null,null,null,null,null,null,"",""]
[null,null,"January",null,null,null,null,null,null,"",""]
[null,null,"January",null,null,null,null,null,null,"",""]
[null,null,"January",null,null,null,null,null,null,"",""]
[null,null,"January",null,null,null,null,null,null,"",""]
[null,null,"January",null,null,null,null,null,null,"",""]
[null,null,"January",null,null,null,null,null,null,"",""]
[null,null,"January",null,null,null,null,null,null,"",""]
[null,null,"January",null,null,null,null,null,null,"",""]
[null,null,"January",null,null,null,null,null,null,"",""]
[null,null,"January",null,null,null,null,null,null,"",""]
[null,null,"January",null,null,null,null,null,null,"",""]
[null,null,"January",null,null,null,null,null,null,"",""]
[null,null,"January",null,null,null,null,null,null,"",""]
[null,null,"January",null,null,null,null,null,null,"",""]
[null,null,"January",null,null,null,null,null,null,"",""]
[null,null,"January",null,null,null,null,null,null,"",""]
[null,null,"January",null,null,null,null,null,null,"",""]
[null,null,"January",null,null,null,null,null,null,"",""]
[null,null,"January",null,null,null,null,null,null,"",""]
[null,null,"January",null,null,null,null,null,null,{"$f":"IFERROR(IF(H1949<>\"\",7.05,\"\"),\"\")","v":""},""]
[null,null,"January",null,null,null,null,null,null,"",""]
[null,null,"January",null,null,null,null,null,null,"",""]
[null,null,"January",null,null,null,null,null,null,"",""]
[null,null,"January",null,null,null,null,null,null,"",""]
[null,null,"January",null,null,null,null,null,null,"",""]
[null,null,"January",null,null,null,null,null,null,"",""]
[null,null,"January",null,null,null,null,null,null,"",""]
[null,null,"January",null,null,null,null,null,null,"",""]
[null,null,"January",null,null,null,null,null,null,"",""]
[null,null,null,null,null,null,null,null,null,"",""]
[null,null,null,null,null,null,null,null,null,"",""]
[null,null,null,null,null,null,null,null,null,"",""]
[null,null,null,null,null,null,null,null,null,"",""]
[null,null,null,null,null,null,null,null,null,"",""]
[null,null,null,null,null,null,null,null,null,"",""]
[null,null,null,null,null,null,null,null,null,"",""]
[null,null,null,null,null,null,null,null,null,"",""]
[null,null,null,null,null,null,null,null,null,"",""]
[null,null,null,null,null,null,null,null,null,"",""]
[null,null,null,null,null,null,null,null,null,"",""]
[null,null,null,null,null,null,null,null,null,"",""]
[null,null,null,null,null,null,null,null,null,"",""]
[null,null,null,null,null,null,null,null,null,"",""]
[null,null,null,null,null,null,null,null,null,"",""]
[null,null,null,null,null,null,null,null,null,"",""]
[null,null,null,null,null,null,null,null,null,"",""]
[null,null,null,null,null,null,null,null,null,"",""]
[null,null,null,null,null,null,null,null,null,"",""]
[null,null,null,null,null,null,null,null,null,"",{"$f":"IFERROR(IF(H1811<>\"\",I1978*J1978,\"\"),\"\")","v":""}]
[null,null,null,null,null,null,null,null,null,"",""]
[null,null,null,null,null,null,null,null,null,"",""]
[null,null,null,null,null,null,null,null,null,"",""]
[null,null,null,null,null,null,null,null,null,"",""]
[null,null,null,null,null,null,null,null,null,"",""]
[null,null,null,null,null,null,null,null,null,"",""]
[null,null,null,null,null,null,null,null,null,"",""]
[null,null,null,null,null,null,null,null,null,"",""]
[null,null,null,null,null,null,null,null,null,"",""]
[null,null,null,null,null,null,null,null,null,"",""]
[null,null,null,null,null,null,null,null,null,"",""]
[null,null,null,null,null,null,null,null,null,"",""]
[null,null,null,null,null,null,null,null,null,"",""]
[null,null,null,null,null,null,null,null,null,"",""]
[null,null,null,null,null,null,null,null,null,"",""]
[null,null,null,null,null,null,null,null,null,"",""]
[null,null,null,null,null,null,null,null,null,"",""]
[null,null,null,null,null,null,null,null,null,"",""]
[null,null,null,null,null,null,null,null,null,"",""]
[null,null,null,null,null,null,null,null,null,"",""]
[null,null,null,null,null,null,null,null,null,"",""]
[null,null,null,null,null,null,null,null,null,"",""]
[null,null,null,null,null,null,null,null,null,"",""]
[null,null,null,null,null,null,null,null,null,"",""]
[null,null,null,null,null,null,null,null,null,"",""]
[null,null,null,null,null,null,null,null,null,"",""]
[null,null,null,null,null,null,null,null,null,"",""]
[null,null,null,null,null,null,null,null,null,"",""]
[null,null,null,null,null,null,null,null,null,"",""]
[null,null,null,null,null,null,null,null,null,"",""]
[null,null,null,null,null,null,null,null,null,"",""]
[null,null,null,null,null,null,null,null,null,"",""]
[null,null,null,null,null,null,null,null,null,"",""]
[null,null,null,null,null,null,null,null,null,"",""]
[null,null,null,null,null,null,null,null,null,{"$f":"IFERROR(IF(H2013<>\"\",7.05,\"\"),\"\")","v":""},""]
[null,null,null,null,null,null,null,null,null,"",""]
[null,null,null,null,null,null,null,null,null,"",""]
[null,null,null,null,null,null,null,null,null,"",""]
[null,null,null,null,null,null,null,null,null,"",""]
[null,null,null,null,null,null,null,null,null,"",""]
[null,null,null,null,null,null,null,null,null,"",""]
[null,null,null,null,null,null,null,null,null,"",""]
[null,null,null,null,null,null,null,null,null,"",""]
[null,null,null,null,null,null,null,null,null,"",""]
[null,null,null,null,null,null,null,null,null,"",""]
[null,null,null,null,null,null,null,null,null,"",""]
[null,null,null,null,null,null,null,null,null,"",""]
[null,null,null,null,null,null,null,null,null,"",""]
[null,null,null,null,null,null,null,null,null,"",""]
[null,null,null,null,null,null,null,null,null,"",""]
[null,null,null,null,null,null,null,null,null,"",""]
[null,null,null,null,null,null,null,null,null,"",""]
[null,null,null,null,null,null,null,null,null,"",""]
[null,null,null,null,null,null,null,null,null,"",""]
[null,null,null,null,null,null,null,null,null,"",""]
[null,null,null,null,null,null,null,null,null,"",""]
[null,null,null,null,null,null,null,null,null,"",""]
[null,null,null,null,null,null,null,null,null,"",""]
[null,null,null,null,null,null,null,null,null,"",""]
[null,null,null,null,null,null,null,null,null,"",""]
[null,null,null,null,null,null,null,null,null,"",""]
[null,null,null,null,null,null,null,null,null,"",""]
[null,null,null,null,null,null,null,null,null,"",""]
[null,null,null,null,null,null,null,null,null,"",{"$f":"IFERROR(IF(H1875<>\"\",I2042*J2042,\"\"),\"\")","v":""}]
[null,null,null,null,null,null,null,null,null,"",""]
[null,null,null,null,null,null,null,null,null,"",""]
[null,null,null,null,null,null,null,null,null,"",""]
[null,null,null,null,null,null,null,null,null,"",""]
[null,null,null,null,null,null,null,null,null,"",""]
[null,null,null,null,null,null,null,null,null,"",""]
[null,null,null,null,null,null,null,null,null,"",""]
[null,null,null,null,null,null,null,null,null,"",""]
[null,null,null,null,null,null,null,null,null,"",""]
[null,null,null,null,null,null,null,null,null,"",""]
[null,null,null,null,null,null,null,null,null,"",""]
[null,null,null,null,null,null,null,null,null,"",""]
[null,null,null,null,null,null,null,null,null,"",""]
[null,null,null,null,null,null,null,null,null,"",""]
[null,null,null,null,null,null,null,null,null,"",""]
[null,null,null,null,null,null,null,null,null,"",""]
[null,null,null,null,null,null,null,null,null,"",""]
[null,null,null,null,null,null,null,null,null,"",""]
[null,null,null,null,null,null,null,null,null,"",""]
[null,null,null,null,null,null,null,null,null,"",""]
[null,null,null,null,null,null,null,null,null,"",""]
[null,null,null,null,null,null,null,null,null,"",""]
[null,null,null,null,null,null,null,null,null,"",""]
[null,null,null,null,null,null,null,null,null,"",""]
[null,null,null,null,null,null,null,null,null,"",""]
[null,null,null,null,null,null,null,null,null,"",""]
[null,null,null,null,null,null,null,null,null,"",""]
[null,null,null,null,null,null,null,null,null,"",""]
[null,null,null,null,null,null,null,null,null,"",""]
[null,null,null,null,null,null,null,null,null,"",""]
[null,null,null,null,null,null,null,null,null,"",""]
[null,null,null,null,null,null,null,null,null,"",""]
[null,null,null,null,null,null,null,null,null,"",""]
[null,null,null,null,null,null,null,null,null,"",""]
[null,null,null,null,null,null,null,null,null,{"$f":"IFERROR(IF(H2077<>\"\",7.05,\"\"),\"\")","v":""},""]
[null,null,null,null,null,null,null,null,null,"",""]
[null,null,null,null,null,null,null,null,null,"",""]
[null,null,null,null,null,null,null,null,null,"",""]
[null,null,null,null,null,null,null,null,null,"",""]
[null,null,null,null,null,null,null,null,null,"",""]
[null,null,null,null,null,null,null,null,null,"",""]
[null,null,null,null,null,null,null,null,null,"",""]
[null,null,null,null,null,null,null,null,null,"",""]
[null,null,null,null,null,null,null,null,null,"",""]
[null,null,null,null,null,null,null,null,null,"",""]
[null,null,null,null,null,null,null,null,null,"",""]
[null,null,null,null,null,null,null,null,null,"",""]
[null,null,null,null,null,null,null,null,null,"",""]
[null,null,null,null,null,null,null,null,null,"",""]
[null,null,null,null,null,null,null,null,null,"",""]
[null,null,null,null,null,null,null,null,null,"",""]
[null,null,null,null,null,null,null,null,null,"",""]
[null,null,null,null,null,null,null,null,null,"",""]
[null,null,null,null,null,null,null,null,null,"",""]
[null,null,null,null,null,null,null,null,null,"",""]
[null,null,null,null,null,null,null,null,null,"",""]
[null,null,null,null,null,null,null,null,null,"",""]
[null,null,null,null,null,null,null,null,null,"",""]
[null,null,null,null,null,null,null,null,null,"",""]
[null,null,null,null,null,null,null,null,null,"",""]
[null,null,null,null,null,null,null,null,null,"",""]
[null,null,null,null,null,null,null,null,null,"",""]
[null,null,null,null,null,null,null,null,null,"",""]
[null,null,null,null,null,null,null,null,null,"",{"$f":"IFERROR(IF(H1939<>\"\",I2106*J2106,\"\"),\"\")","v":""}]
[null,null,null,null,null,null,null,null,null,"",""]
[null,null,null,null,null,null,null,null,null,"",""]
[null,null,null,null,null,null,null,null,null,"",""]
[null,null,null,null,null,null,null,null,null,"",""]
[null,null,null,null,null,null,null,null,null,"",""]
[null,null,null,null,null,null,null,null,null,"",""]
[null,null,null,null,null,null,null,null,null,"",""]
[null,null,null,null,null,null,null,null,null,"",""]
[null,null,null,null,null,null,null,null,null,"",""]
[null,null,null,null,null,null,null,null,null,"",""]
[null,null,null,null,null,null,null,null,null,"",""]
[null,null,null,null,null,null,null,null,null,"",""]
[null,null,null,null,null,null,null,null,null,"",""]
[null,null,null,null,null,null,null,null,null,"",""]
[null,null,null,null,null,null,null,null,null,"",""]
[null,null,null,null,null,null,null,null,null,"",""]
[null,null,null,null,null,null,null,null,null,"",""]
[null,null,null,null,null,null,null,null,null,"",""]
[null,null,null,null,null,null,null,null,null,"",""]
[null,null,null,null,null,null,null,null,null,"",""]
[null,null,null,null,null,null,null,null,null,"",""]
[null,null,null,null,null,null,null,null,null,"",""]
[null,null,null,null,null,null,null,null,null,"",""]
[null,null,null,null,null,null,null,null,null,"",""]
[null,null,null,null,null,null,null,null,null,"",""]
[null,null,null,null,null,null,null,null,null,"",""]
[null,null,null,null,null,null,null,null,null,"",""]
[null,null,null,null,null,null,null,null,null,"",""]
[null,null,null,null,null,null,null,null,null,"",""]
[null,null,null,null,null,null,null,null,null,"",""]
[null,null,null,null,null,null,null,null,null,"",""]
[null,null,null,null,null,null,null,null,null,"",""]
[null,null,null,null,null,null,null,null,null,"",""]
[null,null,null,null,null,null,null,null,null,"",""]
[null,null,null,null,null,null,null,null,null,{"$f":"IFERROR(IF(H2141<>\"\",7.05,\"\"),\"\")","v":""},""]
[null,null,null,null,null,null,null,null,null,"",""]
[null,null,null,null,null,null,null,null,null,"",""]
[null,null,null,null,null,null,null,null,null,"",""]
[null,null,null,null,null,null,null,null,null,"",""]
[null,null,null,null,null,null,null,null,null,"",""]
[null,null,null,null,null,null,null,null,null,"",""]
[null,null,null,null,null,null,null,null,null,"",""]
[null,null,null,null,null,null,null,null,null,"",""]
[null,null,null,null,null,null,null,null,null,"",""]
[null,null,null,null,null,null,null,null,null,"",""]
[null,null,null,null,null,null,null,null,null,"",""]
[null,null,null,null,null,null,null,null,null,"",""]
[null,null,null,null,null,null,null,null,null,"",""]
[null,null,null,null,null,null,null,null,null,"",""]
[null,null,null,null,null,null,null,null,null,"",""]
[null,null,null,null,null,null,null,null,null,"",""]
[null,null,null,null,null,null,null,null,null,"",""]
[null,null,null,null,null,null,null,null,null,"",""]
[null,null,null,null,null,null,null,null,null,"",""]
[null,null,null,null,null,null,null,null,null,"",""]
[null,null,null,null,null,null,null,null,null,"",""]
[null,null,null,null,null,null,null,null,null,"",""]
[null,null,null,null,null,null,null,null,null,"",""]
[null,null,null,null,null,null,null,null,null,"",""]
[null,null,null,null,null,null,null,null,null,"",""]
[null,null,null,null,null,null,null,null,null,"",""]
[null,null,null,null,null,null,null,null,null,"",""]
[null,null,null,null,null,null,null,null,null,"",""]
[null,null,null,null,null,null,null,null,null,"",{"$f":"IFERROR(IF(H2003<>\"\",I2170*J2170,\"\"),\"\")","v":""}]
[null,null,null,null,null,null,null,null,null,"",""]
[null,null,null,null,null,null,null,null,null,"",""]
[null,null,null,null,null,null,null,null,null,"",""]
[null,null,null,null,null,null,null,null,null,"",""]
[null,null,null,null,null,null,null,null,null,"",""]
[null,null,null,null,null,null,null,null,null,"",""]
[null,null,null,null,null,null,null,null,null,"",""]
[null,null,null,null,null,null,null,null,null,"",""]
[null,null,null,null,null,null,null,null,null,"",""]
[null,null,null,null,null,null,null,null,null,"",""]
[null,null,null,null,null,null,null,null,null,"",""]
[null,null,null,null,null,null,null,null,null,"",""]
[null,null,null,null,null,null,null,null,null,"",""]
[null,null,null,null,null,null,null,null,null,"",""]
[null,null,null,null,null,null,null,null,null,"",""]
[null,null,null,null,null,null,null,null,null,"",""]
[null,null,null,null,null,null,null,null,null,"",""]
[null,null,null,null,null,null,null,null,null,"",""]
[null,null,null,null,null,null,null,null,null,"",""]
[null,null,null,null,null,null,null,null,null,"",""]
[null,null,null,null,null,null,null,null,null,"",""]
[null,null,null,null,null,null,null,null,null,"",""]
[null,null,null,null,null,null,null,null,null,"",""]
[null,null,null,null,null,null,null,null,null,"",""]
[null,null,null,null,null,null,null,null,null,"",""]
[null,null,null,null,null,null,null,null,null,"",""]
[null,null,null,null,null,null,null,null,null,"",""]
[null,null,null,null,null,null,null,null,null,"",""]
[null,null,null,null,null,null,null,null,null,"",""]
[null,null,null,null,null,null,null,null,null,"",""]
[null,null,null,null,null,null,null,null,null,"",""]
[null,null,null,null,null,null,null,null,null,"",""]
[null,null,null,null,null,null,null,null,null,"",""]
[null,null,null,null,null,null,null,null,null,"",""]
[null,null,null,null,null,null,null,null,null,{"$f":"IFERROR(IF(H2205<>\"\",7.05,\"\"),\"\")","v":""},""]
[null,null,null,null,null,null,null,null,null,"",""]
[null,null,null,null,null,null,null,null,null,"",""]
[null,null,null,null,null,null,null,null,null,"",""]
[null,null,null,null,null,null,null,null,null,"",""]
[null,null,null,null,null,null,null,null,null,"",""]
[null,null,null,null,null,null,null,null,null,"",""]
[null,null,null,null,null,null,null,null,null,"",""]
[null,null,null,null,null,null,null,null,null,"",""]
[null,null,null,null,null,null,null,null,null,"",""]
[null,null,null,null,null,null,null,null,null,"",""]
[null,null,null,null,null,null,null,null,null,"",""]
[null,null,null,null,null,null,null,null,null,"",""]
[null,null,null,null,null,null,null,null,null,"",""]
[null,null,null,null,null,null,null,null,null,"",""]
[null,null,null,null,null,null,null,null,null,"",""]
[null,null,null,null,null,null,null,null,null,"",""]
[null,null,null,null,null,null,null,null,null,"",""]
[null,null,null,null,null,null,null,null,null,"",""]
[null,null,null,null,null,null,null,null,null,"",""]
[null,null,null,null,null,null,null,null,null,"",""]
[null,null,null,null,null,null,null,null,null,"",""]
[null,null,null,null,null,null,null,null,null,"",""]
[null,null,null,null,null,null,null,null,null,"",""]
[null,null,null,null,null,null,null,null,null,"",""]
[null,null,null,null,null,null,null,null,null,"",""]
[null,null,null,null,null,null,null,null,null,"",""]
[null,null,null,null,null,null,null,null,null,"",""]
[null,null,null,null,null,null,null,null,null,"",""]
[null,null,null,null,null,null,null,null,null,"",{"$f":"IFERROR(IF(H2067<>\"\",I2234*J2234,\"\"),\"\")","v":""}]
[null,null,null,null,null,null,null,null,null,"",""]
[null,null,null,null,null,null,null,null,null,"",""]
[null,null,null,null,null,null,null,null,null,"",""]
[null,null,null,null,null,null,null,null,null,"",""]
[null,null,null,null,null,null,null,null,null,"",""]
[null,null,null,null,null,null,null,null,null,"",""]
[null,null,null,null,null,null,null,null,null,"",""]
[null,null,null,null,null,null,null,null,null,"",""]
[null,null,null,null,null,null,null,null,null,"",""]
[null,null,null,null,null,null,null,null,null,"",""]
[null,null,null,null,null,null,null,null,null,"",""]
[null,null,null,null,null,null,null,null,null,"",""]
[null,null,null,null,null,null,null,null,null,"",""]
[null,null,null,null,null,null,null,null,null,"",""]
[null,null,null,null,null,null,null,null,null,"",""]
[null,null,null,null,null,null,null,null,null,"",""]
[null,null,null,null,null,null,null,null,null,"",""]
[null,null,null,null,null,null,null,null,null,"",""]
[null,null,null,null,null,null,null,null,null,"",""]
[null,null,null,null,null,null,null,null,null,"",""]
[null,null,null,null,null,null,null,null,null,"",""]
[null,null,null,null,null,null,null,null,null,"",""]
[null,null,null,null,null,null,null,null,null,"",""]
[null,null,null,null,null,null,null,null,null,"",""]
[null,null,null,null,null,null,null,null,null,"",""]
[null,null,null,null,null,null,null,null,null,"",""]
[null,null,null,null,null,null,null,null,null,"",""]
[null,null,null,null,null,null,null,null,null,"",""]
[null,null,null,null,null,null,null,null,null,"",""]
[null,null,null,null,null,null,null,null,null,"",""]
[null,null,null,null,null,null,null,null,null,"",""]
[null,null,null,null,null,null,null,null,null,"",""]
[null,null,null,null,null,null,null,null,null,"",""]
[null,null,null,null,null,null,null,null,null,"",""]
[null,null,null,null,null,null,null,null,null,{"$f":"IFERROR(IF(H2269<>\"\",7.05,\"\"),\"\")","v":""},""]
[null,null,null,null,null,null,null,null,null,"",""]
[null,null,null,null,null,null,null,null,null,"",""]
[null,null,null,null,null,null,null,null,null,"",""]
[null,null,null,null,null,null,null,null,null,"",""]
[null,null,null,null,null,null,null,null,null,"",""]
[null,null,null,null,null,null,null,null,null,"",""]
[null,null,null,null,null,null,null,null,null,"",""]
[null,null,null,null,null,null,null,null,null,"",""]
[null,null,null,null,null,null,null,null,null,"",""]
[null,null,null,null,null,null,null,null,null,"",""]
[null,null,null,null,null,null,null,null,null,"",""]
[null,null,null,null,null,null,null,null,null,"",""]
[null,null,null,null,null,null,null,null,null,"",""]
[null,null,null,null,null,null,null,null,null,"",""]
[null,null,null,null,null,null,null,null,null,"",""]
[null,null,null,null,null,null,null,null,null,"",""]
[null,null,null,null,null,null,null,null,null,"",""]
[null,null,null,null,null,null,null,null,null,"",""]
[null,null,null,null,null,null,null,null,null,"",""]
[null,null,null,null,null,null,null,null,null,"",""]
[null,null,null,null,null,null,null,null,null,"",""]
[null,null,null,null,null,null,null,null,null,"",""]
[null,null,null,null,null,null,null,null,null,"",""]
[null,null,null,null,null,null,null,null,null,"",""]
[null,null,null,null,null,null,null,null,null,"",""]
[null,null,null,null,null,null,null,null,null,"",""]
[null,null,null,null,null,null,null,null,null,"",""]
[null,null,null,null,null,null,null,null,null,"",""]
[null,null,null,null,null,null,null,null,null,"",{"$f":"IFERROR(IF(H2131<>\"\",I2298*J2298,\"\"),\"\")","v":""}]
[null,null,null,null,null,null,null,null,null,"",""]
[null,null,null,null,null,null,null,null,null,"",""]
[null,null,null,null,null,null,null,null,null,"",""]
[null,null,null,null,null,null,null,null,null,"",""]
[null,null,null,null,null,null,null,null,null,"",""]
[null,null,null,null,null,null,null,null,null,"",""]
[null,null,null,null,null,null,null,null,null,"",""]
[null,null,null,null,null,null,null,null,null,"",""]
[null,null,null,null,null,null,null,null,null,"",""]
[null,null,null,null,null,null,null,null,null,"",""]
[null,null,null,null,null,null,null,null,null,"",""]
[null,null,null,null,null,null,null,null,null,"",""]
[null,null,null,null,null,null,null,null,null,"",""]
[null,null,null,null,null,null,null,null,null,"",""]
[null,null,null,null,null,null,null,null,null,"",""]
[null,null,null,null,null,null,null,null,null,"",""]
[null,null,null,null,null,null,null,null,null,"",""]
[null,null,null,null,null,null,null,null,null,"",""]
[null,null,null,null,null,null,null,null,null,"",""]
[null,null,null,null,null,null,null,null,null,"",""]
[null,null,null,null,null,null,null,null,null,"",""]
[null,null,null,null,null,null,null,null,null,"",""]
[null,null,null,null,null,null,null,null,null,"",""]
[null,null,null,null,null,null,null,null,null,"",""]
[null,null,null,null,null,null,null,null,null,"",""]
[null,null,null,null,null,null,null,null,null,"",""]
[null,null,null,null,null,null,null,null,null,"",""]
[null,null,null,null,null,null,null,null,null,"",""]
[null,null,null,null,null,null,null,null,null,"",""]
[null,null,null,null,null,null,null,null,null,"",""]
[null,null,null,null,null,null,null,null,null,"",""]
[null,null,null,null,null,null,null,null,null,"",""]
[null,null,null,null,null,null,null,null,null,"",""]
[null,null,null,null,null,null,null,null,null,"",""]
[null,null,null,null,null,null,null,null,null,{"$f":"IFERROR(IF(H2333<>\"\",7.05,\"\"),\"\")","v":""},""]
[null,null,null,null,null,null,null,null,null,"",""]
[null,null,null,null,null,null,null,null,null,"",""]
[null,null,null,null,null,null,null,null,null,"",""]
[null,null,null,null,null,null,null,null,null,"",""]
[null,null,null,null,null,null,null,null,null,"",""]
[null,null,null,null,null,null,null,null,null,"",""]
[null,null,null,null,null,null,null,null,null,"",""]
[null,null,null,null,null,null,null,null,null,"",""]
[null,null,null,null,null,null,null,null,null,"",""]
[null,null,null,null,null,null,null,null,null,"",""]
[null,null,null,null,null,null,null,null,null,"",""]
[null,null,null,null,null,null,null,null,null,"",""]
[null,null,null,null,null,null,null,null,null,"",""]
[null,null,null,null,null,null,null,null,null,"",""]
[null,null,null,null,null,null,null,null,null,"",""]
[null,null,null,null,null,null,null,null,null,"",""]
[null,null,null,null,null,null,null,null,null,"",""]
[null,null,null,null,null,null,null,null,null,"",""]
[null,null,null,null,null,null,null,null,null,"",""]
[null,null,null,null,null,null,null,null,null,"",""]
[null,null,null,null,null,null,null,null,null,"",""]
[null,null,null,null,null,null,null,null,null,"",""]
[null,null,null,null,null,null,null,null,null,"",""]
[null,null,null,null,null,null,null,null,null,"",""]
[null,null,null,null,null,null,null,null,null,"",""]
[null,null,null,null,null,null,null,null,null,"",""]
[null,null,null,null,null,null,null,null,null,"",""]
[null,null,null,null,null,null,null,null,null,"",""]
[null,null,null,null,null,null,null,null,null,"",{"$f":"IFERROR(IF(H2195<>\"\",I2362*J2362,\"\"),\"\")","v":""}]
[null,null,null,null,null,null,null,null,null,"",""]
[null,null,null,null,null,null,null,null,null,"",""]
[null,null,null,null,null,null,null,null,null,"",""]
[null,null,null,null,null,null,null,null,null,"",""]
[null,null,null,null,null,null,null,null,null,"",""]
[null,null,null,null,null,null,null,null,null,"",""]
[null,null,null,null,null,null,null,null,null,"",""]
[null,null,null,null,null,null,null,null,null,"",""]
[null,null,null,null,null,null,null,null,null,"",""]
[null,null,null,null,null,null,null,null,null,"",""]
[null,null,null,null,null,null,null,null,null,"",""]
[null,null,null,null,null,null,null,null,null,"",""]
[null,null,null,null,null,null,null,null,null,"",""]
[null,null,null,null,null,null,null,null,null,"",""]
[null,null,null,null,null,null,null,null,null,"",""]
[null,null,null,null,null,null,null,null,null,"",""]
[null,null,null,null,null,null,null,null,null,"",""]
[null,null,null,null,null,null,null,null,null,"",""]
[null,null,null,null,null,null,null,null,null,"",""]
[null,null,null,null,null,null,null,null,null,"",""]
[null,null,null,null,null,null,null,null,null,"",""]
[null,null,null,null,null,null,null,null,null,"",""]
[null,null,null,null,null,null,null,null,null,"",""]
[null,null,null,null,null,null,null,null,null,"",""]
[null,null,null,null,null,null,null,null,null,"",""]
[null,null,null,null,null,null,null,null,null,"",""]
[null,null,null,null,null,null,null,null,null,"",""]
[null,null,null,null,null,null,null,null,null,"",""]
[null,null,null,null,null,null,null,null,null,"",""]
[null,null,null,null,null,null,null,null,null,"",""]
[null,null,null,null,null,null,null,null,null,"",""]
[null,null,null,null,null,null,null,null,null,"",""]
[null,null,null,null,null,null,null,null,null,"",""]
[null,null,null,null,null,null,null,null,null,"",""]
[null,null,null,null,null,null,null,null,null,{"$f":"IFERROR(IF(H2397<>\"\",7.05,\"\"),\"\")","v":""},""]
[null,null,null,null,null,null,null,null,null,"",""]
[null,null,null,null,null,null,null,null,null,"",""]
[null,null,null,null,null,null,null,null,null,"",""]
[null,null,null,null,null,null,null,null,null,"",""]
[null,null,null,null,null,null,null,null,null,"",""]
[null,null,null,null,null,null,null,null,null,"",""]
[null,null,null,null,null,null,null,null,null,"",""]
[null,null,null,null,null,null,null,null,null,"",""]
[null,null,null,null,null,null,null,null,null,"",""]
[null,null,null,null,null,null,null,null,null,"",""]
[null,null,null,null,null,null,null,null,null,"",""]
[null,null,null,null,null,null,null,null,null,"",""]
[null,null,null,null,null,null,null,null,null,"",""]
[null,null,null,null,null,null,null,null,null,"",""]
[null,null,null,null,null,null,null,null,null,"",""]
[null,null,null,null,null,null,null,null,null,"",""]
[null,null,null,null,null,null,null,null,null,"",""]
[null,null,null,null,null,null,null,null,null,"",""]
[null,null,null,null,null,null,null,null,null,"",""]
[null,null,null,null,null,null,null,null,null,"",""]
[null,null,null,null,null,null,null,null,null,"",""]
[null,null,null,null,null,null,null,null,null,"",""]
[null,null,null,null,null,null,null,null,null,"",""]
[null,null,null,null,null,null,null,null,null,"",""]
[null,null,null,null,null,null,null,null,null,"",""]
[null,null,null,null,null,null,null,null,null,"",""]
[null,null,null,null,null,null,null,null,null,"",""]
[null,null,null,null,null,null,null,null,null,"",""]
[null,null,null,null,null,null,null,null,null,"",{"$f":"IFERROR(IF(H2259<>\"\",I2426*J2426,\"\"),\"\")","v":""}]
[null,null,null,null,null,null,null,null,null,"",""]
[null,null,null,null,null,null,null,null,null,"",""]
[null,null,null,null,null,null,null,null,null,"",""]
[null,null,null,null,null,null,null,null,null,"",""]
[null,null,null,null,null,null,null,null,null,"",""]
[null,null,null,null,null,null,null,null,null,"",""]
[null,null,null,null,null,null,null,null,null,"",""]
[null,null,null,null,null,null,null,null,null,"",""]
[null,null,null,null,null,null,null,null,null,"",""]
[null,null,null,null,null,null,null,null,null,"",""]
[null,null,null,null,null,null,null,null,null,"",""]
[null,null,null,null,null,null,null,null,null,"",""]
[null,null,null,null,null,null,null,null,null,"",""]
[null,null,null,null,null,null,null,null,null,"",""]
[null,null,null,null,null,null,null,null,null,"",""]
[null,null,null,null,null,null,null,null,null,"",""]
[null,null,null,null,null,null,null,null,null,"",""]
[null,null,null,null,null,null,null,null,null,"",""]
[null,null,null,null,null,null,null,null,null,"",""]
[null,null,null,null,null,null,null,null,null,"",""]
[null,null,null,null,null,null,null,null,null,"",""]
[null,null,null,null,null,null,null,null,null,"",""]
[null,null,null,null,null,null,null,null,null,"",""]
[null,null,null,null,null,null,null,null,null,"",""]
[null,null,null,null,null,null,null,null,null,"",""]
[null,null,null,null,null,null,null,null,null,"",""]
[null,null,null,null,null,null,null,null,null,"",""]
[null,null,null,null,null,null,null,null,null,"",""]
[null,null,null,null,null,null,null,null,null,"",""]
[null,null,null,null,null,null,null,null,null,"",""]
[null,null,null,null,null,null,null,null,null,"",""]
[null,null,null,null,null,null,null,null,null,"",""]
[null,null,null,null,null,null,null,null,null,"",""]
[null,null,null,null,null,null,null,null,null,"",""]
[null,null,null,null,null,null,null,null,null,{"$f":"IFERROR(IF(H2461<>\"\",7.05,\"\"),\"\")","v":""},""]
[null,null,null,null,null,null,null,null,null,"",""]
[null,null,null,null,null,null,null,null,null,"",""]
[null,null,null,null,null,null,null,null,null,"",""]
[null,null,null,null,null,null,null,null,null,"",""]
[null,null,null,null,null,null,null,null,null,"",""]
[null,null,null,null,null,null,null,null,null,"",""]
[null,null,null,null,null,null,null,null,null,"",""]
[null,null,null,null,null,null,null,null,null,"",""]
[null,null,null,null,null,null,null,null,null,"",""]
[null,null,null,null,null,null,null,null,null,"",""]
[null,null,null,null,null,null,null,null,null,"",""]
[null,null,null,null,null,null,null,null,null,"",""]
[null,null,null,null,null,null,null,null,null,"",""]
[null,null,null,null,null,null,null,null,null,"",""]
[null,null,null,null,null,null,null,null,null,"",""]
[null,null,null,null,null,null,null,null,null,"",""]
[null,null,null,null,null,null,null,null,null,"",""]
[null,null,null,null,null,null,null,null,null,"",""]
[null,null,null,null,null,null,null,null,null,"",""]
[null,null,null,null,null,null,null,null,null,"",""]
[null,null,null,null,null,null,null,null,null,"",""]
[null,null,null,null,null,null,null,null,null,"",""]
[null,null,null,null,null,null,null,null,null,"",""]
[null,null,null,null,null,null,null,null,null,"",""]
[null,null,null,null,null,null,null,null,null,"",""]
[null,null,null,null,null,null,null,null,null,"",""]
[null,null,null,null,null,null,null,null,null,"",""]
[null,null,null,null,null,null,null,null,null,"",""]
[null,null,null,null,null,null,null,null,null,"",{"$f":"IFERROR(IF(H2323<>\"\",I2490*J2490,\"\"),\"\")","v":""}]
[null,null,null,null,null,null,null,null,null,"",""]
[null,null,null,null,null,null,null,null,null,"",""]
[null,null,null,null,null,null,null,null,null,"",""]
[null,null,null,null,null,null,null,null,null,"",""]
[null,null,null,null,null,null,null,null,null,"",""]
[null,null,null,null,null,null,null,null,null,"",""]
[null,null,null,null,null,null,null,null,null,"",""]
[null,null,null,null,null,null,null,null,null,"",""]
[null,null,null,null,null,null,null,null,null,"",""]
[null,null,null,null,null,null,null,null,null,"",""]
[null,null,null,null,null,null,null,null,null,"",""]
[null,null,null,null,null,null,null,null,null,"",""]
[null,null,null,null,null,null,null,null,null,"",""]
[null,null,null,null,null,null,null,null,null,"",""]
[null,null,null,null,null,null,null,null,null,"",""]
[null,null,null,null,null,null,null,null,null,"",""]
[null,null,null,null,null,null,null,null,null,"",""]
[null,null,null,null,null,null,null,null,null,"",""]
[null,null,null,null,null,null,null,null,null,"",""]
[null,null,null,null,null,null,null,null,null,"",""]
[null,null,null,null,null,null,null,null,null,"",""]
[null,null,null,null,null,null,null,null,null,"",""]
[null,null,null,null,null,null,null,null,null,"",""]
[null,null,null,null,null,null,null,null,null,"",""]
[null,null,null,null,null,null,null,null,null,"",""]
[null,null,null,null,null,null,null,null,null,"",""]
[null,null,null,null,null,null,null,null,null,"",""]
[null,null,null,null,null,null,null,null,null,"",""]
[null,null,null,null,null,null,null,null,null,"",""]
[null,null,null,null,null,null,null,null,null,"",""]
[null,null,null,null,null,null,null,null,null,"",""]
[null,null,null,null,null,null,null,null,null,"",""]
[null,null,null,null,null,null,null,null,null,"",""]
[null,null,null,null,null,null,null,null,null,"",""]
[null,null,null,null,null,null,null,null,null,{"$f":"IFERROR(IF(H2525<>\"\",7.05,\"\"),\"\")","v":""},""]
[null,null,null,null,null,null,null,null,null,"",""]
[null,null,null,null,null,null,null,null,null,"",""]
[null,null,null,null,null,null,null,null,null,"",""]
[null,null,null,null,null,null,null,null,null,"",""]
[null,null,null,null,null,null,null,null,null,"",""]
[null,null,null,null,null,null,null,null,null,"",""]
[null,null,null,null,null,null,null,null,null,"",""]
[null,null,null,null,null,null,null,null,null,"",""]
[null,null,null,null,null,null,null,null,null,"",""]
[null,null,null,null,null,null,null,null,null,"",""]
[null,null,null,null,null,null,null,null,null,"",""]
[null,null,null,null,null,null,null,null,null,"",""]
[null,null,null,null,null,null,null,null,null,"",""]
[null,null,null,null,null,null,null,null,null,"",""]
[null,null,null,null,null,null,null,null,null,"",""]
[null,null,null,null,null,null,null,null,null,"",""]
[null,null,null,null,null,null,null,null,null,"",""]
[null,null,null,null,null,null,null,null,null,"",""]
[null,null,null,null,null,null,null,null,null,"",""]
[null,null,null,null,null,null,null,null,null,"",""]
[null,null,null,null,null,null,null,null,null,"",""]
[null,null,null,null,null,null,null,null,null,"",""]
[null,null,null,null,null,null,null,null,null,"",""]
[null,null,null,null,null,null,null,null,null,"",""]
[null,null,null,null,null,null,null,null,null,"",""]
[null,null,null,null,null,null,null,null,null,"",""]
[null,null,null,null,null,null,null,null,null,"",""]
[null,null,null,null,null,null,null,null,null,"",""]
[null,null,null,null,null,null,null,null,null,"",{"$f":"IFERROR(IF(H2387<>\"\",I2554*J2554,\"\"),\"\")","v":""}]
[null,null,null,null,null,null,null,null,null,"",""]
[null,null,null,null,null,null,null,null,null,"",""]
[null,null,null,null,null,null,null,null,null,"",""]
[null,null,null,null,null,null,null,null,null,"",""]
[null,null,null,null,null,null,null,null,null,"",""]
[null,null,null,null,null,null,null,null,null,"",""]
[null,null,null,null,null,null,null,null,null,"",""]
[null,null,null,null,null,null,null,null,null,"",""]
[null,null,null,null,null,null,null,null,null,"",""]
[null,null,null,null,null,null,null,null,null,"",""]
[null,null,null,null,null,null,null,null,null,"",""]
[null,null,null,null,null,null,null,null,null,"",""]
[null,null,null,null,null,null,null,null,null,"",""]
[null,null,null,null,null,null,null,null,null,"",""]
[null,null,null,null,null,null,null,null,null,"",""]
[null,null,null,null,null,null,null,null,null,"",""]
[null,null,null,null,null,null,null,null,null,"",""]
[null,null,null,null,null,null,null,null,null,"",""]
[null,null,null,null,null,null,null,null,null,"",""]
[null,null,null,null,null,null,null,null,null,"",""]
[null,null,null,null,null,null,null,null,null,"",""]
[null,null,null,null,null,null,null,null,null,"",""]
[null,null,null,null,null,null,null,null,null,"",""]
[null,null,null,null,null,null,null,null,null,"",""]
[null,null,null,null,null,null,null,null,null,"",""]
[null,null,null,null,null,null,null,null,null,"",""]
[null,null,null,null,null,null,null,null,null,"",""]
[null,null,null,null,null,null,null,null,null,"",""]
[null,null,null,null,null,null,null,null,null,"",""]
[null,null,null,null,null,null,null,null,null,"",""]
[null,null,null,null,null,null,null,null,null,"",""]
[null,null,null,null,null,null,null,null,null,"",""]
[null,null,null,null,null,null,null,null,null,"",""]
[null,null,null,null,null,null,null,null,null,"",""]
[null,null,null,null,null,null,null,null,null,{"$f":"IFERROR(IF(H2589<>\"\",7.05,\"\"),\"\")","v":""},""]
[null,null,null,null,null,null,null,null,null,"",""]
[null,null,null,null,null,null,null,null,null,"",""]
[null,null,null,null,null,null,null,null,null,"",""]
[null,null,null,null,null,null,null,null,null,"",""]
[null,null,null,null,null,null,null,null,null,"",""]
[null,null,null,null,null,null,null,null,null,"",""]
[null,null,null,null,null,null,null,null,null,"",""]
[null,null,null,null,null,null,null,null,null,"",""]
[null,null,null,null,null,null,null,null,null,"",""]
[null,null,null,null,null,null,null,null,null,"",""]
[null,null,null,null,null,null,null,null,null,"",""]
[null,null,null,null,null,null,null,null,null,"",""]
[null,null,null,null,null,null,null,null,null,"",""]
[null,null,null,null,null,null,null,null,null,"",""]
[null,null,null,null,null,null,null,null,null,"",""]
[null,null,null,null,null,null,null,null,null,"",""]
[null,null,null,null,null,null,null,null,null,"",""]
[null,null,null,null,null,null,null,null,null,"",""]
[null,null,null,null,null,null,null,null,null,"",""]
[null,null,null,null,null,null,null,null,null,"",""]
[null,null,null,null,null,null,null,null,null,"",""]
[null,null,null,null,null,null,null,null,null,"",""]
[null,null,null,null,null,null,null,null,null,"",""]
[null,null,null,null,null,null,null,null,null,"",""]
[null,null,null,null,null,null,null,null,null,"",""]
[null,null,null,null,null,null,null,null,null,"",""]
[null,null,null,null,null,null,null,null,null,"",""]
[null,null,null,null,null,null,null,null,null,"",""]
[null,null,null,null,null,null,null,null,null,"",{"$f":"IFERROR(IF(H2451<>\"\",I2618*J2618,\"\"),\"\")","v":""}]
[null,null,null,null,null,null,null,null,null,"",""]
[null,null,null,null,null,null,null,null,null,"",""]
[null,null,null,null,null,null,null,null,null,"",""]
[null,null,null,null,null,null,null,null,null,"",""]
[null,null,null,null,null,null,null,null,null,"",""]
[null,null,null,null,null,null,null,null,null,"",""]
[null,null,null,null,null,null,null,null,null,"",""]
[null,null,null,null,null,null,null,null,null,"",""]
[null,null,null,null,null,null,null,null,null,"",""]
[null,null,null,null,null,null,null,null,null,"",""]
[null,null,null,null,null,null,null,null,null,"",""]
[null,null,null,null,null,null,null,null,null,"",""]
[null,null,null,null,null,null,null,null,null,"",""]
[null,null,null,null,null,null,null,null,null,"",""]
[null,null,null,null,null,null,null,null,null,"",""]
[null,null,null,null,null,null,null,null,null,"",""]
[null,null,null,null,null,null,null,null,null,"",""]
[null,null,null,null,null,null,null,null,null,"",""]
[null,null,null,null,null,null,null,null,null,"",""]
[null,null,null,null,null,null,null,null,null,"",""]
[null,null,null,null,null,null,null,null,null,"",""]
[null,null,null,null,null,null,null,null,null,"",""]
[null,null,null,null,null,null,null,null,null,"",""]
[null,null,null,null,null,null,null,null,null,"",""]
[null,null,null,null,null,null,null,null,null,"",""]
[null,null,null,null,null,null,null,null,null,"",""]
[null,null,null,null,null,null,null,null,null,"",""]
[null,null,null,null,null,null,null,null,null,"",""]
[null,null,null,null,null,null,null,null,null,"",""]
[null,null,null,null,null,null,null,null,null,"",""]
[null,null,null,null,null,null,null,null,null,"",""]
[null,null,null,null,null,null,null,null,null,"",""]
[null,null,null,null,null,null,null,null,null,"",""]
[null,null,null,null,null,null,null,null,null,"",""]
[null,null,null,null,null,null,null,null,null,{"$f":"IFERROR(IF(H2653<>\"\",7.05,\"\"),\"\")","v":""},""]
[null,null,null,null,null,null,null,null,null,"",""]
[null,null,null,null,null,null,null,null,null,"",""]
[null,null,null,null,null,null,null,null,null,"",""]
[null,null,null,null,null,null,null,null,null,"",""]
[null,null,null,null,null,null,null,null,null,"",""]
[null,null,null,null,null,null,null,null,null,"",""]
[null,null,null,null,null,null,null,null,null,"",""]
[null,null,null,null,null,null,null,null,null,"",""]
[null,null,null,null,null,null,null,null,null,"",""]
[null,null,null,null,null,null,null,null,null,"",""]
[null,null,null,null,null,null,null,null,null,"",""]
[null,null,null,null,null,null,null,null,null,"",""]
[null,null,null,null,null,null,null,null,null,"",""]
[null,null,null,null,null,null,null,null,null,"",""]
[null,null,null,null,null,null,null,null,null,"",""]
[null,null,null,null,null,null,null,null,null,"",""]
[null,null,null,null,null,null,null,null,null,"",""]
[null,null,null,null,null,null,null,null,null,"",""]
[null,null,null,null,null,null,null,null,null,"",""]
[null,null,null,null,null,null,null,null,null,"",""]
[null,null,null,null,null,null,null,null,null,"",""]
[null,null,null,null,null,null,null,null,null,"",""]
[null,null,null,null,null,null,null,null,null,"",""]
[null,null,null,null,null,null,null,null,null,"",""]
[null,null,null,null,null,null,null,null,null,"",""]
[null,null,null,null,null,null,null,null,null,"",""]
[null,null,null,null,null,null,null,null,null,"",""]
[null,null,null,null,null,null,null,null,null,"",""]
[null,null,null,null,null,null,null,null,null,"",{"$f":"IFERROR(IF(H2515<>\"\",I2682*J2682,\"\"),\"\")","v":""}]
[null,null,null,null,null,null,null,null,null,"",""]
[null,null,null,null,null,null,null,null,null,"",""]
[null,null,null,null,null,null,null,null,null,"",""]
[null,null,null,null,null,null,null,null,null,"",""]
[null,null,null,null,null,null,null,null,null,"",""]
[null,null,null,null,null,null,null,null,null,"",""]
[null,null,null,null,null,null,null,null,null,"",""]
[null,null,null,null,null,null,null,null,null,"",""]
[null,null,null,null,null,null,null,null,null,"",""]
[null,null,null,null,null,null,null,null,null,"",""]
[null,null,null,null,null,null,null,null,null,"",""]
[null,null,null,null,null,null,null,null,null,"",""]
[null,null,null,null,null,null,null,null,null,"",""]
[null,null,null,null,null,null,null,null,null,"",""]
[null,null,null,null,null,null,null,null,null,"",""]
[null,null,null,null,null,null,null,null,null,"",""]
[null,null,null,null,null,null,null,null,null,"",""]
[null,null,null,null,null,null,null,null,null,"",""]
[null,null,null,null,null,null,null,null,null,"",""]
[null,null,null,null,null,null,null,null,null,"",""]
[null,null,null,null,null,null,null,null,null,"",""]
[null,null,null,null,null,null,null,null,null,"",""]
[null,null,null,null,null,null,null,null,null,"",""]
[null,null,null,null,null,null,null,null,null,"",""]
[null,null,null,null,null,null,null,null,null,"",""]
[null,null,null,null,null,null,null,null,null,"",""]
[null,null,null,null,null,null,null,null,null,"",""]
[null,null,null,null,null,null,null,null,null,"",""]
[null,null,null,null,null,null,null,null,null,"",""]
[null,null,null,null,null,null,null,null,null,"",""]
[null,null,null,null,null,null,null,null,null,"",""]
[null,null,null,null,null,null,null,null,null,"",""]
[null,null,null,null,null,null,null,null,null,"",""]
[null,null,null,null,null,null,null,null,null,"",""]
[null,null,null,null,null,null,null,null,null,{"$f":"IFERROR(IF(H2717<>\"\",7.05,\"\"),\"\")","v":""},""]
[null,null,null,null,null,null,null,null,null,"",""]
[null,null,null,null,null,null,null,null,null,"",""]
[null,null,null,null,null,null,null,null,null,"",""]
[null,null,null,null,null,null,null,null,null,"",""]
[null,null,null,null,null,null,null,null,null,"",""]
[null,null,null,null,null,null,null,null,null,"",""]
[null,null,null,null,null,null,null,null,null,"",""]
[null,null,null,null,null,null,null,null,null,"",""]
[null,null,null,null,null,null,null,null,null,"",""]
[null,null,null,null,null,null,null,null,null,"",""]
[null,null,null,null,null,null,null,null,null,"",""]
[null,null,null,null,null,null,null,null,null,"",""]
[null,null,null,null,null,null,null,null,null,"",""]
[null,null,null,null,null,null,null,null,null,"",""]
[null,null,null,null,null,null,null,null,null,"",""]
[null,null,null,null,null,null,null,null,null,"",""]
[null,null,null,null,null,null,null,null,null,"",""]
[null,null,null,null,null,null,null,null,null,"",""]
[null,null,null,null,null,null,null,null,null,"",""]
[null,null,null,null,null,null,null,null,null,"",""]
[null,null,null,null,null,null,null,null,null,"",""]
[null,null,null,null,null,null,null,null,null,"",""]
[null,null,null,null,null,null,null,null,null,"",""]
[null,null,null,null,null,null,null,null,null,"",""]
[null,null,null,null,null,null,null,null,null,"",""]
[null,null,null,null,null,null,null,null,null,"",""]
[null,null,null,null,null,null,null,null,null,"",""]
[null,null,null,null,null,null,null,null,null,"",""]
[null,null,null,null,null,null,null,null,null,"",{"$f":"IFERROR(IF(H2579<>\"\",I2746*J2746,\"\"),\"\")","v":""}]
[null,null,null,null,null,null,null,null,null,"",""]
[null,null,null,null,null,null,null,null,null,"",""]
[null,null,null,null,null,null,null,null,null,"",""]
[null,null,null,null,null,null,null,null,null,"",""]
[null,null,null,null,null,null,null,null,null,"",""]
[null,null,null,null,null,null,null,null,null,"",""]
[null,null,null,null,null,null,null,null,null,"",""]
[null,null,null,null,null,null,null,null,null,"",""]
[null,null,null,null,null,null,null,null,null,"",""]
[null,null,null,null,null,null,null,null,null,"",""]
[null,null,null,null,null,null,null,null,null,"",""]
[null,null,null,null,null,null,null,null,null,"",""]
[null,null,null,null,null,null,null,null,null,"",""]
[null,null,null,null,null,null,null,null,null,"",""]
[null,null,null,null,null,null,null,null,null,"",""]
[null,null,null,null,null,null,null,null,null,"",""]
[null,null,null,null,null,null,null,null,null,"",""]
[null,null,null,null,null,null,null,null,null,"",""]
[null,null,null,null,null,null,null,null,null,"",""]
[null,null,null,null,null,null,null,null,null,"",""]
[null,null,null,null,null,null,null,null,null,"",""]
[null,null,null,null,null,null,null,null,null,"",""]
[null,null,null,null,null,null,null,null,null,"",""]
[null,null,null,null,null,null,null,null,null,"",""]
[null,null,null,null,null,null,null,null,null,"",""]
[null,null,null,null,null,null,null,null,null,"",""]
[null,null,null,null,null,null,null,null,null,"",""]
[null,null,null,null,null,null,null,null,null,"",""]
[null,null,null,null,null,null,null,null,null,"",""]
[null,null,null,null,null,null,null,null,null,"",""]
[null,null,null,null,null,null,null,null,null,"",""]
[null,null,null,null,null,null,null,null,null,"",""]
[null,null,null,null,null,null,null,null,null,"",""]
[null,null,null,null,null,null,null,null,null,"",""]
[null,null,null,null,null,null,null,null,null,{"$f":"IFERROR(IF(H2781<>\"\",7.05,\"\"),\"\")","v":""},""]
[null,null,null,null,null,null,null,null,null,"",""]
[null,null,null,null,null,null,null,null,null,"",""]
[null,null,null,null,null,null,null,null,null,"",""]
[null,null,null,null,null,null,null,null,null,"",""]
[null,null,null,null,null,null,null,null,null,"",""]
[null,null,null,null,null,null,null,null,null,"",""]
[null,null,null,null,null,null,null,null,null,"",""]
[null,null,null,null,null,null,null,null,null,"",""]
[null,null,null,null,null,null,null,null,null,"",""]
[null,null,null,null,null,null,null,null,null,"",""]
[null,null,null,null,null,null,null,null,null,"",""]
[null,null,null,null,null,null,null,null,null,"",""]
[null,null,null,null,null,null,null,null,null,"",""]
[null,null,null,null,null,null,null,null,null,"",""]
[null,null,null,null,null,null,null,null,null,"",""]
[null,null,null,null,null,null,null,null,null,"",""]
[null,null,null,null,null,null,null,null,null,"",""]
[null,null,null,null,null,null,null,null,null,"",""]
[null,null,null,null,null,null,null,null,null,"",""]
[null,null,null,null,null,null,null,null,null,"",""]
[null,null,null,null,null,null,null,null,null,"",""]
[null,null,null,null,null,null,null,null,null,"",""]
[null,null,null,null,null,null,null,null,null,"",""]
[null,null,null,null,null,null,null,null,null,"",""]
[null,null,null,null,null,null,null,null,null,"",""]
[null,null,null,null,null,null,null,null,null,"",""]
[null,null,null,null,null,null,null,null,null,"",""]
[null,null,null,null,null,null,null,null,null,"",""]
[null,null,null,null,null,null,null,null,null,"",{"$f":"IFERROR(IF(H2643<>\"\",I2810*J2810,\"\"),\"\")","v":""}]
[null,null,null,null,null,null,null,null,null,"",""]
[null,null,null,null,null,null,null,null,null,"",""]
[null,null,null,null,null,null,null,null,null,"",""]
[null,null,null,null,null,null,null,null,null,"",""]
[null,null,null,null,null,null,null,null,null,"",""]
[null,null,null,null,null,null,null,null,null,"",""]
[null,null,null,null,null,null,null,null,null,"",""]
[null,null,null,null,null,null,null,null,null,"",""]
[null,null,null,null,null,null,null,null,null,"",""]
[null,null,null,null,null,null,null,null,null,"",""]
[null,null,null,null,null,null,null,null,null,"",""]
[null,null,null,null,null,null,null,null,null,"",""]
[null,null,null,null,null,null,null,null,null,"",""]
[null,null,null,null,null,null,null,null,null,"",""]
[null,null,null,null,null,null,null,null,null,"",""]
[null,null,null,null,null,null,null,null,null,"",""]
[null,null,null,null,null,null,null,null,null,"",""]
[null,null,null,null,null,null,null,null,null,"",""]
[null,null,null,null,null,null,null,null,null,"",""]
[null,null,null,null,null,null,null,null,null,"",""]
[null,null,null,null,null,null,null,null,null,"",""]
[null,null,null,null,null,null,null,null,null,"",""]
[null,null,null,null,null,null,null,null,null,"",""]
[null,null,null,null,null,null,null,null,null,"",""]
[null,null,null,null,null,null,null,null,null,"",""]
[null,null,null,null,null,null,null,null,null,"",""]
[null,null,null,null,null,null,null,null,null,"",""]
[null,null,null,null,null,null,null,null,null,"",""]
[null,null,null,null,null,null,null,null,null,"",""]
[null,null,null,null,null,null,null,null,null,"",""]
[null,null,null,null,null,null,null,null,null,"",""]
[null,null,null,null,null,null,null,null,null,"",""]
[null,null,null,null,null,null,null,null,null,"",""]
[null,null,null,null,null,null,null,null,null,"",""]
[null,null,null,null,null,null,null,null,null,{"$f":"IFERROR(IF(H2845<>\"\",7.05,\"\"),\"\")","v":""},""]
[null,null,null,null,null,null,null,null,null,"",""]
[null,null,null,null,null,null,null,null,null,"",""]
[null,null,null,null,null,null,null,null,null,"",""]
[null,null,null,null,null,null,null,null,null,"",""]
[null,null,null,null,null,null,null,null,null,"",""]
[null,null,null,null,null,null,null,null,null,"",""]
[null,null,null,null,null,null,null,null,null,"",""]
[null,null,null,null,null,null,null,null,null,"",""]
[null,null,null,null,null,null,null,null,null,"",""]
[null,null,null,null,null,null,null,null,null,"",""]
[null,null,null,null,null,null,null,null,null,"",""]
[null,null,null,null,null,null,null,null,null,"",""]
[null,null,null,null,null,null,null,null,null,"",""]
[null,null,null,null,null,null,null,null,null,"",""]
[null,null,null,null,null,null,null,null,null,"",""]
[null,null,null,null,null,null,null,null,null,"",""]
[null,null,null,null,null,null,null,null,null,"",""]
[null,null,null,null,null,null,null,null,null,"",""]
[null,null,null,null,null,null,null,null,null,"",""]
[null,null,null,null,null,null,null,null,null,"",""]
[null,null,null,null,null,null,null,null,null,"",""]
[null,null,null,null,null,null,null,null,null,"",""]
[null,null,null,null,null,null,null,null,null,"",""]
[null,null,null,null,null,null,null,null,null,"",""]
[null,null,null,null,null,null,null,null,null,"",""]
[null,null,null,null,null,null,null,null,null,"",""]
[null,null,null,null,null,null,null,null,null,"",""]
[null,null,null,null,null,null,null,null,null,"",""]
[null,null,null,null,null,null,null,null,null,"",{"$f":"IFERROR(IF(H2707<>\"\",I2874*J2874,\"\"),\"\")","v":""}]
[null,null,null,null,null,null,null,null,null,"",""]
[null,null,null,null,null,null,null,null,null,"",""]
[null,null,null,null,null,null,null,null,null,"",""]
[null,null,null,null,null,null,null,null,null,"",""]
[null,null,null,null,null,null,null,null,null,"",""]
[null,null,null,null,null,null,null,null,null,"",""]
[null,null,null,null,null,null,null,null,null,"",""]
[null,null,null,null,null,null,null,null,null,"",""]
[null,null,null,null,null,null,null,null,null,"",""]
[null,null,null,null,null,null,null,null,null,"",""]
[null,null,null,null,null,null,null,null,null,"",""]
[null,null,null,null,null,null,null,null,null,"",""]
[null,null,null,null,null,null,null,null,null,"",""]
[null,null,null,null,null,null,null,null,null,"",""]
[null,null,null,null,null,null,null,null,null,"",""]
[null,null,null,null,null,null,null,null,null,"",""]
[null,null,null,null,null,null,null,null,null,"",""]
[null,null,null,null,null,null,null,null,null,"",""]
[null,null,null,null,null,null,null,null,null,"",""]
[null,null,null,null,null,null,null,null,null,"",""]
[null,null,null,null,null,null,null,null,null,"",""]
[null,null,null,null,null,null,null,null,null,"",""]
[null,null,null,null,null,null,null,null,null,"",""]
[null,null,null,null,null,null,null,null,null,"",""]
[null,null,null,null,null,null,null,null,null,"",""]
[null,null,null,null,null,null,null,null,null,"",""]
[null,null,null,null,null,null,null,null,null,"",""]
[null,null,null,null,null,null,null,null,null,"",""]
[null,null,null,null,null,null,null,null,null,"",""]
[null,null,null,null,null,null,null,null,null,"",""]
[null,null,null,null,null,null,null,null,null,"",""]
[null,null,null,null,null,null,null,null,null,"",""]
[null,null,null,null,null,null,null,null,null,"",""]
[null,null,null,null,null,null,null,null,null,"",""]
[null,null,null,null,null,null,null,null,null,{"$f":"IFERROR(IF(H2909<>\"\",7.05,\"\"),\"\")","v":""},""]
[null,null,null,null,null,null,null,null,null,"",""]
[null,null,null,null,null,null,null,null,null,"",""]
[null,null,null,null,null,null,null,null,null,"",""]
[null,null,null,null,null,null,null,null,null,"",""]
[null,null,null,null,null,null,null,null,null,"",""]
[null,null,null,null,null,null,null,null,null,"",""]
[null,null,null,null,null,null,null,null,null,"",""]
[null,null,null,null,null,null,null,null,null,"",""]
[null,null,null,null,null,null,null,null,null,"",""]
[null,null,null,null,null,null,null,null,null,"",""]
[null,null,null,null,null,null,null,null,null,"",""]
[null,null,null,null,null,null,null,null,null,"",""]
[null,null,null,null,null,null,null,null,null,"",""]
[null,null,null,null,null,null,null,null,null,"",""]
[null,null,null,null,null,null,null,null,null,"",""]
[null,null,null,null,null,null,null,null,null,"",""]
[null,null,null,null,null,null,null,null,null,"",""]
[null,null,null,null,null,null,null,null,null,"",""]
[null,null,null,null,null,null,null,null,null,"",""]
[null,null,null,null,null,null,null,null,null,"",""]
[null,null,null,null,null,null,null,null,null,"",""]
[null,null,null,null,null,null,null,null,null,"",""]
[null,null,null,null,null,null,null,null,null,"",""]
[null,null,null,null,null,null,null,null,null,"",""]
[null,null,null,null,null,null,null,null,null,"",""]
[null,null,null,null,null,null,null,null,null,"",""]
[null,null,null,null,null,null,null,null,null,"",""]
[null,null,null,null,null,null,null,null,null,"",""]
[null,null,null,null,null,null,null,null,null,"",{"$f":"IFERROR(IF(H2771<>\"\",I2938*J2938,\"\"),\"\")","v":""}]
[null,null,null,null,null,null,null,null,null,"",""]
[null,null,null,null,null,null,null,null,null,"",""]
[null,null,null,null,null,null,null,null,null,"",""]
[null,null,null,null,null,null,null,null,null,"",""]
[null,null,null,null,null,null,null,null,null,"",""]
[null,null,null,null,null,null,null,null,null,"",""]
[null,null,null,null,null,null,null,null,null,"",""]
[null,null,null,null,null,null,null,null,null,"",""]
[null,null,null,null,null,null,null,null,null,"",""]
[null,null,null,null,null,null,null,null,null,"",""]
[null,null,null,null,null,null,null,null,null,"",""]
[null,null,null,null,null,null,null,null,null,"",""]
[null,null,null,null,null,null,null,null,null,"",""]
[null,null,null,null,null,null,null,null,null,"",""]
[null,null,null,null,null,null,null,null,null,"",""]
[null,null,null,null,null,null,null,null,null,"",""]
[null,null,null,null,null,null,null,null,null,"",""]
[null,null,null,null,null,null,null,null,null,"",""]
[null,null,null,null,null,null,null,null,null,"",""]
[null,null,null,null,null,null,null,null,null,"",""]
[null,null,null,null,null,null,null,null,null,"",""]
[null,null,null,null,null,null,null,null,null,"",""]
[null,null,null,null,null,null,null,null,null,"",""]
[null,null,null,null,null,null,null,null,null,"",""]
[null,null,null,null,null,null,null,null,null,"",""]
[null,null,null,null,null,null,null,null,null,"",""]
[null,null,null,null,null,null,null,null,null,"",""]
[null,null,null,null,null,null,null,null,null,"",""]
[null,null,null,null,null,null,null,null,null,"",""]
[null,null,null,null,null,null,null,null,null,"",""]
[null,null,null,null,null,null,null,null,null,"",""]
[null,null,null,null,null,null,null,null,null,"",""]
[null,null,null,null,null,null,null,null,null,"",""]
[null,null,null,null,null,null,null,null,null,"",""]
[null,null,null,null,null,null,null,null,null,{"$f":"IFERROR(IF(H2973<>\"\",7.05,\"\"),\"\")","v":""},""]
[null,null,null,null,null,null,null,null,null,"",""]
[null,null,null,null,null,null,null,null,null,"",""]
[null,null,null,null,null,null,null,null,null,"",""]
[null,null,null,null,null,null,null,null,null,"",""]
[null,null,null,null,null,null,null,null,null,"",""]
[null,null,null,null,null,null,null,null,null,"",""]
[null,null,null,null,null,null,null,null,null,"",""]
[null,null,null,null,null,null,null,null,null,"",""]
[null,null,null,null,null,null,null,null,null,"",""]
[null,null,null,null,null,null,null,null,null,"",""]
[null,null,null,null,null,null,null,null,null,"",""]
[null,null,null,null,null,null,null,null,null,"",""]
[null,null,null,null,null,null,null,null,null,"",""]
[null,null,null,null,null,null,null,null,null,"",""]
[null,null,null,null,null,null,null,null,null,"",""]
[null,null,null,null,null,null,null,null,null,"",""]
[null,null,null,null,null,null,null,null,null,"",""]
[null,null,null,null,null,null,null,null,null,"",""]
[null,null,null,null,null,null,null,null,null,"",""]
[null,null,null,null,null,null,null,null,null,"",""]
[null,null,null,null,null,null,null,null,null,"",""]
[null,null,null,null,null,null,null,null,null,"",""]
[null,null,null,null,null,null,null,null,null,"",""]
[null,null,null,null,null,null,null,null,null,"",""]
[null,null,null,null,null,null,null,null,null,"",""]
[null,null,null,null,null,null,null,null,null,"",""]
[null,null,null,null,null,null,null,null,null,"",""]
[null,null,null,null,null,null,null,null,null,"",""]
[null,null,null,null,null,null,null,null,null,"",{"$f":"IFERROR(IF(H2835<>\"\",I3002*J3002,\"\"),\"\")","v":""}]
[null,null,null,null,null,null,null,null,null,"",""]
[null,null,null,null,null,null,null,null,null,"",""]
[null,null,null,null,null,null,null,null,null,"",""]
[null,null,null,null,null,null,null,null,null,"",""]
[null,null,null,null,null,null,null,null,null,"",""]
[null,null,null,null,null,null,null,null,null,"",""]
[null,null,null,null,null,null,null,null,null,"",""]
[null,null,null,null,null,null,null,null,null,"",""]
[null,null,null,null,null,null,null,null,null,"",""]
[null,null,null,null,null,null,null,null,null,"",""]
[null,null,null,null,null,null,null,null,null,"",""]
[null,null,null,null,null,null,null,null,null,"",""]
[null,null,null,null,null,null,null,null,null,"",""]
[null,null,null,null,null,null,null,null,null,"",""]
[null,null,null,null,null,null,null,null,null,"",""]
[null,null,null,null,null,null,null,null,null,"",""]
[null,null,null,null,null,null,null,null,null,"",""]
[null,null,null,null,null,null,null,null,null,"",""]
[null,null,null,null,null,null,null,null,null,"",""]
[null,null,null,null,null,null,null,null,null,"",""]
[null,null,null,null,null,null,null,null,null,"",""]
[null,null,null,null,null,null,null,null,null,"",""]
[null,null,null,null,null,null,null,null,null,"",""]
[null,null,null,null,null,null,null,null,null,"",""]
[null,null,null,null,null,null,null,null,null,"",""]
[null,null,null,null,null,null,null,null,null,"",""]
[null,null,null,null,null,null,null,null,null,"",""]
[null,null,null,null,null,null,null,null,null,"",""]
[null,null,null,null,null,null,null,null,null,"",""]
[null,null,null,null,null,null,null,null,null,"",""]
[null,null,null,null,null,null,null,null,null,"",""]
[null,null,null,null,null,null,null,null,null,"",""]
[null,null,null,null,null,null,null,null,null,"",""]
[null,null,null,null,null,null,null,null,null,"",""]
[null,null,null,null,null,null,null,null,null,{"$f":"IFERROR(IF(H3037<>\"\",7.05,\"\"),\"\")","v":""},""]
[null,null,null,null,null,null,null,null,null,"",""]
[null,null,null,null,null,null,null,null,null,"",""]
[null,null,null,null,null,null,null,null,null,"",""]
[null,null,null,null,null,null,null,null,null,"",""]
[null,null,null,null,null,null,null,null,null,"",""]
[null,null,null,null,null,null,null,null,null,"",""]
[null,null,null,null,null,null,null,null,null,"",""]
[null,null,null,null,null,null,null,null,null,"",""]
[null,null,null,null,null,null,null,null,null,"",""]
[null,null,null,null,null,null,null,null,null,"",""]
[null,null,null,null,null,null,null,null,null,"",""]
[null,null,null,null,null,null,null,null,null,"",""]
[null,null,null,null,null,null,null,null,null,"",""]
[null,null,null,null,null,null,null,null,null,"",""]
[null,null,null,null,null,null,null,null,null,"",""]
[null,null,null,null,null,null,null,null,null,"",""]
[null,null,null,null,null,null,null,null,null,"",""]
[null,null,null,null,null,null,null,null,null,"",""]
[null,null,null,null,null,null,null,null,null,"",""]
[null,null,null,null,null,null,null,null,null,"",""]
[null,null,null,null,null,null,null,null,null,"",""]
[null,null,null,null,null,null,null,null,null,"",""]
[null,null,null,null,null,null,null,null,null,"",""]
[null,null,null,null,null,null,null,null,null,"",""]
[null,null,null,null,null,null,null,null,null,"",""]
[null,null,null,null,null,null,null,null,null,"",""]
[null,null,null,null,null,null,null,null,null,"",""]
[null,null,null,null,null,null,null,null,null,"",""]
[null,null,null,null,null,null,null,null,null,"",{"$f":"IFERROR(IF(H2899<>\"\",I3066*J3066,\"\"),\"\")","v":""}]
[null,null,null,null,null,null,null,null,null,"",""]
[null,null,null,null,null,null,null,null,null,"",""]
[null,null,null,null,null,null,null,null,null,"",""]
[null,null,null,null,null,null,null,null,null,"",""]
[null,null,null,null,null,null,null,null,null,"",""]
[null,null,null,null,null,null,null,null,null,"",""]
[null,null,null,null,null,null,null,null,null,"",""]
[null,null,null,null,null,null,null,null,null,"",""]
[null,null,null,null,null,null,null,null,null,"",""]
[null,null,null,null,null,null,null,null,null,"",""]
[null,null,null,null,null,null,null,null,null,"",""]
[null,null,null,null,null,null,null,null,null,"",""]
[null,null,null,null,null,null,null,null,null,"",""]
[null,null,null,null,null,null,null,null,null,"",""]
[null,null,null,null,null,null,null,null,null,"",""]
[null,null,null,null,null,null,null,null,null,"",""]
[null,null,null,null,null,null,null,null,null,"",""]
[null,null,null,null,null,null,null,null,null,"",""]
[null,null,null,null,null,null,null,null,null,"",""]
[null,null,null,null,null,null,null,null,null,"",""]
[null,null,null,null,null,null,null,null,null,"",""]
[null,null,null,null,null,null,null,null,null,"",""]
[null,null,null,null,null,null,null,null,null,"",""]
[null,null,null,null,null,null,null,null,null,"",""]
[null,null,null,null,null,null,null,null,null,"",""]
[null,null,null,null,null,null,null,null,null,"",""]
[null,null,null,null,null,null,null,null,null,"",""]
[null,null,null,null,null,null,null,null,null,"",""]
[null,null,null,null,null,null,null,null,null,"",""]
[null,null,null,null,null,null,null,null,null,"",""]
[null,null,null,null,null,null,null,null,null,"",""]
[null,null,null,null,null,null,null,null,null,"",""]
[null,null,null,null,null,null,null,null,null,"",""]
[null,null,null,null,null,null,null,null,null,"",""]
[null,null,null,null,null,null,null,null,null,{"$f":"IFERROR(IF(H3101<>\"\",7.05,\"\"),\"\")","v":""},""]
[null,null,null,null,null,null,null,null,null,"",""]
[null,null,null,null,null,null,null,null,null,"",""]
[null,null,null,null,null,null,null,null,null,"",""]
[null,null,null,null,null,null,null,null,null,"",""]
[null,null,null,null,null,null,null,null,null,"",""]
[null,null,null,null,null,null,null,null,null,"",""]
[null,null,null,null,null,null,null,null,null,"",""]
[null,null,null,null,null,null,null,null,null,"",""]
[null,null,null,null,null,null,null,null,null,"",""]
[null,null,null,null,null,null,null,null,null,"",""]
[null,null,null,null,null,null,null,null,null,"",""]
[null,null,null,null,null,null,null,null,null,"",""]
[null,null,null,null,null,null,null,null,null,"",""]
[null,null,null,null,null,null,null,null,null,"",""]
[null,null,null,null,null,null,null,null,null,"",""]
[null,null,null,null,null,null,null,null,null,"",""]
[null,null,null,null,null,null,null,null,null,"",""]
[null,null,null,null,null,null,null,null,null,"",""]
[null,null,null,null,null,null,null,null,null,"",""]
[null,null,null,null,null,null,null,null,null,"",""]
[null,null,null,null,null,null,null,null,null,"",""]
[null,null,null,null,null,null,null,null,null,"",""]
[null,null,null,null,null,null,null,null,null,"",""]
[null,null,null,null,null,null,null,null,null,"",""]
[null,null,null,null,null,null,null,null,null,"",""]
[null,null,null,null,null,null,null,null,null,"",""]
[null,null,null,null,null,null,null,null,null,"",""]
[null,null,null,null,null,null,null,null,null,"",""]
[null,null,null,null,null,null,null,null,null,"",{"$f":"IFERROR(IF(H2963<>\"\",I3130*J3130,\"\"),\"\")","v":""}]
[null,null,null,null,null,null,null,null,null,"",""]
[null,null,null,null,null,null,null,null,null,"",""]
[null,null,null,null,null,null,null,null,null,"",""]
[null,null,null,null,null,null,null,null,null,"",""]
[null,null,null,null,null,null,null,null,null,"",""]
[null,null,null,null,null,null,null,null,null,"",""]
[null,null,null,null,null,null,null,null,null,"",""]
[null,null,null,null,null,null,null,null,null,"",""]
[null,null,null,null,null,null,null,null,null,"",""]
[null,null,null,null,null,null,null,null,null,"",""]
[null,null,null,null,null,null,null,null,null,"",""]
[null,null,null,null,null,null,null,null,null,"",""]
[null,null,null,null,null,null,null,null,null,"",""]
[null,null,null,null,null,null,null,null,null,"",""]
[null,null,null,null,null,null,null,null,null,"",""]
[null,null,null,null,null,null,null,null,null,"",""]
[null,null,null,null,null,null,null,null,null,"",""]
[null,null,null,null,null,null,null,null,null,"",""]
[null,null,null,null,null,null,null,null,null,"",""]
[null,null,null,null,null,null,null,null,null,"",""]
[null,null,null,null,null,null,null,null,null,"",""]
[null,null,null,null,null,null,null,null,null,"",""]
[null,null,null,null,null,null,null,null,null,"",""]
[null,null,null,null,null,null,null,null,null,"",""]
[null,null,null,null,null,null,null,null,null,"",""]
[null,null,null,null,null,null,null,null,null,"",""]
[null,null,null,null,null,null,null,null,null,"",""]
[null,null,null,null,null,null,null,null,null,"",""]
[null,null,null,null,null,null,null,null,null,"",""]
[null,null,null,null,null,null,null,null,null,"",""]
[null,null,null,null,null,null,null,null,null,"",""]
[null,null,null,null,null,null,null,null,null,"",""]
[null,null,null,null,null,null,null,null,null,"",""]
[null,null,null,null,null,null,null,null,null,"",""]
[null,null,null,null,null,null,null,null,null,{"$f":"IFERROR(IF(H3165<>\"\",7.05,\"\"),\"\")","v":""},""]
[null,null,null,null,null,null,null,null,null,"",""]
[null,null,null,null,null,null,null,null,null,"",""]
[null,null,null,null,null,null,null,null,null,"",""]
[null,null,null,null,null,null,null,null,null,"",""]
[null,null,null,null,null,null,null,null,null,"",""]
[null,null,null,null,null,null,null,null,null,"",""]
[null,null,null,null,null,null,null,null,null,"",""]
[null,null,null,null,null,null,null,null,null,"",""]
[null,null,null,null,null,null,null,null,null,"",""]
[null,null,null,null,null,null,null,null,null,"",""]
[null,null,null,null,null,null,null,null,null,"",""]
[null,null,null,null,null,null,null,null,null,"",""]
[null,null,null,null,null,null,null,null,null,"",""]
[null,null,null,null,null,null,null,null,null,"",""]
[null,null,null,null,null,null,null,null,null,"",""]
[null,null,null,null,null,null,null,null,null,"",""]
[null,null,null,null,null,null,null,null,null,"",""]
[null,null,null,null,null,null,null,null,null,"",""]
[null,null,null,null,null,null,null,null,null,"",""]
[null,null,null,null,null,null,null,null,null,"",""]
[null,null,null,null,null,null,null,null,null,"",""]
[null,null,null,null,null,null,null,null,null,"",""]
[null,null,null,null,null,null,null,null,null,"",""]
[null,null,null,null,null,null,null,null,null,"",""]
[null,null,null,null,null,null,null,null,null,"",""]
[null,null,null,null,null,null,null,null,null,"",""]
[null,null,null,null,null,null,null,null,null,"",""]
[null,null,null,null,null,null,null,null,null,"",""]
[null,null,null,null,null,null,null,null,null,"",{"$f":"IFERROR(IF(H3027<>\"\",I3194*J3194,\"\"),\"\")","v":""}]
[null,null,null,null,null,null,null,null,null,"",""]
[null,null,null,null,null,null,null,null,null,"",""]
[null,null,null,null,null,null,null,null,null,"",""]
[null,null,null,null,null,null,null,null,null,"",""]
[null,null,null,null,null,null,null,null,null,"",""]
[null,null,null,null,null,null,null,null,null,"",""]
[null,null,null,null,null,null,null,null,null,"",""]
[null,null,null,null,null,null,null,null,null,"",""]
[null,null,null,null,null,null,null,null,null,"",""]
[null,null,null,null,null,null,null,null,null,"",""]
[null,null,null,null,null,null,null,null,null,"",""]
[null,null,null,null,null,null,null,null,null,"",""]
[null,null,null,null,null,null,null,null,null,"",""]
[null,null,null,null,null,null,null,null,null,"",""]
[null,null,null,null,null,null,null,null,null,"",""]
[null,null,null,null,null,null,null,null,null,"",""]
[null,null,null,null,null,null,null,null,null,"",""]
[null,null,null,null,null,null,null,null,null,"",""]
[null,null,null,null,null,null,null,null,null,"",""]
[null,null,null,null,null,null,null,null,null,"",""]
[null,null,null,null,null,null,null,null,null,"",""]
[null,null,null,null,null,null,null,null,null,"",""]
[null,null,null,null,null,null,null,null,null,"",""]
[null,null,null,null,null,null,null,null,null,"",""]
[null,null,null,null,null,null,null,null,null,"",""]
[null,null,null,null,null,null,null,null,null,"",""]
[null,null,null,null,null,null,null,null,null,"",""]
[null,null,null,null,null,null,null,null,null,"",""]
[null,null,null,null,null,null,null,null,null,"",""]
[null,null,null,null,null,null,null,null,null,"",""]
[null,null,null,null,null,null,null,null,null,"",""]
[null,null,null,null,null,null,null,null,null,"",""]
[null,null,null,null,null,null,null,null,null,"",""]
[null,null,null,null,null,null,null,null,null,"",""]
[null,null,null,null,null,null,null,null,null,{"$f":"IFERROR(IF(H3229<>\"\",7.05,\"\"),\"\")","v":""},""]
[null,null,null,null,null,null,null,null,null,"",""]
[null,null,null,null,null,null,null,null,null,"",""]
[null,null,null,null,null,null,null,null,null,"",""]
[null,null,null,null,null,null,null,null,null,"",""]
[null,null,null,null,null,null,null,null,null,"",""]
[null,null,null,null,null,null,null,null,null,"",""]
[null,null,null,null,null,null,null,null,null,"",""]
[null,null,null,null,null,null,null,null,null,"",""]
[null,null,null,null,null,null,null,null,null,"",""]
[null,null,null,null,null,null,null,null,null,"",""]
[null,null,null,null,null,null,null,null,null,"",""]
[null,null,null,null,null,null,null,null,null,"",""]
[null,null,null,null,null,null,null,null,null,"",""]
[null,null,null,null,null,null,null,null,null,"",""]
[null,null,null,null,null,null,null,null,null,"",""]
[null,null,null,null,null,null,null,null,null,"",""]
[null,null,null,null,null,null,null,null,null,"",""]
[null,null,null,null,null,null,null,null,null,"",""]
[null,null,null,null,null,null,null,null,null,"",""]
[null,null,null,null,null,null,null,null,null,"",""]
[null,null,null,null,null,null,null,null,null,"",""]
[null,null,null,null,null,null,null,null,null,"",""]
[null,null,null,null,null,null,null,null,null,"",""]
[null,null,null,null,null,null,null,null,null,"",""]
[null,null,null,null,null,null,null,null,null,"",""]
[null,null,null,null,null,null,null,null,null,"",""]
[null,null,null,null,null,null,null,null,null,"",""]
[null,null,null,null,null,null,null,null,null,"",""]
[null,null,null,null,null,null,null,null,null,"",{"$f":"IFERROR(IF(H3091<>\"\",I3258*J3258,\"\"),\"\")","v":""}]
[null,null,null,null,null,null,null,null,null,"",""]
[null,null,null,null,null,null,null,null,null,"",""]
[null,null,null,null,null,null,null,null,null,"",""]
[null,null,null,null,null,null,null,null,null,"",""]
[null,null,null,null,null,null,null,null,null,"",""]
[null,null,null,null,null,null,null,null,null,"",""]
[null,null,null,null,null,null,null,null,null,"",""]
[null,null,null,null,null,null,null,null,null,"",""]
[null,null,null,null,null,null,null,null,null,"",""]
[null,null,null,null,null,null,null,null,null,"",""]
[null,null,null,null,null,null,null,null,null,"",""]
[null,null,null,null,null,null,null,null,null,"",""]
[null,null,null,null,null,null,null,null,null,"",""]
[null,null,null,null,null,null,null,null,null,"",""]
[null,null,null,null,null,null,null,null,null,"",""]
[null,null,null,null,null,null,null,null,null,"",""]
[null,null,null,null,null,null,null,null,null,"",""]
[null,null,null,null,null,null,null,null,null,"",""]
[null,null,null,null,null,null,null,null,null,"",""]
[null,null,null,null,null,null,null,null,null,"",""]
[null,null,null,null,null,null,null,null,null,"",""]
[null,null,null,null,null,null,null,null,null,"",""]
[null,null,null,null,null,null,null,null,null,"",""]
[null,null,null,null,null,null,null,null,null,"",""]
[null,null,null,null,null,null,null,null,null,"",""]
[null,null,null,null,null,null,null,null,null,"",""]
[null,null,null,null,null,null,null,null,null,"",""]
[null,null,null,null,null,null,null,null,null,"",""]
[null,null,null,null,null,null,null,null,null,"",""]
[null,null,null,null,null,null,null,null,null,"",""]
[null,null,null,null,null,null,null,null,null,"",""]
[null,null,null,null,null,null,null,null,null,"",""]
[null,null,null,null,null,null,null,null,null,"",""]
[null,null,null,null,null,null,null,null,null,"",""]
[null,null,null,null,null,null,null,null,null,{"$f":"IFERROR(IF(H3293<>\"\",7.05,\"\"),\"\")","v":""},""]
[null,null,null,null,null,null,null,null,null,"",""]
[null,null,null,null,null,null,null,null,null,"",""]
[null,null,null,null,null,null,null,null,null,"",""]
[null,null,null,null,null,null,null,null,null,"",""]
[null,null,null,null,null,null,null,null,null,"",""]
[null,null,null,null,null,null,null,null,null,"",""]
[null,null,null,null,null,null,null,null,null,"",""]
[null,null,null,null,null,null,null,null,null,"",""]
[null,null,null,null,null,null,null,null,null,"",""]
[null,null,null,null,null,null,null,null,null,"",""]
[null,null,null,null,null,null,null,null,null,"",""]
[null,null,null,null,null,null,null,null,null,"",""]
[null,null,null,null,null,null,null,null,null,"",""]
[null,null,null,null,null,null,null,null,null,"",""]
[null,null,null,null,null,null,null,null,null,"",""]
[null,null,null,null,null,null,null,null,null,"",""]
[null,null,null,null,null,null,null,null,null,"",""]
[null,null,null,null,null,null,null,null,null,"",""]
[null,null,null,null,null,null,null,null,null,"",""]
[null,null,null,null,null,null,null,null,null,"",""]
[null,null,null,null,null,null,null,null,null,"",""]
[null,null,null,null,null,null,null,null,null,"",""]
[null,null,null,null,null,null,null,null,null,"",""]
[null,null,null,null,null,null,null,null,null,"",""]
[null,null,null,null,null,null,null,null,null,"",""]
[null,null,null,null,null,null,null,null,null,"",""]
[null,null,null,null,null,null,null,null,null,"",""]
[null,null,null,null,null,null,null,null,null,"",""]
[null,null,null,null,null,null,null,null,null,"",{"$f":"IFERROR(IF(H3155<>\"\",I3322*J3322,\"\"),\"\")","v":""}]
[null,null,null,null,null,null,null,null,null,"",""]
[null,null,null,null,null,null,null,null,null,"",""]
[null,null,null,null,null,null,null,null,null,"",""]
[null,null,null,null,null,null,null,null,null,"",""]
[null,null,null,null,null,null,null,null,null,"",""]
[null,null,null,null,null,null,null,null,null,"",""]
[null,null,null,null,null,null,null,null,null,"",""]
[null,null,null,null,null,null,null,null,null,"",""]
[null,null,null,null,null,null,null,null,null,"",""]
[null,null,null,null,null,null,null,null,null,"",""]
[null,null,null,null,null,null,null,null,null,"",""]
[null,null,null,null,null,null,null,null,null,"",""]
[null,null,null,null,null,null,null,null,null,"",""]
[null,null,null,null,null,null,null,null,null,"",""]
[null,null,null,null,null,null,null,null,null,"",""]
[null,null,null,null,null,null,null,null,null,"",""]
[null,null,null,null,null,null,null,null,null,"",""]
[null,null,null,null,null,null,null,null,null,"",""]
[null,null,null,null,null,null,null,null,null,"",""]
[null,null,null,null,null,null,null,null,null,"",""]
[null,null,null,null,null,null,null,null,null,"",""]
[null,null,null,null,null,null,null,null,null,"",""]
[null,null,null,null,null,null,null,null,null,"",""]
[null,null,null,null,null,null,null,null,null,"",""]
[null,null,null,null,null,null,null,null,null,"",""]
[null,null,null,null,null,null,null,null,null,"",""]
[null,null,null,null,null,null,null,null,null,"",""]
[null,null,null,null,null,null,null,null,null,"",""]
[null,null,null,null,null,null,null,null,null,"",""]
[null,null,null,null,null,null,null,null,null,"",""]
[null,null,null,null,null,null,null,null,null,"",""]
[null,null,null,null,null,null,null,null,null,"",""]
[null,null,null,null,null,null,null,null,null,"",""]
[null,null,null,null,null,null,null,null,null,"",""]
[null,null,null,null,null,null,null,null,null,{"$f":"IFERROR(IF(H3357<>\"\",7.05,\"\"),\"\")","v":""},""]
[null,null,null,null,null,null,null,null,null,"",""]
[null,null,null,null,null,null,null,null,null,"",""]
[null,null,null,null,null,null,null,null,null,"",""]
[null,null,null,null,null,null,null,null,null,"",""]
[null,null,null,null,null,null,null,null,null,"",""]
[null,null,null,null,null,null,null,null,null,"",""]
[null,null,null,null,null,null,null,null,null,"",""]
[null,null,null,null,null,null,null,null,null,"",""]
[null,null,null,null,null,null,null,null,null,"",""]
[null,null,null,null,null,null,null,null,null,"",""]
[null,null,null,null,null,null,null,null,null,"",""]
[null,null,null,null,null,null,null,null,null,"",""]
[null,null,null,null,null,null,null,null,null,"",""]
[null,null,null,null,null,null,null,null,null,"",""]
[null,null,null,null,null,null,null,null,null,"",""]
[null,null,null,null,null,null,null,null,null,"",""]
[null,null,null,null,null,null,null,null,null,"",""]
[null,null,null,null,null,null,null,null,null,"",""]
[null,null,null,null,null,null,null,null,null,"",""]
[null,null,null,null,null,null,null,null,null,"",""]
[null,null,null,null,null,null,null,null,null,"",""]
[null,null,null,null,null,null,null,null,null,"",""]
[null,null,null,null,null,null,null,null,null,"",""]
[null,null,null,null,null,null,null,null,null,"",""]
[null,null,null,null,null,null,null,null,null,"",""]
[null,null,null,null,null,null,null,null,null,"",""]
[null,null,null,null,null,null,null,null,null,"",""]
[null,null,null,null,null,null,null,null,null,"",""]
[null,null,null,null,null,null,null,null,null,"",{"$f":"IFERROR(IF(H3219<>\"\",I3386*J3386,\"\"),\"\")","v":""}]
[null,null,null,null,null,null,null,null,null,"",""]
[null,null,null,null,null,null,null,null,null,"",""]
[null,null,null,null,null,null,null,null,null,"",""]
[null,null,null,null,null,null,null,null,null,"",""]
[null,null,null,null,null,null,null,null,null,"",""]
[null,null,null,null,null,null,null,null,null,"",""]
[null,null,null,null,null,null,null,null,null,"",""]
[null,null,null,null,null,null,null,null,null,"",""]
[null,null,null,null,null,null,null,null,null,"",""]
[null,null,null,null,null,null,null,null,null,"",""]
[null,null,null,null,null,null,null,null,null,"",""]
[null,null,null,null,null,null,null,null,null,"",""]
[null,null,null,null,null,null,null,null,null,"",""]
[null,null,null,null,null,null,null,null,null,"",""]
[null,null,null,null,null,null,null,null,null,"",""]
[null,null,null,null,null,null,null,null,null,"",""]
[null,null,null,null,null,null,null,null,null,"",""]
[null,null,null,null,null,null,null,null,null,"",""]
[null,null,null,null,null,null,null,null,null,"",""]
[null,null,null,null,null,null,null,null,null,"",""]
[null,null,null,null,null,null,null,null,null,"",""]
[null,null,null,null,null,null,null,null,null,"",""]
[null,null,null,null,null,null,null,null,null,"",""]
[null,null,null,null,null,null,null,null,null,"",""]
[null,null,null,null,null,null,null,null,null,"",""]
[null,null,null,null,null,null,null,null,null,"",""]
[null,null,null,null,null,null,null,null,null,"",""]
[null,null,null,null,null,null,null,null,null,"",""]
[null,null,null,null,null,null,null,null,null,"",""]
[null,null,null,null,null,null,null,null,null,"",""]
[null,null,null,null,null,null,null,null,null,"",""]
[null,null,null,null,null,null,null,null,null,"",""]
[null,null,null,null,null,null,null,null,null,"",""]
[null,null,null,null,null,null,null,null,null,"",""]
[null,null,null,null,null,null,null,null,null,{"$f":"IFERROR(IF(H3421<>\"\",7.05,\"\"),\"\")","v":""},""]
[null,null,null,null,null,null,null,null,null,"",""]
[null,null,null,null,null,null,null,null,null,"",""]
[null,null,null,null,null,null,null,null,null,"",""]
[null,null,null,null,null,null,null,null,null,"",""]
[null,null,null,null,null,null,null,null,null,"",""]
[null,null,null,null,null,null,null,null,null,"",""]
[null,null,null,null,null,null,null,null,null,"",""]
[null,null,null,null,null,null,null,null,null,"",""]
[null,null,null,null,null,null,null,null,null,"",""]
[null,null,null,null,null,null,null,null,null,"",""]
[null,null,null,null,null,null,null,null,null,"",""]
[null,null,null,null,null,null,null,null,null,"",""]
[null,null,null,null,null,null,null,null,null,"",""]
[null,null,null,null,null,null,null,null,null,"",""]
[null,null,null,null,null,null,null,null,null,"",""]
[null,null,null,null,null,null,null,null,null,"",""]
[null,null,null,null,null,null,null,null,null,"",""]
[null,null,null,null,null,null,null,null,null,"",""]
[null,null,null,null,null,null,null,null,null,"",""]
[null,null,null,null,null,null,null,null,null,"",""]
[null,null,null,null,null,null,null,null,null,"",""]
[null,null,null,null,null,null,null,null,null,"",""]
[null,null,null,null,null,null,null,null,null,"",""]
[null,null,null,null,null,null,null,null,null,"",""]
[null,null,null,null,null,null,null,null,null,"",""]
[null,null,null,null,null,null,null,null,null,"",""]
[null,null,null,null,null,null,null,null,null,"",""]
[null,null,null,null,null,null,null,null,null,"",""]
[null,null,null,null,null,null,null,null,null,"",{"$f":"IFERROR(IF(H3283<>\"\",I3450*J3450,\"\"),\"\")","v":""}]
[null,null,null,null,null,null,null,null,null,"",""]
[null,null,null,null,null,null,null,null,null,"",""]
[null,null,null,null,null,null,null,null,null,"",""]
[null,null,null,null,null,null,null,null,null,"",""]
[null,null,null,null,null,null,null,null,null,"",""]
[null,null,null,null,null,null,null,null,null,"",""]
[null,null,null,null,null,null,null,null,null,"",""]
[null,null,null,null,null,null,null,null,null,"",""]
[null,null,null,null,null,null,null,null,null,"",""]
[null,null,null,null,null,null,null,null,null,"",""]
[null,null,null,null,null,null,null,null,null,"",""]
[null,null,null,null,null,null,null,null,null,"",""]
[null,null,null,null,null,null,null,null,null,"",""]
[null,null,null,null,null,null,null,null,null,"",""]
[null,null,null,null,null,null,null,null,null,"",""]
[null,null,null,null,null,null,null,null,null,"",""]
[null,null,null,null,null,null,null,null,null,"",""]
[null,null,null,null,null,null,null,null,null,"",""]
[null,null,null,null,null,null,null,null,null,"",""]
[null,null,null,null,null,null,null,null,null,"",""]
[null,null,null,null,null,null,null,null,null,"",""]
[null,null,null,null,null,null,null,null,null,"",""]
[null,null,null,null,null,null,null,null,null,"",""]
[null,null,null,null,null,null,null,null,null,"",""]
[null,null,null,null,null,null,null,null,null,"",""]
[null,null,null,null,null,null,null,null,null,"",""]
[null,null,null,null,null,null,null,null,null,"",""]
[null,null,null,null,null,null,null,null,null,"",""]
[null,null,null,null,null,null,null,null,null,"",""]
[null,null,null,null,null,null,null,null,null,"",""]
[null,null,null,null,null,null,null,null,null,"",""]
[null,null,null,null,null,null,null,null,null,"",""]
[null,null,null,null,null,null,null,null,null,"",""]
[null,null,null,null,null,null,null,null,null,"",""]
[null,null,null,null,null,null,null,null,null,{"$f":"IFERROR(IF(H3485<>\"\",7.05,\"\"),\"\")","v":""},""]
[null,null,null,null,null,null,null,null,null,"",""]
[null,null,null,null,null,null,null,null,null,"",""]
[null,null,null,null,null,null,null,null,null,"",""]
[null,null,null,null,null,null,null,null,null,"",""]
[null,null,null,null,null,null,null,null,null,"",""]
[null,null,null,null,null,null,null,null,null,"",""]
[null,null,null,null,null,null,null,null,null,"",""]
[null,null,null,null,null,null,null,null,null,"",""]
[null,null,null,null,null,null,null,null,null,"",""]
[null,null,null,null,null,null,null,null,null,"",""]
[null,null,null,null,null,null,null,null,null,"",""]
[null,null,null,null,null,null,null,null,null,"",""]
[null,null,null,null,null,null,null,null,null,"",""]
[null,null,null,null,null,null,null,null,null,"",""]
[null,null,null,null,null,null,null,null,null,"",""]
[null,null,null,null,null,null,null,null,null,"",""]
[null,null,null,null,null,null,null,null,null,"",""]
[null,null,null,null,null,null,null,null,null,"",""]
[null,null,null,null,null,null,null,null,null,"",""]
[null,null,null,null,null,null,null,null,null,"",""]
[null,null,null,null,null,null,null,null,null,"",""]
[null,null,null,null,null,null,null,null,null,"",""]
[null,null,null,null,null,null,null,null,null,"",""]
[null,null,null,null,null,null,null,null,null,"",""]
[null,null,null,null,null,null,null,null,null,"",""]
[null,null,null,null,null,null,null,null,null,"",""]
[null,null,null,null,null,null,null,null,null,"",""]
[null,null,null,null,null,null,null,null,null,"",""]
[null,null,null,null,null,null,null,null,null,"",{"$f":"IFERROR(IF(H3347<>\"\",I3514*J3514,\"\"),\"\")","v":""}]
[null,null,null,null,null,null,null,null,null,"",""]
[null,null,null,null,null,null,null,null,null,"",""]
[null,null,null,null,null,null,null,null,null,"",""]
[null,null,null,null,null,null,null,null,null,"",""]
[null,null,null,null,null,null,null,null,null,"",""]
[null,null,null,null,null,null,null,null,null,"",""]
[null,null,null,null,null,null,null,null,null,"",""]
[null,null,null,null,null,null,null,null,null,"",""]
[null,null,null,null,null,null,null,null,null,"",""]
[null,null,null,null,null,null,null,null,null,"",""]
[null,null,null,null,null,null,null,null,null,"",""]
[null,null,null,null,null,null,null,null,null,"",""]
[null,null,null,null,null,null,null,null,null,"",""]
[null,null,null,null,null,null,null,null,null,"",""]
[null,null,null,null,null,null,null,null,null,"",""]
[null,null,null,null,null,null,null,null,null,"",""]
[null,null,null,null,null,null,null,null,null,"",""]
[null,null,null,null,null,null,null,null,null,"",""]
[null,null,null,null,null,null,null,null,null,"",""]
[null,null,null,null,null,null,null,null,null,"",""]
[null,null,null,null,null,null,null,null,null,"",""]
[null,null,null,null,null,null,null,null,null,"",""]
[null,null,null,null,null,null,null,null,null,"",""]
[null,null,null,null,null,null,null,null,null,"",""]
[null,null,null,null,null,null,null,null,null,"",""]
[null,null,null,null,null,null,null,null,null,"",""]
[null,null,null,null,null,null,null,null,null,"",""]
[null,null,null,null,null,null,null,null,null,"",""]
[null,null,null,null,null,null,null,null,null,"",""]
[null,null,null,null,null,null,null,null,null,"",""]
[null,null,null,null,null,null,null,null,null,"",""]
[null,null,null,null,null,null,null,null,null,"",""]
[null,null,null,null,null,null,null,null,null,"",""]
[null,null,null,null,null,null,null,null,null,"",""]
[null,null,null,null,null,null,null,null,null,{"$f":"IFERROR(IF(H3549<>\"\",7.05,\"\"),\"\")","v":""},""]
[null,null,null,null,null,null,null,null,null,"",""]
[null,null,null,null,null,null,null,null,null,"",""]
[null,null,null,null,null,null,null,null,null,"",""]
[null,null,null,null,null,null,null,null,null,"",""]
[null,null,null,null,null,null,null,null,null,"",""]
[null,null,null,null,null,null,null,null,null,"",""]
[null,null,null,null,null,null,null,null,null,"",""]
[null,null,null,null,null,null,null,null,null,"",""]
[null,null,null,null,null,null,null,null,null,"",""]
[null,null,null,null,null,null,null,null,null,"",""]
[null,null,null,null,null,null,null,null,null,"",""]
[null,null,null,null,null,null,null,null,null,"",""]
[null,null,null,null,null,null,null,null,null,"",""]
[null,null,null,null,null,null,null,null,null,"",""]
[null,null,null,null,null,null,null,null,null,"",""]
[null,null,null,null,null,null,null,null,null,"",""]
[null,null,null,null,null,null,null,null,null,"",""]
[null,null,null,null,null,null,null,null,null,"",""]
[null,null,null,null,null,null,null,null,null,"",""]
[null,null,null,null,null,null,null,null,null,"",""]
[null,null,null,null,null,null,null,null,null,"",""]
[null,null,null,null,null,null,null,null,null,"",""]
[null,null,null,null,null,null,null,null,null,"",""]
[null,null,null,null,null,null,null,null,null,"",""]
[null,null,null,null,null,null,null,null,null,"",""]
[null,null,null,null,null,null,null,null,null,"",""]
[null,null,null,null,null,null,null,null,null,"",""]
[null,null,null,null,null,null,null,null,null,"",""]
[null,null,null,null,null,null,null,null,null,"",{"$f":"IFERROR(IF(H3411<>\"\",I3578*J3578,\"\"),\"\")","v":""}]
[null,null,null,null,null,null,null,null,null,"",""]
[null,null,null,null,null,null,null,null,null,"",""]
[null,null,null,null,null,null,null,null,null,"",""]
[null,null,null,null,null,null,null,null,null,"",""]
[null,null,null,null,null,null,null,null,null,"",""]
[null,null,null,null,null,null,null,null,null,"",""]
[null,null,null,null,null,null,null,null,null,"",""]
[null,null,null,null,null,null,null,null,null,"",""]
[null,null,null,null,null,null,null,null,null,"",""]
[null,null,null,null,null,null,null,null,null,"",""]
[null,null,null,null,null,null,null,null,null,"",""]
[null,null,null,null,null,null,null,null,null,"",""]
[null,null,null,null,null,null,null,null,null,"",""]
[null,null,null,null,null,null,null,null,null,"",""]
[null,null,null,null,null,null,null,null,null,"",""]
[null,null,null,null,null,null,null,null,null,"",""]
[null,null,null,null,null,null,null,null,null,"",""]
[null,null,null,null,null,null,null,null,null,"",""]
[null,null,null,null,null,null,null,null,null,"",""]
[null,null,null,null,null,null,null,null,null,"",""]
[null,null,null,null,null,null,null,null,null,"",""]
[null,null,null,null,null,null,null,null,null,"",""]
[null,null,null,null,null,null,null,null,null,"",""]
[null,null,null,null,null,null,null,null,null,"",""]
[null,null,null,null,null,null,null,null,null,"",""]
[null,null,null,null,null,null,null,null,null,"",""]
[null,null,null,null,null,null,null,null,null,"",""]
[null,null,null,null,null,null,null,null,null,"",""]
[null,null,null,null,null,null,null,null,null,"",""]
[null,null,null,null,null,null,null,null,null,"",""]
[null,null,null,null,null,null,null,null,null,"",""]
[null,null,null,null,null,null,null,null,null,"",""]
[null,null,null,null,null,null,null,null,null,"",""]
[null,null,null,null,null,null,null,null,null,"",""]
[null,null,null,null,null,null,null,null,null,{"$f":"IFERROR(IF(H3613<>\"\",7.05,\"\"),\"\")","v":""},""]
[null,null,null,null,null,null,null,null,null,"",""]
[null,null,null,null,null,null,null,null,null,"",""]
[null,null,null,null,null,null,null,null,null,"",""]
[null,null,null,null,null,null,null,null,null,"",""]
[null,null,null,null,null,null,null,null,null,"",""]
[null,null,null,null,null,null,null,null,null,"",""]
[null,null,null,null,null,null,null,null,null,"",""]
[null,null,null,null,null,null,null,null,null,"",""]
[null,null,null,null,null,null,null,null,null,"",""]
[null,null,null,null,null,null,null,null,null,"",""]
[null,null,null,null,null,null,null,null,null,"",""]
[null,null,null,null,null,null,null,null,null,"",""]
[null,null,null,null,null,null,null,null,null,"",""]
[null,null,null,null,null,null,null,null,null,"",""]
[null,null,null,null,null,null,null,null,null,"",""]
[null,null,null,null,null,null,null,null,null,"",""]
[null,null,null,null,null,null,null,null,null,"",""]
[null,null,null,null,null,null,null,null,null,"",""]
[null,null,null,null,null,null,null,null,null,"",""]
[null,null,null,null,null,null,null,null,null,"",""]
[null,null,null,null,null,null,null,null,null,"",""]
[null,null,null,null,null,null,null,null,null,"",""]
[null,null,null,null,null,null,null,null,null,"",""]
[null,null,null,null,null,null,null,null,null,"",""]
[null,null,null,null,null,null,null,null,null,"",""]
[null,null,null,null,null,null,null,null,null,"",""]
[null,null,null,null,null,null,null,null,null,"",""]
[null,null,null,null,null,null,null,null,null,"",""]
[null,null,null,null,null,null,null,null,null,"",{"$f":"IFERROR(IF(H3475<>\"\",I3642*J3642,\"\"),\"\")","v":""}]
[null,null,null,null,null,null,null,null,null,"",""]
[null,null,null,null,null,null,null,null,null,"",""]
[null,null,null,null,null,null,null,null,null,"",""]
[null,null,null,null,null,null,null,null,null,"",""]
[null,null,null,null,null,null,null,null,null,"",""]
[null,null,null,null,null,null,null,null,null,"",""]
[null,null,null,null,null,null,null,null,null,"",""]
[null,null,null,null,null,null,null,null,null,"",""]
[null,null,null,null,null,null,null,null,null,"",""]
[null,null,null,null,null,null,null,null,null,"",""]
[null,null,null,null,null,null,null,null,null,null,""]
[null,null,null,null,null,null,null,null,null,null,""]
[null,null,null,null,null,null,null,null,null,null,""]
[null,null,null,null,null,null,null,null,null,null,""]
[null,null,null,null,null,null,null,null,null,null,""]
[null,null,null,null,null,null,null,null,null,null,""]
[null,null,null,null,null,null,null,null,null,null,""]
[null,null,null,null,null,null,null,null,null,null,""]
[null,null,null,null,null,null,null,null,null,null,""]
[null,null,null,null,null,null,null,null,null,null,""]
[null,null,null,null,null,null,null,null,null,null,""]
[null,null,null,null,null,null,null,null,null,null,""]
[null,null,null,null,null,null,null,null,null,null,""]
[null,null,null,null,null,null,null,null,null,null,""]
[null,null,null,null,null,null,null,null,null,null,""]
[null,null,null,null,null,null,null,null,null,null,""]
[null,null,null,null,null,null,null,null,null,null,""]
[null,null,null,null,null,null,null,null,null,null,""]
[null,null,null,null,null,null,null,null,null,null,""]
[null,null,null,null,null,null,null,null,null,null,""]
[null,null,null,null,null,null,null,null,null,null,""]
[null,null,null,null,null,null,null,null,null,null,""]
[null,null,null,null,null,null,null,null,null,null,""]
[null,null,null,null,null,null,null,null,null,null,""]
[null,null,null,null,null,null,null,null,null,null,""]
[null,null,null,null,null,null,null,null,null,null,""]
[null,null,null,null,null,null,null,null,null,null,""]
[null,null,null,null,null,null,null,null,null,null,""]
[null,null,null,null,null,null,null,null,null,null,""]
[null,null,null,null,null,null,null,null,null,null,""]
[null,null,null,null,null,null,null,null,null,null,""]
[null,null,null,null,null,null,null,null,null,null,""]
[null,null,null,null,null,null,null,null,null,null,""]
[null,null,null,null,null,null,null,null,null,null,""]
[null,null,null,null,null,null,null,null,null,null,""]
[null,null,null,null,null,null,null,null,null,null,""]
[null,null,null,null,null,null,null,null,null,null,""]
[null,null,null,null,null,null,null,null,null,null,""]
[null,null,null,null,null,null,null,null,null,null,""]
[null,null,null,null,null,null,null,null,null,null,""]
[null,null,null,null,null,null,null,null,null,null,""]
[null,null,null,null,null,null,null,null,null,null,""]
[null,null,null,null,null,null,null,null,null,null,""]
[null,null,null,null,null,null,null,null,null,null,""]
[null,null,null,null,null,null,null,null,null,null,""]
[null,null,null,null,null,null,null,null,null,null,""]
[null,null,null,null,null,null,null,null,null,null,""]
[null,null,null,null,null,null,null,null,null,null,""]
[null,null,null,null,null,null,null,null,null,null,""]
[null,null,null,null,null,null,null,null,null,null,""]
[null,null,null,null,null,null,null,null,null,null,""]
[null,null,null,null,null,null,null,null,null,null,""]
[null,null,null,null,null,null,null,null,null,null,""]
[null,null,null,null,null,null,null,null,null,null,{"$f":"IFERROR(IF(H3539<>\"\",I3706*J3706,\"\"),\"\")","v":""}]
[null,null,null,null,null,null,null,null,null,null,""]
[null,null,null,null,null,null,null,null,null,null,""]
[null,null,null,null,null,null,null,null,null,null,""]
[null,null,null,null,null,null,null,null,null,null,""]
[null,null,null,null,null,null,null,null,null,null,""]
[null,null,null,null,null,null,null,null,null,null,""]
[null,null,null,null,null,null,null,null,null,null,""]
[null,null,null,null,null,null,null,null,null,null,""]
[null,null,null,null,null,null,null,null,null,null,""]
[null,null,null,null,null,null,null,null,null,null,""]
[null,null,null,null,null,null,null,null,null,null,""]
[null,null,null,null,null,null,null,null,null,null,""]
[null,null,null,null,null,null,null,null,null,null,""]
[null,null,null,null,null,null,null,null,null,null,""]
[null,null,null,null,null,null,null,null,null,null,""]
[null,null,null,null,null,null,null,null,null,null,""]
[null,null,null,null,null,null,null,null,null,null,""]
[null,null,null,null,null,null,null,null,null,null,""]
[null,null,null,null,null,null,null,null,null,null,""]
[null,null,null,null,null,null,null,null,null,null,""]
[null,null,null,null,null,null,null,null,null,null,""]
[null,null,null,null,null,null,null,null,null,null,""]
[null,null,null,null,null,null,null,null,null,null,""]
[null,null,null,null,null,null,null,null,null,null,""]
[null,null,null,null,null,null,null,null,null,null,""]
[null,null,null,null,null,null,null,null,null,null,""]
[null,null,null,null,null,null,null,null,null,null,""]
[null,null,null,null,null,null,null,null,null,null,""]
[null,null,null,null,null,null,null,null,null,null,""]
[null,null,null,null,null,null,null,null,null,null,""]
[null,null,null,null,null,null,null,null,null,null,""]
[null,null,null,null,null,null,null,null,null,null,""]
[null,null,null,null,null,null,null,null,null,null,""]
[null,null,null,null,null,null,null,null,null,null,""]
[null,null,null,null,null,null,null,null,null,null,""]
[null,null,null,null,null,null,null,null,null,null,""]
[null,null,null,null,null,null,null,null,null,null,""]
[null,null,null,null,null,null,null,null,null,null,""]
[null,null,null,null,null,null,null,null,null,null,""]
[null,null,null,null,null,null,null,null,null,null,""]
[null,null,null,null,null,null,null,null,null,null,""]
[null,null,null,null,null,null,null,null,null,null,""]
[null,null,null,null,null,null,null,null,null,null,""]
[null,null,null,null,null,null,null,null,null,null,""]
[null,null,null,null,null,null,null,null,null,null,""]
[null,null,null,null,null,null,null,null,null,null,""]
[null,null,null,null,null,null,null,null,null,null,""]
[null,null,null,null,null,null,null,null,null,null,""]
[null,null,null,null,null,null,null,null,null,null,""]
[null,null,null,null,null,null,null,null,null,null,""]
[null,null,null,null,null,null,null,null,null,null,""]
[null,null,null,null,null,null,null,null,null,null,""]
[null,null,null,null,null,null,null,null,null,null,""]
[null,null,null,null,null,null,null,null,null,null,""]
[null,null,null,null,null,null,null,null,null,null,""]
[null,null,null,null,null,null,null,null,null,null,""]
[null,null,null,null,null,null,null,null,null,null,""]
[null,null,null,null,null,null,null,null,null,null,""]
[null,null,null,null,null,null,null,null,null,null,""]
[null,null,null,null,null,null,null,null,null,null,""]
[null,null,null,null,null,null,null,null,null,null,""]
[null,null,null,null,null,null,null,null,null,null,""]
[null,null,null,null,null,null,null,null,null,null,""]
[null,null,null,null,null,null,null,null,null,null,{"$f":"IFERROR(IF(H3603<>\"\",I3770*J3770,\"\"),\"\")","v":""}]
[null,null,null,null,null,null,null,null,null,null,""]
[null,null,null,null,null,null,null,null,null,null,""]
[null,null,null,null,null,null,null,null,null,null,""]
[null,null,null,null,null,null,null,null,null,null,""]
[null,null,null,null,null,null,null,null,null,null,""]
[null,null,null,null,null,null,null,null,null,null,""]
[null,null,null,null,null,null,null,null,null,null,""]
[null,null,null,null,null,null,null,null,null,null,""]
[null,null,null,null,null,null,null,null,null,null,""]
[null,null,null,null,null,null,null,null,null,null,""]
[null,null,null,null,null,null,null,null,null,null,""]
[null,null,null,null,null,null,null,null,null,null,""]
[null,null,null,null,null,null,null,null,null,null,""]
[null,null,null,null,null,null,null,null,null,null,""]
[null,null,null,null,null,null,null,null,null,null,""]
[null,null,null,null,null,null,null,null,null,null,""]
[null,null,null,null,null,null,null,null,null,null,""]
[null,null,null,null,null,null,null,null,null,null,""]
[null,null,null,null,null,null,null,null,null,null,""]
[null,null,null,null,null,null,null,null,null,null,""]
[null,null,null,null,null,null,null,null,null,null,""]
[null,null,null,null,null,null,null,null,null,null,""]
[null,null,null,null,null,null,null,null,null,null,""]
[null,null,null,null,null,null,null,null,null,null,""]
[null,null,null,null,null,null,null,null,null,null,""]
[null,null,null,null,null,null,null,null,null,null,""]
[null,null,null,null,null,null,null,null,null,null,""]
[null,null,null,null,null,null,null,null,null,null,""]
[null,null,null,null,null,null,null,null,null,null,""]
[null,null,null,null,null,null,null,null,null,null,""]
[null,null,null,null,null,null,null,null,null,null,""]
[null,null,null,null,null,null,null,null,null,null,""]
[null,null,null,null,null,null,null,null,null,null,""]
[null,null,null,null,null,null,null,null,null,null,""]
[null,null,null,null,null,null,null,null,null,null,""]
[null,null,null,null,null,null,null,null,null,null,""]
[null,null,null,null,null,null,null,null,null,null,""]
[null,null,null,null,null,null,null,null,null,null,""]
[null,null,null,null,null,null,null,null,null,null,""]
[null,null,null,null,null,null,null,null,null,null,""]
[null,null,null,null,null,null,null,null,null,null,""]
[null,null,null,null,null,null,null,null,null,null,""]
[null,null,null,null,null,null,null,null,null,null,""]
[null,null,null,null,null,null,null,null,null,null,""]
[null,null,null,null,null,null,null,null,null,null,""]
[null,null,null,null,null,null,null,null,null,null,""]
[null,null,null,null,null,null,null,null,null,null,""]
[null,null,null,null,null,null,null,null,null,null,""]
[null,null,null,null,null,null,null,null,null,null,""]
[null,null,null,null,null,null,null,null,null,null,""]
[null,null,null,null,null,null,null,null,null,null,""]
[null,null,null,null,null,null,null,null,null,null,""]
[null,null,null,null,null,null,null,null,null,null,""]
[null,null,null,null,null,null,null,null,null,null,""]
[null,null,null,null,null,null,null,null,null,null,""]
[null,null,null,null,null,null,null,null,null,null,""]
[null,null,null,null,null,null,null,null,null,null,""]
[null,null,null,null,null,null,null,null,null,null,""]
[null,null,null,null,null,null,null,null,null,null,""]
[null,null,null,null,null,null,null,null,null,null,""]
[null,null,null,null,null,null,null,null,null,null,""]
[null,null,null,null,null,null,null,null,null,null,""]
[null,null,null,null,null,null,null,null,null,null,""]
[null,null,null,null,null,null,null,null,null,null,{"$f":"IFERROR(IF(H3667<>\"\",I3834*J3834,\"\"),\"\")","v":""}]
[null,null,null,null,null,null,null,null,null,null,""]
[null,null,null,null,null,null,null,null,null,null,""]
[null,null,null,null,null,null,null,null,null,null,""]
[null,null,null,null,null,null,null,null,null,null,""]
[null,null,null,null,null,null,null,null,null,null,""]
[null,null,null,null,null,null,null,null,null,null,""]
[null,null,null,null,null,null,null,null,null,null,""]
[null,null,null,null,null,null,null,null,null,null,""]
[null,null,null,null,null,null,null,null,null,null,""]
[null,null,null,null,null,null,null,null,null,null,""]
[null,null,null,null,null,null,null,null,null,null,""]
[null,null,null,null,null,null,null,null,null,null,""]
[null,null,null,null,null,null,null,null,null,null,""]
[null,null,null,null,null,null,null,null,null,null,""]
[null,null,null,null,null,null,null,null,null,null,""]
[null,null,null,null,null,null,null,null,null,null,""]
[null,null,null,null,null,null,null,null,null,null,""]
[null,null,null,null,null,null,null,null,null,null,""]
[null,null,null,null,null,null,null,null,null,null,""]
[null,null,null,null,null,null,null,null,null,null,""]
[null,null,null,null,null,null,null,null,null,null,""]
[null,null,null,null,null,null,null,null,null,null,""]
[null,null,null,null,null,null,null,null,null,null,""]
[null,null,null,null,null,null,null,null,null,null,""]
[null,null,null,null,null,null,null,null,null,null,""]
[null,null,null,null,null,null,null,null,null,null,""]
[null,null,null,null,null,null,null,null,null,null,""]
[null,null,null,null,null,null,null,null,null,null,""]
[null,null,null,null,null,null,null,null,null,null,""]
[null,null,null,null,null,null,null,null,null,null,""]
[null,null,null,null,null,null,null,null,null,null,""]
[null,null,null,null,null,null,null,null,null,null,""]
[null,null,null,null,null,null,null,null,null,null,""]
[null,null,null,null,null,null,null,null,null,null,""]
[null,null,null,null,null,null,null,null,null,null,""]
[null,null,null,null,null,null,null,null,null,null,""]
[null,null,null,null,null,null,null,null,null,null,""]
[null,null,null,null,null,null,null,null,null,null,""]
[null,null,null,null,null,null,null,null,null,null,""]
[null,null,null,null,null,null,null,null,null,null,""]
[null,null,null,null,null,null,null,null,null,null,""]
[null,null,null,null,null,null,null,null,null,null,""]
[null,null,null,null,null,null,null,null,null,null,""]
[null,null,null,null,null,null,null,null,null,null,""]
[null,null,null,null,null,null,null,null,null,null,""]
[null,null,null,null,null,null,null,null,null,null,""]
[null,null,null,null,null,null,null,null,null,null,""]
[null,null,null,null,null,null,null,null,null,null,""]
[null,null,null,null,null,null,null,null,null,null,""]
[null,null,null,null,null,null,null,null,null,null,""]
[null,null,null,null,null,null,null,null,null,null,""]
[null,null,null,null,null,null,null,null,null,null,""]
[null,null,null,null,null,null,null,null,null,null,""]
[null,null,null,null,null,null,null,null,null,null,""]
[null,null,null,null,null,null,null,null,null,null,""]
[null,null,null,null,null,null,null,null,null,null,""]
[null,null,null,null,null,null,null,null,null,null,""]
[null,null,null,null,null,null,null,null,null,null,""]
[null,null,null,null,null,null,null,null,null,null,""]
[null,null,null,null,null,null,null,null,null,null,""]
[null,null,null,null,null,null,null,null,null,null,""]
[null,null,null,null,null,null,null,null,null,null,""]
[null,null,null,null,null,null,null,null,null,null,""]
[null,null,null,null,null,null,null,null,null,null,{"$f":"IFERROR(IF(H3731<>\"\",I3898*J3898,\"\"),\"\")","v":""}]
[null,null,null,null,null,null,null,null,null,null,""]
[null,null,null,null,null,null,null,null,null,null,""]
[null,null,null,null,null,null,null,null,null,null,""]
[null,null,null,null,null,null,null,null,null,null,""]
[null,null,null,null,null,null,null,null,null,null,""]
[null,null,null,null,null,null,null,null,null,null,""]
[null,null,null,null,null,null,null,null,null,null,""]
[null,null,null,null,null,null,null,null,null,null,""]
[null,null,null,null,null,null,null,null,null,null,""]
[null,null,null,null,null,null,null,null,null,null,""]
[null,null,null,null,null,null,null,null,null,null,""]
[null,null,null,null,null,null,null,null,null,null,""]
[null,null,null,null,null,null,null,null,null,null,""]
[null,null,null,null,null,null,null,null,null,null,""]
[null,null,null,null,null,null,null,null,null,null,""]
[null,null,null,null,null,null,null,null,null,null,""]
[null,null,null,null,null,null,null,null,null,null,""]
[null,null,null,null,null,null,null,null,null,null,""]
[null,null,null,null,null,null,null,null,null,null,""]
[null,null,null,null,null,null,null,null,null,null,""]
[null,null,null,null,null,null,null,null,null,null,""]
[null,null,null,null,null,null,null,null,null,null,""]
[null,null,null,null,null,null,null,null,null,null,""]
[null,null,null,null,null,null,null,null,null,null,""]
[null,null,null,null,null,null,null,null,null,null,""]
[null,null,null,null,null,null,null,null,null,null,""]
[null,null,null,null,null,null,null,null,null,null,""]
[null,null,null,null,null,null,null,null,null,null,""]
[null,null,null,null,null,null,null,null,null,null,""]
[null,null,null,null,null,null,null,null,null,null,""]
[null,null,null,null,null,null,null,null,null,null,""]
[null,null,null,null,null,null,null,null,null,null,""]
[null,null,null,null,null,null,null,null,null,null,""]
[null,null,null,null,null,null,null,null,null,null,""]
[null,null,null,null,null,null,null,null,null,null,""]
[null,null,null,null,null,null,null,null,null,null,""]
[null,null,null,null,null,null,null,null,null,null,""]
[null,null,null,null,null,null,null,null,null,null,""]
[null,null,null,null,null,null,null,null,null,null,""]
[null,null,null,null,null,null,null,null,null,null,""]
[null,null,null,null,null,null,null,null,null,null,""]
[null,null,null,null,null,null,null,null,null,null,""]
[null,null,null,null,null,null,null,null,null,null,""]
[null,null,null,null,null,null,null,null,null,null,""]
[null,null,null,null,null,null,null,null,null,null,""]
[null,null,null,null,null,null,null,null,null,null,""]
[null,null,null,null,null,null,null,null,null,null,""]
[null,null,null,null,null,null,null,null,null,null,""]
[null,null,null,null,null,null,null,null,null,null,""]
[null,null,null,null,null,null,null,null,null,null,""]
[null,null,null,null,null,null,null,null,null,null,""]
[null,null,null,null,null,null,null,null,null,null,""]
[null,null,null,null,null,null,null,null,null,null,""]
[null,null,null,null,null,null,null,null,null,null,""]
[null,null,null,null,null,null,null,null,null,null,""]
[null,null,null,null,null,null,null,null,null,null,""]
[null,null,null,null,null,null,null,null,null,null,""]
[null,null,null,null,null,null,null,null,null,null,""]
[null,null,null,null,null,null,null,null,null,null,""]
[null,null,null,null,null,null,null,null,null,null,""]
[null,null,null,null,null,null,null,null,null,null,""]
[null,null,null,null,null,null,null,null,null,null,""]
[null,null,null,null,null,null,null,null,null,null,""]
[null,null,null,null,null,null,null,null,null,null,{"$f":"IFERROR(IF(H3795<>\"\",I3962*J3962,\"\"),\"\")","v":""}]
[null,null,null,null,null,null,null,null,null,null,""]
[null,null,null,null,null,null,null,null,null,null,""]
[null,null,null,null,null,null,null,null,null,null,""]
[null,null,null,null,null,null,null,null,null,null,""]
[null,null,null,null,null,null,null,null,null,null,""]
[null,null,null,null,null,null,null,null,null,null,""]
[null,null,null,null,null,null,null,null,null,null,""]
[null,null,null,null,null,null,null,null,null,null,""]
[null,null,null,null,null,null,null,null,null,null,""]
[null,null,null,null,null,null,null,null,null,null,""]
[null,null,null,null,null,null,null,null,null,null,""]
[null,null,null,null,null,null,null,null,null,null,""]
[null,null,null,null,null,null,null,null,null,null,""]
[null,null,null,null,null,null,null,null,null,null,""]
[null,null,null,null,null,null,null,null,null,null,""]
[null,null,null,null,null,null,null,null,null,null,""]
[null,null,null,null,null,null,null,null,null,null,""]
[null,null,null,null,null,null,null,null,null,null,""]
[null,null,null,null,null,null,null,null,null,null,""]
[null,null,null,null,null,null,null,null,null,null,""]
[null,null,null,null,null,null,null,null,null,null,""]
[null,null,null,null,null,null,null,null,null,null,""]
[null,null,null,null,null,null,null,null,null,null,""]
[null,null,null,null,null,null,null,null,null,null,""]
[null,null,null,null,null,null,null,null,null,null,""]
[null,null,null,null,null,null,null,null,null,null,""]
[null,null,null,null,null,null,null,null,null,null,""]
[null,null,null,null,null,null,null,null,null,null,""]
[null,null,null,null,null,null,null,null,null,null,""]
[null,null,null,null,null,null,null,null,null,null,""]
[null,null,null,null,null,null,null,null,null,null,""]
[null,null,null,null,null,null,null,null,null,null,""]
[null,null,null,null,null,null,null,null,null,null,""]
[null,null,null,null,null,null,null,null,null,null,""]
[null,null,null,null,null,null,null,null,null,null,""]
[null,null,null,null,null,null,null,null,null,null,""]
[null,null,null,null,null,null,null,null,null,null,""]
[null,null,null,null,null,null,null,null,null,null,""]
[null,null,null,null,null,null,null,null,null,null,""]
[null,null,null,null,null,null,null,null,null,null,""]
[null,null,null,null,null,null,null,null,null,null,""]
[null,null,null,null,null,null,null,null,null,null,""]
[null,null,null,null,null,null,null,null,null,null,""]
[null,null,null,null,null,null,null,null,null,null,""]
[null,null,null,null,null,null,null,null,null,null,""]
[null,null,null,null,null,null,null,null,null,null,""]
[null,null,null,null,null,null,null,null,null,null,""]
[null,null,null,null,null,null,null,null,null,null,""]
[null,null,null,null,null,null,null,null,null,null,""]
[null,null,null,null,null,null,null,null,null,null,""]
[null,null,null,null,null,null,null,null,null,null,""]
[null,null,null,null,null,null,null,null,null,null,""]
[null,null,null,null,null,null,null,null,null,null,""]
[null,null,null,null,null,null,null,null,null,null,""]
[null,null,null,null,null,null,null,null,null,null,""]
[null,null,null,null,null,null,null,null,null,null,""]
[null,null,null,null,null,null,null,null,null,null,""]
[null,null,null,null,null,null,null,null,null,null,""]
[null,null,null,null,null,null,null,null,null,null,""]
[null,null,null,null,null,null,null,null,null,null,""]
[null,null,null,null,null,null,null,null,null,null,""]
[null,null,null,null,null,null,null,null,null,null,""]
[null,null,null,null,null,null,null,null,null,null,""]
[null,null,null,null,null,null,null,null,null,null,{"$f":"IFERROR(IF(H3859<>\"\",I4026*J4026,\"\"),\"\")","v":""}]
[null,null,null,null,null,null,null,null,null,null,""]
[null,null,null,null,null,null,null,null,null,null,""]
[null,null,null,null,null,null,null,null,null,null,""]
[null,null,null,null,null,null,null,null,null,null,""]
[null,null,null,null,null,null,null,null,null,null,""]
[null,null,null,null,null,null,null,null,null,null,""]
[null,null,null,null,null,null,null,null,null,null,""]
[null,null,null,null,null,null,null,null,null,null,""]
[null,null,null,null,null,null,null,null,null,null,""]
[null,null,null,null,null,null,null,null,null,null,""]
[null,null,null,null,null,null,null,null,null,null,""]
[null,null,null,null,null,null,null,null,null,null,""]
[null,null,null,null,null,null,null,null,null,null,""]
[null,null,null,null,null,null,null,null,null,null,""]
[null,null,null,null,null,null,null,null,null,null,""]
[null,null,null,null,null,null,null,null,null,null,""]
[null,null,null,null,null,null,null,null,null,null,""]
[null,null,null,null,null,null,null,null,null,null,""]
[null,null,null,null,null,null,null,null,null,null,""]
[null,null,null,null,null,null,null,null,null,null,""]
[null,null,null,null,null,null,null,null,null,null,""]
[null,null,null,null,null,null,null,null,null,null,""]
[null,null,null,null,null,null,null,null,null,null,""]
[null,null,null,null,null,null,null,null,null,null,""]
[null,null,null,null,null,null,null,null,null,null,""]
[null,null,null,null,null,null,null,null,null,null,""]
[null,null,null,null,null,null,null,null,null,null,""]
[null,null,null,null,null,null,null,null,null,null,""]
[null,null,null,null,null,null,null,null,null,null,""]
[null,null,null,null,null,null,null,null,null,null,""]
[null,null,null,null,null,null,null,null,null,null,""]
[null,null,null,null,null,null,null,null,null,null,""]
[null,null,null,null,null,null,null,null,null,null,""]
[null,null,null,null,null,null,null,null,null,null,""]
[null,null,null,null,null,null,null,null,null,null,""]
[null,null,null,null,null,null,null,null,null,null,""]
[null,null,null,null,null,null,null,null,null,null,""]
[null,null,null,null,null,null,null,null,null,null,""]
[null,null,null,null,null,null,null,null,null,null,""]
[null,null,null,null,null,null,null,null,null,null,""]
[null,null,null,null,null,null,null,null,null,null,""]
[null,null,null,null,null,null,null,null,null,null,""]
[null,null,null,null,null,null,null,null,null,null,""]
[null,null,null,null,null,null,null,null,null,null,""]
[null,null,null,null,null,null,null,null,null,null,""]
[null,null,null,null,null,null,null,null,null,null,""]
[null,null,null,null,null,null,null,null,null,null,""]
[null,null,null,null,null,null,null,null,null,null,""]
[null,null,null,null,null,null,null,null,null,null,""]
[null,null,null,null,null,null,null,null,null,null,""]
[null,null,null,null,null,null,null,null,null,null,""]
[null,null,null,null,null,null,null,null,null,null,""]
[null,null,null,null,null,null,null,null,null,null,""]
[null,null,null,null,null,null,null,null,null,null,""]
[null,null,null,null,null,null,null,null,null,null,""]
[null,null,null,null,null,null,null,null,null,null,""]
[null,null,null,null,null,null,null,null,null,null,""]
[null,null,null,null,null,null,null,null,null,null,""]
[null,null,null,null,null,null,null,null,null,null,""]
[null,null,null,null,null,null,null,null,null,null,""]
[null,null,null,null,null,null,null,null,null,null,""]
[null,null,null,null,null,null,null,null,null,null,""]
[null,null,null,null,null,null,null,null,null,null,""]
[null,null,null,null,null,null,null,null,null,null,{"$f":"IFERROR(IF(H3923<>\"\",I4090*J4090,\"\"),\"\")","v":""}]
[null,null,null,null,null,null,null,null,null,null,""]
[null,null,null,null,null,null,null,null,null,null,""]
[null,null,null,null,null,null,null,null,null,null,""]
[null,null,null,null,null,null,null,null,null,null,""]
[null,null,null,null,null,null,null,null,null,null,""]
[null,null,null,null,null,null,null,null,null,null,""]
[null,null,null,null,null,null,null,null,null,null,""]
[null,null,null,null,null,null,null,null,null,null,""]
[null,null,null,null,null,null,null,null,null,null,""]
[null,null,null,null,null,null,null,null,null,null,""]
[null,null,null,null,null,null,null,null,null,null,""]
[null,null,null,null,null,null,null,null,null,null,""]
[null,null,null,null,null,null,null,null,null,null,""]
[null,null,null,null,null,null,null,null,null,null,""]
[null,null,null,null,null,null,null,null,null,null,""]
[null,null,null,null,null,null,null,null,null,null,""]
[null,null,null,null,null,null,null,null,null,null,""]
[null,null,null,null,null,null,null,null,null,null,""]
[null,null,null,null,null,null,null,null,null,null,""]
[null,null,null,null,null,null,null,null,null,null,""]
[null,null,null,null,null,null,null,null,null,null,""]
[null,null,null,null,null,null,null,null,null,null,""]
[null,null,null,null,null,null,null,null,null,null,""]
[null,null,null,null,null,null,null,null,null,null,""]
[null,null,null,null,null,null,null,null,null,null,""]
[null,null,null,null,null,null,null,null,null,null,""]
[null,null,null,null,null,null,null,null,null,null,""]
[null,null,null,null,null,null,null,null,null,null,""]
[null,null,null,null,null,null,null,null,null,null,""]
[null,null,null,null,null,null,null,null,null,null,""]
[null,null,null,null,null,null,null,null,null,null,""]
[null,null,null,null,null,null,null,null,null,null,""]
[null,null,null,null,null,null,null,null,null,null,""]
[null,null,null,null,null,null,null,null,null,null,""]
[null,null,null,null,null,null,null,null,null,null,""]
[null,null,null,null,null,null,null,null,null,null,""]
[null,null,null,null,null,null,null,null,null,null,""]
[null,null,null,null,null,null,null,null,null,null,""]
[null,null,null,null,null,null,null,null,null,null,""]
[null,null,null,null,null,null,null,null,null,null,""]
[null,null,null,null,null,null,null,null,null,null,""]
[null,null,null,null,null,null,null,null,null,null,""]
[null,null,null,null,null,null,null,null,null,null,""]
[null,null,null,null,null,null,null,null,null,null,""]
[null,null,null,null,null,null,null,null,null,null,""]
[null,null,null,null,null,null,null,null,null,null,""]
[null,null,null,null,null,null,null,null,null,null,""]
[null,null,null,null,null,null,null,null,null,null,""]
[null,null,null,null,null,null,null,null,null,null,""]
[null,null,null,null,null,null,null,null,null,null,""]
[null,null,null,null,null,null,null,null,null,null,""]
[null,null,null,null,null,null,null,null,null,null,""]
[null,null,null,null,null,null,null,null,null,null,""]
[null,null,null,null,null,null,null,null,null,null,""]
[null,null,null,null,null,null,null,null,null,null,""]
[null,null,null,null,null,null,null,null,null,null,""]
[null,null,null,null,null,null,null,null,null,null,""]
[null,null,null,null,null,null,null,null,null,null,""]
[null,null,null,null,null,null,null,null,null,null,""]
[null,null,null,null,null,null,null,null,null,null,""]
[null,null,null,null,null,null,null,null,null,null,""]
[null,null,null,null,null,null,null,null,null,null,""]
[null,null,null,null,null,null,null,null,null,null,""]
[null,null,null,null,null,null,null,null,null,null,{"$f":"IFERROR(IF(H3987<>\"\",I4154*J4154,\"\"),\"\")","v":""}]
[null,null,null,null,null,null,null,null,null,null,""]
[null,null,null,null,null,null,null,null,null,null,""]
[null,null,null,null,null,null,null,null,null,null,""]
[null,null,null,null,null,null,null,null,null,null,""]
[null,null,null,null,null,null,null,null,null,null,""]
[null,null,null,null,null,null,null,null,null,null,""]
[null,null,null,null,null,null,null,null,null,null,""]
[null,null,null,null,null,null,null,null,null,null,""]
[null,null,null,null,null,null,null,null,null,null,""]
[null,null,null,null,null,null,null,null,null,null,""]
[null,null,null,null,null,null,null,null,null,null,""]
[null,null,null,null,null,null,null,null,null,null,""]
[null,null,null,null,null,null,null,null,null,null,""]
[null,null,null,null,null,null,null,null,null,null,""]
[null,null,null,null,null,null,null,null,null,null,""]
[null,null,null,null,null,null,null,null,null,null,""]
[null,null,null,null,null,null,null,null,null,null,""]
[null,null,null,null,null,null,null,null,null,null,""]
[null,null,null,null,null,null,null,null,null,null,""]
[null,null,null,null,null,null,null,null,null,null,""]
[null,null,null,null,null,null,null,null,null,null,""]
[null,null,null,null,null,null,null,null,null,null,""]
[null,null,null,null,null,null,null,null,null,null,""]
[null,null,null,null,null,null,null,null,null,null,""]
[null,null,null,null,null,null,null,null,null,null,""]
[null,null,null,null,null,null,null,null,null,null,""]
[null,null,null,null,null,null,null,null,null,null,""]
[null,null,null,null,null,null,null,null,null,null,""]
[null,null,null,null,null,null,null,null,null,null,""]
[null,null,null,null,null,null,null,null,null,null,""]
[null,null,null,null,null,null,null,null,null,null,""]
[null,null,null,null,null,null,null,null,null,null,""]
[null,null,null,null,null,null,null,null,null,null,""]
[null,null,null,null,null,null,null,null,null,null,""]
[null,null,null,null,null,null,null,null,null,null,""]
[null,null,null,null,null,null,null,null,null,null,""]
[null,null,null,null,null,null,null,null,null,null,""]
[null,null,null,null,null,null,null,null,null,null,""]
[null,null,null,null,null,null,null,null,null,null,""]
[null,null,null,null,null,null,null,null,null,null,""]
[null,null,null,null,null,null,null,null,null,null,""]
[null,null,null,null,null,null,null,null,null,null,""]
[null,null,null,null,null,null,null,null,null,null,""]
[null,null,null,null,null,null,null,null,null,null,""]
[null,null,null,null,null,null,null,null,null,null,""]
[null,null,null,null,null,null,null,null,null,null,""]
[null,null,null,null,null,null,null,null,null,null,""]
[null,null,null,null,null,null,null,null,null,null,""]
[null,null,null,null,null,null,null,null,null,null,""]
[null,null,null,null,null,null,null,null,null,null,""]
[null,null,null,null,null,null,null,null,null,null,""]
[null,null,null,null,null,null,null,null,null,null,""]
[null,null,null,null,null,null,null,null,null,null,""]
[null,null,null,null,null,null,null,null,null,null,""]
[null,null,null,null,null,null,null,null,null,null,""]
[null,null,null,null,null,null,null,null,null,null,""]
[null,null,null,null,null,null,null,null,null,null,""]
[null,null,null,null,null,null,null,null,null,null,""]
[null,null,null,null,null,null,null,null,null,null,""]
[null,null,null,null,null,null,null,null,null,null,""]
[null,null,null,null,null,null,null,null,null,null,""]
[null,null,null,null,null,null,null,null,null,null,""]
[null,null,null,null,null,null,null,null,null,null,""]
[null,null,null,null,null,null,null,null,null,null,{"$f":"IFERROR(IF(H4051<>\"\",I4218*J4218,\"\"),\"\")","v":""}]
[null,null,null,null,null,null,null,null,null,null,""]
[null,null,null,null,null,null,null,null,null,null,""]
[null,null,null,null,null,null,null,null,null,null,""]
[null,null,null,null,null,null,null,null,null,null,""]
[null,null,null,null,null,null,null,null,null,null,""]
[null,null,null,null,null,null,null,null,null,null,""]
[null,null,null,null,null,null,null,null,null,null,""]
[null,null,null,null,null,null,null,null,null,null,""]
[null,null,null,null,null,null,null,null,null,null,""]
[null,null,null,null,null,null,null,null,null,null,""]
[null,null,null,null,null,null,null,null,null,null,""]
[null,null,null,null,null,null,null,null,null,null,""]
[null,null,null,null,null,null,null,null,null,null,""]
[null,null,null,null,null,null,null,null,null,null,""]
[null,null,null,null,null,null,null,null,null,null,""]
[null,null,null,null,null,null,null,null,null,null,""]
[null,null,null,null,null,null,null,null,null,null,""]
[null,null,null,null,null,null,null,null,null,null,""]
[null,null,null,null,null,null,null,null,null,null,""]
[null,null,null,null,null,null,null,null,null,null,""]
[null,null,null,null,null,null,null,null,null,null,""]
[null,null,null,null,null,null,null,null,null,null,""]
[null,null,null,null,null,null,null,null,null,null,""]
[null,null,null,null,null,null,null,null,null,null,""]
[null,null,null,null,null,null,null,null,null,null,""]
[null,null,null,null,null,null,null,null,null,null,""]
[null,null,null,null,null,null,null,null,null,null,""]
[null,null,null,null,null,null,null,null,null,null,""]
[null,null,null,null,null,null,null,null,null,null,""]
[null,null,null,null,null,null,null,null,null,null,""]
[null,null,null,null,null,null,null,null,null,null,""]
[null,null,null,null,null,null,null,null,null,null,""]
[null,null,null,null,null,null,null,null,null,null,""]
[null,null,null,null,null,null,null,null,null,null,""]
[null,null,null,null,null,null,null,null,null,null,""]
[null,null,null,null,null,null,null,null,null,null,""]
[null,null,null,null,null,null,null,null,null,null,""]
[null,null,null,null,null,null,null,null,null,null,""]
[null,null,null,null,null,null,null,null,null,null,""]
[null,null,null,null,null,null,null,null,null,null,""]
[null,null,null,null,null,null,null,null,null,null,""]
[null,null,null,null,null,null,null,null,null,null,""]
[null,null,null,null,null,null,null,null,null,null,""]
[null,null,null,null,null,null,null,null,null,null,""]
[null,null,null,null,null,null,null,null,null,null,""]
[null,null,null,null,null,null,null,null,null,null,""]
[null,null,null,null,null,null,null,null,null,null,""]
[null,null,null,null,null,null,null,null,null,null,""]
[null,null,null,null,null,null,null,null,null,null,""]
[null,null,null,null,null,null,null,null,null,null,""]
[null,null,null,null,null,null,null,null,null,null,""]
[null,null,null,null,null,null,null,null,null,null,""]
[null,null,null,null,null,null,null,null,null,null,""]
[null,null,null,null,null,null,null,null,null,null,""]
[null,null,null,null,null,null,null,null,null,null,""]
[null,null,null,null,null,null,null,null,null,null,""]
[null,null,null,null,null,null,null,null,null,null,""]
[null,null,null,null,null,null,null,null,null,null,""]
[null,null,null,null,null,null,null,null,null,null,""]
[null,null,null,null,null,null,null,null,null,null,""]
[null,null,null,null,null,null,null,null,null,null,""]
[null,null,null,null,null,null,null,null,null,null,""]
[null,null,null,null,null,null,null,null,null,null,""]
[null,null,null,null,null,null,null,null,null,null,{"$f":"IFERROR(IF(H4115<>\"\",I4282*J4282,\"\"),\"\")","v":""}]
[null,null,null,null,null,null,null,null,null,null,""]
[null,null,null,null,null,null,null,null,null,null,""]
[null,null,null,null,null,null,null,null,null,null,""]
[null,null,null,null,null,null,null,null,null,null,""]
[null,null,null,null,null,null,null,null,null,null,""]
[null,null,null,null,null,null,null,null,null,null,""]
[null,null,null,null,null,null,null,null,null,null,""]
[null,null,null,null,null,null,null,null,null,null,""]
[null,null,null,null,null,null,null,null,null,null,""]
[null,null,null,null,null,null,null,null,null,null,""]
[null,null,null,null,null,null,null,null,null,null,""]
[null,null,null,null,null,null,null,null,null,null,""]
[null,null,null,null,null,null,null,null,null,null,""]
[null,null,null,null,null,null,null,null,null,null,""]
[null,null,null,null,null,null,null,null,null,null,""]
[null,null,null,null,null,null,null,null,null,null,""]
[null,null,null,null,null,null,null,null,null,null,""]
[null,null,null,null,null,null,null,null,null,null,""]
[null,null,null,null,null,null,null,null,null,null,""]
[null,null,null,null,null,null,null,null,null,null,""]
[null,null,null,null,null,null,null,null,null,null,""]
[null,null,null,null,null,null,null,null,null,null,""]
[null,null,null,null,null,null,null,null,null,null,""]
[null,null,null,null,null,null,null,null,null,null,""]
[null,null,null,null,null,null,null,null,null,null,""]
[null,null,null,null,null,null,null,null,null,null,""]
[null,null,null,null,null,null,null,null,null,null,""]
[null,null,null,null,null,null,null,null,null,null,""]
[null,null,null,null,null,null,null,null,null,null,""]
[null,null,null,null,null,null,null,null,null,null,""]
[null,null,null,null,null,null,null,null,null,null,""]
[null,null,null,null,null,null,null,null,null,null,""]
[null,null,null,null,null,null,null,null,null,null,""]
[null,null,null,null,null,null,null,null,null,null,""]
[null,null,null,null,null,null,null,null,null,null,""]
[null,null,null,null,null,null,null,null,null,null,""]
[null,null,null,null,null,null,null,null,null,null,""]
[null,null,null,null,null,null,null,null,null,null,""]
[null,null,null,null,null,null,null,null,null,null,""]
[null,null,null,null,null,null,null,null,null,null,""]
[null,null,null,null,null,null,null,null,null,null,""]
[null,null,null,null,null,null,null,null,null,null,""]
[null,null,null,null,null,null,null,null,null,null,""]
[null,null,null,null,null,null,null,null,null,null,""]
[null,null,null,null,null,null,null,null,null,null,""]
[null,null,null,null,null,null,null,null,null,null,""]
[null,null,null,null,null,null,null,null,null,null,""]
[null,null,null,null,null,null,null,null,null,null,""]
[null,null,null,null,null,null,null,null,null,null,""]
[null,null,null,null,null,null,null,null,null,null,""]
[null,null,null,null,null,null,null,null,null,null,""]
[null,null,null,null,null,null,null,null,null,null,""]
[null,null,null,null,null,null,null,null,null,null,""]
[null,null,null,null,null,null,null,null,null,null,""]
[null,null,null,null,null,null,null,null,null,null,""]
[null,null,null,null,null,null,null,null,null,null,""]
[null,null,null,null,null,null,null,null,null,null,""]
[null,null,null,null,null,null,null,null,null,null,""]
[null,null,null,null,null,null,null,null,null,null,""]
[null,null,null,null,null,null,null,null,null,null,""]
[null,null,null,null,null,null,null,null,null,null,""]
[null,null,null,null,null,null,null,null,null,null,""]
[null,null,null,null,null,null,null,null,null,null,""]
[null,null,null,null,null,null,null,null,null,null,{"$f":"IFERROR(IF(H4179<>\"\",I4346*J4346,\"\"),\"\")","v":""}]
[null,null,null,null,null,null,null,null,null,null,""]
[null,null,null,null,null,null,null,null,null,null,""]
[null,null,null,null,null,null,null,null,null,null,""]
[null,null,null,null,null,null,null,null,null,null,""]
[null,null,null,null,null,null,null,null,null,null,""]
[null,null,null,null,null,null,null,null,null,null,""]
[null,null,null,null,null,null,null,null,null,null,""]
[null,null,null,null,null,null,null,null,null,null,""]
[null,null,null,null,null,null,null,null,null,null,""]
[null,null,null,null,null,null,null,null,null,null,""]
[null,null,null,null,null,null,null,null,null,null,""]
[null,null,null,null,null,null,null,null,null,null,""]
[null,null,null,null,null,null,null,null,null,null,""]
[null,null,null,null,null,null,null,null,null,null,""]
[null,null,null,null,null,null,null,null,null,null,""]
[null,null,null,null,null,null,null,null,null,null,""]
[null,null,null,null,null,null,null,null,null,null,""]
[null,null,null,null,null,null,null,null,null,null,""]
[null,null,null,null,null,null,null,null,null,null,""]
[null,null,null,null,null,null,null,null,null,null,""]
[null,null,null,null,null,null,null,null,null,null,""]
[null,null,null,null,null,null,null,null,null,null,""]
[null,null,null,null,null,null,null,null,null,null,""]
[null,null,null,null,null,null,null,null,null,null,""]
[null,null,null,null,null,null,null,null,null,null,""]
[null,null,null,null,null,null,null,null,null,null,""]
[null,null,null,null,null,null,null,null,null,null,""]
[null,null,null,null,null,null,null,null,null,null,""]
[null,null,null,null,null,null,null,null,null,null,""]
[null,null,null,null,null,null,null,null,null,null,""]
[null,null,null,null,null,null,null,null,null,null,""]
[null,null,null,null,null,null,null,null,null,null,""]
[null,null,null,null,null,null,null,null,null,null,""]
[null,null,null,null,null,null,null,null,null,null,""]
[null,null,null,null,null,null,null,null,null,null,""]
[null,null,null,null,null,null,null,null,null,null,""]
[null,null,null,null,null,null,null,null,null,null,""]
[null,null,null,null,null,null,null,null,null,null,""]
[null,null,null,null,null,null,null,null,null,null,""]
[null,null,null,null,null,null,null,null,null,null,""]
[null,null,null,null,null,null,null,null,null,null,""]
[null,null,null,null,null,null,null,null,null,null,""]
[null,null,null,null,null,null,null,null,null,null,""]
[null,null,null,null,null,null,null,null,null,null,""]
[null,null,null,null,null,null,null,null,null,null,""]
[null,null,null,null,null,null,null,null,null,null,""]
[null,null,null,null,null,null,null,null,null,null,""]
[null,null,null,null,null,null,null,null,null,null,""]
[null,null,null,null,null,null,null,null,null,null,""]
[null,null,null,null,null,null,null,null,null,null,""]
[null,null,null,null,null,null,null,null,null,null,""]
[null,null,null,null,null,null,null,null,null,null,""]
[null,null,null,null,null,null,null,null,null,null,""]
[null,null,null,null,null,null,null,null,null,null,""]
[null,null,null,null,null,null,null,null,null,null,""]
[null,null,null,null,null,null,null,null,null,null,""]
[null,null,null,null,null,null,null,null,null,null,""]
[null,null,null,null,null,null,null,null,null,null,""]
[null,null,null,null,null,null,null,null,null,null,""]
[null,null,null,null,null,null,null,null,null,null,""]
[null,null,null,null,null,null,null,null,null,null,""]
[null,null,null,null,null,null,null,null,null,null,""]
[null,null,null,null,null,null,null,null,null,null,""]
[null,null,null,null,null,null,null,null,null,null,{"$f":"IFERROR(IF(H4243<>\"\",I4410*J4410,\"\"),\"\")","v":""}]
[null,null,null,null,null,null,null,null,null,null,""]
[null,null,null,null,null,null,null,null,null,null,""]
[null,null,null,null,null,null,null,null,null,null,""]
[null,null,null,null,null,null,null,null,null,null,""]
[null,null,null,null,null,null,null,null,null,null,""]
[null,null,null,null,null,null,null,null,null,null,""]
[null,null,null,null,null,null,null,null,null,null,""]
[null,null,null,null,null,null,null,null,null,null,""]
[null,null,null,null,null,null,null,null,null,null,""]
[null,null,null,null,null,null,null,null,null,null,""]
[null,null,null,null,null,null,null,null,null,null,""]
[null,null,null,null,null,null,null,null,null,null,""]
[null,null,null,null,null,null,null,null,null,null,""]
[null,null,null,null,null,null,null,null,null,null,""]
[null,null,null,null,null,null,null,null,null,null,""]
[null,null,null,null,null,null,null,null,null,null,""]
[null,null,null,null,null,null,null,null,null,null,""]
[null,null,null,null,null,null,null,null,null,null,""]
[null,null,null,null,null,null,null,null,null,null,""]
[null,null,null,null,null,null,null,null,null,null,""]
[null,null,null,null,null,null,null,null,null,null,""]
[null,null,null,null,null,null,null,null,null,null,""]
[null,null,null,null,null,null,null,null,null,null,""]
[null,null,null,null,null,null,null,null,null,null,""]
[null,null,null,null,null,null,null,null,null,null,""]
[null,null,null,null,null,null,null,null,null,null,""]
[null,null,null,null,null,null,null,null,null,null,""]
[null,null,null,null,null,null,null,null,null,null,""]
[null,null,null,null,null,null,null,null,null,null,""]
[null,null,null,null,null,null,null,null,null,null,""]
[null,null,null,null,null,null,null,null,null,null,""]
[null,null,null,null,null,null,null,null,null,null,""]
[null,null,null,null,null,null,null,null,null,null,""]
[null,null,null,null,null,null,null,null,null,null,""]
[null,null,null,null,null,null,null,null,null,null,""]
[null,null,null,null,null,null,null,null,null,null,""]
[null,null,null,null,null,null,null,null,null,null,""]
[null,null,null,null,null,null,null,null,null,null,""]
[null,null,null,null,null,null,null,null,null,null,""]
[null,null,null,null,null,null,null,null,null,null,""]
[null,null,null,null,null,null,null,null,null,null,""]
[null,null,null,null,null,null,null,null,null,null,""]
[null,null,null,null,null,null,null,null,null,null,""]
[null,null,null,null,null,null,null,null,null,null,""]
[null,null,null,null,null,null,null,null,null,null,""]
[null,null,null,null,null,null,null,null,null,null,""]
[null,null,null,null,null,null,null,null,null,null,""]
[null,null,null,null,null,null,null,null,null,null,""]
[null,null,null,null,null,null,null,null,null,null,""]
[null,null,null,null,null,null,null,null,null,null,""]
[null,null,null,null,null,null,null,null,null,null,""]
[null,null,null,null,null,null,null,null,null,null,""]
[null,null,null,null,null,null,null,null,null,null,""]
[null,null,null,null,null,null,null,null,null,null,""]
[null,null,null,null,null,null,null,null,null,null,""]
[null,null,null,null,null,null,null,null,null,null,""]
[null,null,null,null,null,null,null,null,null,null,""]
[null,null,null,null,null,null,null,null,null,null,""]
[null,null,null,null,null,null,null,null,null,null,""]
[null,null,null,null,null,null,null,null,null,null,""]
[null,null,null,null,null,null,null,null,null,null,""]
[null,null,null,null,null,null,null,null,null,null,""]
[null,null,null,null,null,null,null,null,null,null,""]
[null,null,null,null,null,null,null,null,null,null,{"$f":"IFERROR(IF(H4307<>\"\",I4474*J4474,\"\"),\"\")","v":""}]
[null,null,null,null,null,null,null,null,null,null,""]
[null,null,null,null,null,null,null,null,null,null,""]
[null,null,null,null,null,null,null,null,null,null,""]
[null,null,null,null,null,null,null,null,null,null,""]
[null,null,null,null,null,null,null,null,null,null,""]
[null,null,null,null,null,null,null,null,null,null,""]
[null,null,null,null,null,null,null,null,null,null,""]
[null,null,null,null,null,null,null,null,null,null,""]
[null,null,null,null,null,null,null,null,null,null,""]
[null,null,null,null,null,null,null,null,null,null,""]
[null,null,null,null,null,null,null,null,null,null,""]
[null,null,null,null,null,null,null,null,null,null,""]
[null,null,null,null,null,null,null,null,null,null,""]
[null,null,null,null,null,null,null,null,null,null,""]
[null,null,null,null,null,null,null,null,null,null,""]
[null,null,null,null,null,null,null,null,null,null,""]
[null,null,null,null,null,null,null,null,null,null,""]
[null,null,null,null,null,null,null,null,null,null,""]
[null,null,null,null,null,null,null,null,null,null,""]
[null,null,null,null,null,null,null,null,null,null,""]
[null,null,null,null,null,null,null,null,null,null,""]
[null,null,null,null,null,null,null,null,null,null,""]
[null,null,null,null,null,null,null,null,null,null,""]
[null,null,null,null,null,null,null,null,null,null,""]
[null,null,null,null,null,null,null,null,null,null,""]
[null,null,null,null,null,null,null,null,null,null,""]
[null,null,null,null,null,null,null,null,null,null,""]
[null,null,null,null,null,null,null,null,null,null,""]
[null,null,null,null,null,null,null,null,null,null,""]
[null,null,null,null,null,null,null,null,null,null,""]
[null,null,null,null,null,null,null,null,null,null,""]
[null,null,null,null,null,null,null,null,null,null,""]
[null,null,null,null,null,null,null,null,null,null,""]
[null,null,null,null,null,null,null,null,null,null,""]
[null,null,null,null,null,null,null,null,null,null,""]
[null,null,null,null,null,null,null,null,null,null,""]
[null,null,null,null,null,null,null,null,null,null,""]
[null,null,null,null,null,null,null,null,null,null,""]
[null,null,null,null,null,null,null,null,null,null,""]
[null,null,null,null,null,null,null,null,null,null,""]
[null,null,null,null,null,null,null,null,null,null,""]
[null,null,null,null,null,null,null,null,null,null,""]
[null,null,null,null,null,null,null,null,null,null,""]
[null,null,null,null,null,null,null,null,null,null,""]
[null,null,null,null,null,null,null,null,null,null,""]
[null,null,null,null,null,null,null,null,null,null,""]
[null,null,null,null,null,null,null,null,null,null,""]
[null,null,null,null,null,null,null,null,null,null,""]
[null,null,null,null,null,null,null,null,null,null,""]
[null,null,null,null,null,null,null,null,null,null,""]
[null,null,null,null,null,null,null,null,null,null,""]
[null,null,null,null,null,null,null,null,null,null,""]
[null,null,null,null,null,null,null,null,null,null,""]
[null,null,null,null,null,null,null,null,null,null,""]
[null,null,null,null,null,null,null,null,null,null,""]
[null,null,null,null,null,null,null,null,null,null,""]
[null,null,null,null,null,null,null,null,null,null,""]
[null,null,null,null,null,null,null,null,null,null,""]
[null,null,null,null,null,null,null,null,null,null,""]
[null,null,null,null,null,null,null,null,null,null,""]
[null,null,null,null,null,null,null,null,null,null,""]
[null,null,null,null,null,null,null,null,null,null,""]
[null,null,null,null,null,null,null,null,null,null,""]
[null,null,null,null,null,null,null,null,null,null,{"$f":"IFERROR(IF(H4371<>\"\",I4538*J4538,\"\"),\"\")","v":""}]
[null,null,null,null,null,null,null,null,null,null,""]
[null,null,null,null,null,null,null,null,null,null,""]
[null,null,null,null,null,null,null,null,null,null,""]
[null,null,null,null,null,null,null,null,null,null,""]
[null,null,null,null,null,null,null,null,null,null,""]
[null,null,null,null,null,null,null,null,null,null,""]
[null,null,null,null,null,null,null,null,null,null,""]
[null,null,null,null,null,null,null,null,null,null,""]
[null,null,null,null,null,null,null,null,null,null,""]
[null,null,null,null,null,null,null,null,null,null,""]
[null,null,null,null,null,null,null,null,null,null,""]
[null,null,null,null,null,null,null,null,null,null,""]
[null,null,null,null,null,null,null,null,null,null,""]
[null,null,null,null,null,null,null,null,null,null,""]
[null,null,null,null,null,null,null,null,null,null,""]
[null,null,null,null,null,null,null,null,null,null,""]
[null,null,null,null,null,null,null,null,null,null,""]
[null,null,null,null,null,null,null,null,null,null,""]
[null,null,null,null,null,null,null,null,null,null,""]
[null,null,null,null,null,null,null,null,null,null,""]
[null,null,null,null,null,null,null,null,null,null,""]
[null,null,null,null,null,null,null,null,null,null,""]
[null,null,null,null,null,null,null,null,null,null,""]
[null,null,null,null,null,null,null,null,null,null,""]
[null,null,null,null,null,null,null,null,null,null,""]
[null,null,null,null,null,null,null,null,null,null,""]
[null,null,null,null,null,null,null,null,null,null,""]
[null,null,null,null,null,null,null,null,null,null,""]
[null,null,null,null,null,null,null,null,null,null,""]
[null,null,null,null,null,null,null,null,null,null,""]
[null,null,null,null,null,null,null,null,null,null,""]
[null,null,null,null,null,null,null,null,null,null,""]
[null,null,null,null,null,null,null,null,null,null,""]
[null,null,null,null,null,null,null,null,null,null,""]
[null,null,null,null,null,null,null,null,null,null,""]
[null,null,null,null,null,null,null,null,null,null,""]
[null,null,null,null,null,null,null,null,null,null,""]
[null,null,null,null,null,null,null,null,null,null,""]
[null,null,null,null,null,null,null,null,null,null,""]
[null,null,null,null,null,null,null,null,null,null,""]
[null,null,null,null,null,null,null,null,null,null,""]
[null,null,null,null,null,null,null,null,null,null,""]
[null,null,null,null,null,null,null,null,null,null,""]
[null,null,null,null,null,null,null,null,null,null,""]
[null,null,null,null,null,null,null,null,null,null,""]
[null,null,null,null,null,null,null,null,null,null,""]
[null,null,null,null,null,null,null,null,null,null,""]
[null,null,null,null,null,null,null,null,null,null,""]
[null,null,null,null,null,null,null,null,null,null,""]
[null,null,null,null,null,null,null,null,null,null,""]
[null,null,null,null,null,null,null,null,null,null,""]
[null,null,null,null,null,null,null,null,null,null,""]
[null,null,null,null,null,null,null,null,null,null,""]
[null,null,null,null,null,null,null,null,null,null,""]
[null,null,null,null,null,null,null,null,null,null,""]
[null,null,null,null,null,null,null,null,null,null,""]
[null,null,null,null,null,null,null,null,null,null,""]
[null,null,null,null,null,null,null,null,null,null,""]
[null,null,null,null,null,null,null,null,null,null,""]
[null,null,null,null,null,null,null,null,null,null,""]
[null,null,null,null,null,null,null,null,null,null,""]
[null,null,null,null,null,null,null,null,null,null,""]
[null,null,null,null,null,null,null,null,null,null,""]
[null,null,null,null,null,null,null,null,null,null,{"$f":"IFERROR(IF(H4435<>\"\",I4602*J4602,\"\"),\"\")","v":""}]
[null,null,null,null,null,null,null,null,null,null,""]
[null,null,null,null,null,null,null,null,null,null,""]
[null,null,null,null,null,null,null,null,null,null,""]
[null,null,null,null,null,null,null,null,null,null,""]
[null,null,null,null,null,null,null,null,null,null,""]
[null,null,null,null,null,null,null,null,null,null,""]
[null,null,null,null,null,null,null,null,null,null,""]
[null,null,null,null,null,null,null,null,null,null,""]
[null,null,null,null,null,null,null,null,null,null,""]
[null,null,null,null,null,null,null,null,null,null,""]
[null,null,null,null,null,null,null,null,null,null,""]
[null,null,null,null,null,null,null,null,null,null,""]
[null,null,null,null,null,null,null,null,null,null,""]
[null,null,null,null,null,null,null,null,null,null,""]
[null,null,null,null,null,null,null,null,null,null,""]
[null,null,null,null,null,null,null,null,null,null,""]
[null,null,null,null,null,null,null,null,null,null,""]
[null,null,null,null,null,null,null,null,null,null,""]
[null,null,null,null,null,null,null,null,null,null,""]
[null,null,null,null,null,null,null,null,null,null,""]
[null,null,null,null,null,null,null,null,null,null,""]
[null,null,null,null,null,null,null,null,null,null,""]
[null,null,null,null,null,null,null,null,null,null,""]
[null,null,null,null,null,null,null,null,null,null,""]
[null,null,null,null,null,null,null,null,null,null,""]
[null,null,null,null,null,null,null,null,null,null,""]
[null,null,null,null,null,null,null,null,null,null,""]
[null,null,null,null,null,null,null,null,null,null,""]
[null,null,null,null,null,null,null,null,null,null,""]
[null,null,null,null,null,null,null,null,null,null,""]
[null,null,null,null,null,null,null,null,null,null,""]
[null,null,null,null,null,null,null,null,null,null,""]
[null,null,null,null,null,null,null,null,null,null,""]
[null,null,null,null,null,null,null,null,null,null,""]
[null,null,null,null,null,null,null,null,null,null,""]
[null,null,null,null,null,null,null,null,null,null,""]
[null,null,null,null,null,null,null,null,null,null,""]
[null,null,null,null,null,null,null,null,null,null,""]
[null,null,null,null,null,null,null,null,null,null,""]
[null,null,null,null,null,null,null,null,null,null,""]
[null,null,null,null,null,null,null,null,null,null,""]
[null,null,null,null,null,null,null,null,null,null,""]
[null,null,null,null,null,null,null,null,null,null,""]
[null,null,null,null,null,null,null,null,null,null,""]
[null,null,null,null,null,null,null,null,null,null,""]
[null,null,null,null,null,null,null,null,null,null,""]
[null,null,null,null,null,null,null,null,null,null,""]
[null,null,null,null,null,null,null,null,null,null,""]
[null,null,null,null,null,null,null,null,null,null,""]
[null,null,null,null,null,null,null,null,null,null,""]
[null,null,null,null,null,null,null,null,null,null,""]
[null,null,null,null,null,null,null,null,null,null,""]
[null,null,null,null,null,null,null,null,null,null,""]
[null,null,null,null,null,null,null,null,null,null,""]
[null,null,null,null,null,null,null,null,null,null,""]
[null,null,null,null,null,null,null,null,null,null,""]
[null,null,null,null,null,null,null,null,null,null,""]
[null,null,null,null,null,null,null,null,null,null,""]
[null,null,null,null,null,null,null,null,null,null,""]
[null,null,null,null,null,null,null,null,null,null,""]
[null,null,null,null,null,null,null,null,null,null,""]
[null,null,null,null,null,null,null,null,null,null,""]
[null,null,null,null,null,null,null,null,null,null,""]
[null,null,null,null,null,null,null,null,null,null,{"$f":"IFERROR(IF(H4499<>\"\",I4666*J4666,\"\"),\"\")","v":""}]
[null,null,null,null,null,null,null,null,null,null,""]
[null,null,null,null,null,null,null,null,null,null,""]
[null,null,null,null,null,null,null,null,null,null,""]
[null,null,null,null,null,null,null,null,null,null,""]
[null,null,null,null,null,null,null,null,null,null,""]
[null,null,null,null,null,null,null,null,null,null,""]
[null,null,null,null,null,null,null,null,null,null,""]
[null,null,null,null,null,null,null,null,null,null,""]
[null,null,null,null,null,null,null,null,null,null,""]
[null,null,null,null,null,null,null,null,null,null,""]
[null,null,null,null,null,null,null,null,null,null,""]
[null,null,null,null,null,null,null,null,null,null,""]
[null,null,null,null,null,null,null,null,null,null,""]
[null,null,null,null,null,null,null,null,null,null,""]
[null,null,null,null,null,null,null,null,null,null,""]
[null,null,null,null,null,null,null,null,null,null,""]
[null,null,null,null,null,null,null,null,null,null,""]
[null,null,null,null,null,null,null,null,null,null,""]
[null,null,null,null,null,null,null,null,null,null,""]
[null,null,null,null,null,null,null,null,null,null,""]
[null,null,null,null,null,null,null,null,null,null,""]
[null,null,null,null,null,null,null,null,null,null,""]
[null,null,null,null,null,null,null,null,null,null,""]
[null,null,null,null,null,null,null,null,null,null,""]
[null,null,null,null,null,null,null,null,null,null,""]
[null,null,null,null,null,null,null,null,null,null,""]
[null,null,null,null,null,null,null,null,null,null,""]
[null,null,null,null,null,null,null,null,null,null,""]
[null,null,null,null,null,null,null,null,null,null,""]
[null,null,null,null,null,null,null,null,null,null,""]
[null,null,null,null,null,null,null,null,null,null,""]
[null,null,null,null,null,null,null,null,null,null,""]
[null,null,null,null,null,null,null,null,null,null,""]
[null,null,null,null,null,null,null,null,null,null,""]
[null,null,null,null,null,null,null,null,null,null,""]
[null,null,null,null,null,null,null,null,null,null,""]
[null,null,null,null,null,null,null,null,null,null,""]
[null,null,null,null,null,null,null,null,null,null,""]
[null,null,null,null,null,null,null,null,null,null,""]
[null,null,null,null,null,null,null,null,null,null,""]
[null,null,null,null,null,null,null,null,null,null,""]
[null,null,null,null,null,null,null,null,null,null,""]
[null,null,null,null,null,null,null,null,null,null,""]
[null,null,null,null,null,null,null,null,null,null,""]
[null,null,null,null,null,null,null,null,null,null,""]
[null,null,null,null,null,null,null,null,null,null,""]
[null,null,null,null,null,null,null,null,null,null,""]
[null,null,null,null,null,null,null,null,null,null,""]
[null,null,null,null,null,null,null,null,null,null,""]
[null,null,null,null,null,null,null,null,null,null,""]
[null,null,null,null,null,null,null,null,null,null,""]
[null,null,null,null,null,null,null,null,null,null,""]
[null,null,null,null,null,null,null,null,null,null,""]
[null,null,null,null,null,null,null,null,null,null,""]
[null,null,null,null,null,null,null,null,null,null,""]
[null,null,null,null,null,null,null,null,null,null,""]
[null,null,null,null,null,null,null,null,null,null,""]
[null,null,null,null,null,null,null,null,null,null,""]
[null,null,null,null,null,null,null,null,null,null,""]
[null,null,null,null,null,null,null,null,null,null,""]
[null,null,null,null,null,null,null,null,null,null,""]
[null,null,null,null,null,null,null,null,null,null,""]
[null,null,null,null,null,null,null,null,null,null,""]
[null,null,null,null,null,null,null,null,null,null,{"$f":"IFERROR(IF(H4563<>\"\",I4730*J4730,\"\"),\"\")","v":""}]
[null,null,null,null,null,null,null,null,null,null,""]
[null,null,null,null,null,null,null,null,null,null,""]
[null,null,null,null,null,null,null,null,null,null,""]
[null,null,null,null,null,null,null,null,null,null,""]
[null,null,null,null,null,null,null,null,null,null,""]
[null,null,null,null,null,null,null,null,null,null,""]
[null,null,null,null,null,null,null,null,null,null,""]
[null,null,null,null,null,null,null,null,null,null,""]
[null,null,null,null,null,null,null,null,null,null,""]
[null,null,null,null,null,null,null,null,null,null,""]
[null,null,null,null,null,null,null,null,null,null,""]
[null,null,null,null,null,null,null,null,null,null,""]
[null,null,null,null,null,null,null,null,null,null,""]
[null,null,null,null,null,null,null,null,null,null,""]
[null,null,null,null,null,null,null,null,null,null,""]
[null,null,null,null,null,null,null,null,null,null,""]
[null,null,null,null,null,null,null,null,null,null,""]
[null,null,null,null,null,null,null,null,null,null,""]
[null,null,null,null,null,null,null,null,null,null,""]
[null,null,null,null,null,null,null,null,null,null,""]
[null,null,null,null,null,null,null,null,null,null,""]
[null,null,null,null,null,null,null,null,null,null,""]
[null,null,null,null,null,null,null,null,null,null,""]
[null,null,null,null,null,null,null,null,null,null,""]
[null,null,null,null,null,null,null,null,null,null,""]
[null,null,null,null,null,null,null,null,null,null,""]
[null,null,null,null,null,null,null,null,null,null,""]
[null,null,null,null,null,null,null,null,null,null,""]
[null,null,null,null,null,null,null,null,null,null,""]
[null,null,null,null,null,null,null,null,null,null,""]
[null,null,null,null,null,null,null,null,null,null,""]
[null,null,null,null,null,null,null,null,null,null,""]
[null,null,null,null,null,null,null,null,null,null,""]
[null,null,null,null,null,null,null,null,null,null,""]
[null,null,null,null,null,null,null,null,null,null,""]
[null,null,null,null,null,null,null,null,null,null,""]
[null,null,null,null,null,null,null,null,null,null,""]
[null,null,null,null,null,null,null,null,null,null,""]
[null,null,null,null,null,null,null,null,null,null,""]
[null,null,null,null,null,null,null,null,null,null,""]
[null,null,null,null,null,null,null,null,null,null,""]
[null,null,null,null,null,null,null,null,null,null,""]
[null,null,null,null,null,null,null,null,null,null,""]
[null,null,null,null,null,null,null,null,null,null,""]
[null,null,null,null,null,null,null,null,null,null,""]
[null,null,null,null,null,null,null,null,null,null,""]
[null,null,null,null,null,null,null,null,null,null,""]
[null,null,null,null,null,null,null,null,null,null,""]
[null,null,null,null,null,null,null,null,null,null,""]
[null,null,null,null,null,null,null,null,null,null,""]
[null,null,null,null,null,null,null,null,null,null,""]
[null,null,null,null,null,null,null,null,null,null,""]
[null,null,null,null,null,null,null,null,null,null,""]
[null,null,null,null,null,null,null,null,null,null,""]
[null,null,null,null,null,null,null,null,null,null,""]
[null,null,null,null,null,null,null,null,null,null,""]
[null,null,null,null,null,null,null,null,null,null,""]
[null,null,null,null,null,null,null,null,null,null,""]
[null,null,null,null,null,null,null,null,null,null,""]
[null,null,null,null,null,null,null,null,null,null,""]
[null,null,null,null,null,null,null,null,null,null,""]
[null,null,null,null,null,null,null,null,null,null,""]
[null,null,null,null,null,null,null,null,null,null,""]
[null,null,null,null,null,null,null,null,null,null,{"$f":"IFERROR(IF(H4627<>\"\",I4794*J4794,\"\"),\"\")","v":""}]
[null,null,null,null,null,null,null,null,null,null,""]
[null,null,null,null,null,null,null,null,null,null,""]
[null,null,null,null,null,null,null,null,null,null,""]
[null,null,null,null,null,null,null,null,null,null,""]
[null,null,null,null,null,null,null,null,null,null,""]
[null,null,null,null,null,null,null,null,null,null,""]
[null,null,null,null,null,null,null,null,null,null,""]
[null,null,null,null,null,null,null,null,null,null,""]
[null,null,null,null,null,null,null,null,null,null,""]
[null,null,null,null,null,null,null,null,null,null,""]
[null,null,null,null,null,null,null,null,null,null,""]
[null,null,null,null,null,null,null,null,null,null,""]
[null,null,null,null,null,null,null,null,null,null,""]
[null,null,null,null,null,null,null,null,null,null,""]
[null,null,null,null,null,null,null,null,null,null,""]
[null,null,null,null,null,null,null,null,null,null,""]
[null,null,null,null,null,null,null,null,null,null,""]
[null,null,null,null,null,null,null,null,null,null,""]
[null,null,null,null,null,null,null,null,null,null,""]
[null,null,null,null,null,null,null,null,null,null,""]
[null,null,null,null,null,null,null,null,null,null,""]
[null,null,null,null,null,null,null,null,null,null,""]
[null,null,null,null,null,null,null,null,null,null,""]
[null,null,null,null,null,null,null,null,null,null,""]
[null,null,null,null,null,null,null,null,null,null,""]
[null,null,null,null,null,null,null,null,null,null,""]
[null,null,null,null,null,null,null,null,null,null,""]
[null,null,null,null,null,null,null,null,null,null,""]
[null,null,null,null,null,null,null,null,null,null,""]
[null,null,null,null,null,null,null,null,null,null,""]
[null,null,null,null,null,null,null,null,null,null,""]
[null,null,null,null,null,null,null,null,null,null,""]
[null,null,null,null,null,null,null,null,null,null,""]
[null,null,null,null,null,null,null,null,null,null,""]
[null,null,null,null,null,null,null,null,null,null,""]
[null,null,null,null,null,null,null,null,null,null,""]
[null,null,null,null,null,null,null,null,null,null,""]
[null,null,null,null,null,null,null,null,null,null,""]
[null,null,null,null,null,null,null,null,null,null,""]
[null,null,null,null,null,null,null,null,null,null,""]
[null,null,null,null,null,null,null,null,null,null,""]
[null,null,null,null,null,null,null,null,null,null,""]
[null,null,null,null,null,null,null,null,null,null,""]
[null,null,null,null,null,null,null,null,null,null,""]
[null,null,null,null,null,null,null,null,null,null,""]
[null,null,null,null,null,null,null,null,null,null,""]
[null,null,null,null,null,null,null,null,null,null,""]
[null,null,null,null,null,null,null,null,null,null,""]
[null,null,null,null,null,null,null,null,null,null,""]
[null,null,null,null,null,null,null,null,null,null,""]
[null,null,null,null,null,null,null,null,null,null,""]
[null,null,null,null,null,null,null,null,null,null,""]
[null,null,null,null,null,null,null,null,null,null,""]
[null,null,null,null,null,null,null,null,null,null,""]
[null,null,null,null,null,null,null,null,null,null,""]
[null,null,null,null,null,null,null,null,null,null,""]
[null,null,null,null,null,null,null,null,null,null,""]
[null,null,null,null,null,null,null,null,null,null,""]
[null,null,null,null,null,null,null,null,null,null,""]
[null,null,null,null,null,null,null,null,null,null,""]
[null,null,null,null,null,null,null,null,null,null,""]
[null,null,null,null,null,null,null,null,null,null,""]
[null,null,null,null,null,null,null,null,null,null,""]
[null,null,null,null,null,null,null,null,null,null,{"$f":"IFERROR(IF(H4691<>\"\",I4858*J4858,\"\"),\"\")","v":""}]
[null,null,null,null,null,null,null,null,null,null,""]
[null,null,null,null,null,null,null,null,null,null,""]
[null,null,null,null,null,null,null,null,null,null,""]
[null,null,null,null,null,null,null,null,null,null,""]
[null,null,null,null,null,null,null,null,null,null,""]
[null,null,null,null,null,null,null,null,null,null,""]
[null,null,null,null,null,null,null,null,null,null,""]
[null,null,null,null,null,null,null,null,null,null,""]
[null,null,null,null,null,null,null,null,null,null,""]
[null,null,null,null,null,null,null,null,null,null,""]
[null,null,null,null,null,null,null,null,null,null,""]
[null,null,null,null,null,null,null,null,null,null,""]
[null,null,null,null,null,null,null,null,null,null,""]
[null,null,null,null,null,null,null,null,null,null,""]
[null,null,null,null,null,null,null,null,null,null,""]
[null,null,null,null,null,null,null,null,null,null,""]
[null,null,null,null,null,null,null,null,null,null,""]
[null,null,null,null,null,null,null,null,null,null,""]
[null,null,null,null,null,null,null,null,null,null,""]
[null,null,null,null,null,null,null,null,null,null,""]
[null,null,null,null,null,null,null,null,null,null,""]
[null,null,null,null,null,null,null,null,null,null,""]
[null,null,null,null,null,null,null,null,null,null,""]
[null,null,null,null,null,null,null,null,null,null,""]
[null,null,null,null,null,null,null,null,null,null,""]
[null,null,null,null,null,null,null,null,null,null,""]
[null,null,null,null,null,null,null,null,null,null,""]
[null,null,null,null,null,null,null,null,null,null,""]
[null,null,null,null,null,null,null,null,null,null,""]
[null,null,null,null,null,null,null,null,null,null,""]
[null,null,null,null,null,null,null,null,null,null,""]
[null,null,null,null,null,null,null,null,null,null,""]
[null,null,null,null,null,null,null,null,null,null,""]
[null,null,null,null,null,null,null,null,null,null,""]
[null,null,null,null,null,null,null,null,null,null,""]
[null,null,null,null,null,null,null,null,null,null,""]
[null,null,null,null,null,null,null,null,null,null,""]
[null,null,null,null,null,null,null,null,null,null,""]
[null,null,null,null,null,null,null,null,null,null,""]
[null,null,null,null,null,null,null,null,null,null,""]
[null,null,null,null,null,null,null,null,null,null,""]
[null,null,null,null,null,null,null,null,null,null,""]
[null,null,null,null,null,null,null,null,null,null,""]
[null,null,null,null,null,null,null,null,null,null,""]
[null,null,null,null,null,null,null,null,null,null,""]
[null,null,null,null,null,null,null,null,null,null,""]
[null,null,null,null,null,null,null,null,null,null,""]
[null,null,null,null,null,null,null,null,null,null,""]
[null,null,null,null,null,null,null,null,null,null,""]
[null,null,null,null,null,null,null,null,null,null,""]
[null,null,null,null,null,null,null,null,null,null,""]
[null,null,null,null,null,null,null,null,null,null,""]
[null,null,null,null,null,null,null,null,null,null,""]
[null,null,null,null,null,null,null,null,null,null,""]
[null,null,null,null,null,null,null,null,null,null,""]
[null,null,null,null,null,null,null,null,null,null,""]
[null,null,null,null,null,null,null,null,null,null,""]
[null,null,null,null,null,null,null,null,null,null,""]
[null,null,null,null,null,null,null,null,null,null,""]
[null,null,null,null,null,null,null,null,null,null,""]
[null,null,null,null,null,null,null,null,null,null,""]
[null,null,null,null,null,null,null,null,null,null,""]
[null,null,null,null,null,null,null,null,null,null,""]
[null,null,null,null,null,null,null,null,null,null,{"$f":"IFERROR(IF(H4755<>\"\",I4922*J4922,\"\"),\"\")","v":""}]
[null,null,null,null,null,null,null,null,null,null,""]
[null,null,null,null,null,null,null,null,null,null,""]
[null,null,null,null,null,null,null,null,null,null,""]
[null,null,null,null,null,null,null,null,null,null,""]
[null,null,null,null,null,null,null,null,null,null,""]
[null,null,null,null,null,null,null,null,null,null,""]
[null,null,null,null,null,null,null,null,null,null,""]
[null,null,null,null,null,null,null,null,null,null,""]
[null,null,null,null,null,null,null,null,null,null,""]
[null,null,null,null,null,null,null,null,null,null,""]
[null,null,null,null,null,null,null,null,null,null,""]
[null,null,null,null,null,null,null,null,null,null,""]
[null,null,null,null,null,null,null,null,null,null,""]
[null,null,null,null,null,null,null,null,null,null,""]
[null,null,null,null,null,null,null,null,null,null,""]
[null,null,null,null,null,null,null,null,null,null,""]
[null,null,null,null,null,null,null,null,null,null,""]
[null,null,null,null,null,null,null,null,null,null,""]
[null,null,null,null,null,null,null,null,null,null,""]
[null,null,null,null,null,null,null,null,null,null,""]
[null,null,null,null,null,null,null,null,null,null,""]
[null,null,null,null,null,null,null,null,null,null,""]
[null,null,null,null,null,null,null,null,null,null,""]
[null,null,null,null,null,null,null,null,null,null,""]
[null,null,null,null,null,null,null,null,null,null,""]
[null,null,null,null,null,null,null,null,null,null,""]
[null,null,null,null,null,null,null,null,null,null,""]
[null,null,null,null,null,null,null,null,null,null,""]
[null,null,null,null,null,null,null,null,null,null,""]
[null,null,null,null,null,null,null,null,null,null,""]
[null,null,null,null,null,null,null,null,null,null,""]
[null,null,null,null,null,null,null,null,null,null,""]
[null,null,null,null,null,null,null,null,null,null,""]
[null,null,null,null,null,null,null,null,null,null,""]
[null,null,null,null,null,null,null,null,null,null,""]
[null,null,null,null,null,null,null,null,null,null,""]
[null,null,null,null,null,null,null,null,null,null,""]
[null,null,null,null,null,null,null,null,null,null,""]
[null,null,null,null,null,null,null,null,null,null,""]
[null,null,null,null,null,null,null,null,null,null,""]
[null,null,null,null,null,null,null,null,null,null,""]
[null,null,null,null,null,null,null,null,null,null,""]
[null,null,null,null,null,null,null,null,null,null,""]
[null,null,null,null,null,null,null,null,null,null,""]
[null,null,null,null,null,null,null,null,null,null,""]
[null,null,null,null,null,null,null,null,null,null,""]
[null,null,null,null,null,null,null,null,null,null,""]
[null,null,null,null,null,null,null,null,null,null,""]
[null,null,null,null,null,null,null,null,null,null,""]
[null,null,null,null,null,null,null,null,null,null,""]
[null,null,null,null,null,null,null,null,null,null,""]
[null,null,null,null,null,null,null,null,null,null,""]
[null,null,null,null,null,null,null,null,null,null,""]
[null,null,null,null,null,null,null,null,null,null,""]
[null,null,null,null,null,null,null,null,null,null,""]
[null,null,null,null,null,null,null,null,null,null,""]
[null,null,null,null,null,null,null,null,null,null,""]
[null,null,null,null,null,null,null,null,null,null,""]
[null,null,null,null,null,null,null,null,null,null,""]
[null,null,null,null,null,null,null,null,null,null,""]
[null,null,null,null,null,null,null,null,null,null,""]
[null,null,null,null,null,null,null,null,null,null,""]
[null,null,null,null,null,null,null,null,null,null,""]
[null,null,null,null,null,null,null,null,null,null,{"$f":"IFERROR(IF(H4819<>\"\",I4986*J4986,\"\"),\"\")","v":""}]
[null,null,null,null,null,null,null,null,null,null,""]
[null,null,null,null,null,null,null,null,null,null,""]
[null,null,null,null,null,null,null,null,null,null,""]
[null,null,null,null,null,null,null,null,null,null,""]
[null,null,null,null,null,null,null,null,null,null,""]
[null,null,null,null,null,null,null,null,null,null,""]
[null,null,null,null,null,null,null,null,null,null,""]
[null,null,null,null,null,null,null,null,null,null,""]
[null,null,null,null,null,null,null,null,null,null,""]
[null,null,null,null,null,null,null,null,null,null,""]
[null,null,null,null,null,null,null,null,null,null,""]
[null,null,null,null,null,null,null,null,null,null,""]
[null,null,null,null,null,null,null,null,null,null,""]
[null,null,null,null,null,null,null,null,null,null,""]
[null,null,null,null,null,null,null,null,null,null,""]
[null,null,null,null,null,null,null,null,null,null,""]
[null,null,null,null,null,null,null,null,null,null,""]
[null,null,null,null,null,null,null,null,null,null,""]
[null,null,null,null,null,null,null,null,null,null,""]
[null,null,null,null,null,null,null,null,null,null,""]
[null,null,null,null,null,null,null,null,null,null,""]
[null,null,null,null,null,null,null,null,null,null,""]
[null,null,null,null,null,null,null,null,null,null,""]
[null,null,null,null,null,null,null,null,null,null,""]
[null,null,null,null,null,null,null,null,null,null,""]
[null,null,null,null,null,null,null,null,null,null,""]
[null,null,null,null,null,null,null,null,null,null,""]
[null,null,null,null,null,null,null,null,null,null,""]
[null,null,null,null,null,null,null,null,null,null,""]
[null,null,null,null,null,null,null,null,null,null,""]
[null,null,null,null,null,null,null,null,null,null,""]
[null,null,null,null,null,null,null,null,null,null,""]
[null,null,null,null,null,null,null,null,null,null,""]
[null,null,null,null,null,null,null,null,null,null,""]
[null,null,null,null,null,null,null,null,null,null,""]
[null,null,null,null,null,null,null,null,null,null,""]
[null,null,null,null,null,null,null,null,null,null,""]
[null,null,null,null,null,null,null,null,null,null,""]
[null,null,null,null,null,null,null,null,null,null,""]
[null,null,null,null,null,null,null,null,null,null,""]
[null,null,null,null,null,null,null,null,null,null,""]
[null,null,null,null,null,null,null,null,null,null,""]
[null,null,null,null,null,null,null,null,null,null,""]
[null,null,null,null,null,null,null,null,null,null,""]
[null,null,null,null,null,null,null,null,null,null,""]
[null,null,null,null,null,null,null,null,null,null,""]
[null,null,null,null,null,null,null,null,null,null,""]
[null,null,null,null,null,null,null,null,null,null,""]
[null,null,null,null,null,null,null,null,null,null,""]
[null,null,null,null,null,null,null,null,null,null,""]
[null,null,null,null,null,null,null,null,null,null,""]
[null,null,null,null,null,null,null,null,null,null,""]
[null,null,null,null,null,null,null,null,null,null,""]
[null,null,null,null,null,null,null,null,null,null,""]
[null,null,null,null,null,null,null,null,null,null,""]
[null,null,null,null,null,null,null,null,null,null,""]
[null,null,null,null,null,null,null,null,null,null,""]
[null,null,null,null,null,null,null,null,null,null,""]
[null,null,null,null,null,null,null,null,null,null,""]
[null,null,null,null,null,null,null,null,null,null,""]
[null,null,null,null,null,null,null,null,null,null,""]
[null,null,null,null,null,null,null,null,null,null,""]
[null,null,null,null,null,null,null,null,null,null,""]
[null,null,null,null,null,null,null,null,null,null,{"$f":"IFERROR(IF(H4883<>\"\",I5050*J5050,\"\"),\"\")","v":""}]
[null,null,null,null,null,null,null,null,null,null,""]
[null,null,null,null,null,null,null,null,null,null,""]
[null,null,null,null,null,null,null,null,null,null,""]
[null,null,null,null,null,null,null,null,null,null,""]
[null,null,null,null,null,null,null,null,null,null,""]
[null,null,null,null,null,null,null,null,null,null,""]
[null,null,null,null,null,null,null,null,null,null,""]
[null,null,null,null,null,null,null,null,null,null,""]
[null,null,null,null,null,null,null,null,null,null,""]
[null,null,null,null,null,null,null,null,null,null,""]
[null,null,null,null,null,null,null,null,null,null,""]
[null,null,null,null,null,null,null,null,null,null,""]
[null,null,null,null,null,null,null,null,null,null,""]
[null,null,null,null,null,null,null,null,null,null,""]
[null,null,null,null,null,null,null,null,null,null,""]
[null,null,null,null,null,null,null,null,null,null,""]
[null,null,null,null,null,null,null,null,null,null,""]
[null,null,null,null,null,null,null,null,null,null,""]
[null,null,null,null,null,null,null,null,null,null,""]
[null,null,null,null,null,null,null,null,null,null,""]
[null,null,null,null,null,null,null,null,null,null,""]
[null,null,null,null,null,null,null,null,null,null,""]
[null,null,null,null,null,null,null,null,null,null,""]
[null,null,null,null,null,null,null,null,null,null,""]
[null,null,null,null,null,null,null,null,null,null,""]
[null,null,null,null,null,null,null,null,null,null,""]
[null,null,null,null,null,null,null,null,null,null,""]
[null,null,null,null,null,null,null,null,null,null,""]
[null,null,null,null,null,null,null,null,null,null,""]
[null,null,null,null,null,null,null,null,null,null,""]
[null,null,null,null,null,null,null,null,null,null,""]
[null,null,null,null,null,null,null,null,null,null,""]
[null,null,null,null,null,null,null,null,null,null,""]
[null,null,null,null,null,null,null,null,null,null,""]
[null,null,null,null,null,null,null,null,null,null,""]
[null,null,null,null,null,null,null,null,null,null,""]

{"sheet":"الشيخ رجب","index":9,"n_rows":5,"n_cols":8,"rows_kept":5,"cut":false,"hidden":false,"merged":[]}
[]
[]
[null,"اليوم","التاريخ","رقم الاذن","اسم المقاول","الكمية","السعر","القيمة"]
[1,"السبت","2020-10-10",577,"الشيخ رجب",400,7.05,{"$f":"+F4*G4","v":2820}]
[2,"الأحد","2020-10-11",602,"الشيخ رجب",400,7.05,{"$f":"+F5*G5","v":2820}]

{"sheet":"رجب","index":10,"n_rows":32,"n_cols":8,"rows_kept":32,"cut":false,"hidden":false,"merged":[]}
[]
[]
[null,"اليوم","التاريخ","رقم الاذن","اسم المقاول","الكمية","السعر","القيمة"]
[1,"السبت","2020-10-10",578,"رجب",700,7.05,{"$f":"+F4*G4","v":4935}]
[2,"الأحد","2020-10-11",599,"رجب",600,7.05,4230]
[3,"الاثنين","2020-10-12",615,"رجب",800,7.05,5640]
[4,"الثلاثاء","2020-10-13",628,"رجب",400,7.05,2820]
[5,"الاربعاء","2020-10-14",641,"رجب",600,7.05,4230]
[6,"السبت","2020-10-17",658,"رجب",750,7.05,5287.5]
[7,"الأحد","2020-10-18",679,"رجب",650,7.05,4582.5]
[8,"الإثنين","2020-10-19",703,"رجب",650,{"$f":"IFERROR(IF(E11<>\"\",7.05,\"\"),\"\")","v":7.05},4582.5]
[9,"الثلاثاء","2020-10-20",716,"رجب",841,7.05,5929.05]
[10,"الأربعاء","2020-10-21",738,"رجب",500,7.05,3525]
[11,"السبت","2020-10-24",752,"رجب",800,7.05,5640]
[12,"الأحد","2020-10-25",774,"رجب",525,7.05,3701.25]
[13,"الإثنين","2020-10-26",792,"رجب",1400,7.05,9870]
[14,"الاربعاء","2020-10-28",811,"رجب",460,7.05,3243]
[15,"السبت","2020-10-31",831,"رجب",400,7.05,{"$f":"IFERROR(IF(#REF!<>\"\",F18*G18,\"\"),\"\")","v":""}]
[16,"الأحد","2020-11-01",846,"رجب",500,7.05,{"$f":"IFERROR(IF(#REF!<>\"\",F19*G19,\"\"),\"\")","v":""}]
[17,"الثلاثاء","2020-11-03",879,"رجب",452,7.05,{"$f":"IFERROR(IF(#REF!<>\"\",F20*G20,\"\"),\"\")","v":""}]
[18,"الأربعاء","2020-11-04",894,"رجب",250,7.05,{"$f":"IFERROR(IF(#REF!<>\"\",F21*G21,\"\"),\"\")","v":""}]
[19,"السبت","2020-11-07",918,"رجب",150,7.05,{"$f":"IFERROR(IF(#REF!<>\"\",F22*G22,\"\"),\"\")","v":""}]
[20,"السبت","2020-11-07",929,"رجب",150,7.05,{"$f":"IFERROR(IF(#REF!<>\"\",F23*G23,\"\"),\"\")","v":""}]
[21,"الأحد","2020-11-08",949,"رجب",50,7.05,{"$f":"IFERROR(IF(#REF!<>\"\",F24*G24,\"\"),\"\")","v":""}]
[22,"الأحد","2020-11-08",960,"رجب",200,7.05,{"$f":"IFERROR(IF(#REF!<>\"\",F25*G25,\"\"),\"\")","v":""}]
[23,"الأحد","2020-11-08",975,"رجب",143,7.05,{"$f":"IFERROR(IF(#REF!<>\"\",F26*G26,\"\"),\"\")","v":""}]
[24,"الأربعاء","2020-11-11",1013,"رجب",260,7.05,{"$f":"IFERROR(IF(#REF!<>\"\",F27*G27,\"\"),\"\")","v":""}]
[25,"السبت","2020-11-14",1026,"رجب",100,7.05,{"$f":"IFERROR(IF(#REF!<>\"\",F28*G28,\"\"),\"\")","v":""}]
[26,"السبت","2020-11-14",1032,"رجب",100,7.05,{"$f":"IFERROR(IF(#REF!<>\"\",F29*G29,\"\"),\"\")","v":""}]
[27,"الأحد","2020-11-15",1048,"رجب",50,7.05,{"$f":"IFERROR(IF(#REF!<>\"\",F30*G30,\"\"),\"\")","v":""}]
[28,"السبت","2020-11-21",1112,"رجب",200,7.05,{"$f":"IFERROR(IF(#REF!<>\"\",F31*G31,\"\"),\"\")","v":""}]
[29,"الأربعاء","2020-11-25",1175,"رجب",200,7.05,{"$f":"IFERROR(IF(#REF!<>\"\",F32*G32,\"\"),\"\")","v":""}]

{"sheet":"السيد","index":11,"n_rows":21,"n_cols":8,"rows_kept":21,"cut":false,"hidden":false,"merged":[]}
[]
[]
[null,"اليوم","التاريخ","رقم الاذن","اسم المقاول","الكمية","السعر","القيمة"]
[1,"السبت","2020-10-10",579,"السيد",650,7.05,{"$f":"+F4*G4","v":4582.5}]
[2,"الأحد","2020-10-11",607,"السيد",910,7.05,6415.5]
[3,"الاثنين","2020-10-12",620,"السيد",650,7.05,4582.5]
[4,"الثلاثاء","2020-10-13",630,"السيد",900,7.05,6345]
[5,"الثلاثاء","2020-10-13",631,"السيد",12,7.05,84.6]
[6,"الاربعاء","2020-10-14",643,"السيد",750,7.05,5287.5]
[7,"السبت","2020-10-17",664,"السيد",1200,7.05,8460]
[8,"الأحد","2020-10-18",690,"السيد",1100,7.05,7755]
[9,"الإثنين","2020-10-19",698,"السيد",900,{"$f":"IFERROR(IF(E12<>\"\",7.05,\"\"),\"\")","v":7.05},6345]
[10,"الثلاثاء","2020-10-20",719,"السيد",700,{"$f":"IFERROR(IF(E13<>\"\",7.05,\"\"),\"\")","v":7.05},4935]
[11,"الأربعاء","2020-10-21",730,"السيد",800,7.05,5640]
[12,"السبت","2020-10-24",754,"السيد",1000,7.05,7050]
[13,"الأحد","2020-10-25",775,"السيد",700,7.05,4935]
[14,"الإثنين","2020-10-26",796,"السيد",460,7.05,3243]
[15,"الاربعاء","2020-10-28",814,"السيد",550,7.05,3877.5]
[16,"الأحد","2020-11-01",850,"السيد",120,7.05,{"$f":"IFERROR(IF(#REF!<>\"\",F19*G19,\"\"),\"\")","v":""}]
[17,"السبت","2020-11-07",933,"السيد",174,7.05,{"$f":"IFERROR(IF(#REF!<>\"\",F20*G20,\"\"),\"\")","v":""}]
[18,"الأحد","2020-11-08",967,"السيد",250,7.05,{"$f":"IFERROR(IF(#REF!<>\"\",F21*G21,\"\"),\"\")","v":""}]

{"sheet":"جمال","index":12,"n_rows":20,"n_cols":8,"rows_kept":20,"cut":false,"hidden":false,"merged":[]}
[]
[]
[null,"اليوم","التاريخ","رقم الاذن","اسم المقاول","الكمية","السعر","القيمة"]
[1,"السبت","2020-10-10",580,"جمال",400,7.05,{"$f":"+F4*G4","v":2820}]
[2,"الأحد","2020-10-11",603,"جمال",350,7.05,2467.5]
[3,"الاثنين","2020-10-12",619,"جمال",400,7.05,2820]
[4,"الثلاثاء","2020-10-13",634,"جمال",560,7.05,3948]
[5,"الاربعاء","2020-10-14",647,"جمال",260,7.05,1833]
[6,"السبت","2020-10-17",666,"جمال",350,7.05,2467.5]
[7,"الأحد","2020-10-18",691,"جمال",300,7.05,2115]
[8,"الإثنين","2020-10-19",707,"جمال",300,{"$f":"IFERROR(IF(E11<>\"\",7.05,\"\"),\"\")","v":7.05},2115]
[9,"الثلاثاء","2020-10-20",727,"جمال",350,7.05,2467.5]
[10,"الأربعاء","2020-10-21",742,"جمال",230,7.05,1621.5]
[11,"السبت","2020-10-24",756,"جمال",350,7.05,2467.5]
[12,"الأحد","2020-10-25",777,"جمال",350,7.05,2467.5]
[13,"الإثنين","2020-10-26",795,"جمال",266,7.05,1875.3]
[14,"الأحد","2020-11-01",844,"جمال",329,7.05,{"$f":"IFERROR(IF(#REF!<>\"\",F17*G17,\"\"),\"\")","v":""}]
[15,"الثلاثاء","2020-11-03",867,"جمال",100,7.05,{"$f":"IFERROR(IF(#REF!<>\"\",F18*G18,\"\"),\"\")","v":""}]
[16,"الأربعاء","2020-11-04",901,"جمال",100,7.05,{"$f":"IFERROR(IF(#REF!<>\"\",F19*G19,\"\"),\"\")","v":""}]
[17,"السبت","2020-11-07",928,"جمال",100,7.05,{"$f":"IFERROR(IF(#REF!<>\"\",F20*G20,\"\"),\"\")","v":""}]

{"sheet":"أشرف","index":13,"n_rows":47,"n_cols":8,"rows_kept":47,"cut":false,"hidden":false,"merged":[]}
[]
[]
[null,"اليوم","التاريخ","رقم الاذن","اسم المقاول","الكمية","السعر","القيمة"]
[1,"السبت","2020-10-10",581,"أشرف",250,7.05,{"$f":"+F4*G4","v":1762.5}]
[2,"الأحد","2020-10-11",604,"أشرف",300,7.05,2115]
[3,"الاثنين","2020-10-12",618,"أشرف",300,7.05,2115]
[4,"الاربعاء","2020-10-14",648,"أشرف",240,7.05,1692]
[5,"السبت","2020-10-17",662,"أشرف",300,7.05,2115]
[6,"الأحد","2020-10-18",692,"أشرف",350,7.05,2467.5]
[7,"الإثنين","2020-10-19",711,"أشرف",230,{"$f":"IFERROR(IF(E10<>\"\",7.05,\"\"),\"\")","v":7.05},1621.5]
[8,"الثلاثاء","2020-10-20",724,"أشرف",300,7.05,2115]
[9,"الأربعاء","2020-10-21",744,"أشرف",462,7.05,3257.1]
[10,"السبت","2020-10-24",751,"أشرف",480,7.05,3384]
[11,"الأحد","2020-10-25",779,"أشرف",530,7.05,3736.5]
[12,"الإثنين","2020-10-26",794,"أشرف",470,7.05,3313.5]
[13,"الاربعاء","2020-10-28",813,"أشرف",403,7.05,2841.15]
[14,"السبت","2020-10-31",825,"أشرف",250,7.05,{"$f":"IFERROR(IF(#REF!<>\"\",F17*G17,\"\"),\"\")","v":""}]
[15,"الاحد","2020-11-01",842,"أشرف",230,7.05,{"$f":"IFERROR(IF(#REF!<>\"\",F18*G18,\"\"),\"\")","v":""}]
[16,"الأحد","2020-11-01",851,"أشرف",293,7.05,{"$f":"IFERROR(IF(#REF!<>\"\",F19*G19,\"\"),\"\")","v":""}]
[17,"الثلاثاء","2020-11-03",868,"أشرف",500,7.05,{"$f":"IFERROR(IF(#REF!<>\"\",F20*G20,\"\"),\"\")","v":""}]
[18,"الثلاثاء","2020-11-03",881,"أشرف",100,7.05,{"$f":"IFERROR(IF(#REF!<>\"\",F21*G21,\"\"),\"\")","v":""}]
[19,"الأربعاء","2020-11-04",893,"أشرف",490,7.05,{"$f":"IFERROR(IF(#REF!<>\"\",F22*G22,\"\"),\"\")","v":""}]
[20,"السبت","2020-11-07",927,"أشرف",450,7.05,{"$f":"IFERROR(IF(#REF!<>\"\",F23*G23,\"\"),\"\")","v":""}]
[21,"الأحد","2020-11-08",950,"أشرف",600,7.05,{"$f":"IFERROR(IF(#REF!<>\"\",F24*G24,\"\"),\"\")","v":""}]
[22,"الأحد","2020-11-08",972,"أشرف",600,7.05,{"$f":"IFERROR(IF(#REF!<>\"\",F25*G25,\"\"),\"\")","v":""}]
[23,"الثلاثاء","2020-11-10",993,"أشرف",600,7.05,{"$f":"IFERROR(IF(#REF!<>\"\",F26*G26,\"\"),\"\")","v":""}]
[24,"الأربعاء","2020-11-11",1009,"أشرف",550,7.05,{"$f":"IFERROR(IF(#REF!<>\"\",F27*G27,\"\"),\"\")","v":""}]
[25,"السبت","2020-11-14",1030,"أشرف",350,7.05,{"$f":"IFERROR(IF(#REF!<>\"\",F28*G28,\"\"),\"\")","v":""}]
[26,"الأحد","2020-11-15",1045,"أشرف",250,7.05,{"$f":"IFERROR(IF(#REF!<>\"\",F29*G29,\"\"),\"\")","v":""}]
[27,"الإثنين","2020-11-16",1067,"أشرف",250,7.05,{"$f":"IFERROR(IF(#REF!<>\"\",F30*G30,\"\"),\"\")","v":""}]
[28,"الأحد","2020-11-22",1124,"أشرف",250,7.05,{"$f":"IFERROR(IF(#REF!<>\"\",F31*G31,\"\"),\"\")","v":""}]
[29,"الإثنين","2020-11-23",1141,"أشرف",450,7.05,{"$f":"IFERROR(IF(#REF!<>\"\",F32*G32,\"\"),\"\")","v":""}]
[30,"الثلاثاء","2020-11-24",1165,"أشرف",350,7.05,{"$f":"IFERROR(IF(#REF!<>\"\",F33*G33,\"\"),\"\")","v":""}]
[31,"الأربعاء","2020-11-25",1181,"أشرف",400,7.05,{"$f":"IFERROR(IF(#REF!<>\"\",F34*G34,\"\"),\"\")","v":""}]
[32,"السبت","2020-11-28",1211,"أشرف",300,7.05,{"$f":"IFERROR(IF(#REF!<>\"\",F35*G35,\"\"),\"\")","v":""}]
[33,"الأحد","2020-11-29",1216,"أشرف",350,7.05,{"$f":"IFERROR(IF(#REF!<>\"\",F36*G36,\"\"),\"\")","v":""}]
[34,"الإثنين","2020-11-30",1243,"أشرف",200,7.05,{"$f":"IFERROR(IF(#REF!<>\"\",F37*G37,\"\"),\"\")","v":""}]
[35,"الأربعاء","2020-12-02",13,"أشرف",250,7.05,{"$f":"IFERROR(IF(#REF!<>\"\",F38*G38,\"\"),\"\")","v":""}]
[36,"الخميس","2020-12-03",29,"أشرف",200,7.05,{"$f":"IFERROR(IF(#REF!<>\"\",F39*G39,\"\"),\"\")","v":""}]
[37,"السبت","2020-12-05",40,"أشرف",170,7.05,{"$f":"IFERROR(IF(#REF!<>\"\",F40*G40,\"\"),\"\")","v":""}]
[38,"الأحد","2020-12-06",1400,"أشرف",200,7.05,{"$f":"IFERROR(IF(#REF!<>\"\",F41*G41,\"\"),\"\")","v":""}]
[39,"الإثنين","2020-12-07",1314,"أشرف",200,7.05,{"$f":"IFERROR(IF(#REF!<>\"\",F42*G42,\"\"),\"\")","v":""}]
[40,"الأربعاء","2020-12-09",1340,"أشرف",400,7.05,{"$f":"IFERROR(IF(#REF!<>\"\",F43*G43,\"\"),\"\")","v":""}]
[41,"الخميس","2020-12-10",1369,"أشرف",555,7.05,{"$f":"IFERROR(IF(#REF!<>\"\",F44*G44,\"\"),\"\")","v":""}]
[42,"السبت","2020-12-12",1385,"أشرف",230,7.05,{"$f":"IFERROR(IF(#REF!<>\"\",F45*G45,\"\"),\"\")","v":""}]
[43,"الإثنين","2020-12-14",1422,"أشرف",300,7.05,{"$f":"IFERROR(IF(#REF!<>\"\",F46*G46,\"\"),\"\")","v":""}]
[44,"الثلاثاء","2020-12-15",1441,"أشرف",250,7.05,{"$f":"IFERROR(IF(#REF!<>\"\",F47*G47,\"\"),\"\")","v":""}]

{"sheet":"علوان","index":14,"n_rows":58,"n_cols":8,"rows_kept":58,"cut":false,"hidden":false,"merged":[]}
[]
[]
[null,"اليوم","التاريخ","رقم الاذن","اسم المقاول","الكمية","السعر","القيمة"]
[1,"السبت","2020-10-10",582,"علوان",600,7.05,{"$f":"+F4*G4","v":4230}]
[2,"الأحد","2020-10-11",596,"علوان",900,7.05,6345]
[3,"الاثنين","2020-10-12",616,"علوان",700,7.05,4935]
[4,"الثلاثاء","2020-10-13",627,"علوان",700,7.05,4935]
[5,"الاربعاء","2020-10-14",640,"علوان",800,7.05,5640]
[6,"السبت","2020-10-17",661,"علوان",400,7.05,2820]
[7,"السبت","2020-10-17",669,"علوان",150,7.05,1057.5]
[8,"الأحد","2020-10-18",684,"علوان",400,7.05,2820]
[9,"الإثنين","2020-10-19",700,"علوان",500,{"$f":"IFERROR(IF(E12<>\"\",7.05,\"\"),\"\")","v":7.05},3525]
[10,"الثلاثاء","2020-10-20",715,"علوان",600,7.05,4230]
[11,"الأربعاء","2020-10-21",741,"علوان",400,7.05,2820]
[12,"الإثنين","2020-10-26",789,"علوان",400,7.05,2820]
[13,"الإثنين","2020-10-26",791,"علوان",106,7.05,747.3]
[14,"الاربعاء","2020-10-28",819,"علوان",254,7.05,1790.7]
[15,"السبت","2020-10-31",832,"علوان",500,7.05,{"$f":"IFERROR(IF(#REF!<>\"\",F18*G18,\"\"),\"\")","v":""}]
[16,"الثلاثاء","2020-11-03",869,"علوان",500,7.05,{"$f":"IFERROR(IF(#REF!<>\"\",F19*G19,\"\"),\"\")","v":""}]
[17,"الأربعاء","2020-11-04",896,"علوان",400,7.05,{"$f":"IFERROR(IF(#REF!<>\"\",F20*G20,\"\"),\"\")","v":""}]
[18,"السبت","2020-11-07",921,"علوان",400,7.05,{"$f":"IFERROR(IF(#REF!<>\"\",F21*G21,\"\"),\"\")","v":""}]
[19,"الأحد","2020-11-08",944,"علوان",450,7.05,{"$f":"IFERROR(IF(#REF!<>\"\",F22*G22,\"\"),\"\")","v":""}]
[20,"الأحد","2020-11-08",957,"علوان",450,7.05,{"$f":"IFERROR(IF(#REF!<>\"\",F23*G23,\"\"),\"\")","v":""}]
[21,"الثلاثاء ","2020-11-10",987,"علوان",200,7.05,{"$f":"IFERROR(IF(#REF!<>\"\",F24*G24,\"\"),\"\")","v":""}]
[22,"الأربعاء","2020-11-11",1006,"علوان",450,7.05,{"$f":"IFERROR(IF(#REF!<>\"\",F25*G25,\"\"),\"\")","v":""}]
[23,"السبت","2020-11-14",1020,"علوان",200,7.05,{"$f":"IFERROR(IF(#REF!<>\"\",F26*G26,\"\"),\"\")","v":""}]
[24,"الأحد","2020-11-15",1040,"علوان",250,7.05,{"$f":"IFERROR(IF(#REF!<>\"\",F27*G27,\"\"),\"\")","v":""}]
[25,"الإثنين","2020-11-16",1062,"علوان",450,7.05,{"$f":"IFERROR(IF(#REF!<>\"\",F28*G28,\"\"),\"\")","v":""}]
[26,"الأربعاء","2020-11-18",1078,"علوان",400,7.05,{"$f":"IFERROR(IF(#REF!<>\"\",F29*G29,\"\"),\"\")","v":""}]
[27,"السبت","2020-11-21",1104,"علوان",450,7.05,{"$f":"IFERROR(IF(#REF!<>\"\",F30*G30,\"\"),\"\")","v":""}]
[28,"الأحد","2020-11-22",1122,"علوان",200,7.05,{"$f":"IFERROR(IF(#REF!<>\"\",F31*G31,\"\"),\"\")","v":""}]
[29,"الإثنين","2020-11-23",1142,"علوان",600,7.05,{"$f":"IFERROR(IF(#REF!<>\"\",F32*G32,\"\"),\"\")","v":""}]
[30,"الثلاثاء","2020-11-24",1163,"علوان",600,7.05,{"$f":"IFERROR(IF(#REF!<>\"\",F33*G33,\"\"),\"\")","v":""}]
[31,"الاربعاء","2020-11-25",1172,"علوان",300,7.05,{"$f":"IFERROR(IF(#REF!<>\"\",F34*G34,\"\"),\"\")","v":""}]
[32,"الأربعاء","2020-11-25",1186,"علوان",200,7.05,{"$f":"IFERROR(IF(#REF!<>\"\",F35*G35,\"\"),\"\")","v":""}]
[33,"السبت","2020-11-28",1201,"علوان",400,7.05,{"$f":"IFERROR(IF(#REF!<>\"\",F36*G36,\"\"),\"\")","v":""}]
[34,"الأحد","2020-11-29",1223,"علوان",450,7.05,{"$f":"IFERROR(IF(#REF!<>\"\",F37*G37,\"\"),\"\")","v":""}]
[35,"الاثنين","2020-11-30",1234,"علوان",400,7.05,{"$f":"IFERROR(IF(#REF!<>\"\",F38*G38,\"\"),\"\")","v":""}]
[36,"الاربعاء","2020-12-02",1,"علوان",400,7.05,{"$f":"IFERROR(IF(#REF!<>\"\",F39*G39,\"\"),\"\")","v":""}]
[37,"الخميس","2020-12-03",18,"علوان",400,7.05,{"$f":"IFERROR(IF(#REF!<>\"\",F40*G40,\"\"),\"\")","v":""}]
[38,"السبت","2020-12-05",32,"علوان",450,7.05,{"$f":"IFERROR(IF(#REF!<>\"\",F41*G41,\"\"),\"\")","v":""}]
[39,"الاحد","2020-12-06",1390,"علوان",400,7.05,{"$f":"IFERROR(IF(#REF!<>\"\",F42*G42,\"\"),\"\")","v":""}]
[40,"الاثنين","2020-12-07",1301,"علوان",400,7.05,{"$f":"IFERROR(IF(#REF!<>\"\",F43*G43,\"\"),\"\")","v":""}]
[41,"الاربعاء","2020-12-09",1334,"علوان",600,7.05,{"$f":"IFERROR(IF(#REF!<>\"\",F44*G44,\"\"),\"\")","v":""}]
[42,"الخميس","2020-12-10",1358,"علوان",600,7.05,{"$f":"IFERROR(IF(#REF!<>\"\",F45*G45,\"\"),\"\")","v":""}]
[43,"السبت","2020-12-12",1382,"علوان",500,7.05,{"$f":"IFERROR(IF(#REF!<>\"\",F46*G46,\"\"),\"\")","v":""}]
[44,"الإثنين","2020-12-14",1417,"علوان",150,7.05,{"$f":"IFERROR(IF(#REF!<>\"\",F47*G47,\"\"),\"\")","v":""}]
[45,"الثلاثاء","2020-12-15",1438,"علوان",450,7.05,{"$f":"IFERROR(IF(#REF!<>\"\",F48*G48,\"\"),\"\")","v":""}]
[46,"الاربعاء","2020-12-16",1451,"علوان",600,7.05,{"$f":"IFERROR(IF(#REF!<>\"\",F49*G49,\"\"),\"\")","v":""}]
[47,"الأربعاء","2020-12-16",1460,"علوان",300,7.05,{"$f":"IFERROR(IF(#REF!<>\"\",F50*G50,\"\"),\"\")","v":""}]
[48,"الاحد","2020-12-20",1484,"علوان",400,7.05,{"$f":"IFERROR(IF(#REF!<>\"\",F51*G51,\"\"),\"\")","v":""}]
[49,"الأحد","2020-12-20",1500,"علوان",79,7.05,{"$f":"IFERROR(IF(#REF!<>\"\",F52*G52,\"\"),\"\")","v":""}]
[50,"الإثنين","2020-12-21",1510,"علوان",400,7.05,{"$f":"IFERROR(IF(#REF!<>\"\",F53*G53,\"\"),\"\")","v":""}]
[51,"الاربعاء","2020-12-23",1527,"علوان",800,7.05,{"$f":"IFERROR(IF(#REF!<>\"\",F54*G54,\"\"),\"\")","v":""}]
[52,"السبت","2020-12-26",1543,"علوان",600,7.05,{"$f":"IFERROR(IF(#REF!<>\"\",F55*G55,\"\"),\"\")","v":""}]
[53,"الاحد","2020-12-27",1562,"علوان",700,7.05,{"$f":"IFERROR(IF(#REF!<>\"\",F56*G56,\"\"),\"\")","v":""}]
[54,"الثلاثاء","2020-12-29",1578,"علوان",800,7.05,{"$f":"IFERROR(IF(#REF!<>\"\",F57*G57,\"\"),\"\")","v":""}]
[55,"الأحد","2021-01-03",1593,"علوان",800,7.05,{"$f":"IFERROR(IF(#REF!<>\"\",F58*G58,\"\"),\"\")","v":""}]

{"sheet":"حلمى","index":15,"n_rows":39,"n_cols":8,"rows_kept":39,"cut":false,"hidden":false,"merged":[]}
[]
[]
[null,"اليوم","التاريخ","رقم الاذن","اسم المقاول","الكمية","السعر","القيمة"]
[1,"السبت","2020-10-10",583,"حلمى",800,7.05,{"$f":"+F4*G4","v":5640}]
[2,"الأحد","2020-10-11",600,"حلمى",700,7.05,4935]
[3,"الاثنين","2020-10-12",623,"حلمى",1150,7.05,8107.5]
[4,"الثلاثاء","2020-10-13",633,"حلمى",1230,7.05,8671.5]
[5,"الاربعاء","2020-10-14",646,"حلمى",902,7.05,6359.0999999999995]
[6,"الأحد","2020-10-18",686,"حلمى",50,7.05,352.5]
[7,"الإثنين","2020-10-19",709,"حلمى",20,{"$f":"IFERROR(IF(E10<>\"\",7.05,\"\"),\"\")","v":7.05},141]
[8,"الثلاثاء","2020-10-20",721,"حلمى",450,7.05,3172.5]
[9,"الأربعاء","2020-10-21",737,"حلمى",300,7.05,2115]
[10,"الاربعاء","2020-10-28",810,"حلمى",1110,7.05,7825.5]
[11,"السبت","2020-10-31",827,"حلمى",650,7.05,{"$f":"IFERROR(IF(#REF!<>\"\",F14*G14,\"\"),\"\")","v":""}]
[12,"الأحد","2020-11-01",853,"حلمى",400,7.05,{"$f":"IFERROR(IF(#REF!<>\"\",F15*G15,\"\"),\"\")","v":""}]
[13,"الثلاثاء","2020-11-03",874,"حلمى",600,7.05,{"$f":"IFERROR(IF(#REF!<>\"\",F16*G16,\"\"),\"\")","v":""}]
[14,"الأربعاء","2020-11-04",902,"حلمى",504,7.05,{"$f":"IFERROR(IF(#REF!<>\"\",F17*G17,\"\"),\"\")","v":""}]
[15,"السبت","2020-11-07",920,"حلمى",650,7.05,{"$f":"IFERROR(IF(#REF!<>\"\",F18*G18,\"\"),\"\")","v":""}]
[16,"الاحد","2020-11-08",940,"حلمى",650,7.05,{"$f":"IFERROR(IF(#REF!<>\"\",F19*G19,\"\"),\"\")","v":""}]
[17,"الأحد","2020-11-08",961,"حلمى",350,7.05,{"$f":"IFERROR(IF(#REF!<>\"\",F20*G20,\"\"),\"\")","v":""}]
[18,"الأحد","2020-11-08",979,"حلمى",23,7.05,{"$f":"IFERROR(IF(#REF!<>\"\",F21*G21,\"\"),\"\")","v":""}]
[19,"الثلاثاء","2020-11-10",989,"حلمى",350,7.05,{"$f":"IFERROR(IF(#REF!<>\"\",F22*G22,\"\"),\"\")","v":""}]
[20,"الأربعاء","2020-11-11",1014,"حلمى",150,7.05,{"$f":"IFERROR(IF(#REF!<>\"\",F23*G23,\"\"),\"\")","v":""}]
[21,"السبت","2020-11-14",1031,"حلمى",200,7.05,{"$f":"IFERROR(IF(#REF!<>\"\",F24*G24,\"\"),\"\")","v":""}]
[22,"الأحد","2020-11-15",1046,"حلمى",150,7.05,{"$f":"IFERROR(IF(#REF!<>\"\",F25*G25,\"\"),\"\")","v":""}]
[23,"الإثنين","2020-11-16",1069,"حلمى",150,7.05,{"$f":"IFERROR(IF(#REF!<>\"\",F26*G26,\"\"),\"\")","v":""}]
[24,"السبت","2020-11-21",1103,"حلمى",300,7.05,{"$f":"IFERROR(IF(#REF!<>\"\",F27*G27,\"\"),\"\")","v":""}]
[25,"الاحد","2020-11-22",1117,"حلمى",100,7.05,{"$f":"IFERROR(IF(#REF!<>\"\",F28*G28,\"\"),\"\")","v":""}]
[26,"الإثنين","2020-11-23",1136,"حلمى",152,7.05,{"$f":"IFERROR(IF(#REF!<>\"\",F29*G29,\"\"),\"\")","v":""}]
[27,"الثلاثاء","2020-11-24",1159,"حلمى",500,7.05,{"$f":"IFERROR(IF(#REF!<>\"\",F30*G30,\"\"),\"\")","v":""}]
[28,"الأربعاء","2020-11-25",1179,"حلمى",40,7.05,{"$f":"IFERROR(IF(#REF!<>\"\",F31*G31,\"\"),\"\")","v":""}]
[29,"الأحد","2020-11-29",1218,"حلمى",350,7.05,{"$f":"IFERROR(IF(#REF!<>\"\",F32*G32,\"\"),\"\")","v":""}]
[30,"الإثنين","2020-11-30",1238,"حلمى",300,7.05,{"$f":"IFERROR(IF(#REF!<>\"\",F33*G33,\"\"),\"\")","v":""}]
[31,"الأربعاء","2020-12-02",14,"حلمى",400,7.05,{"$f":"IFERROR(IF(#REF!<>\"\",F34*G34,\"\"),\"\")","v":""}]
[32,"السبت","2020-12-05",42,"حلمى",170,7.05,{"$f":"IFERROR(IF(#REF!<>\"\",F35*G35,\"\"),\"\")","v":""}]
[33,"الأحد","2020-12-06",1395,"حلمى",200,7.05,{"$f":"IFERROR(IF(#REF!<>\"\",F36*G36,\"\"),\"\")","v":""}]
[34,"الاحد","2020-12-20",1483,"حلمى",40,7.05,{"$f":"IFERROR(IF(#REF!<>\"\",F37*G37,\"\"),\"\")","v":""}]
[35,"الأحد","2020-12-20",1486,"حلمى",150,7.05,{"$f":"IFERROR(IF(#REF!<>\"\",F38*G38,\"\"),\"\")","v":""}]
[36,"الاثنين","2020-12-21",1508,"حلمى",50,7.05,{"$f":"IFERROR(IF(#REF!<>\"\",F39*G39,\"\"),\"\")","v":""}]

{"sheet":"أنور","index":16,"n_rows":50,"n_cols":8,"rows_kept":50,"cut":false,"hidden":false,"merged":[]}
[]
[]
[null,"اليوم","التاريخ","رقم الاذن","اسم المقاول","الكمية","السعر","القيمة"]
[1,"السبت","2020-10-10",584,"أنور",400,7.05,{"$f":"+F4*G4","v":2820}]
[2,"الأحد","2020-10-11",597,"أنور",400,7.05,2820]
[3,"الاثنين","2020-10-12",614,"أنور",400,7.05,2820]
[4,"الثلاثاء","2020-10-13",625,"أنور",350,7.05,2467.5]
[5,"الاربعاء","2020-10-14",639,"أنور",350,7.05,2467.5]
[6,"السبت","2020-10-17",657,"أنور",400,7.05,2820]
[7,"الأحد","2020-10-18",683,"أنور",400,7.05,2820]
[8,"الإثنين","2020-10-19",704,"أنور",300,{"$f":"IFERROR(IF(E11<>\"\",7.05,\"\"),\"\")","v":7.05},2115]
[9,"الثلاثاء","2020-10-20",717,"أنور",300,7.05,2115]
[10,"الأربعاء","2020-10-21",732,"أنور",300,7.05,2115]
[11,"السبت","2020-10-24",757,"أنور",350,7.05,2467.5]
[12,"الأحد","2020-10-25",772,"أنور",300,7.05,2115]
[13,"الإثنين","2020-10-26",788,"أنور",350,7.05,2467.5]
[14,"الاربعاء","2020-10-28",812,"أنور",350,7.05,2467.5]
[15,"السبت","2020-10-31",824,"أنور",350,7.05,{"$f":"IFERROR(IF(#REF!<>\"\",F18*G18,\"\"),\"\")","v":""}]
[16,"الأحد","2020-11-01",843,"أنور",350,7.05,{"$f":"IFERROR(IF(#REF!<>\"\",F19*G19,\"\"),\"\")","v":""}]
[17,"الأحد","2020-11-01",852,"أنور",300,7.05,{"$f":"IFERROR(IF(#REF!<>\"\",F20*G20,\"\"),\"\")","v":""}]
[18,"الثلاثاء","2020-11-03",870,"أنور",300,7.05,{"$f":"IFERROR(IF(#REF!<>\"\",F21*G21,\"\"),\"\")","v":""}]
[19,"السبت","2020-11-07",919,"أنور",350,7.05,{"$f":"IFERROR(IF(#REF!<>\"\",F22*G22,\"\"),\"\")","v":""}]
[20,"الاحد","2020-11-08",941,"أنور",350,7.05,{"$f":"IFERROR(IF(#REF!<>\"\",F23*G23,\"\"),\"\")","v":""}]
[21,"الأحد","2020-11-08",978,"أنور",323,7.05,{"$f":"IFERROR(IF(#REF!<>\"\",F24*G24,\"\"),\"\")","v":""}]
[22,"الأربعاء","2020-11-11",1007,"أنور",350,7.05,{"$f":"IFERROR(IF(#REF!<>\"\",F25*G25,\"\"),\"\")","v":""}]
[23,"السبت","2020-11-14",1027,"أنور",350,7.05,{"$f":"IFERROR(IF(#REF!<>\"\",F26*G26,\"\"),\"\")","v":""}]
[24,"الأحد","2020-11-15",1041,"أنور",350,7.05,{"$f":"IFERROR(IF(#REF!<>\"\",F27*G27,\"\"),\"\")","v":""}]
[25,"الأحد","2020-11-15",1042,"أنور",50,7.05,{"$f":"IFERROR(IF(#REF!<>\"\",F28*G28,\"\"),\"\")","v":""}]
[26,"الإثنين","2020-11-16",1063,"أنور",400,7.05,{"$f":"IFERROR(IF(#REF!<>\"\",F29*G29,\"\"),\"\")","v":""}]
[27,"الأربعاء","2020-11-18",1079,"أنور",250,7.05,{"$f":"IFERROR(IF(#REF!<>\"\",F30*G30,\"\"),\"\")","v":""}]
[28,"السبت","2020-11-21",1105,"أنور",400,7.05,{"$f":"IFERROR(IF(#REF!<>\"\",F31*G31,\"\"),\"\")","v":""}]
[29,"الأحد","2020-11-22",1126,"أنور",400,7.05,{"$f":"IFERROR(IF(#REF!<>\"\",F32*G32,\"\"),\"\")","v":""}]
[30,"الاثنين","2020-11-23",1134,"أنور",350,7.05,{"$f":"IFERROR(IF(#REF!<>\"\",F33*G33,\"\"),\"\")","v":""}]
[31,"الثلاثاء","2020-11-24",1160,"أنور",350,7.05,{"$f":"IFERROR(IF(#REF!<>\"\",F34*G34,\"\"),\"\")","v":""}]
[32,"الاربعاء","2020-11-25",1171,"أنور",450,7.05,{"$f":"IFERROR(IF(#REF!<>\"\",F35*G35,\"\"),\"\")","v":""}]
[33,"السبت","2020-11-28",1202,"أنور",350,7.05,{"$f":"IFERROR(IF(#REF!<>\"\",F36*G36,\"\"),\"\")","v":""}]
[34,"الأحد","2020-11-29",1219,"أنور",350,7.05,{"$f":"IFERROR(IF(#REF!<>\"\",F37*G37,\"\"),\"\")","v":""}]
[35,"الاثنين","2020-11-30",1235,"أنور",400,7.05,{"$f":"IFERROR(IF(#REF!<>\"\",F38*G38,\"\"),\"\")","v":""}]
[36,"الاربعاء","2020-12-02",2,"أنور",350,7.05,{"$f":"IFERROR(IF(#REF!<>\"\",F39*G39,\"\"),\"\")","v":""}]
[37,"الخميس","2020-12-03",21,"أنور",500,7.05,{"$f":"IFERROR(IF(#REF!<>\"\",F40*G40,\"\"),\"\")","v":""}]
[38,"السبت","2020-12-05",34,"أنور",350,7.05,{"$f":"IFERROR(IF(#REF!<>\"\",F41*G41,\"\"),\"\")","v":""}]
[39,"الأحد","2020-12-06",1397,"أنور",400,7.05,{"$f":"IFERROR(IF(#REF!<>\"\",F42*G42,\"\"),\"\")","v":""}]
[40,"الإثنين","2020-12-07",1303,"أنور",500,7.05,{"$f":"IFERROR(IF(#REF!<>\"\",F43*G43,\"\"),\"\")","v":""}]
[41,"الإثنين","2020-12-07",1317,"أنور",100,7.05,{"$f":"IFERROR(IF(#REF!<>\"\",F44*G44,\"\"),\"\")","v":""}]
[42,"الاربعاء","2020-12-09",1333,"أنور",500,7.05,{"$f":"IFERROR(IF(#REF!<>\"\",F45*G45,\"\"),\"\")","v":""}]
[43,"الخميس","2020-12-10",1360,"أنور",500,7.05,{"$f":"IFERROR(IF(#REF!<>\"\",F46*G46,\"\"),\"\")","v":""}]
[44,"السبت","2020-12-12",1374,"أنور",500,7.05,{"$f":"IFERROR(IF(#REF!<>\"\",F47*G47,\"\"),\"\")","v":""}]
[45,"السبت","2020-12-12",1375,"أنور",200,7.05,{"$f":"IFERROR(IF(#REF!<>\"\",F48*G48,\"\"),\"\")","v":""}]
[46,"الإثنين","2020-12-14",1424,"أنور",200,7.05,{"$f":"IFERROR(IF(#REF!<>\"\",F49*G49,\"\"),\"\")","v":""}]
[47,"الاربعاء","2020-12-16",1452,"أنور",260,7.05,{"$f":"IFERROR(IF(#REF!<>\"\",F50*G50,\"\"),\"\")","v":""}]

{"sheet":"جابر","index":17,"n_rows":52,"n_cols":8,"rows_kept":52,"cut":false,"hidden":false,"merged":[]}
[]
[]
[null,"اليوم","التاريخ","رقم الاذن","اسم المقاول","الكمية","السعر","القيمة"]
[1,"السبت","2020-10-10",585,"جابر",1975,7.05,{"$f":"+F4*G4","v":13923.75}]
[2,"الأحد","2020-10-11",606,"جابر",1300,7.05,9165]
[3,"الاثنين","2020-10-12",617,"جابر",1300,7.05,9165]
[4,"الثلاثاء","2020-10-13",629,"جابر",1600,7.05,11280]
[5,"الثلاثاء","2020-10-13",635,"جابر",384,7.05,2707.2]
[6,"الاربعاء","2020-10-14",645,"جابر",1300,7.05,9165]
[7,"السبت","2020-10-17",668,"جابر",1560,7.05,10998]
[8,"الأحد","2020-10-18",693,"جابر",1420,7.05,10011]
[9,"الإثنين","2020-10-19",712,"جابر",1174,{"$f":"IFERROR(IF(E12<>\"\",7.05,\"\"),\"\")","v":7.05},8276.6999999999989]
[10,"الثلاثاء","2020-10-20",725,"جابر",1225,7.05,8636.25]
[11,"الأربعاء","2020-10-21",745,"جابر",1290,7.05,9094.5]
[12,"السبت","2020-10-24",753,"جابر",1500,7.05,10575]
[13,"الأحد","2020-10-25",773,"جابر",1906,7.05,13437.3]
[14,"الإثنين","2020-10-26",790,"جابر",1857,7.05,13091.85]
[15,"الاربعاء","2020-10-28",809,"جابر",1400,7.05,9870]
[16,"السبت","2020-10-31",833,"جابر",2000,7.05,{"$f":"IFERROR(IF(#REF!<>\"\",F19*G19,\"\"),\"\")","v":""}]
[17,"الأحد","2020-11-01",854,"جابر",1792,7.05,{"$f":"IFERROR(IF(#REF!<>\"\",F20*G20,\"\"),\"\")","v":""}]
[18,"الثلاثاء","2020-11-03",871,"جابر",1300,7.05,{"$f":"IFERROR(IF(#REF!<>\"\",F21*G21,\"\"),\"\")","v":""}]
[19,"الأربعاء","2020-11-04",891,"جابر",1400,7.05,{"$f":"IFERROR(IF(#REF!<>\"\",F22*G22,\"\"),\"\")","v":""}]
[20,"السبت","2020-11-07",925,"جابر",1270,7.05,{"$f":"IFERROR(IF(#REF!<>\"\",F23*G23,\"\"),\"\")","v":""}]
[21,"الأحد","2020-11-08",947,"جابر",1630,7.05,{"$f":"IFERROR(IF(#REF!<>\"\",F24*G24,\"\"),\"\")","v":""}]
[22,"الأحد","2020-11-08",965,"جابر",1100,7.05,{"$f":"IFERROR(IF(#REF!<>\"\",F25*G25,\"\"),\"\")","v":""}]
[23,"الأحد","2020-11-08",974,"جابر",100,7.05,{"$f":"IFERROR(IF(#REF!<>\"\",F26*G26,\"\"),\"\")","v":""}]
[24,"الثلاثاء","2020-11-10",994,"جابر",2050,7.05,{"$f":"IFERROR(IF(#REF!<>\"\",F27*G27,\"\"),\"\")","v":""}]
[25,"الأربعاء","2020-11-11",1008,"جابر",1650,7.05,{"$f":"IFERROR(IF(#REF!<>\"\",F28*G28,\"\"),\"\")","v":""}]
[26,"السبت","2020-11-14",1025,"جابر",1716,7.05,{"$f":"IFERROR(IF(#REF!<>\"\",F29*G29,\"\"),\"\")","v":""}]
[27,"الأحد","2020-11-15",1047,"جابر",1375,7.05,{"$f":"IFERROR(IF(#REF!<>\"\",F30*G30,\"\"),\"\")","v":""}]
[28,"الإثنين","2020-11-16",1064,"جابر",1300,7.05,{"$f":"IFERROR(IF(#REF!<>\"\",F31*G31,\"\"),\"\")","v":""}]
[29,"الأربعاء","2020-11-18",1074,"جابر",1300,7.05,{"$f":"IFERROR(IF(#REF!<>\"\",F32*G32,\"\"),\"\")","v":""}]
[30,"السبت","2020-11-21",1110,"جابر",1150,7.05,{"$f":"IFERROR(IF(#REF!<>\"\",F33*G33,\"\"),\"\")","v":""}]
[31,"الأحد","2020-11-22",1127,"جابر",1000,7.05,{"$f":"IFERROR(IF(#REF!<>\"\",F34*G34,\"\"),\"\")","v":""}]
[32,"الإثنين","2020-11-23",1147,"جابر",976,7.05,{"$f":"IFERROR(IF(#REF!<>\"\",F35*G35,\"\"),\"\")","v":""}]
[33,"الثلاثاء","2020-11-24",1162,"جابر",1500,7.05,{"$f":"IFERROR(IF(#REF!<>\"\",F36*G36,\"\"),\"\")","v":""}]
[34,"الأربعاء","2020-11-25",1173,"جابر",1250,7.05,{"$f":"IFERROR(IF(#REF!<>\"\",F37*G37,\"\"),\"\")","v":""}]
[35,"السبت","2020-11-28",1206,"جابر",1505,7.05,{"$f":"IFERROR(IF(#REF!<>\"\",F38*G38,\"\"),\"\")","v":""}]
[36,"الأحد","2020-11-29",1225,"جابر",1063,7.05,{"$f":"IFERROR(IF(#REF!<>\"\",F39*G39,\"\"),\"\")","v":""}]
[37,"الإثنين","2020-11-30",1244,"جابر",950,7.05,{"$f":"IFERROR(IF(#REF!<>\"\",F40*G40,\"\"),\"\")","v":""}]
[38,"الأربعاء","2020-12-02",8,"جابر",680,7.05,{"$f":"IFERROR(IF(#REF!<>\"\",F41*G41,\"\"),\"\")","v":""}]
[39,"الخميس","2020-12-03",22,"جابر",800,7.05,{"$f":"IFERROR(IF(#REF!<>\"\",F42*G42,\"\"),\"\")","v":""}]
[40,"السبت","2020-12-05",36,"جابر",700,7.05,{"$f":"IFERROR(IF(#REF!<>\"\",F43*G43,\"\"),\"\")","v":""}]
[41,"السبت","2020-12-05",47,"جابر",649,7.05,{"$f":"IFERROR(IF(#REF!<>\"\",F44*G44,\"\"),\"\")","v":""}]
[42,"الإثنين","2020-12-07",1308,"جابر",500,7.05,{"$f":"IFERROR(IF(#REF!<>\"\",F45*G45,\"\"),\"\")","v":""}]
[43,"الأربعاء","2020-12-09",1343,"جابر",750,7.05,{"$f":"IFERROR(IF(#REF!<>\"\",F46*G46,\"\"),\"\")","v":""}]
[44,"الخميس","2020-12-10",1361,"جابر",230,7.05,{"$f":"IFERROR(IF(#REF!<>\"\",F47*G47,\"\"),\"\")","v":""}]
[45,"الثلاثاء","2020-12-15",1436,"جابر",200,7.05,{"$f":"IFERROR(IF(#REF!<>\"\",F48*G48,\"\"),\"\")","v":""}]
[46,"الأربعاء","2020-12-16",1457,"جابر",408,7.05,{"$f":"IFERROR(IF(#REF!<>\"\",F49*G49,\"\"),\"\")","v":""}]
[47,"الأحد","2020-12-20",1488,"جابر",200,7.05,{"$f":"IFERROR(IF(#REF!<>\"\",F50*G50,\"\"),\"\")","v":""}]
[48,"الإثنين","2020-12-21",1515,"جابر",620,7.05,{"$f":"IFERROR(IF(#REF!<>\"\",F51*G51,\"\"),\"\")","v":""}]
[49,"الأربعاء","2020-12-23",1536,"جابر",150,7.05,{"$f":"IFERROR(IF(#REF!<>\"\",F52*G52,\"\"),\"\")","v":""}]

{"sheet":"رمضان عربية ش","index":18,"n_rows":28,"n_cols":8,"rows_kept":28,"cut":false,"hidden":false,"merged":[]}
[]
[]
[null,"اليوم","التاريخ","رقم الاذن","اسم المقاول","الكمية","السعر","القيمة"]
[1,"السبت","2020-10-10",586,"رمضان عربية ش",67,7.05,{"$f":"+F4*G4","v":472.34999999999997}]
[2,"الاربعاء","2020-10-14",649,"رمضان عربية ش",50,7.05,352.5]
[3,"السبت","2020-10-17",667,"رمضان عربية ش",70,7.05,493.5]
[4,"الأربعاء","2020-10-21",739,"رمضان عربية ش",78,{"$f":"IFERROR(IF(E7<>\"\",7.05,\"\"),\"\")","v":7.05},549.9]
[5,"السبت","2020-10-24",760,"رمضان عربية ش",75,7.05,528.75]
[6,"الاربعاء","2020-10-28",822,"رمضان عربية ش",83,7.05,585.15]
[7,"الأحد","2020-11-01",845,"رمضان عربية ش",70,7.05,{"$f":"IFERROR(IF(#REF!<>\"\",F10*G10,\"\"),\"\")","v":""}]
[8,"الأربعاء","2020-11-04",903,"رمضان عربية ش",66,7.05,{"$f":"IFERROR(IF(#REF!<>\"\",F11*G11,\"\"),\"\")","v":""}]
[9,"السبت","2020-11-14",1034,"رمضان عربية ش",74,7.05,{"$f":"IFERROR(IF(#REF!<>\"\",F12*G12,\"\"),\"\")","v":""}]
[10,"الأربعاء","2020-11-18",1075,"رمضان عربية ش",84,7.05,{"$f":"IFERROR(IF(#REF!<>\"\",F13*G13,\"\"),\"\")","v":""}]
[11,"السبت","2020-11-21",1114,"رمضان عربية ش",50,7.05,{"$f":"IFERROR(IF(#REF!<>\"\",F14*G14,\"\"),\"\")","v":""}]
[12,"الإثنين","2020-11-23",1140,"رمضان عربية ش",38,7.05,{"$f":"IFERROR(IF(#REF!<>\"\",F15*G15,\"\"),\"\")","v":""}]
[13,"الأربعاء","2020-11-25",1182,"رمضان عربية ش",50,7.05,{"$f":"IFERROR(IF(#REF!<>\"\",F16*G16,\"\"),\"\")","v":""}]
[14,"السبت","2020-11-28",1205,"رمضان عربية ش",75,7.05,{"$f":"IFERROR(IF(#REF!<>\"\",F17*G17,\"\"),\"\")","v":""}]
[15,"الأربعاء","2020-12-02",17,"رمضان عربية ش",50,7.05,{"$f":"IFERROR(IF(#REF!<>\"\",F18*G18,\"\"),\"\")","v":""}]
[16,"الخميس","2020-12-03",30,"رمضان عربية ش",35,7.05,{"$f":"IFERROR(IF(#REF!<>\"\",F19*G19,\"\"),\"\")","v":""}]
[17,"السبت","2020-12-05",46,"رمضان عربية ش",65,7.05,{"$f":"IFERROR(IF(#REF!<>\"\",F20*G20,\"\"),\"\")","v":""}]
[18,"الإثنين","2020-12-07",1321,"رمضان عربية ش",23,7.05,{"$f":"IFERROR(IF(#REF!<>\"\",F21*G21,\"\"),\"\")","v":""}]
[19,"الخميس","2020-12-10",1364,"رمضان عربية ش",60,7.05,{"$f":"IFERROR(IF(#REF!<>\"\",F22*G22,\"\"),\"\")","v":""}]
[20,"الإثنين","2020-12-14",1428,"رمضان عربية ش",45,7.05,{"$f":"IFERROR(IF(#REF!<>\"\",F23*G23,\"\"),\"\")","v":""}]
[21,"الأحد","2020-12-20",1495,"رمضان عربية ش",68,7.05,{"$f":"IFERROR(IF(#REF!<>\"\",F24*G24,\"\"),\"\")","v":""}]
[22,"الأربعاء","2020-12-23",1529,"رمضان عربية ش",45,7.05,{"$f":"IFERROR(IF(#REF!<>\"\",F25*G25,\"\"),\"\")","v":""}]
[23,"السبت","2020-12-26",1546,"رمضان عربية ش",71,7.05,{"$f":"IFERROR(IF(#REF!<>\"\",F26*G26,\"\"),\"\")","v":""}]
[24,"الثلاثاء","2020-12-29",1576,"رمضان عربية ش",54,7.05,{"$f":"IFERROR(IF(#REF!<>\"\",F27*G27,\"\"),\"\")","v":""}]
[25,"الأحد","2021-01-03",1596,"رمضان عربية ش",831,7.05,{"$f":"IFERROR(IF(#REF!<>\"\",F28*G28,\"\"),\"\")","v":""}]

{"sheet":"محمد عيسى","index":19,"n_rows":21,"n_cols":8,"rows_kept":21,"cut":false,"hidden":false,"merged":[]}
[]
[]
[null,"اليوم","التاريخ","رقم الاذن","اسم المقاول","الكمية","السعر","القيمة"]
[1,"السبت","2020-10-10",587,"محمد عيسى",255,7.05,{"$f":"+F4*G4","v":1797.75}]
[2,"الأحد","2020-10-11",605,"محمد عيسى",400,7.05,2820]
[3,"الاثنين","2020-10-12",621,"محمد عيسى",400,7.05,2820]
[4,"الاربعاء","2020-10-14",642,"محمد عيسى",400,7.05,2820]
[5,"السبت","2020-10-17",669,"محمد عيسى",400,7.05,2820]
[6,"الأحد","2020-10-18",682,"محمد عيسى",400,7.05,2820]
[7,"الثلاثاء","2020-10-20",723,"محمد عيسى",300,{"$f":"IFERROR(IF(E10<>\"\",7.05,\"\"),\"\")","v":7.05},2115]
[8,"الأربعاء","2020-10-21",734,"محمد عيسى",300,7.05,2115]
[9,"السبت","2020-10-24",758,"محمد عيسى",400,7.05,2820]
[10,"الأحد","2020-10-25",778,"محمد عيسى",400,7.05,2820]
[11,"الإثنين","2020-10-26",797,"محمد عيسى",466,7.05,3285.2999999999997]
[12,"الاربعاء","2020-10-28",817,"محمد عيسى",250,7.05,1762.5]
[13,"الاحد","2020-11-01",841,"محمد عيسى",400,7.05,{"$f":"IFERROR(IF(#REF!<>\"\",F16*G16,\"\"),\"\")","v":""}]
[14,"الثلاثاء","2020-11-03",872,"محمد عيسى",300,7.05,{"$f":"IFERROR(IF(#REF!<>\"\",F17*G17,\"\"),\"\")","v":""}]
[15,"الأربعاء","2020-11-04",892,"محمد عيسى",300,7.05,{"$f":"IFERROR(IF(#REF!<>\"\",F18*G18,\"\"),\"\")","v":""}]
[16,"السبت","2020-11-07",930,"محمد عيسى",250,7.05,{"$f":"IFERROR(IF(#REF!<>\"\",F19*G19,\"\"),\"\")","v":""}]
[17,"الأحد","2020-11-08",952,"محمد عيسى",205,7.05,{"$f":"IFERROR(IF(#REF!<>\"\",F20*G20,\"\"),\"\")","v":""}]
[18,"الأحد","2021-01-03",1592,"محمد عيسى",69,7.05,{"$f":"IFERROR(IF(#REF!<>\"\",F21*G21,\"\"),\"\")","v":""}]

{"sheet":"عمر","index":20,"n_rows":32,"n_cols":8,"rows_kept":32,"cut":false,"hidden":false,"merged":[]}
[]
[]
[null,"اليوم","التاريخ","رقم الاذن","اسم المقاول","الكمية","السعر","القيمة"]
[1,"الأحد","2020-10-11",598,"عمر",40,7.05,{"$f":"+F4*G4","v":282}]
[2,"السبت","2020-10-17",660,"عمر",120,7.05,846]
[3,"الأحد","2020-10-18",681,"عمر",175,7.05,1233.75]
[4,"الإثنين","2020-10-19",708,"عمر",125,{"$f":"IFERROR(IF(E7<>\"\",7.05,\"\"),\"\")","v":7.05},881.25]
[5,"الثلاثاء","2020-10-20",718,"عمر",345,7.05,2432.25]
[6,"الأربعاء","2020-10-21",740,"عمر",200,7.05,1410]
[7,"الإثنين","2020-10-26",793,"عمر",102,7.05,719.1]
[8,"السبت","2020-10-31",826,"عمر",130,7.05,{"$f":"IFERROR(IF(#REF!<>\"\",F11*G11,\"\"),\"\")","v":""}]
[9,"الثلاثاء","2020-11-03",880,"عمر",100,7.05,{"$f":"IFERROR(IF(#REF!<>\"\",F12*G12,\"\"),\"\")","v":""}]
[10,"الأربعاء","2020-11-04",899,"عمر",600,7.05,{"$f":"IFERROR(IF(#REF!<>\"\",F13*G13,\"\"),\"\")","v":""}]
[11,"السبت","2020-11-07",917,"عمر",400,7.05,{"$f":"IFERROR(IF(#REF!<>\"\",F14*G14,\"\"),\"\")","v":""}]
[12,"الأحد","2020-11-08",948,"عمر",350,7.05,{"$f":"IFERROR(IF(#REF!<>\"\",F15*G15,\"\"),\"\")","v":""}]
[13,"الأحد","2020-11-08",953,"عمر",100,7.05,{"$f":"IFERROR(IF(#REF!<>\"\",F16*G16,\"\"),\"\")","v":""}]
[14,"الأحد","2020-11-08",970,"عمر",300,7.05,{"$f":"IFERROR(IF(#REF!<>\"\",F17*G17,\"\"),\"\")","v":""}]
[15,"الثلاثاء","2020-11-10",992,"عمر",300,7.05,{"$f":"IFERROR(IF(#REF!<>\"\",F18*G18,\"\"),\"\")","v":""}]
[16,"الاربعاء","2020-11-11",1004,"عمر",200,7.05,{"$f":"IFERROR(IF(#REF!<>\"\",F19*G19,\"\"),\"\")","v":""}]
[17,"السبت","2020-11-14",1033,"عمر",200,7.05,{"$f":"IFERROR(IF(#REF!<>\"\",F20*G20,\"\"),\"\")","v":""}]
[18,"الأحد","2020-11-15",1050,"عمر",320,7.05,{"$f":"IFERROR(IF(#REF!<>\"\",F21*G21,\"\"),\"\")","v":""}]
[19,"الإثنين","2020-11-16",1065,"عمر",500,7.05,{"$f":"IFERROR(IF(#REF!<>\"\",F22*G22,\"\"),\"\")","v":""}]
[20,"الأربعاء","2020-11-18",1082,"عمر",350,7.05,{"$f":"IFERROR(IF(#REF!<>\"\",F23*G23,\"\"),\"\")","v":""}]
[21,"السبت","2020-11-21",1113,"عمر",50,7.05,{"$f":"IFERROR(IF(#REF!<>\"\",F24*G24,\"\"),\"\")","v":""}]
[22,"الأحد","2020-11-22",1123,"عمر",500,7.05,{"$f":"IFERROR(IF(#REF!<>\"\",F25*G25,\"\"),\"\")","v":""}]
[23,"الإثنين","2020-11-23",1143,"عمر",200,7.05,{"$f":"IFERROR(IF(#REF!<>\"\",F26*G26,\"\"),\"\")","v":""}]
[24,"الأحد","2020-11-29",1220,"عمر",200,7.05,{"$f":"IFERROR(IF(#REF!<>\"\",F27*G27,\"\"),\"\")","v":""}]
[25,"الإثنين","2020-11-30",1242,"عمر",150,7.05,{"$f":"IFERROR(IF(#REF!<>\"\",F28*G28,\"\"),\"\")","v":""}]
[26,"الأربعاء","2020-12-02",3,"عمر",100,7.05,{"$f":"IFERROR(IF(#REF!<>\"\",F29*G29,\"\"),\"\")","v":""}]
[27,"الأحد","2020-12-06",1392,"عمر",200,7.05,{"$f":"IFERROR(IF(#REF!<>\"\",F30*G30,\"\"),\"\")","v":""}]
[28,"الإثنين","2020-12-07",1310,"عمر",100,7.05,{"$f":"IFERROR(IF(#REF!<>\"\",F31*G31,\"\"),\"\")","v":""}]
[29,"الإثنين","2020-12-07",1316,"عمر",100,7.05,{"$f":"IFERROR(IF(#REF!<>\"\",F32*G32,\"\"),\"\")","v":""}]

{"sheet":"حلمى25","index":21,"n_rows":18,"n_cols":8,"rows_kept":18,"cut":false,"hidden":false,"merged":[]}
[]
[]
[null,"اليوم","التاريخ","رقم الاذن","اسم المقاول","الكمية","السعر","القيمة"]
[1,"الأحد","2020-10-11",601,"حلمى25",200,7.05,{"$f":"+F4*G4","v":1410}]
[2,"الأحد","2020-10-18",687,"حلمى25",350,7.05,2467.5]
[3,"الإثنين","2020-10-19",701,"حلمى25",990,{"$f":"IFERROR(IF(E6<>\"\",7.05,\"\"),\"\")","v":7.05},6979.5]
[4,"الثلاثاء","2020-10-20",722,"حلمى25",200,7.05,1410]
[5,"الأربعاء","2020-10-21",736,"حلمى25",300,7.05,2115]
[6,"الأحد","2020-10-25",780,"حلمى25",900,7.05,6345]
[7,"الأحد","2020-11-08",962,"حلمى25",350,7.05,{"$f":"IFERROR(IF(#REF!<>\"\",F10*G10,\"\"),\"\")","v":""}]
[8,"الأحد","2020-12-20",1485,"حلمى25",800,7.05,{"$f":"IFERROR(IF(#REF!<>\"\",F11*G11,\"\"),\"\")","v":""}]
[9,"الأحد","2020-12-20",1497,"حلمى25",375,7.05,{"$f":"IFERROR(IF(#REF!<>\"\",F12*G12,\"\"),\"\")","v":""}]
[10,"الإثنين","2020-12-21",1511,"حلمى25",800,7.05,{"$f":"IFERROR(IF(#REF!<>\"\",F13*G13,\"\"),\"\")","v":""}]
[11,"الأربعاء","2020-12-23",1531,"حلمى25",980,7.05,{"$f":"IFERROR(IF(#REF!<>\"\",F14*G14,\"\"),\"\")","v":""}]
[12,"السبت","2020-12-26",1548,"حلمى25",829,7.05,{"$f":"IFERROR(IF(#REF!<>\"\",F15*G15,\"\"),\"\")","v":""}]
[13,"الأحد","2020-12-27",1566,"حلمى25",700,7.05,{"$f":"IFERROR(IF(#REF!<>\"\",F16*G16,\"\"),\"\")","v":""}]
[14,"الثلاثاء","2020-12-29",1575,"حلمى25",700,7.05,{"$f":"IFERROR(IF(#REF!<>\"\",F17*G17,\"\"),\"\")","v":""}]
[15,"الثلاثاء","2020-12-29",1581,"حلمى25",54,7.05,{"$f":"IFERROR(IF(#REF!<>\"\",F18*G18,\"\"),\"\")","v":""}]

{"sheet":"ضيف","index":22,"n_rows":54,"n_cols":8,"rows_kept":54,"cut":false,"hidden":false,"merged":[]}
[]
[]
[null,"اليوم","التاريخ","رقم الاذن","اسم المقاول","الكمية","السعر","القيمة"]
[1,"الاثنين","2020-10-12",622,"ضيف",400,7.05,{"$f":"+F4*G4","v":2820}]
[2,"الثلاثاء","2020-10-13",632,"ضيف",315,7.05,2220.75]
[3,"الاربعاء","2020-10-14",650,"ضيف",400,7.05,2820]
[4,"السبت","2020-10-17",663,"ضيف",300,7.05,2115]
[5,"الأحد","2020-10-18",685,"ضيف",300,7.05,2115]
[6,"الإثنين","2020-10-19",702,"ضيف",300,{"$f":"IFERROR(IF(E9<>\"\",7.05,\"\"),\"\")","v":7.05},2115]
[7,"الثلاثاء","2020-10-20",726,"ضيف",300,7.05,2115]
[8,"الأربعاء","2020-10-21",733,"ضيف",200,7.05,1410]
[9,"السبت","2020-10-24",759,"ضيف",400,7.05,2820]
[10,"الأحد","2020-10-25",781,"ضيف",125,7.05,881.25]
[11,"الإثنين","2020-10-26",787,"ضيف",393,7.05,2770.65]
[12,"الاربعاء","2020-10-28",818,"ضيف",450,7.05,3172.5]
[13,"الاربعاء","2020-10-28",820,"ضيف",50,7.05,352.5]
[14,"السبت","2020-10-31",830,"ضيف",490,7.05,{"$f":"IFERROR(IF(#REF!<>\"\",F17*G17,\"\"),\"\")","v":""}]
[15,"الأحد","2020-11-01",847,"ضيف",600,7.05,{"$f":"IFERROR(IF(#REF!<>\"\",F18*G18,\"\"),\"\")","v":""}]
[16,"الثلاثاء","2020-11-03",876,"ضيف",400,7.05,{"$f":"IFERROR(IF(#REF!<>\"\",F19*G19,\"\"),\"\")","v":""}]
[17,"الأربعاء","2020-11-04",900,"ضيف",400,7.05,{"$f":"IFERROR(IF(#REF!<>\"\",F20*G20,\"\"),\"\")","v":""}]
[18,"السبت","2020-11-07",922,"ضيف",400,7.05,{"$f":"IFERROR(IF(#REF!<>\"\",F21*G21,\"\"),\"\")","v":""}]
[19,"الأحد","2020-11-08",943,"ضيف",300,7.05,{"$f":"IFERROR(IF(#REF!<>\"\",F22*G22,\"\"),\"\")","v":""}]
[20,"الأحد","2020-11-08",964,"ضيف",300,7.05,{"$f":"IFERROR(IF(#REF!<>\"\",F23*G23,\"\"),\"\")","v":""}]
[21,"الثلاثاء ","2020-11-10",986,"ضيف",400,7.05,{"$f":"IFERROR(IF(#REF!<>\"\",F24*G24,\"\"),\"\")","v":""}]
[22,"الأربعاء","2020-11-11",1011,"ضيف",510,7.05,{"$f":"IFERROR(IF(#REF!<>\"\",F25*G25,\"\"),\"\")","v":""}]
[23,"السبت","2020-11-14",1024,"ضيف",200,7.05,{"$f":"IFERROR(IF(#REF!<>\"\",F26*G26,\"\"),\"\")","v":""}]
[24,"الاحد","2020-11-15",1038,"ضيف",400,7.05,{"$f":"IFERROR(IF(#REF!<>\"\",F27*G27,\"\"),\"\")","v":""}]
[25,"الأحد","2020-11-15",1049,"ضيف",40,7.05,{"$f":"IFERROR(IF(#REF!<>\"\",F28*G28,\"\"),\"\")","v":""}]
[26,"الإثنين","2020-11-16",1066,"ضيف",500,7.05,{"$f":"IFERROR(IF(#REF!<>\"\",F29*G29,\"\"),\"\")","v":""}]
[27,"الاربعاء","2020-11-18",1073,"ضيف",340,7.05,{"$f":"IFERROR(IF(#REF!<>\"\",F30*G30,\"\"),\"\")","v":""}]
[28,"الأحد","2020-11-22",1120,"ضيف",440,7.05,{"$f":"IFERROR(IF(#REF!<>\"\",F31*G31,\"\"),\"\")","v":""}]
[29,"الإثنين","2020-11-23",1146,"ضيف",300,7.05,{"$f":"IFERROR(IF(#REF!<>\"\",F32*G32,\"\"),\"\")","v":""}]
[30,"الثلاثاء","2020-11-24",1164,"ضيف",515,7.05,{"$f":"IFERROR(IF(#REF!<>\"\",F33*G33,\"\"),\"\")","v":""}]
[31,"الأربعاء","2020-11-25",1185,"ضيف",350,7.05,{"$f":"IFERROR(IF(#REF!<>\"\",F34*G34,\"\"),\"\")","v":""}]
[32,"السبت","2020-11-28",1212,"ضيف",400,7.05,{"$f":"IFERROR(IF(#REF!<>\"\",F35*G35,\"\"),\"\")","v":""}]
[33,"الإثنين","2020-11-30",1241,"ضيف",500,7.05,{"$f":"IFERROR(IF(#REF!<>\"\",F36*G36,\"\"),\"\")","v":""}]
[34,"الأربعاء","2020-12-02",10,"ضيف",400,7.05,{"$f":"IFERROR(IF(#REF!<>\"\",F37*G37,\"\"),\"\")","v":""}]
[35,"الخميس","2020-12-03",24,"ضيف",400,7.05,{"$f":"IFERROR(IF(#REF!<>\"\",F38*G38,\"\"),\"\")","v":""}]
[36,"الخميس","2020-12-03",27,"ضيف",42,7.05,{"$f":"IFERROR(IF(#REF!<>\"\",F39*G39,\"\"),\"\")","v":""}]
[37,"السبت","2020-12-05",44,"ضيف",400,7.05,{"$f":"IFERROR(IF(#REF!<>\"\",F40*G40,\"\"),\"\")","v":""}]
[38,"الأحد","2020-12-06",1399,"ضيف",400,7.05,{"$f":"IFERROR(IF(#REF!<>\"\",F41*G41,\"\"),\"\")","v":""}]
[39,"الإثنين","2020-12-07",1313,"ضيف",340,7.05,{"$f":"IFERROR(IF(#REF!<>\"\",F42*G42,\"\"),\"\")","v":""}]
[40,"الأربعاء","2020-12-09",1344,"ضيف",430,7.05,{"$f":"IFERROR(IF(#REF!<>\"\",F43*G43,\"\"),\"\")","v":""}]
[41,"الخميس","2020-12-10",1367,"ضيف",251,7.05,{"$f":"IFERROR(IF(#REF!<>\"\",F44*G44,\"\"),\"\")","v":""}]
[42,"السبت","2020-12-12",1386,"ضيف",200,7.05,{"$f":"IFERROR(IF(#REF!<>\"\",F45*G45,\"\"),\"\")","v":""}]
[43,"الإثنين","2020-12-14",1427,"ضيف",630,7.05,{"$f":"IFERROR(IF(#REF!<>\"\",F46*G46,\"\"),\"\")","v":""}]
[44,"الثلاثاء","2020-12-15",1440,"ضيف",500,7.05,{"$f":"IFERROR(IF(#REF!<>\"\",F47*G47,\"\"),\"\")","v":""}]
[45,"الأربعاء","2020-12-16",1453,"ضيف",800,7.05,{"$f":"IFERROR(IF(#REF!<>\"\",F48*G48,\"\"),\"\")","v":""}]
[46,"الأحد","2020-12-20",1494,"ضيف",430,7.05,{"$f":"IFERROR(IF(#REF!<>\"\",F49*G49,\"\"),\"\")","v":""}]
[47,"الإثنين","2020-12-21",1509,"ضيف",480,7.05,{"$f":"IFERROR(IF(#REF!<>\"\",F50*G50,\"\"),\"\")","v":""}]
[48,"السبت","2020-12-26",1550,"ضيف",500,7.05,{"$f":"IFERROR(IF(#REF!<>\"\",F51*G51,\"\"),\"\")","v":""}]
[49,"الأحد","2020-12-27",1564,"ضيف",430,7.05,{"$f":"IFERROR(IF(#REF!<>\"\",F52*G52,\"\"),\"\")","v":""}]
[50,"الثلاثاء","2020-12-29",1574,"ضيف",600,7.05,{"$f":"IFERROR(IF(#REF!<>\"\",F53*G53,\"\"),\"\")","v":""}]
[51,"الاحد","2021-01-03",1590,"ضيف",800,7.05,{"$f":"IFERROR(IF(#REF!<>\"\",F54*G54,\"\"),\"\")","v":""}]

{"sheet":"خالد 54","index":23,"n_rows":28,"n_cols":8,"rows_kept":28,"cut":false,"hidden":false,"merged":[]}
[]
[]
[null,"اليوم","التاريخ","رقم الاذن","اسم المقاول","الكمية","السعر","القيمة"]
[1,"الاربعاء","2020-10-14",644,"خالد 54",400,7.05,{"$f":"+F4*G4","v":2820}]
[2,"السبت","2020-10-17",665,"خالد 54",400,7.05,2820]
[3,"الأحد","2020-10-18",689,"خالد 54",500,7.05,3525]
[4,"الإثنين","2020-10-19",699,"خالد 54",750,{"$f":"IFERROR(IF(E7<>\"\",7.05,\"\"),\"\")","v":7.05},5287.5]
[5,"الثلاثاء","2020-10-20",720,"خالد 54",700,7.05,4935]
[6,"الأربعاء","2020-10-21",731,"خالد 54",1000,7.05,7050]
[7,"السبت","2020-10-24",755,"خالد 54",1000,7.05,7050]
[8,"الأحد","2020-10-25",776,"خالد 54",600,7.05,4230]
[9,"الاربعاء","2020-10-28",815,"خالد 54",600,7.05,4230]
[10,"السبت","2020-10-31",829,"خالد 54",900,7.05,{"$f":"IFERROR(IF(#REF!<>\"\",F13*G13,\"\"),\"\")","v":""}]
[11,"السبت","2020-10-31",835,"خالد 54",200,7.05,{"$f":"IFERROR(IF(#REF!<>\"\",F14*G14,\"\"),\"\")","v":""}]
[12,"الأحد","2020-11-01",849,"خالد 54",380,7.05,{"$f":"IFERROR(IF(#REF!<>\"\",F15*G15,\"\"),\"\")","v":""}]
[13,"الثلاثاء","2020-11-03",873,"خالد 54",700,7.05,{"$f":"IFERROR(IF(#REF!<>\"\",F16*G16,\"\"),\"\")","v":""}]
[14,"الاربعاء","2020-11-04",890,"خالد 54",700,7.05,{"$f":"IFERROR(IF(#REF!<>\"\",F17*G17,\"\"),\"\")","v":""}]
[15,"السبت","2020-11-07",931,"خالد 54",500,7.05,{"$f":"IFERROR(IF(#REF!<>\"\",F18*G18,\"\"),\"\")","v":""}]
[16,"الأحد","2020-11-08",951,"خالد 54",380,7.05,{"$f":"IFERROR(IF(#REF!<>\"\",F19*G19,\"\"),\"\")","v":""}]
[17,"الأحد","2020-11-08",968,"خالد 54",350,7.05,{"$f":"IFERROR(IF(#REF!<>\"\",F20*G20,\"\"),\"\")","v":""}]
[18,"الثلاثاء","2020-11-10",997,"خالد 54",900,7.05,{"$f":"IFERROR(IF(#REF!<>\"\",F21*G21,\"\"),\"\")","v":""}]
[19,"الأربعاء","2020-11-11",1010,"خالد 54",584,7.05,{"$f":"IFERROR(IF(#REF!<>\"\",F22*G22,\"\"),\"\")","v":""}]
[20,"السبت","2020-11-14",1023,"خالد 54",400,7.05,{"$f":"IFERROR(IF(#REF!<>\"\",F23*G23,\"\"),\"\")","v":""}]
[21,"الأحد","2020-11-15",1052,"خالد 54",65,7.05,{"$f":"IFERROR(IF(#REF!<>\"\",F24*G24,\"\"),\"\")","v":""}]
[22,"الإثنين","2020-11-16",1068,"خالد 54",100,7.05,{"$f":"IFERROR(IF(#REF!<>\"\",F25*G25,\"\"),\"\")","v":""}]
[23,"الأربعاء","2020-11-18",1077,"خالد 54",145,7.05,{"$f":"IFERROR(IF(#REF!<>\"\",F26*G26,\"\"),\"\")","v":""}]
[24,"السبت","2020-11-21",1107,"خالد 54",150,7.05,{"$f":"IFERROR(IF(#REF!<>\"\",F27*G27,\"\"),\"\")","v":""}]
[25,"الاحد","2020-11-22",1118,"خالد 54",150,7.05,{"$f":"IFERROR(IF(#REF!<>\"\",F28*G28,\"\"),\"\")","v":""}]

{"sheet":"محسن مياه","index":24,"n_rows":70,"n_cols":8,"rows_kept":70,"cut":false,"hidden":false,"merged":[]}
[]
[]
[null,"اليوم","التاريخ","رقم الاذن","اسم المقاول","الكمية","السعر","القيمة"]
[1,"السبت","2020-10-17",659,"محسن مياه",100,7.05,{"$f":"+F4*G4","v":705}]
[2,"الأحد","2020-10-18",680,"محسن مياه",50,7.05,352.5]
[3,"الأحد","2020-10-18",688,"محسن مياه",50,7.05,352.5]
[4,"الإثنين","2020-10-19",705,"محسن مياه",20,{"$f":"IFERROR(IF(E7<>\"\",7.05,\"\"),\"\")","v":7.05},141]
[5,"الإثنين","2020-10-19",706,"محسن مياه",20,7.05,141]
[6,"الأربعاء","2020-10-21",729,"محسن مياه",50,7.05,352.5]
[7,"الأربعاء","2020-10-21",735,"محسن مياه",50,7.05,352.5]
[8,"الأربعاء","2020-10-21",743,"محسن مياه",40,7.05,282]
[9,"السبت","2020-10-24",766,"محسن مياه",111,7.05,782.55]
[10,"الأحد","2020-10-25",782,"محسن مياه",164,7.05,1156.2]
[11,"الإثنين","2020-10-26",798,"محسن مياه",102,7.05,719.1]
[12,"الإثنين","2020-10-26",799,"محسن مياه",128,7.05,902.4]
[13,"الاربعاء","2020-10-28",808,"محسن مياه",40,7.05,282]
[14,"الاربعاء","2020-10-28",821,"محسن مياه",100,7.05,705]
[15,"السبت","2020-10-31",837,"محسن مياه",130,7.05,{"$f":"IFERROR(IF(#REF!<>\"\",F18*G18,\"\"),\"\")","v":""}]
[16,"الثلاثاء","2020-11-03",878,"محسن مياه",25,7.05,{"$f":"IFERROR(IF(#REF!<>\"\",F19*G19,\"\"),\"\")","v":""}]
[17,"الثلاثاء","2020-11-03",883,"محسن مياه",25,7.05,{"$f":"IFERROR(IF(#REF!<>\"\",F20*G20,\"\"),\"\")","v":""}]
[18,"الأربعاء","2020-11-04",897,"محسن مياه",140,7.05,{"$f":"IFERROR(IF(#REF!<>\"\",F21*G21,\"\"),\"\")","v":""}]
[19,"الأربعاء","2020-11-04",898,"محسن مياه",50,7.05,{"$f":"IFERROR(IF(#REF!<>\"\",F22*G22,\"\"),\"\")","v":""}]
[20,"السبت","2020-11-07",924,"محسن مياه",50,7.05,{"$f":"IFERROR(IF(#REF!<>\"\",F23*G23,\"\"),\"\")","v":""}]
[21,"الأحد","2020-11-08",955,"محسن مياه",150,7.05,{"$f":"IFERROR(IF(#REF!<>\"\",F24*G24,\"\"),\"\")","v":""}]
[22,"الأحد","2020-11-08",956,"محسن مياه",50,7.05,{"$f":"IFERROR(IF(#REF!<>\"\",F25*G25,\"\"),\"\")","v":""}]
[23,"الثلاثاء","2020-11-10",995,"محسن مياه",220,7.05,{"$f":"IFERROR(IF(#REF!<>\"\",F26*G26,\"\"),\"\")","v":""}]
[24,"الثلاثاء","2020-11-10",996,"محسن مياه",50,7.05,{"$f":"IFERROR(IF(#REF!<>\"\",F27*G27,\"\"),\"\")","v":""}]
[25,"الثلاثاء","2020-11-10",998,"محسن مياه",80,7.05,{"$f":"IFERROR(IF(#REF!<>\"\",F28*G28,\"\"),\"\")","v":""}]
[26,"الأربعاء","2020-11-11",1012,"محسن مياه",200,7.05,{"$f":"IFERROR(IF(#REF!<>\"\",F29*G29,\"\"),\"\")","v":""}]
[27,"الأحد","2020-11-15",1051,"محسن مياه",300,7.05,{"$f":"IFERROR(IF(#REF!<>\"\",F30*G30,\"\"),\"\")","v":""}]
[28,"الأربعاء","2020-11-18",1081,"محسن مياه",50,7.05,{"$f":"IFERROR(IF(#REF!<>\"\",F31*G31,\"\"),\"\")","v":""}]
[29,"الأربعاء","2020-11-18",1083,"محسن مياه",100,7.05,{"$f":"IFERROR(IF(#REF!<>\"\",F32*G32,\"\"),\"\")","v":""}]
[30,"الأربعاء","2020-11-18",1085,"محسن مياه",50,7.05,{"$f":"IFERROR(IF(#REF!<>\"\",F33*G33,\"\"),\"\")","v":""}]
[31,"الإثنين","2020-11-23",1144,"محسن مياه",60,7.05,{"$f":"IFERROR(IF(#REF!<>\"\",F34*G34,\"\"),\"\")","v":""}]
[32,"الإثنين","2020-11-23",1145,"محسن مياه",100,7.05,{"$f":"IFERROR(IF(#REF!<>\"\",F35*G35,\"\"),\"\")","v":""}]
[33,"الأربعاء","2020-11-25",1174,"محسن مياه",70,7.05,{"$f":"IFERROR(IF(#REF!<>\"\",F36*G36,\"\"),\"\")","v":""}]
[34,"الأربعاء","2020-11-25",1183,"محسن مياه",50,7.05,{"$f":"IFERROR(IF(#REF!<>\"\",F37*G37,\"\"),\"\")","v":""}]
[35,"الأربعاء","2020-11-25",1184,"محسن مياه",50,7.05,{"$f":"IFERROR(IF(#REF!<>\"\",F38*G38,\"\"),\"\")","v":""}]
[36,"السبت","2020-11-28",1210,"محسن مياه",100,7.05,{"$f":"IFERROR(IF(#REF!<>\"\",F39*G39,\"\"),\"\")","v":""}]
[37,"الأحد","2020-11-29",1221,"محسن مياه",60,7.05,{"$f":"IFERROR(IF(#REF!<>\"\",F40*G40,\"\"),\"\")","v":""}]
[38,"الأربعاء","2020-12-02",9,"محسن مياه",80,7.05,{"$f":"IFERROR(IF(#REF!<>\"\",F41*G41,\"\"),\"\")","v":""}]
[39,"الأربعاء","2020-12-02",12,"محسن مياه",50,7.05,{"$f":"IFERROR(IF(#REF!<>\"\",F42*G42,\"\"),\"\")","v":""}]
[40,"الأربعاء","2020-12-02",16,"محسن مياه",40,7.05,{"$f":"IFERROR(IF(#REF!<>\"\",F43*G43,\"\"),\"\")","v":""}]
[41,"السبت","2020-12-05",41,"محسن مياه",100,7.05,{"$f":"IFERROR(IF(#REF!<>\"\",F44*G44,\"\"),\"\")","v":""}]
[42,"السبت","2020-12-05",43,"محسن مياه",100,7.05,{"$f":"IFERROR(IF(#REF!<>\"\",F45*G45,\"\"),\"\")","v":""}]
[43,"الأحد","2020-12-06",1398,"محسن مياه",100,7.05,{"$f":"IFERROR(IF(#REF!<>\"\",F46*G46,\"\"),\"\")","v":""}]
[44,"الاثنين","2020-12-07",1302,"محسن مياه",100,7.05,{"$f":"IFERROR(IF(#REF!<>\"\",F47*G47,\"\"),\"\")","v":""}]
[45,"الإثنين","2020-12-07",1306,"محسن مياه",50,7.05,{"$f":"IFERROR(IF(#REF!<>\"\",F48*G48,\"\"),\"\")","v":""}]
[46,"الأربعاء","2020-12-09",1336,"محسن مياه",50,7.05,{"$f":"IFERROR(IF(#REF!<>\"\",F49*G49,\"\"),\"\")","v":""}]
[47,"الأربعاء","2020-12-09",1341,"محسن مياه",50,7.05,{"$f":"IFERROR(IF(#REF!<>\"\",F50*G50,\"\"),\"\")","v":""}]
[48,"الأربعاء","2020-12-09",1345,"محسن مياه",70,7.05,{"$f":"IFERROR(IF(#REF!<>\"\",F51*G51,\"\"),\"\")","v":""}]
[49,"السبت","2020-12-12",1377,"محسن مياه",152,7.05,{"$f":"IFERROR(IF(#REF!<>\"\",F52*G52,\"\"),\"\")","v":""}]
[50,"السبت","2020-12-12",1378,"محسن مياه",48,7.05,{"$f":"IFERROR(IF(#REF!<>\"\",F53*G53,\"\"),\"\")","v":""}]
[51,"الإثنين","2020-12-14",1420,"محسن مياه",75,7.05,{"$f":"IFERROR(IF(#REF!<>\"\",F54*G54,\"\"),\"\")","v":""}]
[52,"الإثنين","2020-12-14",1421,"محسن مياه",50,7.05,{"$f":"IFERROR(IF(#REF!<>\"\",F55*G55,\"\"),\"\")","v":""}]
[53,"الإثنين","2020-12-14",1426,"محسن مياه",30,7.05,{"$f":"IFERROR(IF(#REF!<>\"\",F56*G56,\"\"),\"\")","v":""}]
[54,"الثلاثاء","2020-12-15",1442,"محسن مياه",50,7.05,{"$f":"IFERROR(IF(#REF!<>\"\",F57*G57,\"\"),\"\")","v":""}]
[55,"الثلاثاء","2020-12-15",1443,"محسن مياه",30,7.05,{"$f":"IFERROR(IF(#REF!<>\"\",F58*G58,\"\"),\"\")","v":""}]
[56,"الأربعاء","2020-12-16",1455,"محسن مياه",100,7.05,{"$f":"IFERROR(IF(#REF!<>\"\",F59*G59,\"\"),\"\")","v":""}]
[57,"الأربعاء","2020-12-16",1459,"محسن مياه",100,7.05,{"$f":"IFERROR(IF(#REF!<>\"\",F60*G60,\"\"),\"\")","v":""}]
[58,"الأحد","2020-12-20",1490,"محسن مياه",50,7.05,{"$f":"IFERROR(IF(#REF!<>\"\",F61*G61,\"\"),\"\")","v":""}]
[59,"الأحد","2020-12-20",1491,"محسن مياه",25,7.05,{"$f":"IFERROR(IF(#REF!<>\"\",F62*G62,\"\"),\"\")","v":""}]
[60,"الأحد","2020-12-20",1492,"محسن مياه",50,7.05,{"$f":"IFERROR(IF(#REF!<>\"\",F63*G63,\"\"),\"\")","v":""}]
[61,"الأحد","2020-12-20",1493,"محسن مياه",75,7.05,{"$f":"IFERROR(IF(#REF!<>\"\",F64*G64,\"\"),\"\")","v":""}]
[62,"الاثنين","2020-12-21",1507,"محسن مياه",75,7.05,{"$f":"IFERROR(IF(#REF!<>\"\",F65*G65,\"\"),\"\")","v":""}]
[63,"الإثنين","2020-12-21",1513,"محسن مياه",50,7.05,{"$f":"IFERROR(IF(#REF!<>\"\",F66*G66,\"\"),\"\")","v":""}]
[64,"الاربعاء","2020-12-23",1528,"محسن مياه",30,7.05,{"$f":"IFERROR(IF(#REF!<>\"\",F67*G67,\"\"),\"\")","v":""}]
[65,"الأربعاء","2020-12-23",1532,"محسن مياه",30,7.05,{"$f":"IFERROR(IF(#REF!<>\"\",F68*G68,\"\"),\"\")","v":""}]
[66,"الأربعاء","2020-12-23",1535,"محسن مياه",30,7.05,{"$f":"IFERROR(IF(#REF!<>\"\",F69*G69,\"\"),\"\")","v":""}]
[67,"السبت","2020-12-26",1544,"محسن مياه",75,7.05,{"$f":"IFERROR(IF(#REF!<>\"\",F70*G70,\"\"),\"\")","v":""}]

{"sheet":"خالد 31","index":25,"n_rows":33,"n_cols":8,"rows_kept":33,"cut":false,"hidden":false,"merged":[]}
[]
[]
[null,"اليوم","التاريخ","رقم الاذن","اسم المقاول","الكمية","السعر","القيمة"]
[1,"الاربعاء","2020-10-28",816,"خالد 31",400,{"$f":"IFERROR(IF(E4<>\"\",7.05,\"\"),\"\")","v":7.05},{"$f":"+F4*G4","v":2820}]
[2,"السبت","2020-10-31",828,"خالد 31",500,7.05,{"$f":"IFERROR(IF(#REF!<>\"\",F5*G5,\"\"),\"\")","v":""}]
[3,"الأحد","2020-11-01",848,"خالد 31",675,7.05,{"$f":"IFERROR(IF(#REF!<>\"\",F6*G6,\"\"),\"\")","v":""}]
[4,"الثلاثاء","2020-11-03",884,"خالد 31",350,7.05,{"$f":"IFERROR(IF(#REF!<>\"\",F7*G7,\"\"),\"\")","v":""}]
[5,"الأربعاء","2020-11-04",895,"خالد 31",350,7.05,{"$f":"IFERROR(IF(#REF!<>\"\",F8*G8,\"\"),\"\")","v":""}]
[6,"السبت","2020-11-07",932,"خالد 31",200,7.05,{"$f":"IFERROR(IF(#REF!<>\"\",F9*G9,\"\"),\"\")","v":""}]
[7,"الأحد","2020-11-08",945,"خالد 31",200,7.05,{"$f":"IFERROR(IF(#REF!<>\"\",F10*G10,\"\"),\"\")","v":""}]
[8,"السبت","2020-11-14",1022,"خالد 31",750,7.05,{"$f":"IFERROR(IF(#REF!<>\"\",F11*G11,\"\"),\"\")","v":""}]
[9,"الأحد","2020-11-15",1044,"خالد 31",1300,7.05,{"$f":"IFERROR(IF(#REF!<>\"\",F12*G12,\"\"),\"\")","v":""}]
[10,"الاثنين","2020-11-16",1060,"خالد 31",1100,7.05,{"$f":"IFERROR(IF(#REF!<>\"\",F13*G13,\"\"),\"\")","v":""}]
[11,"الأربعاء","2020-11-18",1076,"خالد 31",1359,7.05,{"$f":"IFERROR(IF(#REF!<>\"\",F14*G14,\"\"),\"\")","v":""}]
[12,"السبت","2020-11-21",1108,"خالد 31",1429,7.05,{"$f":"IFERROR(IF(#REF!<>\"\",F15*G15,\"\"),\"\")","v":""}]
[13,"الأحد","2020-11-22",1119,"خالد 31",1300,7.05,{"$f":"IFERROR(IF(#REF!<>\"\",F16*G16,\"\"),\"\")","v":""}]
[14,"الاثنين","2020-11-23",1135,"خالد 31",1200,7.05,{"$f":"IFERROR(IF(#REF!<>\"\",F17*G17,\"\"),\"\")","v":""}]
[15,"الثلاثاء","2020-11-24",1158,"خالد 31",900,7.05,{"$f":"IFERROR(IF(#REF!<>\"\",F18*G18,\"\"),\"\")","v":""}]
[16,"الأربعاء","2020-11-25",1177,"خالد 31",1250,7.05,{"$f":"IFERROR(IF(#REF!<>\"\",F19*G19,\"\"),\"\")","v":""}]
[17,"السبت","2020-11-28",1209,"خالد 31",1000,7.05,{"$f":"IFERROR(IF(#REF!<>\"\",F20*G20,\"\"),\"\")","v":""}]
[18,"الاحد","2020-11-29",1215,"خالد 31",700,7.05,{"$f":"IFERROR(IF(#REF!<>\"\",F21*G21,\"\"),\"\")","v":""}]
[19,"الإثنين","2020-11-30",1237,"خالد 31",1300,7.05,{"$f":"IFERROR(IF(#REF!<>\"\",F22*G22,\"\"),\"\")","v":""}]
[20,"الأربعاء","2020-12-02",5,"خالد 31",1150,7.05,{"$f":"IFERROR(IF(#REF!<>\"\",F23*G23,\"\"),\"\")","v":""}]
[21,"الخميس","2020-12-03",25,"خالد 31",1200,7.05,{"$f":"IFERROR(IF(#REF!<>\"\",F24*G24,\"\"),\"\")","v":""}]
[22,"السبت","2020-12-05",39,"خالد 31",485,7.05,{"$f":"IFERROR(IF(#REF!<>\"\",F25*G25,\"\"),\"\")","v":""}]
[23,"الأحد","2020-12-06",1394,"خالد 31",1150,7.05,{"$f":"IFERROR(IF(#REF!<>\"\",F26*G26,\"\"),\"\")","v":""}]
[24,"الإثنين","2020-12-07",1311,"خالد 31",1200,7.05,{"$f":"IFERROR(IF(#REF!<>\"\",F27*G27,\"\"),\"\")","v":""}]
[25,"الأربعاء","2020-12-09",1338,"خالد 31",750,7.05,{"$f":"IFERROR(IF(#REF!<>\"\",F28*G28,\"\"),\"\")","v":""}]
[26,"الخميس","2020-12-10",1366,"خالد 31",850,7.05,{"$f":"IFERROR(IF(#REF!<>\"\",F29*G29,\"\"),\"\")","v":""}]
[27,"السبت","2020-12-12",1381,"خالد 31",850,7.05,{"$f":"IFERROR(IF(#REF!<>\"\",F30*G30,\"\"),\"\")","v":""}]
[28,"الإثنين","2020-12-14",1419,"خالد 31",470,7.05,{"$f":"IFERROR(IF(#REF!<>\"\",F31*G31,\"\"),\"\")","v":""}]
[29,"الثلاثاء","2020-12-15",1439,"خالد 31",150,7.05,{"$f":"IFERROR(IF(#REF!<>\"\",F32*G32,\"\"),\"\")","v":""}]
[30,"الأربعاء","2020-12-16",1456,"خالد 31",318,7.05,{"$f":"IFERROR(IF(#REF!<>\"\",F33*G33,\"\"),\"\")","v":""}]

{"sheet":"عربية الجيش","index":26,"n_rows":6,"n_cols":8,"rows_kept":6,"cut":false,"hidden":false,"merged":[]}
[]
[]
[null,"اليوم","التاريخ","رقم الاذن","اسم المقاول","الكمية","السعر","القيمة"]
[1,"الأحد","2020-11-01",856,"عربية الجيش",36,{"$f":"IFERROR(IF(E4<>\"\",7.05,\"\"),\"\")","v":7.05},{"$f":"IFERROR(IF(#REF!<>\"\",F4*G4,\"\"),\"\")","v":""}]
[2,"الأحد","2020-11-08",963,"عربية الجيش",80,7.05,{"$f":"IFERROR(IF(#REF!<>\"\",F5*G5,\"\"),\"\")","v":""}]
[3,"الأربعاء","2020-11-18",1086,"عربية الجيش",20,7.05,{"$f":"IFERROR(IF(#REF!<>\"\",F6*G6,\"\"),\"\")","v":""}]

{"sheet":"السيد156","index":27,"n_rows":35,"n_cols":8,"rows_kept":35,"cut":false,"hidden":false,"merged":[]}
[]
[]
[null,"اليوم","التاريخ","رقم الاذن","اسم المقاول","الكمية","السعر","القيمة"]
[1,"الثلاثاء","2020-11-03",875,"السيد156",700,{"$f":"IFERROR(IF(E4<>\"\",7.05,\"\"),\"\")","v":7.05},{"$f":"IFERROR(IF(#REF!<>\"\",F4*G4,\"\"),\"\")","v":""}]
[2,"الاربعاء","2020-11-04",889,"السيد156",700,7.05,{"$f":"IFERROR(IF(#REF!<>\"\",F5*G5,\"\"),\"\")","v":""}]
[3,"السبت","2020-11-07",923,"السيد156",800,7.05,{"$f":"IFERROR(IF(#REF!<>\"\",F6*G6,\"\"),\"\")","v":""}]
[4,"الأحد","2020-11-08",946,"السيد156",800,7.05,{"$f":"IFERROR(IF(#REF!<>\"\",F7*G7,\"\"),\"\")","v":""}]
[5,"الأحد","2020-11-08",969,"السيد156",900,7.05,{"$f":"IFERROR(IF(#REF!<>\"\",F8*G8,\"\"),\"\")","v":""}]
[6,"الثلاثاء","2020-11-10",990,"السيد156",700,7.05,{"$f":"IFERROR(IF(#REF!<>\"\",F9*G9,\"\"),\"\")","v":""}]
[7,"الثلاثاء","2020-11-10",991,"السيد156",50,7.05,{"$f":"IFERROR(IF(#REF!<>\"\",F10*G10,\"\"),\"\")","v":""}]
[8,"الأربعاء","2020-11-11",1005,"السيد156",900,7.05,{"$f":"IFERROR(IF(#REF!<>\"\",F11*G11,\"\"),\"\")","v":""}]
[9,"السبت","2020-11-14",1029,"السيد156",850,7.05,{"$f":"IFERROR(IF(#REF!<>\"\",F12*G12,\"\"),\"\")","v":""}]
[10,"الأحد","2020-11-15",1043,"السيد156",700,7.05,{"$f":"IFERROR(IF(#REF!<>\"\",F13*G13,\"\"),\"\")","v":""}]
[11,"الاثنين","2020-11-16",1059,"السيد156",550,7.05,{"$f":"IFERROR(IF(#REF!<>\"\",F14*G14,\"\"),\"\")","v":""}]
[12,"الأربعاء","2020-11-18",1080,"السيد156",550,7.05,{"$f":"IFERROR(IF(#REF!<>\"\",F15*G15,\"\"),\"\")","v":""}]
[13,"السبت","2020-11-21",1106,"السيد156",750,7.05,{"$f":"IFERROR(IF(#REF!<>\"\",F16*G16,\"\"),\"\")","v":""}]
[14,"الأحد","2020-11-22",1125,"السيد156",700,7.05,{"$f":"IFERROR(IF(#REF!<>\"\",F17*G17,\"\"),\"\")","v":""}]
[15,"الإثنين","2020-11-23",1139,"السيد156",700,7.05,{"$f":"IFERROR(IF(#REF!<>\"\",F18*G18,\"\"),\"\")","v":""}]
[16,"الثلاثاء","2020-11-24",1161,"السيد156",700,7.05,{"$f":"IFERROR(IF(#REF!<>\"\",F19*G19,\"\"),\"\")","v":""}]
[17,"الأربعاء","2020-11-25",1180,"السيد156",700,7.05,{"$f":"IFERROR(IF(#REF!<>\"\",F20*G20,\"\"),\"\")","v":""}]
[18,"السبت","2020-11-28",1208,"السيد156",750,7.05,{"$f":"IFERROR(IF(#REF!<>\"\",F21*G21,\"\"),\"\")","v":""}]
[19,"الاحد","2020-11-29",1214,"السيد156",850,7.05,{"$f":"IFERROR(IF(#REF!<>\"\",F22*G22,\"\"),\"\")","v":""}]
[20,"الأحد","2020-11-29",1226,"السيد156",431,7.05,{"$f":"IFERROR(IF(#REF!<>\"\",F23*G23,\"\"),\"\")","v":""}]
[21,"الإثنين","2020-11-30",1239,"السيد156",700,7.05,{"$f":"IFERROR(IF(#REF!<>\"\",F24*G24,\"\"),\"\")","v":""}]
[22,"الأربعاء","2020-12-02",11,"السيد156",650,7.05,{"$f":"IFERROR(IF(#REF!<>\"\",F25*G25,\"\"),\"\")","v":""}]
[23,"الخميس","2020-12-03",26,"السيد156",800,7.05,{"$f":"IFERROR(IF(#REF!<>\"\",F26*G26,\"\"),\"\")","v":""}]
[24,"السبت","2020-12-05",37,"السيد156",800,7.05,{"$f":"IFERROR(IF(#REF!<>\"\",F27*G27,\"\"),\"\")","v":""}]
[25,"الأحد","2020-12-06",1393,"السيد156",800,7.05,{"$f":"IFERROR(IF(#REF!<>\"\",F28*G28,\"\"),\"\")","v":""}]
[26,"الإثنين","2020-12-07",1305,"السيد156",800,7.05,{"$f":"IFERROR(IF(#REF!<>\"\",F29*G29,\"\"),\"\")","v":""}]
[27,"الأربعاء","2020-12-09",1339,"السيد156",600,7.05,{"$f":"IFERROR(IF(#REF!<>\"\",F30*G30,\"\"),\"\")","v":""}]
[28,"الخميس","2020-12-10",1368,"السيد156",600,7.05,{"$f":"IFERROR(IF(#REF!<>\"\",F31*G31,\"\"),\"\")","v":""}]
[29,"السبت","2020-12-12",1379,"السيد156",600,7.05,{"$f":"IFERROR(IF(#REF!<>\"\",F32*G32,\"\"),\"\")","v":""}]
[30,"الاثنين","2020-12-14",1415,"السيد156",50,7.05,{"$f":"IFERROR(IF(#REF!<>\"\",F33*G33,\"\"),\"\")","v":""}]
[31,"الثلاثاء","2020-12-15",1434,"السيد156",300,7.05,{"$f":"IFERROR(IF(#REF!<>\"\",F34*G34,\"\"),\"\")","v":""}]
[32,"الأربعاء","2020-12-16",1462,"السيد156",250,7.05,{"$f":"IFERROR(IF(#REF!<>\"\",F35*G35,\"\"),\"\")","v":""}]

{"sheet":"عنتر","index":28,"n_rows":43,"n_cols":8,"rows_kept":43,"cut":false,"hidden":false,"merged":[]}
[]
[]
[null,"اليوم","التاريخ","رقم الاذن","اسم المقاول","الكمية","السعر","القيمة"]
[1,"السبت","2020-11-07",926,"عنتر",100,{"$f":"IFERROR(IF(E4<>\"\",7.05,\"\"),\"\")","v":7.05},{"$f":"IFERROR(IF(#REF!<>\"\",F4*G4,\"\"),\"\")","v":""}]
[2,"الأحد","2020-11-08",942,"عنتر",353,7.05,{"$f":"IFERROR(IF(#REF!<>\"\",F5*G5,\"\"),\"\")","v":""}]
[3,"الاحد","2020-11-08",958,"عنتر",200,7.05,{"$f":"IFERROR(IF(#REF!<>\"\",F6*G6,\"\"),\"\")","v":""}]
[4,"الاحد","2020-11-08",959,"عنتر",350,7.05,{"$f":"IFERROR(IF(#REF!<>\"\",F7*G7,\"\"),\"\")","v":""}]
[5,"الثلاثاء","2020-11-10",988,"عنتر",600,7.05,{"$f":"IFERROR(IF(#REF!<>\"\",F8*G8,\"\"),\"\")","v":""}]
[6,"الاربعاء","2020-11-11",1003,"عنتر",600,7.05,{"$f":"IFERROR(IF(#REF!<>\"\",F9*G9,\"\"),\"\")","v":""}]
[7,"السبت","2020-11-14",1021,"عنتر",400,7.05,{"$f":"IFERROR(IF(#REF!<>\"\",F10*G10,\"\"),\"\")","v":""}]
[8,"السبت","2020-11-14",1028,"عنتر",300,7.05,{"$f":"IFERROR(IF(#REF!<>\"\",F11*G11,\"\"),\"\")","v":""}]
[9,"الاحد","2020-11-15",1039,"عنتر",900,7.05,{"$f":"IFERROR(IF(#REF!<>\"\",F12*G12,\"\"),\"\")","v":""}]
[10,"الإثنين","2020-11-16",1061,"عنتر",1200,7.05,{"$f":"IFERROR(IF(#REF!<>\"\",F13*G13,\"\"),\"\")","v":""}]
[11,"الاربعاء","2020-11-18",1072,"عنتر",1300,7.05,{"$f":"IFERROR(IF(#REF!<>\"\",F14*G14,\"\"),\"\")","v":""}]
[12,"الأربعاء","2020-11-18",1084,"عنتر",180,7.05,{"$f":"IFERROR(IF(#REF!<>\"\",F15*G15,\"\"),\"\")","v":""}]
[13,"السبت","2020-11-21",1109,"عنتر",750,7.05,{"$f":"IFERROR(IF(#REF!<>\"\",F16*G16,\"\"),\"\")","v":""}]
[14,"السبت","2020-11-21",1111,"عنتر",750,7.05,{"$f":"IFERROR(IF(#REF!<>\"\",F17*G17,\"\"),\"\")","v":""}]
[15,"الأحد","2020-11-22",1121,"عنتر",1320,7.05,{"$f":"IFERROR(IF(#REF!<>\"\",F18*G18,\"\"),\"\")","v":""}]
[16,"الإثنين","2020-11-23",1137,"عنتر",900,7.05,{"$f":"IFERROR(IF(#REF!<>\"\",F19*G19,\"\"),\"\")","v":""}]
[17,"الثلاثاء","2020-11-24",1156,"عنتر",700,7.05,{"$f":"IFERROR(IF(#REF!<>\"\",F20*G20,\"\"),\"\")","v":""}]
[18,"الأربعاء","2020-11-25",1178,"عنتر",840,7.05,{"$f":"IFERROR(IF(#REF!<>\"\",F21*G21,\"\"),\"\")","v":""}]
[19,"السبت","2020-11-28",1204,"عنتر",818,7.05,{"$f":"IFERROR(IF(#REF!<>\"\",F22*G22,\"\"),\"\")","v":""}]
[20,"الأحد","2020-11-29",1217,"عنتر",1096,7.05,{"$f":"IFERROR(IF(#REF!<>\"\",F23*G23,\"\"),\"\")","v":""}]
[21,"الإثنين","2020-11-30",1240,"عنتر",800,7.05,{"$f":"IFERROR(IF(#REF!<>\"\",F24*G24,\"\"),\"\")","v":""}]
[22,"الأربعاء","2020-12-02",6,"عنتر",900,7.05,{"$f":"IFERROR(IF(#REF!<>\"\",F25*G25,\"\"),\"\")","v":""}]
[23,"الخميس","2020-12-03",28,"عنتر",450,7.05,{"$f":"IFERROR(IF(#REF!<>\"\",F26*G26,\"\"),\"\")","v":""}]
[24,"السبت","2020-12-05",38,"عنتر",450,7.05,{"$f":"IFERROR(IF(#REF!<>\"\",F27*G27,\"\"),\"\")","v":""}]
[25,"الأحد","2020-12-06",1396,"عنتر",750,7.05,{"$f":"IFERROR(IF(#REF!<>\"\",F28*G28,\"\"),\"\")","v":""}]
[26,"الإثنين","2020-12-07",1312,"عنتر",440,7.05,{"$f":"IFERROR(IF(#REF!<>\"\",F29*G29,\"\"),\"\")","v":""}]
[27,"الأربعاء","2020-12-09",1337,"عنتر",850,7.05,{"$f":"IFERROR(IF(#REF!<>\"\",F30*G30,\"\"),\"\")","v":""}]
[28,"الخميس","2020-12-10",1365,"عنتر",850,7.05,{"$f":"IFERROR(IF(#REF!<>\"\",F31*G31,\"\"),\"\")","v":""}]
[29,"السبت","2020-12-12",1380,"عنتر",900,7.05,{"$f":"IFERROR(IF(#REF!<>\"\",F32*G32,\"\"),\"\")","v":""}]
[30,"الإثنين","2020-12-14",1418,"عنتر",950,7.05,{"$f":"IFERROR(IF(#REF!<>\"\",F33*G33,\"\"),\"\")","v":""}]
[31,"الثلاثاء","2020-12-15",1435,"عنتر",1170,7.05,{"$f":"IFERROR(IF(#REF!<>\"\",F34*G34,\"\"),\"\")","v":""}]
[32,"الأربعاء","2020-12-16",1461,"عنتر",443,7.05,{"$f":"IFERROR(IF(#REF!<>\"\",F35*G35,\"\"),\"\")","v":""}]
[33,"الأحد","2020-12-20",1496,"عنتر",567,7.05,{"$f":"IFERROR(IF(#REF!<>\"\",F36*G36,\"\"),\"\")","v":""}]
[34,"الإثنين","2020-12-21",1514,"عنتر",931,7.05,{"$f":"IFERROR(IF(#REF!<>\"\",F37*G37,\"\"),\"\")","v":""}]
[35,"الأربعاء","2020-12-23",1533,"عنتر",400,7.05,{"$f":"IFERROR(IF(#REF!<>\"\",F38*G38,\"\"),\"\")","v":""}]
[36,"السبت","2020-12-26",1549,"عنتر",600,7.05,{"$f":"IFERROR(IF(#REF!<>\"\",F39*G39,\"\"),\"\")","v":""}]
[37,"الأحد","2020-12-27",1565,"عنتر",300,7.05,{"$f":"IFERROR(IF(#REF!<>\"\",F40*G40,\"\"),\"\")","v":""}]
[38,"الثلاثاء","2020-12-29",1579,"عنتر",500,7.05,{"$f":"IFERROR(IF(#REF!<>\"\",F41*G41,\"\"),\"\")","v":""}]
[39,"الثلاثاء","2020-12-29",1580,"عنتر",2000,7.05,{"$f":"IFERROR(IF(#REF!<>\"\",F42*G42,\"\"),\"\")","v":""}]
[40,"الأحد","2021-01-03",1594,"عنتر",700,7.05,{"$f":"IFERROR(IF(#REF!<>\"\",F43*G43,\"\"),\"\")","v":""}]

{"sheet":"رجب طرق","index":29,"n_rows":33,"n_cols":8,"rows_kept":33,"cut":false,"hidden":false,"merged":[]}
[]
[]
[null,"اليوم","التاريخ","رقم الاذن","اسم المقاول","الكمية","السعر","القيمة"]
[1,"الإثنين","2020-11-23",1138,"رجب طرق",400,{"$f":"IFERROR(IF(E4<>\"\",7.05,\"\"),\"\")","v":7.05},{"$f":"IFERROR(IF(#REF!<>\"\",F4*G4,\"\"),\"\")","v":""}]
[2,"الثلاثاء","2020-11-24",1157,"رجب طرق",331,7.05,{"$f":"IFERROR(IF(#REF!<>\"\",F5*G5,\"\"),\"\")","v":""}]
[3,"الأربعاء","2020-11-25",1176,"رجب طرق",200,7.05,{"$f":"IFERROR(IF(#REF!<>\"\",F6*G6,\"\"),\"\")","v":""}]
[4,"السبت","2020-11-28",1203,"رجب طرق",400,7.05,{"$f":"IFERROR(IF(#REF!<>\"\",F7*G7,\"\"),\"\")","v":""}]
[5,"الأحد","2020-11-29",1222,"رجب طرق",200,7.05,{"$f":"IFERROR(IF(#REF!<>\"\",F8*G8,\"\"),\"\")","v":""}]
[6,"الإثنين","2020-11-30",1236,"رجب طرق",400,7.05,{"$f":"IFERROR(IF(#REF!<>\"\",F9*G9,\"\"),\"\")","v":""}]
[7,"الأربعاء","2020-12-02",4,"رجب طرق",200,7.05,{"$f":"IFERROR(IF(#REF!<>\"\",F10*G10,\"\"),\"\")","v":""}]
[8,"الأربعاء","2020-12-02",15,"رجب طرق",200,7.05,{"$f":"IFERROR(IF(#REF!<>\"\",F11*G11,\"\"),\"\")","v":""}]
[9,"الخميس","2020-12-03",19,"رجب طرق",450,7.05,{"$f":"IFERROR(IF(#REF!<>\"\",F12*G12,\"\"),\"\")","v":""}]
[10,"الخميس","2020-12-03",20,"رجب طرق",200,7.05,{"$f":"IFERROR(IF(#REF!<>\"\",F13*G13,\"\"),\"\")","v":""}]
[11,"السبت","2020-12-05",33,"رجب طرق",750,7.05,{"$f":"IFERROR(IF(#REF!<>\"\",F14*G14,\"\"),\"\")","v":""}]
[12,"الأحد","2020-12-06",1391,"رجب طرق",600,7.05,{"$f":"IFERROR(IF(#REF!<>\"\",F15*G15,\"\"),\"\")","v":""}]
[13,"الأحد","2020-12-06",1401,"رجب طرق",100,7.05,{"$f":"IFERROR(IF(#REF!<>\"\",F16*G16,\"\"),\"\")","v":""}]
[14,"الإثنين","2020-12-07",1304,"رجب طرق",600,7.05,{"$f":"IFERROR(IF(#REF!<>\"\",F17*G17,\"\"),\"\")","v":""}]
[15,"الإثنين","2020-12-07",1315,"رجب طرق",200,7.05,{"$f":"IFERROR(IF(#REF!<>\"\",F18*G18,\"\"),\"\")","v":""}]
[16,"الأربعاء","2020-12-09",1335,"رجب طرق",700,7.05,{"$f":"IFERROR(IF(#REF!<>\"\",F19*G19,\"\"),\"\")","v":""}]
[17,"الخميس","2020-12-10",1359,"رجب طرق",700,7.05,{"$f":"IFERROR(IF(#REF!<>\"\",F20*G20,\"\"),\"\")","v":""}]
[18,"السبت","2020-12-12",1383,"رجب طرق",820,7.05,{"$f":"IFERROR(IF(#REF!<>\"\",F21*G21,\"\"),\"\")","v":""}]
[19,"الاثنين","2020-12-14",1416,"رجب طرق",1000,7.05,{"$f":"IFERROR(IF(#REF!<>\"\",F22*G22,\"\"),\"\")","v":""}]
[20,"الإثنين","2020-12-14",1423,"رجب طرق",200,7.05,{"$f":"IFERROR(IF(#REF!<>\"\",F23*G23,\"\"),\"\")","v":""}]
[21,"الثلاثاء","2020-12-15",1433,"رجب طرق",1200,7.05,{"$f":"IFERROR(IF(#REF!<>\"\",F24*G24,\"\"),\"\")","v":""}]
[22,"الأربعاء","2020-12-16",1454,"رجب طرق",1550,7.05,{"$f":"IFERROR(IF(#REF!<>\"\",F25*G25,\"\"),\"\")","v":""}]
[23,"الأربعاء","2020-12-16",1464,"رجب طرق",200,7.05,{"$f":"IFERROR(IF(#REF!<>\"\",F26*G26,\"\"),\"\")","v":""}]
[24,"الأحد","2020-12-20",1487,"رجب طرق",1300,7.05,{"$f":"IFERROR(IF(#REF!<>\"\",F27*G27,\"\"),\"\")","v":""}]
[25,"الإثنين","2020-12-21",1512,"رجب طرق",1394,7.05,{"$f":"IFERROR(IF(#REF!<>\"\",F28*G28,\"\"),\"\")","v":""}]
[26,"الأربعاء","2020-12-23",1530,"رجب طرق",1750,7.05,{"$f":"IFERROR(IF(#REF!<>\"\",F29*G29,\"\"),\"\")","v":""}]
[27,"السبت","2020-12-26",1547,"رجب طرق",1650,7.05,{"$f":"IFERROR(IF(#REF!<>\"\",F30*G30,\"\"),\"\")","v":""}]
[28,"الاحد","2020-12-27",1563,"رجب طرق",1850,7.05,{"$f":"IFERROR(IF(#REF!<>\"\",F31*G31,\"\"),\"\")","v":""}]
[29,"الثلاثاء","2020-12-29",1577,"رجب طرق",1792,7.05,{"$f":"IFERROR(IF(#REF!<>\"\",F32*G32,\"\"),\"\")","v":""}]
[30,"الاحد","2021-01-03",1591,"رجب طرق",2300,7.05,{"$f":"IFERROR(IF(#REF!<>\"\",F33*G33,\"\"),\"\")","v":""}]

{"sheet":"جابر 59","index":30,"n_rows":25,"n_cols":8,"rows_kept":25,"cut":false,"hidden":false,"merged":[]}
[]
[]
[null,"اليوم","التاريخ","رقم الاذن","اسم المقاول","الكمية","السعر","القيمة"]
[1,"السبت","2020-11-28",1207,"جابر 59",402,{"$f":"IFERROR(IF(E4<>\"\",7.05,\"\"),\"\")","v":7.05},{"$f":"IFERROR(IF(#REF!<>\"\",F4*G4,\"\"),\"\")","v":""}]
[2,"الأحد","2020-11-29",1224,"جابر 59",400,7.05,{"$f":"IFERROR(IF(#REF!<>\"\",F5*G5,\"\"),\"\")","v":""}]
[3,"الإثنين","2020-11-30",1245,"جابر 59",387,7.05,{"$f":"IFERROR(IF(#REF!<>\"\",F6*G6,\"\"),\"\")","v":""}]
[4,"الأربعاء","2020-12-02",7,"جابر 59",600,7.05,{"$f":"IFERROR(IF(#REF!<>\"\",F7*G7,\"\"),\"\")","v":""}]
[5,"الخميس","2020-12-03",23,"جابر 59",700,7.05,{"$f":"IFERROR(IF(#REF!<>\"\",F8*G8,\"\"),\"\")","v":""}]
[6,"الخميس","2020-12-03",31,"جابر 59",323,7.05,{"$f":"IFERROR(IF(#REF!<>\"\",F9*G9,\"\"),\"\")","v":""}]
[7,"السبت","2020-12-05",35,"جابر 59",700,7.05,{"$f":"IFERROR(IF(#REF!<>\"\",F10*G10,\"\"),\"\")","v":""}]
[8,"الاحد","2020-12-06",1389,"جابر 59",1200,7.05,{"$f":"IFERROR(IF(#REF!<>\"\",F11*G11,\"\"),\"\")","v":""}]
[9,"الإثنين","2020-12-07",1307,"جابر 59",700,7.05,{"$f":"IFERROR(IF(#REF!<>\"\",F12*G12,\"\"),\"\")","v":""}]
[10,"الأربعاء","2020-12-09",1342,"جابر 59",750,7.05,{"$f":"IFERROR(IF(#REF!<>\"\",F13*G13,\"\"),\"\")","v":""}]
[11,"الخميس","2020-12-10",1362,"جابر 59",1270,7.05,{"$f":"IFERROR(IF(#REF!<>\"\",F14*G14,\"\"),\"\")","v":""}]
[12,"الخميس","2020-12-10",1373,"جابر 59",34,7.05,{"$f":"IFERROR(IF(#REF!<>\"\",F15*G15,\"\"),\"\")","v":""}]
[13,"السبت","2020-12-12",1384,"جابر 59",1500,7.05,{"$f":"IFERROR(IF(#REF!<>\"\",F16*G16,\"\"),\"\")","v":""}]
[14,"الإثنين","2020-12-14",1425,"جابر 59",2261,7.05,{"$f":"IFERROR(IF(#REF!<>\"\",F17*G17,\"\"),\"\")","v":""}]
[15,"الثلاثاء","2020-12-15",1437,"جابر 59",2200,7.05,{"$f":"IFERROR(IF(#REF!<>\"\",F18*G18,\"\"),\"\")","v":""}]
[16,"الأربعاء","2020-12-16",1458,"جابر 59",1000,7.05,{"$f":"IFERROR(IF(#REF!<>\"\",F19*G19,\"\"),\"\")","v":""}]
[17,"الأحد","2020-12-20",1489,"جابر 59",1720,7.05,{"$f":"IFERROR(IF(#REF!<>\"\",F20*G20,\"\"),\"\")","v":""}]
[18,"الإثنين","2020-12-21",1516,"جابر 59",1600,7.05,{"$f":"IFERROR(IF(#REF!<>\"\",F21*G21,\"\"),\"\")","v":""}]
[19,"الأربعاء","2020-12-23",1537,"جابر 59",2250,7.05,{"$f":"IFERROR(IF(#REF!<>\"\",F22*G22,\"\"),\"\")","v":""}]
[20,"السبت","2020-12-26",1551,"جابر 59",2110,7.05,{"$f":"IFERROR(IF(#REF!<>\"\",F23*G23,\"\"),\"\")","v":""}]
[21,"الأحد","2020-12-27",1568,"جابر 59",2495,7.05,{"$f":"IFERROR(IF(#REF!<>\"\",F24*G24,\"\"),\"\")","v":""}]
[22,"الأحد","2021-01-03",1595,"جابر 59",1000,7.05,{"$f":"IFERROR(IF(#REF!<>\"\",F25*G25,\"\"),\"\")","v":""}]

{"sheet":"الشركة","index":31,"n_rows":7,"n_cols":8,"rows_kept":7,"cut":false,"hidden":false,"merged":[]}
[]
[]
[null,"اليوم","التاريخ","رقم الاذن","اسم المقاول","الكمية","السعر","القيمة"]
[1,"السبت","2020-12-05",45,"الشركة",161,{"$f":"IFERROR(IF(E4<>\"\",7.05,\"\"),\"\")","v":7.05},{"$f":"IFERROR(IF(#REF!<>\"\",F4*G4,\"\"),\"\")","v":""}]
[2,"الإثنين","2020-12-07",1309,"الشركة",147,7.05,{"$f":"IFERROR(IF(#REF!<>\"\",F5*G5,\"\"),\"\")","v":""}]
[3,"الإثنين","2020-12-14",1429,"الشركة",50,7.05,{"$f":"IFERROR(IF(#REF!<>\"\",F6*G6,\"\"),\"\")","v":""}]
[4,"الأربعاء","2020-12-16",1463,"الشركة",40,7.05,{"$f":"IFERROR(IF(#REF!<>\"\",F7*G7,\"\"),\"\")","v":""}]

{"sheet":"الشركة 23","index":32,"n_rows":8,"n_cols":8,"rows_kept":8,"cut":false,"hidden":false,"merged":[]}
[]
[]
[null,"اليوم","التاريخ","رقم الاذن","اسم المقاول","الكمية","السعر","القيمة"]
[1,"الأحد","2020-12-20",1499,"الشركة 23",171,{"$f":"IFERROR(IF(E4<>\"\",7.05,\"\"),\"\")","v":7.05},{"$f":"IFERROR(IF(#REF!<>\"\",F4*G4,\"\"),\"\")","v":""}]
[2,"الإثنين","2020-12-21",1517,"الشركة 23",100,7.05,{"$f":"IFERROR(IF(#REF!<>\"\",F5*G5,\"\"),\"\")","v":""}]
[3,"الأربعاء","2020-12-23",1534,"الشركة 23",35,7.05,{"$f":"IFERROR(IF(#REF!<>\"\",F6*G6,\"\"),\"\")","v":""}]
[4,"السبت","2020-12-26",1545,"الشركة 23",65,7.05,{"$f":"IFERROR(IF(#REF!<>\"\",F7*G7,\"\"),\"\")","v":""}]
[5,"الأحد","2020-12-27",1567,"الشركة 23",25,7.05,{"$f":"IFERROR(IF(#REF!<>\"\",F8*G8,\"\"),\"\")","v":""}]